Workbook

Sheet Data Planilla
A1: Codigo Trabajador | B1: Fecha Ingreso | C1: Tipo planilla | D1: Sueldo | E1: Comisiones | F1: Remuneración Integral | G1: Jornal | H1: Pension | I1: Asig Familiar | J1: Remun.Vacacional | K1: AFP 10.23% | L1: AFP 3.00% | M1: Inc.Adicional SNP | N1: Desc Semanal Obligatorio | O1: HExtras 25% | P1: HExtras 35% | Q1: HExtras 50% | R1: HExtras 55% | S1: HExtras 65% | T1: HExtras 100% | U1: Bonif 2do Turno | V1: Bonif 3er Turno | W1: Bonif 26avo Jornal | X1: Bonif 26avo Adicional | Y1: Prima por Frio | Z1: Sobr.Nocturna 50% | AA1: Sobr.Nocturna 100% | AB1: Bonif Alimentación | AC1: Subs Alimentación | AD1: Sub Alimen Deposito | AE1: Bonif Trab Provincia | AF1: Bonif Destaque | AG1: Bonif Movilidad | AH1: Bonif Horario Verano | AI1: Bonif Quinquenio | AJ1: Alquiler Vivienda | AK1: Racion Cerveza | AL1: Asignación Sepelio | AM1: Asignación Vacacional | AN1: Asignación Escolar | AO1: Premios | AP1: Premio CAD | AQ1: Grati Extraordinaria | AR1: Enfermedad 20 1ros Dias | AS1: Subsidio Enfermedad | AT1: Subsidio Maternidad | AU1: CTS Rem Integral | AV1: Grat Rem Integral | AW1: Alimentacion Vacacional | AX1: Compensación Vacacional | AY1: Indemnizacion Vacacional | AZ1: Vacaciones Truncas | BA1: Gratificaciones Truncas | BB1: Bonif Extraordinaria Essalud | BC1: Total Ingresos | BD1: Aporte AFP | BE1: Comisión AFP | BF1: Seguro Invalidez AFP | BG1: ONP | BH1: Impto Rta 5ta | BI1: ESSALUD Vida | BJ1: Retención Judicial | BK1: Adelanto Quincena | BL1: Dscto Cuota Sindical | BM1: Dscto Cuota Sindical SM | BN1: Dscto Pacto Mortuorio | BO1: Dscto Racion Cerveza | BP1: Prima EPS | BQ1: Dscto Credito Hospitalario | BR1: Ajuste Prima EPS PAMF | BS1: Dscto Comedor CD'S | BT1: Dscto Ajus.Aliment ATE | BU1: Dscto Alimentación ATE | BV1: Dscto Comedor Nueva Sede | BW1: Dscto Comedor Malteria | BX1: Dscto Comedor Arequipa | BY1: Dscto Comedor Cusco | BZ1: Dscto Comedor Motupe | CA1: Dscto Alimen SM Almuerzo | CB1: Dscto Desa Arequipa | CC1: Dscto Cena Arequipa | CD1: Adelanto Utilidades | CE1: Dscto Adel Remuneracion | CF1: Dscto Prest Vacacional | CG1: Adelanto Vacacional | CH1: Dscto Gimnasio | CI1: Dscto Premios | CJ1: Dscto Seg.Med.Inter | CK1: Dscto Prest Clinica | CL1: Dscto Prest Administrativo | CM1: Dscto Ajuste Saldo | CN1: Dscto Judicial Varios | CO1: Dscto Saldo Negativo | CP1: Feble Anterior | CQ1: Feble Actual | CR1: Total Descuentos | CS1: Neto Boleta | CT1: Aporte ESSALUD | CU1: Aporte SENATI | CV1: Total Desembolso Empresa
A2: 000001 | B2: 1975-06-01 | C2: 21 | D2: 0 | E2: 0 | F2: 16376 | G2: 0 | H2: 0 | I2: 67.5 | J2: 0 | K2: 0 | L2: 0 | M2: 0 | N2: 0 | O2: 0 | P2: 0 | Q2: 0 | R2: 0 | S2: 0 | T2: 0 | U2: 0 | V2: 0 | W2: 0 | X2: 0 | Y2: 0 | Z2: 0 | AA2: 0 | AB2: 0 | AC2: 0 | AD2: 0 | AE2: 0 | AF2: 0 | AG2: 0 | AH2: 0 | AI2: 0 | AJ2: 0 | AK2: 60.02 | AL2: 0 | AM2: 0 | AN2: 0 | AO2: 0 | AP2: 0 | AQ2: 0 | AR2: 0 | AS2: 0 | AT2: 0 | AU2: 1608.15 | AV2: 2756.83 | AW2: 0 | AX2: 0 | AY2: 0 | AZ2: 0 | BA2: 0 | BB2: 186.09 | BC2: =SUM(D2:BB2) -> 21054.59 | BD2: 1644.35 | BE2: 320.65 | BF2: 106.48 | BG2: 0 | BH2: 3224.18 | BI2: 5 | BJ2: 0 | BK2: 0 | BL2: 0 | BM2: 0 | BN2: 0 | BO2: 60.02 | BP2: 253.22 | BQ2: 889.8 | BR2: 0 | BS2: 0 | BT2: 0 | BU2: 0 | BV2: 0 | BW2: 0 | BX2: 0 | BY2: 0 | BZ2: 0 | CA2: 0 | CB2: 0 | CC2: 0 | CD2: 0 | CE2: 0 | CF2: 0 | CG2: 0 | CH2: 0 | CI2: 0 | CJ2: 0 | CK2: 0 | CL2: 0 | CM2: 0 | CN2: 0 | CO2: 0 | CP2: -0.67 | CQ2: 0.56 | CR2: =SUM(BD2:CQ2) -> 6503.59 | CS2: =+BC2-CR2 -> 14551 | CT2: 1479.92 | CU2: 123.33 | CV2: =SUM(CS2:CU2) -> 16154.25
A3: 000002 | B3: 1980-08-01 | C3: 21 | D3: 0 | E3: 0 | F3: 16116 | G3: 0 | H3: 0 | I3: 0 | J3: 0 | K3: 0 | L3: 0 | M3: 0 | N3: 0 | O3: 0 | P3: 0 | Q3: 0 | R3: 0 | S3: 0 | T3: 0 | U3: 0 | V3: 0 | W3: 0 | X3: 0 | Y3: 0 | Z3: 0 | AA3: 0 | AB3: 0 | AC3: 0 | AD3: 0 | AE3: 0 | AF3: 0 | AG3: 0 | AH3: 0 | AI3: 0 | AJ3: 0 | AK3: 60.02 | AL3: 0 | AM3: 0 | AN3: 0 | AO3: 0 | AP3: 0 | AQ3: 0 | AR3: 0 | AS3: 0 | AT3: 0 | AU3: 1576.31 | AV3: 2702.25 | AW3: 0 | AX3: 0 | AY3: 0 | AZ3: 0 | BA3: 0 | BB3: 182.4 | BC3: =SUM(D3:BB3) -> 20636.98 | BD3: 1611.6 | BE3: 314.26 | BF3: 106.48 | BG3: 0 | BH3: 3108.45 | BI3: 0 | BJ3: 0 | BK3: 0 | BL3: 0 | BM3: 0 | BN3: 0 | BO3: 60.02 | BP3: 219.76 | BQ3: 0 | BR3: 0 | BS3: 0 | BT3: 0 | BU3: 0 | BV3: 0 | BW3: 0 | BX3: 0 | BY3: 0 | BZ3: 0 | CA3: 0 | CB3: 0 | CC3: 0 | CD3: 0 | CE3: 0 | CF3: 0 | CG3: 0 | CH3: 80 | CI3: 0 | CJ3: 0 | CK3: 0 | CL3: 0 | CM3: 0 | CN3: 0 | CO3: 0 | CP3: -0.1 | CQ3: 0.51 | CR3: =SUM(BD3:CQ3) -> 5500.98 | CS3: =+BC3-CR3 -> 15136 | CT3: 1450.44 | CU3: 120.87 | CV3: =SUM(CS3:CU3) -> 16707.31
A4: 000003 | B4: 1978-09-01 | C4: 21 | D4: 0 | E4: 0 | F4: 15181 | G4: 0 | H4: 0 | I4: 0 | J4: 0 | K4: 0 | L4: 0 | M4: 0 | N4: 0 | O4: 0 | P4: 0 | Q4: 0 | R4: 0 | S4: 0 | T4: 0 | U4: 0 | V4: 0 | W4: 0 | X4: 0 | Y4: 0 | Z4: 0 | AA4: 0 | AB4: 0 | AC4: 0 | AD4: 0 | AE4: 0 | AF4: 0 | AG4: 0 | AH4: 0 | AI4: 0 | AJ4: 0 | AK4: 60.02 | AL4: 0 | AM4: 0 | AN4: 0 | AO4: 0 | AP4: 0 | AQ4: 0 | AR4: 0 | AS4: 0 | AT4: 0 | AU4: 1485.41 | AV4: 2546.42 | AW4: 0 | AX4: 0 | AY4: 0 | AZ4: 0 | BA4: 0 | BB4: 171.88 | BC4: 19444.73 | BD4: 1518.1 | BE4: 265.67 | BF4: 101 | BG4: 0 | BH4: 2878.25 | BI4: 5 | BJ4: 0 | BK4: 0 | BL4: 0 | BM4: 0 | BN4: 0 | BO4: 60.02 | BP4: 174.31 | BQ4: 0 | BR4: 0 | BS4: 0 | BT4: 0 | BU4: 0 | BV4: 0 | BW4: 0 | BX4: 0 | BY4: 0 | BZ4: 0 | CA4: 0 | CB4: 0 | CC4: 0 | CD4: 0 | CE4: 0 | CF4: 0 | CG4: 0 | CH4: 0 | CI4: 0 | CJ4: 0 | CK4: 0 | CL4: 0 | CM4: 0 | CN4: 0 | CO4: 0 | CP4: -0.17 | CQ4: 0.55 | CR4: 5002.73 | CS4: 14442 | CT4: 1366.29 | CU4: 113.86 | CV4: 15922.15
A5: 000004 | B5: 1979-08-16 | C5: 3 | D5: 5113.55 | E5: 0 | F5: 0 | G5: 0 | H5: 0 | I5: 120 | J5: 0 | K5: 235.68 | L5: 76.18 | M5: 0 | N5: 0 | O5: 0 | P5: 0 | Q5: 0 | R5: 0 | S5: 0 | T5: 0 | U5: 156.58 | V5: 452.77 | W5: 1052.12 | X5: 1052.12 | Y5: 0 | Z5: 0 | AA5: 0 | AB5: 0 | AC5: 105 | AD5: 0 | AE5: 0 | AF5: 0 | AG5: 129.6 | AH5: 547.1 | AI5: 0 | AJ5: 0 | AK5: 180.06 | AL5: 0 | AM5: 0 | AN5: 0 | AO5: 0 | AP5: 0 | AQ5: 0 | AR5: 0 | AS5: 0 | AT5: 0 | AU5: 0 | AV5: 0 | AW5: 0 | AX5: 0 | AY5: 0 | AZ5: 0 | BA5: 0 | BB5: 0 | BC5: 9220.76 | BD5: 891.11 | BE5: 155.94 | BF5: 101 | BG5: 0 | BH5: 1248.82 | BI5: 0 | BJ5: 0 | BK5: 0 | BL5: 50 | BM5: 0 | BN5: 0 | BO5: 180.06 | BP5: 125.38 | BQ5: 0 | BR5: 0 | BS5: 0 | BT5: 0 | BU5: 210 | BV5: 0 | BW5: 0 | BX5: 0 | BY5: 0 | BZ5: 0 | CA5: 0 | CB5: 0 | CC5: 0 | CD5: 0 | CE5: 0 | CF5: 547.1 | CG5: 0 | CH5: 0 | CI5: 0 | CJ5: 0 | CK5: 0 | CL5: 0 | CM5: 0 | CN5: 0 | CO5: 0 | CP5: -0.83 | CQ5: 0.18 | CR5: 3508.76 | CS5: 5712 | CT5: 802 | CU5: 66.83 | CV5: 6580.83
A6: 000005 | B6: 1980-01-02 | C6: 3 | D6: 9930 | E6: 0 | F6: 0 | G6: 0 | H6: 0 | I6: 0 | J6: 0 | K6: 0 | L6: 0 | M6: 0 | N6: 0 | O6: 0 | P6: 0 | Q6: 0 | R6: 0 | S6: 0 | T6: 0 | U6: 0 | V6: 0 | W6: 0 | X6: 0 | Y6: 0 | Z6: 0 | AA6: 0 | AB6: 0 | AC6: 60 | AD6: 0 | AE6: 0 | AF6: 0 | AG6: 0 | AH6: 3641 | AI6: 0 | AJ6: 0 | AK6: 60.02 | AL6: 0 | AM6: 0 | AN6: 0 | AO6: 0 | AP6: 0 | AQ6: 0 | AR6: 0 | AS6: 0 | AT6: 0 | AU6: 0 | AV6: 0 | AW6: 0 | AX6: 0 | AY6: 0 | AZ6: 0 | BA6: 0 | BB6: 0 | BC6: 13691.02 | BD6: 1363.1 | BE6: 238.54 | BF6: 101 | BG6: 0 | BH6: 2282.79 | BI6: 0 | BJ6: 0 | BK6: 0 | BL6: 0 | BM6: 0 | BN6: 0 | BO6: 60.02 | BP6: 55 | BQ6: 0 | BR6: 0 | BS6: 0 | BT6: 0 | BU6: 120 | BV6: 0 | BW6: 0 | BX6: 0 | BY6: 0 | BZ6: 0 | CA6: 0 | CB6: 0 | CC6: 0 | CD6: 0 | CE6: 0 | CF6: 993 | CG6: 0 | CH6: 0 | CI6: 0 | CJ6: 0 | CK6: 0 | CL6: 0 | CM6: 0 | CN6: 0 | CO6: 0 | CP6: -0.45 | CQ6: 0.02 | CR6: 5213.02 | CS6: 8478 | CT6: 1226.79 | CU6: 102.23 | CV6: 9807.02
A7: 000006 | B7: 1979-03-16 | C7: 3 | D7: 10750.91 | E7: 0 | F7: 0 | G7: 0 | H7: 0 | I7: 67.5 | J7: 0 | K7: 0 | L7: 0 | M7: 0 | N7: 0 | O7: 0 | P7: 0 | Q7: 0 | R7: 0 | S7: 0 | T7: 0 | U7: 0 | V7: 0 | W7: 0 | X7: 0 | Y7: 0 | Z7: 0 | AA7: 0 | AB7: 0 | AC7: 108.75 | AD7: 0 | AE7: 0 | AF7: 0 | AG7: 0 | AH7: 3942 | AI7: 0 | AJ7: 0 | AK7: 60.02 | AL7: 0 | AM7: 0 | AN7: 0 | AO7: 0 | AP7: 0 | AQ7: 0 | AR7: 0 | AS7: 0 | AT7: 0 | AU7: 0 | AV7: 0 | AW7: 0 | AX7: 0 | AY7: 0 | AZ7: 0 | BA7: 0 | BB7: 0 | BC7: 14929.18 | BD7: 1486.92 | BE7: 289.95 | BF7: 106.48 | BG7: 0 | BH7: 2573.9 | BI7: 0 | BJ7: 0 | BK7: 0 | BL7: 0 | BM7: 0 | BN7: 0 | BO7: 60.02 | BP7: 125.38 | BQ7: 0 | BR7: 0 | BS7: 0 | BT7: 0 | BU7: 217.5 | BV7: 0 | BW7: 0 | BX7: 0 | BY7: 0 | BZ7: 0 | CA7: 0 | CB7: 0 | CC7: 0 | CD7: 0 | CE7: 0 | CF7: 0 | CG7: 0 | CH7: 0 | CI7: 0 | CJ7: 0 | CK7: 0 | CL7: 0 | CM7: 0 | CN7: 0 | CO7: 0 | CP7: -0.99 | CQ7: 0.02 | CR7: 4859.18 | CS7: 10070 | CT7: 1338.22 | CU7: 111.52 | CV7: 11519.74
A8: 000007 | B8: 1977-03-14 | C8: 21 | D8: 0 | E8: 0 | F8: 14917 | G8: 0 | H8: 0 | I8: 0 | J8: 0 | K8: 0 | L8: 0 | M8: 0 | N8: 0 | O8: 0 | P8: 0 | Q8: 0 | R8: 0 | S8: 0 | T8: 0 | U8: 0 | V8: 0 | W8: 0 | X8: 0 | Y8: 0 | Z8: 0 | AA8: 0 | AB8: 0 | AC8: 0 | AD8: 0 | AE8: 0 | AF8: 0 | AG8: 0 | AH8: 0 | AI8: 0 | AJ8: 0 | AK8: 60.02 | AL8: 0 | AM8: 0 | AN8: 0 | AO8: 0 | AP8: 0 | AQ8: 0 | AR8: 0 | AS8: 0 | AT8: 0 | AU8: 1460.96 | AV8: 2504.5 | AW8: 0 | AX8: 0 | AY8: 0 | AZ8: 0 | BA8: 0 | BB8: 169.05 | BC8: 19111.53 | BD8: 1491.7 | BE8: 268.51 | BF8: 90.82 | BG8: 0 | BH8: 2766.75 | BI8: 0 | BJ8: 0 | BK8: 0 | BL8: 0 | BM8: 0 | BN8: 0 | BO8: 60.02 | BP8: 611.45 | BQ8: 0 | BR8: 0 | BS8: 0 | BT8: 0 | BU8: 0 | BV8: 0 | BW8: 0 | BX8: 0 | BY8: 0 | BZ8: 0 | CA8: 0 | CB8: 0 | CC8: 0 | CD8: 0 | CE8: 0 | CF8: 0 | CG8: 0 | CH8: 0 | CI8: 0 | CJ8: 0 | CK8: 0 | CL8: 0 | CM8: 0 | CN8: 0 | CO8: 0 | CP8: -0.06 | CQ8: 0.34 | CR8: 5289.53 | CS8: 13822 | CT8: 1342.53 | CU8: 111.88 | CV8: 15276.41
A9: 000008 | B9: 1977-03-01 | C9: 3 | D9: 5660.02 | E9: 0 | F9: 0 | G9: 0 | H9: 0 | I9: 120 | J9: 0 | K9: 157.93 | L9: 51.05 | M9: 0 | N9: 0 | O9: 0 | P9: 0 | Q9: 0 | R9: 0 | S9: 0 | T9: 3260.56 | U9: 626.31 | V9: 75.46 | W9: 451.46 | X9: 0 | Y9: 0 | Z9: 0 | AA9: 0 | AB9: 0 | AC9: 82.5 | AD9: 0 | AE9: 0 | AF9: 0 | AG9: 129.6 | AH9: 97.82 | AI9: 0 | AJ9: 0 | AK9: 180.06 | AL9: 0 | AM9: 0 | AN9: 0 | AO9: 0 | AP9: 0 | AQ9: 0 | AR9: 0 | AS9: 0 | AT9: 0 | AU9: 0 | AV9: 0 | AW9: 0 | AX9: 0 | AY9: 0 | AZ9: 0 | BA9: 0 | BB9: 0 | BC9: 10892.77 | BD9: 1058.31 | BE9: 206.37 | BF9: 106.48 | BG9: 0 | BH9: 1501.22 | BI9: 5 | BJ9: 0 | BK9: 0 | BL9: 50 | BM9: 0 | BN9: 0 | BO9: 180.06 | BP9: 0 | BQ9: 0 | BR9: 0 | BS9: 0 | BT9: 0 | BU9: 165 | BV9: 0 | BW9: 0 | BX9: 0 | BY9: 0 | BZ9: 0 | CA9: 0 | CB9: 0 | CC9: 0 | CD9: 0 | CE9: 0 | CF9: 0 | CG9: 0 | CH9: 0 | CI9: 0 | CJ9: 0 | CK9: 0 | CL9: 0 | CM9: 0 | CN9: 0 | CO9: 0 | CP9: -0.21 | CQ9: 0.54 | CR9: 3272.77 | CS9: 7620 | CT9: 952.48 | CU9: 79.37 | CV9: 8651.85
A10: 000009 | B10: 1975-05-12 | C10: 21 | D10: 0 | E10: 0 | F10: 14576 | G10: 0 | H10: 0 | I10: 67.5 | J10: 0 | K10: 0 | L10: 0 | M10: 0 | N10: 0 | O10: 0 | P10: 0 | Q10: 0 | R10: 0 | S10: 0 | T10: 0 | U10: 0 | V10: 0 | W10: 0 | X10: 0 | Y10: 0 | Z10: 0 | AA10: 0 | AB10: 0 | AC10: 35 | AD10: 0 | AE10: 0 | AF10: 0 | AG10: 0 | AH10: 0 | AI10: 0 | AJ10: 0 | AK10: 60.02 | AL10: 0 | AM10: 0 | AN10: 0 | AO10: 0 | AP10: 0 | AQ10: 0 | AR10: 0 | AS10: 0 | AT10: 0 | AU10: 1434.37 | AV10: 2458.92 | AW10: 0 | AX10: 0 | AY10: 0 | AZ10: 0 | BA10: 0 | BB10: 165.98 | BC10: 18797.79 | BD10: 1467.85 | BE10: 256.87 | BF10: 101 | BG10: 0 | BH10: 2706.44 | BI10: 0 | BJ10: 0 | BK10: 0 | BL10: 0 | BM10: 0 | BN10: 0 | BO10: 60.02 | BP10: 219.76 | BQ10: 0 | BR10: 0 | BS10: 0 | BT10: 70 | BU10: 0 | BV10: 0 | BW10: 0 | BX10: 0 | BY10: 0 | BZ10: 0 | CA10: 0 | CB10: 0 | CC10: 0 | CD10: 0 | CE10: 0 | CF10: 0 | CG10: 0 | CH10: 0 | CI10: 0 | CJ10: 0 | CK10: 0 | CL10: 0 | CM10: 0 | CN10: 0 | CO10: 0 | CP10: -0.31 | CQ10: 0.16 | CR10: 4881.79 | CS10: 13916 | CT10: 1321.07 | CU10: 110.09 | CV10: 15347.16
A11: 000010 | B11: 1976-05-18 | C11: 3 | D11: 5594.67 | E11: 0 | F11: 0 | G11: 0 | H11: 0 | I11: 65 | J11: 0 | K11: 279.11 | L11: 90.22 | M11: 0 | N11: 0 | O11: 0 | P11: 0 | Q11: 0 | R11: 0 | S11: 0 | T11: 0 | U11: 326.77 | V11: 113.19 | W11: 0 | X11: 0 | Y11: 0 | Z11: 0 | AA11: 0 | AB11: 0 | AC11: 30 | AD11: 0 | AE11: 0 | AF11: 0 | AG11: 129.6 | AH11: 994 | AI11: 0 | AJ11: 0 | AK11: 180.06 | AL11: 0 | AM11: 0 | AN11: 0 | AO11: 0 | AP11: 0 | AQ11: 0 | AR11: 0 | AS11: 0 | AT11: 0 | AU11: 0 | AV11: 0 | AW11: 0 | AX11: 0 | AY11: 0 | AZ11: 0 | BA11: 0 | BB11: 0 | BC11: 7802.62 | BD11: 749.3 | BE11: 131.13 | BF11: 0 | BG11: 0 | BH11: 1013.26 | BI11: 0 | BJ11: 0 | BK11: 0 | BL11: 50 | BM11: 0 | BN11: 0 | BO11: 180.06 | BP11: 401.05 | BQ11: 2863.18 | BR11: 0 | BS11: 0 | BT11: 0 | BU11: 60 | BV11: 0 | BW11: 0 | BX11: 0 | BY11: 0 | BZ11: 0 | CA11: 0 | CB11: 0 | CC11: 0 | CD11: 0 | CE11: 0 | CF11: 596.4 | CG11: 0 | CH11: 0 | CI11: 0 | CJ11: 0 | CK11: 0 | CL11: 0 | CM11: 0 | CN11: 0 | CO11: 0 | CP11: -0.42 | CQ11: 0.66 | CR11: 6044.62 | CS11: 1758 | CT11: 674.37 | CU11: 56.2 | CV11: 2488.57
A12: 000011 | B12: 1976-08-01 | C12: 3 | D12: 3816.08 | E12: 0 | F12: 0 | G12: 0 | H12: 0 | I12: 65 | J12: 0 | K12: 135.06 | L12: 43.66 | M12: 0 | N12: 0 | O12: 0 | P12: 0 | Q12: 0 | R12: 0 | S12: 0 | T12: 0 | U12: 0 | V12: 0 | W12: 256.08 | X12: 256.08 | Y12: 0 | Z12: 0 | AA12: 0 | AB12: 0 | AC12: 63.75 | AD12: 0 | AE12: 0 | AF12: 0 | AG12: 76.8 | AH12: 1442.57 | AI12: 0 | AJ12: 0 | AK12: 180.06 | AL12: 0 | AM12: 0 | AN12: 0 | AO12: 0 | AP12: 0 | AQ12: 0 | AR12: 2663.2 | AS12: 0 | AT12: 0 | AU12: 0 | AV12: 0 | AW12: 0 | AX12: 0 | AY12: 0 | AZ12: 0 | BA12: 0 | BB12: 0 | BC12: 8998.34 | BD12: 874.15 | BE12: 152.98 | BF12: 101 | BG12: 0 | BH12: 1577.57 | BI12: 0 | BJ12: 0 | BK12: 0 | BL12: 50 | BM12: 0 | BN12: 0 | BO12: 180.06 | BP12: 401.05 | BQ12: 0 | BR12: 0 | BS12: 0 | BT12: 0 | BU12: 127.5 | BV12: 0 | BW12: 0 | BX12: 0 | BY12: 0 | BZ12: 0 | CA12: 0 | CB12: 0 | CC12: 0 | CD12: 0 | CE12: 0 | CF12: 652.7 | CG12: 0 | CH12: 0 | CI12: 0 | CJ12: 0 | CK12: 0 | CL12: 0 | CM12: 0 | CN12: 0 | CO12: 0 | CP12: -0.7 | CQ12: 0.03 | CR12: 4116.34 | CS12: 4882 | CT12: 786.73 | CU12: 65.56 | CV12: 5734.29
A13: 000012 | B13: 1976-01-02 | C13: 30 | D13: 6602 | E13: 0 | F13: 0 | G13: 0 | H13: 0 | I13: 0 | J13: 0 | K13: 0 | L13: 0 | M13: 0 | N13: 0 | O13: 0 | P13: 0 | Q13: 0 | R13: 0 | S13: 0 | T13: 0 | U13: 0 | V13: 0 | W13: 0 | X13: 0 | Y13: 0 | Z13: 0 | AA13: 0 | AB13: 0 | AC13: 55 | AD13: 0 | AE13: 0 | AF13: 0 | AG13: 0 | AH13: 0 | AI13: 0 | AJ13: 0 | AK13: 60.02 | AL13: 0 | AM13: 0 | AN13: 0 | AO13: 0 | AP13: 0 | AQ13: 0 | AR13: 0 | AS13: 0 | AT13: 0 | AU13: 0 | AV13: 0 | AW13: 0 | AX13: 0 | AY13: 0 | AZ13: 0 | BA13: 0 | BB13: 0 | BC13: 6717.02 | BD13: 665.7 | BE13: 129.81 | BF13: 90.54 | BG13: 0 | BH13: 853.23 | BI13: 0 | BJ13: 0 | BK13: 0 | BL13: 0 | BM13: 0 | BN13: 0 | BO13: 60.02 | BP13: 347.17 | BQ13: 449.08 | BR13: 0 | BS13: 0 | BT13: 10 | BU13: 0 | BV13: 100 | BW13: 0 | BX13: 0 | BY13: 0 | BZ13: 0 | CA13: 0 | CB13: 0 | CC13: 0 | CD13: 0 | CE13: 0 | CF13: 660.2 | CG13: 0 | CH13: 80 | CI13: 0 | CJ13: 0 | CK13: 0 | CL13: 0 | CM13: 0 | CN13: 0 | CO13: 0 | CP13: -0.01 | CQ13: 0.28 | CR13: 3446.02 | CS13: 3271 | CT13: 599.13 | CU13: 49.93 | CV13: 3920.06
A14: 000014 | B14: 1979-10-01 | C14: 3 | D14: 7950.1 | E14: 0 | F14: 0 | G14: 0 | H14: 0 | I14: 65 | J14: 0 | K14: 379.3 | L14: 122.6 | M14: 0 | N14: 0 | O14: 0 | P14: 0 | Q14: 0 | R14: 0 | S14: 0 | T14: 0 | U14: 0 | V14: 0 | W14: 650.15 | X14: 650.15 | Y14: 0 | Z14: 0 | AA14: 0 | AB14: 0 | AC14: 60 | AD14: 0 | AE14: 0 | AF14: 0 | AG14: 81.6 | AH14: 1831.27 | AI14: 0 | AJ14: 0 | AK14: 180.06 | AL14: 0 | AM14: 0 | AN14: 0 | AO14: 0 | AP14: 0 | AQ14: 0 | AR14: 0 | AS14: 0 | AT14: 0 | AU14: 0 | AV14: 0 | AW14: 0 | AX14: 0 | AY14: 0 | AZ14: 0 | BA14: 0 | BB14: 0 | BC14: 11970.23 | BD14: 1170.86 | BE14: 204.9 | BF14: 101 | BG14: 0 | BH14: 1950.82 | BI14: 5 | BJ14: 0 | BK14: 0 | BL14: 50 | BM14: 0 | BN14: 0 | BO14: 180.06 | BP14: 693.22 | BQ14: 691.52 | BR14: 0 | BS14: 0 | BT14: 0 | BU14: 120 | BV14: 0 | BW14: 0 | BX14: 0 | BY14: 0 | BZ14: 0 | CA14: 0 | CB14: 0 | CC14: 0 | CD14: 0 | CE14: 0 | CF14: 845.2 | CG14: 0 | CH14: 0 | CI14: 0 | CJ14: 0 | CK14: 0 | CL14: 0 | CM14: 0 | CN14: 0 | CO14: 0 | CP14: -0.12 | CQ14: 0.77 | CR14: 6013.23 | CS14: 5957 | CT14: 1053.77 | CU14: 87.81 | CV14: 7098.58
A15: 000015 | B15: 1979-05-16 | C15: 1 | D15: 11488.56 | E15: 0 | F15: 0 | G15: 0 | H15: 0 | I15: 120 | J15: 0 | K15: 472.65 | L15: 152.79 | M15: 0 | N15: 0 | O15: 0 | P15: 0 | Q15: 0 | R15: 0 | S15: 0 | T15: 0 | U15: 0 | V15: 0 | W15: 0 | X15: 0 | Y15: 0 | Z15: 0 | AA15: 0 | AB15: 0 | AC15: 0 | AD15: 0 | AE15: 0 | AF15: 0 | AG15: 0 | AH15: 0 | AI15: 0 | AJ15: 0 | AK15: 180.06 | AL15: 0 | AM15: 0 | AN15: 0 | AO15: 0 | AP15: 0 | AQ15: 0 | AR15: 0 | AS15: 0 | AT15: 0 | AU15: 0 | AV15: 0 | AW15: 0 | AX15: 0 | AY15: 0 | AZ15: 0 | BA15: 0 | BB15: 0 | BC15: 12414.06 | BD15: 1223.4 | BE15: 214.1 | BF15: 101 | BG15: 0 | BH15: 2089.68 | BI15: 0 | BJ15: 0 | BK15: 0 | BL15: 0 | BM15: 0 | BN15: 0 | BO15: 180.06 | BP15: 656.9 | BQ15: 1607.33 | BR15: 0 | BS15: 0 | BT15: 0 | BU15: 0 | BV15: 0 | BW15: 0 | BX15: 0 | BY15: 0 | BZ15: 0 | CA15: 0 | CB15: 0 | CC15: 0 | CD15: 0 | CE15: 0 | CF15: 0 | CG15: 0 | CH15: 0 | CI15: 0 | CJ15: 0 | CK15: 0 | CL15: 0 | CM15: 0 | CN15: 0 | CO15: 0 | CP15: -0.73 | CQ15: 0.32 | CR15: 6072.06 | CS15: 6342 | CT15: 1101.06 | CU15: 91.76 | CV15: 7534.82
A16: 000016 | B16: 1974-11-16 | C16: 3 | D16: 10605 | E16: 0 | F16: 0 | G16: 0 | H16: 0 | I16: 0 | J16: 0 | K16: 0 | L16: 0 | M16: 0 | N16: 0 | O16: 0 | P16: 0 | Q16: 0 | R16: 0 | S16: 0 | T16: 0 | U16: 0 | V16: 0 | W16: 0 | X16: 0 | Y16: 0 | Z16: 0 | AA16: 0 | AB16: 0 | AC16: 93.75 | AD16: 0 | AE16: 0 | AF16: 0 | AG16: 0 | AH16: 3888.5 | AI16: 0 | AJ16: 0 | AK16: 60.02 | AL16: 0 | AM16: 0 | AN16: 0 | AO16: 0 | AP16: 0 | AQ16: 0 | AR16: 0 | AS16: 0 | AT16: 0 | AU16: 0 | AV16: 0 | AW16: 0 | AX16: 0 | AY16: 0 | AZ16: 0 | BA16: 0 | BB16: 0 | BC16: 14647.27 | BD16: 1458.73 | BE16: 255.28 | BF16: 101 | BG16: 0 | BH16: 2507.23 | BI16: 0 | BJ16: 0 | BK16: 0 | BL16: 0 | BM16: 0 | BN16: 0 | BO16: 60.02 | BP16: 108.88 | BQ16: 0 | BR16: 0 | BS16: 0 | BT16: 0 | BU16: 187.5 | BV16: 0 | BW16: 0 | BX16: 0 | BY16: 0 | BZ16: 0 | CA16: 0 | CB16: 0 | CC16: 0 | CD16: 0 | CE16: 0 | CF16: 1060.5 | CG16: 0 | CH16: 0 | CI16: 0 | CJ16: 0 | CK16: 0 | CL16: 0 | CM16: 0 | CN16: 0 | CO16: 0 | CP16: -0.46 | CQ16: 0.59 | CR16: 5739.27 | CS16: 8908 | CT16: 1312.85 | CU16: 109.4 | CV16: 10330.25
A17: 000017 | B17: 1979-08-09 | C17: 3 | D17: 6122.5 | E17: 0 | F17: 0 | G17: 0 | H17: 0 | I17: 175 | J17: 0 | K17: 299.64 | L17: 96.86 | M17: 0 | N17: 0 | O17: 0 | P17: 0 | Q17: 0 | R17: 0 | S17: 0 | T17: 0 | U17: 0 | V17: 0 | W17: 1002.92 | X17: 0 | Y17: 0 | Z17: 0 | AA17: 0 | AB17: 0 | AC17: 86.25 | AD17: 0 | AE17: 0 | AF17: 0 | AG17: 124.8 | AH17: 2281.65 | AI17: 0 | AJ17: 0 | AK17: 180.06 | AL17: 0 | AM17: 0 | AN17: 0 | AO17: 0 | AP17: 0 | AQ17: 0 | AR17: 0 | AS17: 0 | AT17: 0 | AU17: 0 | AV17: 0 | AW17: 0 | AX17: 0 | AY17: 0 | AZ17: 0 | BA17: 0 | BB17: 0 | BC17: 10369.68 | BD17: 1006.48 | BE17: 196.26 | BF17: 106.48 | BG17: 0 | BH17: 1420.56 | BI17: 5 | BJ17: 0 | BK17: 0 | BL17: 50 | BM17: 0 | BN17: 0 | BO17: 180.06 | BP17: 417.55 | BQ17: 101.95 | BR17: 0 | BS17: 0 | BT17: 0 | BU17: 172.5 | BV17: 0 | BW17: 0 | BX17: 0 | BY17: 0 | BZ17: 0 | CA17: 0 | CB17: 0 | CC17: 0 | CD17: 0 | CE17: 0 | CF17: 632.9 | CG17: 0 | CH17: 0 | CI17: 0 | CJ17: 0 | CK17: 0 | CL17: 0 | CM17: 0 | CN17: 0 | CO17: 0 | CP17: -0.09 | CQ17: 0.03 | CR17: 4289.68 | CS17: 6080 | CT17: 905.83 | CU17: 75.49 | CV17: 7061.32
A18: 000018 | B18: 1982-01-04 | C18: 30 | D18: 6032 | E18: 0 | F18: 0 | G18: 0 | H18: 0 | I18: 67.5 | J18: 0 | K18: 0 | L18: 0 | M18: 0 | N18: 0 | O18: 0 | P18: 0 | Q18: 0 | R18: 0 | S18: 0 | T18: 0 | U18: 0 | V18: 0 | W18: 0 | X18: 0 | Y18: 0 | Z18: 0 | AA18: 0 | AB18: 0 | AC18: 65 | AD18: 0 | AE18: 0 | AF18: 0 | AG18: 0 | AH18: 0 | AI18: 0 | AJ18: 0 | AK18: 60.02 | AL18: 0 | AM18: 0 | AN18: 1280 | AO18: 0 | AP18: 0 | AQ18: 0 | AR18: 0 | AS18: 0 | AT18: 0 | AU18: 0 | AV18: 0 | AW18: 0 | AX18: 0 | AY18: 0 | AZ18: 0 | BA18: 0 | BB18: 0 | BC18: 7504.52 | BD18: 616.45 | BE18: 120.21 | BF18: 83.84 | BG18: 0 | BH18: 958.79 | BI18: 0 | BJ18: 0 | BK18: 0 | BL18: 0 | BM18: 0 | BN18: 0 | BO18: 60.02 | BP18: 141.88 | BQ18: 0 | BR18: 0 | BS18: 0 | BT18: 0 | BU18: 0 | BV18: 130 | BW18: 0 | BX18: 0 | BY18: 0 | BZ18: 0 | CA18: 0 | CB18: 0 | CC18: 0 | CD18: 0 | CE18: 0 | CF18: 0 | CG18: 0 | CH18: 0 | CI18: 0 | CJ18: 0 | CK18: 0 | CL18: 0 | CM18: 0 | CN18: 0 | CO18: 0 | CP18: -0.17 | CQ18: 0.5 | CR18: 2111.52 | CS18: 5393 | CT18: 554.81 | CU18: 46.23 | CV18: 5994.04
A19: 000019 | B19: 1982-01-04 | C19: 30 | D19: 5844 | E19: 0 | F19: 0 | G19: 0 | H19: 0 | I19: 67.5 | J19: 0 | K19: 0 | L19: 0 | M19: 0 | N19: 0 | O19: 0 | P19: 0 | Q19: 0 | R19: 0 | S19: 0 | T19: 0 | U19: 0 | V19: 0 | W19: 0 | X19: 0 | Y19: 0 | Z19: 0 | AA19: 0 | AB19: 0 | AC19: 80 | AD19: 0 | AE19: 0 | AF19: 0 | AG19: 0 | AH19: 0 | AI19: 0 | AJ19: 0 | AK19: 60.02 | AL19: 0 | AM19: 0 | AN19: 0 | AO19: 0 | AP19: 0 | AQ19: 0 | AR19: 0 | AS19: 0 | AT19: 0 | AU19: 0 | AV19: 0 | AW19: 0 | AX19: 0 | AY19: 0 | AZ19: 0 | BA19: 0 | BB19: 0 | BC19: 6051.52 | BD19: 599.15 | BE19: 104.85 | BF19: 77.29 | BG19: 0 | BH19: 736.14 | BI19: 5 | BJ19: 0 | BK19: 0 | BL19: 0 | BM19: 0 | BN19: 0 | BO19: 60.02 | BP19: 125.38 | BQ19: 0 | BR19: 0 | BS19: 0 | BT19: 0 | BU19: 0 | BV19: 160 | BW19: 0 | BX19: 0 | BY19: 0 | BZ19: 0 | CA19: 0 | CB19: 0 | CC19: 0 | CD19: 0 | CE19: 0 | CF19: 0 | CG19: 0 | CH19: 0 | CI19: 0 | CJ19: 0 | CK19: 0 | CL19: 0 | CM19: 0 | CN19: 0 | CO19: 0 | CP19: -0.57 | CQ19: 0.26 | CR19: 1867.52 | CS19: 4184 | CT19: 539.24 | CU19: 44.94 | CV19: 4768.18
A20: 000021 | B20: 1980-10-27 | C20: 21 | D20: 0 | E20: 0 | F20: 10800 | G20: 0 | H20: 0 | I20: 67.5 | J20: 0 | K20: 0 | L20: 0 | M20: 0 | N20: 0 | O20: 0 | P20: 0 | Q20: 0 | R20: 0 | S20: 0 | T20: 0 | U20: 0 | V20: 0 | W20: 0 | X20: 0 | Y20: 0 | Z20: 0 | AA20: 0 | AB20: 0 | AC20: 35 | AD20: 0 | AE20: 0 | AF20: 0 | AG20: 0 | AH20: 0 | AI20: 0 | AJ20: 0 | AK20: 60.02 | AL20: 0 | AM20: 0 | AN20: 0 | AO20: 0 | AP20: 0 | AQ20: 0 | AR20: 0 | AS20: 0 | AT20: 0 | AU20: 1067.26 | AV20: 1829.58 | AW20: 0 | AX20: 0 | AY20: 0 | AZ20: 0 | BA20: 0 | BB20: 123.5 | BC20: 13982.86 | BD20: 1090.25 | BE20: 196.25 | BF20: 90.82 | BG20: 0 | BH20: 1772.4 | BI20: 5 | BJ20: 0 | BK20: 0 | BL20: 0 | BM20: 0 | BN20: 0 | BO20: 60.02 | BP20: 1269.5 | BQ20: 0 | BR20: 0 | BS20: 0 | BT20: 10 | BU20: 0 | BV20: 60 | BW20: 0 | BX20: 0 | BY20: 0 | BZ20: 0 | CA20: 0 | CB20: 0 | CC20: 0 | CD20: 0 | CE20: 0 | CF20: 0 | CG20: 0 | CH20: 0 | CI20: 0 | CJ20: 0 | CK20: 0 | CL20: 0 | CM20: 0 | CN20: 0 | CO20: 0 | CP20: -0.33 | CQ20: 0.95 | CR20: 4554.86 | CS20: 9428 | CT20: 981.23 | CU20: 81.77 | CV20: 10491
A21: 000022 | B21: 1981-04-01 | C21: 30 | D21: 6039.66 | E21: 0 | F21: 0 | G21: 0 | H21: 0 | I21: 67.5 | J21: 0 | K21: 0 | L21: 0 | M21: 0 | N21: 0 | O21: 0 | P21: 0 | Q21: 0 | R21: 0 | S21: 0 | T21: 0 | U21: 0 | V21: 0 | W21: 0 | X21: 0 | Y21: 0 | Z21: 0 | AA21: 0 | AB21: 0 | AC21: 90 | AD21: 0 | AE21: 0 | AF21: 0 | AG21: 0 | AH21: 0 | AI21: 0 | AJ21: 0 | AK21: 60.02 | AL21: 0 | AM21: 0 | AN21: 0 | AO21: 0 | AP21: 0 | AQ21: 0 | AR21: 0 | AS21: 0 | AT21: 0 | AU21: 0 | AV21: 0 | AW21: 0 | AX21: 0 | AY21: 0 | AZ21: 0 | BA21: 0 | BB21: 0 | BC21: 6257.18 | BD21: 619.72 | BE21: 111.55 | BF21: 71.89 | BG21: 0 | BH21: 798.05 | BI21: 5 | BJ21: 0 | BK21: 0 | BL21: 0 | BM21: 0 | BN21: 0 | BO21: 60.02 | BP21: 709.72 | BQ21: 0 | BR21: 0 | BS21: 0 | BT21: 130 | BU21: 0 | BV21: 50 | BW21: 0 | BX21: 0 | BY21: 0 | BZ21: 0 | CA21: 0 | CB21: 0 | CC21: 0 | CD21: 0 | CE21: 0 | CF21: 621.4 | CG21: 0 | CH21: 0 | CI21: 0 | CJ21: 0 | CK21: 0 | CL21: 0 | CM21: 0 | CN21: 0 | CO21: 0 | CP21: -0.99 | CQ21: 0.82 | CR21: 3177.18 | CS21: 3080 | CT21: 557.74 | CU21: 46.48 | CV21: 3684.22
A22: 000023 | B22: 1981-03-18 | C22: 21 | D22: 0 | E22: 0 | F22: 14122 | G22: 0 | H22: 0 | I22: 67.5 | J22: 0 | K22: 0 | L22: 0 | M22: 0 | N22: 0 | O22: 0 | P22: 0 | Q22: 0 | R22: 0 | S22: 0 | T22: 0 | U22: 0 | V22: 0 | W22: 0 | X22: 0 | Y22: 0 | Z22: 0 | AA22: 0 | AB22: 0 | AC22: 70 | AD22: 0 | AE22: 0 | AF22: 0 | AG22: 0 | AH22: 0 | AI22: 0 | AJ22: 0 | AK22: 60.02 | AL22: 0 | AM22: 0 | AN22: 0 | AO22: 0 | AP22: 0 | AQ22: 0 | AR22: 0 | AS22: 0 | AT22: 0 | AU22: 1390.23 | AV22: 2383.25 | AW22: 0 | AX22: 0 | AY22: 0 | AZ22: 0 | BA22: 0 | BB22: 160.87 | BC22: 18253.87 | BD22: 1425.95 | BE22: 278.06 | BF22: 106.48 | BG22: 0 | BH22: 2601.49 | BI22: 0 | BJ22: 0 | BK22: 0 | BL22: 0 | BM22: 0 | BN22: 0 | BO22: 60.02 | BP22: 219.76 | BQ22: 0 | BR22: 0 | BS22: 0 | BT22: 0 | BU22: 0 | BV22: 140 | BW22: 0 | BX22: 0 | BY22: 0 | BZ22: 0 | CA22: 0 | CB22: 0 | CC22: 0 | CD22: 0 | CE22: 0 | CF22: 0 | CG22: 0 | CH22: 80 | CI22: 0 | CJ22: 0 | CK22: 0 | CL22: 0 | CM22: 0 | CN22: 0 | CO22: 0 | CP22: -0.29 | CQ22: 0.4 | CR22: 4911.87 | CS22: 13342 | CT22: 1283.36 | CU22: 106.95 | CV22: 14732.31
A23: 000024 | B23: 1980-12-04 | C23: 3 | D23: 7571.9 | E23: 0 | F23: 0 | G23: 0 | H23: 0 | I23: 120 | J23: 0 | K23: 219.23 | L23: 70.87 | M23: 0 | N23: 0 | O23: 0 | P23: 0 | Q23: 0 | R23: 0 | S23: 0 | T23: 622.41 | U23: 136.15 | V23: 264.12 | W23: 1511.92 | X23: 1511.92 | Y23: 0 | Z23: 0 | AA23: 0 | AB23: 0 | AC23: 82.5 | AD23: 0 | AE23: 0 | AF23: 0 | AG23: 129.6 | AH23: 1572.4 | AI23: 0 | AJ23: 0 | AK23: 180.06 | AL23: 0 | AM23: 0 | AN23: 0 | AO23: 1000 | AP23: 0 | AQ23: 0 | AR23: 0 | AS23: 0 | AT23: 0 | AU23: 0 | AV23: 0 | AW23: 0 | AX23: 0 | AY23: 0 | AZ23: 0 | BA23: 0 | BB23: 0 | BC23: 14993.08 | BD23: 1468.34 | BE23: 286.33 | BF23: 106.48 | BG23: 0 | BH23: 2755.71 | BI23: 5 | BJ23: 0 | BK23: 0 | BL23: 0 | BM23: 0 | BN23: 0 | BO23: 180.06 | BP23: 125.38 | BQ23: 0 | BR23: 0 | BS23: 0 | BT23: 0 | BU23: 165 | BV23: 0 | BW23: 0 | BX23: 0 | BY23: 0 | BZ23: 0 | CA23: 0 | CB23: 0 | CC23: 0 | CD23: 0 | CE23: 0 | CF23: 786.2 | CG23: 0 | CH23: 0 | CI23: 1000 | CJ23: 0 | CK23: 0 | CL23: 0 | CM23: 0 | CN23: 0 | CO23: 0 | CP23: -0.08 | CQ23: 0.81 | CR23: 6879.23 | CS23: 8113.85 | CT23: 1321.51 | CU23: 117.63 | CV23: 9552.99
A24: 000025 | B24: 1981-04-13 | C24: 3 | D24: 6835.04 | E24: 0 | F24: 0 | G24: 0 | H24: 0 | I24: 120 | J24: 0 | K24: 204.77 | L24: 66.19 | M24: 0 | N24: 0 | O24: 0 | P24: 0 | Q24: 0 | R24: 0 | S24: 0 | T24: 473.73 | U24: 299.54 | V24: 0 | W24: 1093.23 | X24: 1093.23 | Y24: 0 | Z24: 0 | AA24: 0 | AB24: 0 | AC24: 78.75 | AD24: 0 | AE24: 0 | AF24: 0 | AG24: 100.8 | AH24: 947.47 | AI24: 0 | AJ24: 0 | AK24: 180.06 | AL24: 0 | AM24: 0 | AN24: 0 | AO24: 0 | AP24: 0 | AQ24: 0 | AR24: 0 | AS24: 0 | AT24: 0 | AU24: 0 | AV24: 0 | AW24: 0 | AX24: 0 | AY24: 0 | AZ24: 0 | BA24: 0 | BB24: 0 | BC24: 11492.81 | BD24: 1121.2 | BE24: 196.21 | BF24: 101 | BG24: 0 | BH24: 1651.36 | BI24: 5 | BJ24: 0 | BK24: 0 | BL24: 50 | BM24: 0 | BN24: 0 | BO24: 180.06 | BP24: 417.55 | BQ24: 0 | BR24: 0 | BS24: 0 | BT24: 0 | BU24: 157.5 | BV24: 0 | BW24: 0 | BX24: 0 | BY24: 0 | BZ24: 0 | CA24: 0 | CB24: 0 | CC24: 0 | CD24: 0 | CE24: 0 | CF24: 0 | CG24: 0 | CH24: 0 | CI24: 0 | CJ24: 0 | CK24: 0 | CL24: 0 | CM24: 0 | CN24: 0 | CO24: 0 | CP24: -0.11 | CQ24: 0.04 | CR24: 3879.81 | CS24: 7613 | CT24: 1009.08 | CU24: 84.09 | CV24: 8706.17
A25: 000026 | B25: 1982-04-01 | C25: 3 | D25: 9534.79 | E25: 0 | F25: 0 | G25: 0 | H25: 0 | I25: 65 | J25: 0 | K25: 250.54 | L25: 80.47 | M25: 0 | N25: 0 | O25: 0 | P25: 0 | Q25: 0 | R25: 0 | S25: 0 | T25: 0 | U25: 435.69 | V25: 377.31 | W25: 0 | X25: 0 | Y25: 0 | Z25: 0 | AA25: 0 | AB25: 0 | AC25: 86.25 | AD25: 0 | AE25: 0 | AF25: 0 | AG25: 124.8 | AH25: 0 | AI25: 0 | AJ25: 0 | AK25: 180.06 | AL25: 0 | AM25: 0 | AN25: 0 | AO25: 1000 | AP25: 0 | AQ25: 0 | AR25: 340.2 | AS25: 0 | AT25: 0 | AU25: 0 | AV25: 0 | AW25: 0 | AX25: 0 | AY25: 0 | AZ25: 0 | BA25: 0 | BB25: 0 | BC25: 12475.11 | BD25: 1217.03 | BE25: 212.98 | BF25: 101 | BG25: 0 | BH25: 2229.64 | BI25: 5 | BJ25: 0 | BK25: 0 | BL25: 0 | BM25: 0 | BN25: 0 | BO25: 180.06 | BP25: 417.55 | BQ25: 0 | BR25: 0 | BS25: 0 | BT25: 0 | BU25: 172.5 | BV25: 0 | BW25: 0 | BX25: 0 | BY25: 0 | BZ25: 0 | CA25: 0 | CB25: 0 | CC25: 0 | CD25: 0 | CE25: 0 | CF25: 990.9 | CG25: 0 | CH25: 0 | CI25: 1000 | CJ25: 0 | CK25: 0 | CL25: 0 | CM25: 0 | CN25: 0 | CO25: 0 | CP25: -0.96 | CQ25: 0.56 | CR25: 6526.26 | CS25: 5948.85 | CT25: 1095.32 | CU25: 98.78 | CV25: 7142.95
A26: 000027 | B26: 1981-11-10 | C26: 3 | D26: 6408.84 | E26: 0 | F26: 0 | G26: 0 | H26: 0 | I26: 120 | J26: 0 | K26: 282 | L26: 91.16 | M26: 0 | N26: 0 | O26: 0 | P26: 0 | Q26: 0 | R26: 0 | S26: 0 | T26: 0 | U26: 408.46 | V26: 0 | W26: 782.54 | X26: 0 | Y26: 0 | Z26: 0 | AA26: 0 | AB26: 0 | AC26: 75 | AD26: 0 | AE26: 0 | AF26: 0 | AG26: 124.8 | AH26: 904.27 | AI26: 0 | AJ26: 0 | AK26: 180.06 | AL26: 0 | AM26: 0 | AN26: 0 | AO26: 1000 | AP26: 0 | AQ26: 0 | AR26: 0 | AS26: 0 | AT26: 0 | AU26: 0 | AV26: 0 | AW26: 0 | AX26: 0 | AY26: 0 | AZ26: 0 | BA26: 0 | BB26: 0 | BC26: 10377.13 | BD26: 1007.23 | BE26: 176.26 | BF26: 101 | BG26: 0 | BH26: 1494.04 | BI26: 0 | BJ26: 0 | BK26: 0 | BL26: 50 | BM26: 0 | BN26: 0 | BO26: 180.06 | BP26: 417.55 | BQ26: 0 | BR26: 0 | BS26: 0 | BT26: 0 | BU26: 150 | BV26: 0 | BW26: 0 | BX26: 0 | BY26: 0 | BZ26: 0 | CA26: 0 | CB26: 0 | CC26: 0 | CD26: 0 | CE26: 0 | CF26: 678.2 | CG26: 0 | CH26: 0 | CI26: 1000 | CJ26: 0 | CK26: 0 | CL26: 0 | CM26: 0 | CN26: 0 | CO26: 0 | CP26: -0.68 | CQ26: 0.35 | CR26: 5254.01 | CS26: 5123.12 | CT26: 906.5 | CU26: 83.04 | CV26: 6112.66
A27: 000028 | B27: 1981-03-12 | C27: 3 | D27: 6668.2 | E27: 0 | F27: 0 | G27: 0 | H27: 0 | I27: 0 | J27: 0 | K27: 238.25 | L27: 76.55 | M27: 0 | N27: 0 | O27: 0 | P27: 0 | Q27: 0 | R27: 0 | S27: 0 | T27: 1163.83 | U27: 217.85 | V27: 264.12 | W27: 1342.88 | X27: 0 | Y27: 0 | Z27: 0 | AA27: 0 | AB27: 0 | AC27: 101.25 | AD27: 0 | AE27: 0 | AF27: 0 | AG27: 124.8 | AH27: 1047.45 | AI27: 0 | AJ27: 0 | AK27: 180.06 | AL27: 0 | AM27: 0 | AN27: 0 | AO27: 0 | AP27: 0 | AQ27: 0 | AR27: 0 | AS27: 0 | AT27: 0 | AU27: 0 | AV27: 0 | AW27: 0 | AX27: 0 | AY27: 0 | AZ27: 0 | BA27: 0 | BB27: 0 | BC27: 11425.24 | BD27: 1138.9 | BE27: 199.31 | BF27: 101 | BG27: 0 | BH27: 1701.7 | BI27: 5 | BJ27: 0 | BK27: 0 | BL27: 50 | BM27: 0 | BN27: 0 | BO27: 180.06 | BP27: 639.34 | BQ27: 0 | BR27: 0 | BS27: 0 | BT27: 0 | BU27: 202.5 | BV27: 0 | BW27: 0 | BX27: 0 | BY27: 0 | BZ27: 0 | CA27: 0 | CB27: 0 | CC27: 0 | CD27: 0 | CE27: 0 | CF27: 0 | CG27: 0 | CH27: 0 | CI27: 0 | CJ27: 0 | CK27: 0 | CL27: 0 | CM27: 0 | CN27: 0 | CO27: 0 | CP27: -0.53 | CQ27: 0.54 | CR27: 4217.82 | CS27: 7207.42 | CT27: 1025.01 | CU27: 85.42 | CV27: 8317.85
A28: 000029 | B28: 1981-05-16 | C28: 21 | D28: 0 | E28: 0 | F28: 19419 | G28: 0 | H28: 0 | I28: 67.5 | J28: 0 | K28: 0 | L28: 0 | M28: 0 | N28: 0 | O28: 0 | P28: 0 | Q28: 0 | R28: 0 | S28: 0 | T28: 0 | U28: 0 | V28: 0 | W28: 0 | X28: 0 | Y28: 0 | Z28: 0 | AA28: 0 | AB28: 0 | AC28: 0 | AD28: 0 | AE28: 0 | AF28: 0 | AG28: 0 | AH28: 0 | AI28: 0 | AJ28: 0 | AK28: 60.02 | AL28: 0 | AM28: 0 | AN28: 0 | AO28: 0 | AP28: 0 | AQ28: 0 | AR28: 0 | AS28: 0 | AT28: 0 | AU28: 1904 | AV28: 3264 | AW28: 0 | AX28: 0 | AY28: 0 | AZ28: 0 | BA28: 0 | BB28: 220.32 | BC28: 24934.84 | BD28: 1948.65 | BE28: 379.99 | BF28: 106.48 | BG28: 0 | BH28: 4299.5 | BI28: 0 | BJ28: 0 | BK28: 0 | BL28: 0 | BM28: 0 | BN28: 0 | BO28: 60.02 | BP28: 1172.95 | BQ28: 0 | BR28: 0 | BS28: 0 | BT28: 0 | BU28: 0 | BV28: 0 | BW28: 0 | BX28: 0 | BY28: 0 | BZ28: 0 | CA28: 0 | CB28: 0 | CC28: 0 | CD28: 0 | CE28: 0 | CF28: 0 | CG28: 0 | CH28: 0 | CI28: 0 | CJ28: 0 | CK28: 0 | CL28: 0 | CM28: 0 | CN28: 0 | CO28: 0 | CP28: -0.07 | CQ28: 0.32 | CR28: 7967.84 | CS28: 16967 | CT28: 1753.79 | CU28: 146.15 | CV28: 18866.94
A29: 000030 | B29: 1981-05-19 | C29: 3 | D29: 7667.37 | E29: 0 | F29: 0 | G29: 0 | H29: 0 | I29: 65 | J29: 0 | K29: 339.04 | L29: 109.59 | M29: 0 | N29: 0 | O29: 0 | P29: 0 | Q29: 0 | R29: 0 | S29: 0 | T29: 169.08 | U29: 0 | V29: 0 | W29: 0 | X29: 0 | Y29: 0 | Z29: 0 | AA29: 0 | AB29: 0 | AC29: 97.5 | AD29: 0 | AE29: 0 | AF29: 0 | AG29: 129.6 | AH29: 2975.87 | AI29: 0 | AJ29: 0 | AK29: 180.06 | AL29: 0 | AM29: 0 | AN29: 0 | AO29: 0 | AP29: 0 | AQ29: 0 | AR29: 0 | AS29: 0 | AT29: 0 | AU29: 0 | AV29: 0 | AW29: 0 | AX29: 0 | AY29: 0 | AZ29: 0 | BA29: 0 | BB29: 0 | BC29: 11733.11 | BD29: 1142.35 | BE29: 222.76 | BF29: 106.48 | BG29: 0 | BH29: 1809.14 | BI29: 0 | BJ29: 0 | BK29: 0 | BL29: 50 | BM29: 0 | BN29: 0 | BO29: 180.06 | BP29: 401.05 | BQ29: 3061.79 | BR29: 0 | BS29: 0 | BT29: 0 | BU29: 195 | BV29: 0 | BW29: 0 | BX29: 0 | BY29: 0 | BZ29: 0 | CA29: 0 | CB29: 0 | CC29: 0 | CD29: 0 | CE29: 0 | CF29: 811.6 | CG29: 0 | CH29: 0 | CI29: 0 | CJ29: 0 | CK29: 0 | CL29: 0 | CM29: 0 | CN29: 0 | CO29: 0 | CP29: -0.76 | CQ29: 0.64 | CR29: 7980.11 | CS29: 3753 | CT29: 1028.11 | CU29: 85.68 | CV29: 4866.79
A30: 000031 | B30: 1981-06-01 | C30: 3 | D30: 8953.42 | E30: 0 | F30: 0 | G30: 0 | H30: 0 | I30: 230 | J30: 0 | K30: 291.39 | L30: 94.19 | M30: 0 | N30: 0 | O30: 0 | P30: 0 | Q30: 0 | R30: 0 | S30: 0 | T30: 0 | U30: 108.92 | V30: 0 | W30: 0 | X30: 0 | Y30: 0 | Z30: 0 | AA30: 0 | AB30: 0 | AC30: 3.75 | AD30: 0 | AE30: 0 | AF30: 0 | AG30: 76.8 | AH30: 0 | AI30: 0 | AJ30: 0 | AK30: 180.06 | AL30: 0 | AM30: 0 | AN30: 0 | AO30: 0 | AP30: 0 | AQ30: 0 | AR30: 0 | AS30: 0 | AT30: 0 | AU30: 0 | AV30: 0 | AW30: 0 | AX30: 0 | AY30: 0 | AZ30: 0 | BA30: 0 | BB30: 0 | BC30: 9938.53 | BD30: 968.17 | BE30: 169.43 | BF30: 101 | BG30: 0 | BH30: 1523.99 | BI30: 0 | BJ30: 0 | BK30: 0 | BL30: 0 | BM30: 0 | BN30: 0 | BO30: 180.06 | BP30: 202.94 | BQ30: 0 | BR30: 0 | BS30: 0 | BT30: 0 | BU30: 7.5 | BV30: 0 | BW30: 0 | BX30: 0 | BY30: 0 | BZ30: 0 | CA30: 0 | CB30: 0 | CC30: 0 | CD30: 0 | CE30: 0 | CF30: 915.6 | CG30: 0 | CH30: 0 | CI30: 0 | CJ30: 0 | CK30: 0 | CL30: 0 | CM30: 0 | CN30: 0 | CO30: 0 | CP30: -0.69 | CQ30: 0.53 | CR30: 4068.53 | CS30: 5870 | CT30: 871.35 | CU30: 72.61 | CV30: 6813.96
A31: 000032 | B31: 1981-08-17 | C31: 21 | D31: 0 | E31: 0 | F31: 18207 | G31: 0 | H31: 0 | I31: 67.5 | J31: 0 | K31: 0 | L31: 0 | M31: 0 | N31: 0 | O31: 0 | P31: 0 | Q31: 0 | R31: 0 | S31: 0 | T31: 0 | U31: 0 | V31: 0 | W31: 0 | X31: 0 | Y31: 0 | Z31: 0 | AA31: 0 | AB31: 0 | AC31: 75 | AD31: 0 | AE31: 0 | AF31: 0 | AG31: 0 | AH31: 0 | AI31: 0 | AJ31: 0 | AK31: 60.02 | AL31: 0 | AM31: 0 | AN31: 0 | AO31: 0 | AP31: 0 | AQ31: 0 | AR31: 0 | AS31: 0 | AT31: 0 | AU31: 1786.17 | AV31: 3062 | AW31: 0 | AX31: 0 | AY31: 0 | AZ31: 0 | BA31: 0 | BB31: 206.69 | BC31: 23464.38 | BD31: 1834.95 | BE31: 330.29 | BF31: 90.82 | BG31: 0 | BH31: 3893.71 | BI31: 0 | BJ31: 0 | BK31: 0 | BL31: 0 | BM31: 0 | BN31: 0 | BO31: 60.02 | BP31: 656.9 | BQ31: 0 | BR31: 0 | BS31: 0 | BT31: 150 | BU31: 0 | BV31: 0 | BW31: 0 | BX31: 0 | BY31: 0 | BZ31: 0 | CA31: 0 | CB31: 0 | CC31: 0 | CD31: 0 | CE31: 0 | CF31: 0 | CG31: 0 | CH31: 0 | CI31: 0 | CJ31: 0 | CK31: 0 | CL31: 0 | CM31: 0 | CN31: 0 | CO31: 0 | CP31: -0.23 | CQ31: 0.92 | CR31: 7017.38 | CS31: 16447 | CT31: 1651.46 | CU31: 137.62 | CV31: 18236.08
A32: 000033 | B32: 2011-11-01 | C32: 21 | D32: 0 | E32: 0 | F32: 11448 | G32: 0 | H32: 0 | I32: 67.5 | J32: 0 | K32: 0 | L32: 0 | M32: 0 | N32: 0 | O32: 0 | P32: 0 | Q32: 0 | R32: 0 | S32: 0 | T32: 0 | U32: 0 | V32: 0 | W32: 0 | X32: 0 | Y32: 0 | Z32: 0 | AA32: 0 | AB32: 0 | AC32: 80 | AD32: 0 | AE32: 0 | AF32: 0 | AG32: 0 | AH32: 0 | AI32: 0 | AJ32: 0 | AK32: 60.02 | AL32: 0 | AM32: 0 | AN32: 0 | AO32: 0 | AP32: 0 | AQ32: 0 | AR32: 0 | AS32: 0 | AT32: 0 | AU32: 1130.26 | AV32: 1937.58 | AW32: 0 | AX32: 0 | AY32: 0 | AZ32: 0 | BA32: 0 | BB32: 130.79 | BC32: 14854.15 | BD32: 1159.55 | BE32: 226.11 | BF32: 106.48 | BG32: 0 | BH32: 1942.14 | BI32: 0 | BJ32: 0 | BK32: 0 | BL32: 0 | BM32: 0 | BN32: 0 | BO32: 60.02 | BP32: 83.33 | BQ32: 0 | BR32: 0 | BS32: 0 | BT32: 160 | BU32: 0 | BV32: 0 | BW32: 0 | BX32: 0 | BY32: 0 | BZ32: 0 | CA32: 0 | CB32: 0 | CC32: 0 | CD32: 0 | CE32: 0 | CF32: 0 | CG32: 0 | CH32: 0 | CI32: 0 | CJ32: 0 | CK32: 0 | CL32: 0 | CM32: 0 | CN32: 0 | CO32: 0 | CP32: -0.63 | CQ32: 0.15 | CR32: 3737.15 | CS32: 11117 | CT32: 1043.6 | CU32: 86.97 | CV32: 12247.57
A33: 000034 | B33: 1983-10-14 | C33: 3 | D33: 4973.58 | E33: 0 | F33: 0 | G33: 0 | H33: 0 | I33: 120 | J33: 0 | K33: 0 | L33: 0 | M33: 76.68 | N33: 0 | O33: 0 | P33: 0 | Q33: 0 | R33: 0 | S33: 0 | T33: 0 | U33: 217.85 | V33: 226.38 | W33: 416.23 | X33: 0 | Y33: 0 | Z33: 0 | AA33: 0 | AB33: 0 | AC33: 108.75 | AD33: 0 | AE33: 0 | AF33: 0 | AG33: 120 | AH33: 721.47 | AI33: 0 | AJ33: 0 | AK33: 180.06 | AL33: 0 | AM33: 0 | AN33: 0 | AO33: 0 | AP33: 0 | AQ33: 0 | AR33: 0 | AS33: 0 | AT33: 0 | AU33: 0 | AV33: 0 | AW33: 0 | AX33: 0 | AY33: 0 | AZ33: 0 | BA33: 0 | BB33: 0 | BC33: 7161 | BD33: 686.09 | BE33: 123.5 | BF33: 0 | BG33: 0 | BH33: 965.93 | BI33: 0 | BJ33: 0 | BK33: 0 | BL33: 50 | BM33: 0 | BN33: 0 | BO33: 180.06 | BP33: 160.56 | BQ33: 0 | BR33: 0 | BS33: 0 | BT33: 0 | BU33: 217.5 | BV33: 0 | BW33: 0 | BX33: 0 | BY33: 0 | BZ33: 0 | CA33: 0 | CB33: 0 | CC33: 0 | CD33: 0 | CE33: 0 | CF33: 541.1 | CG33: 0 | CH33: 0 | CI33: 0 | CJ33: 0 | CK33: 0 | CL33: 0 | CM33: 0 | CN33: 0 | CO33: 0 | CP33: -0.25 | CQ33: 0.51 | CR33: 2925 | CS33: 4236 | CT33: 617.48 | CU33: 51.46 | CV33: 4904.94
A34: 000035 | B34: 1982-07-08 | C34: 3 | D34: 6301.08 | E34: 0 | F34: 0 | G34: 0 | H34: 0 | I34: 120 | J34: 0 | K34: 272.76 | L34: 88.16 | M34: 0 | N34: 0 | O34: 0 | P34: 0 | Q34: 0 | R34: 0 | S34: 0 | T34: 0 | U34: 163.38 | V34: 377.31 | W34: 1281.15 | X34: 1281.15 | Y34: 0 | Z34: 0 | AA34: 0 | AB34: 0 | AC34: 56.25 | AD34: 0 | AE34: 0 | AF34: 0 | AG34: 129.6 | AH34: 666.2 | AI34: 0 | AJ34: 0 | AK34: 180.06 | AL34: 0 | AM34: 0 | AN34: 0 | AO34: 0 | AP34: 0 | AQ34: 0 | AR34: 0 | AS34: 0 | AT34: 0 | AU34: 0 | AV34: 0 | AW34: 0 | AX34: 0 | AY34: 0 | AZ34: 0 | BA34: 0 | BB34: 0 | BC34: 10917.1 | BD34: 1060.74 | BE34: 185.63 | BF34: 101 | BG34: 0 | BH34: 1546.35 | BI34: 0 | BJ34: 0 | BK34: 0 | BL34: 50 | BM34: 0 | BN34: 0 | BO34: 180.06 | BP34: 401.05 | BQ34: 0 | BR34: 0 | BS34: 0 | BT34: 0 | BU34: 112.5 | BV34: 0 | BW34: 0 | BX34: 0 | BY34: 0 | BZ34: 0 | CA34: 0 | CB34: 0 | CC34: 0 | CD34: 0 | CE34: 0 | CF34: 0 | CG34: 0 | CH34: 0 | CI34: 0 | CJ34: 0 | CK34: 0 | CL34: 0 | CM34: 0 | CN34: 0 | CO34: 0 | CP34: -0.85 | CQ34: 0.62 | CR34: 3637.1 | CS34: 7280 | CT34: 954.67 | CU34: 79.56 | CV34: 8314.23
A35: 000036 | B35: 1981-11-16 | C35: 3 | D35: 6142.35 | E35: 0 | F35: 0 | G35: 0 | H35: 0 | I35: 65 | J35: 0 | K35: 308.83 | L35: 99.82 | M35: 0 | N35: 0 | O35: 0 | P35: 0 | Q35: 0 | R35: 0 | S35: 0 | T35: 3919.68 | U35: 27.23 | V35: 37.73 | W35: 1259.81 | X35: 0 | Y35: 0 | Z35: 0 | AA35: 0 | AB35: 0 | AC35: 101.25 | AD35: 0 | AE35: 0 | AF35: 0 | AG35: 129.6 | AH35: 2292.85 | AI35: 0 | AJ35: 0 | AK35: 180.06 | AL35: 0 | AM35: 0 | AN35: 0 | AO35: 0 | AP35: 0 | AQ35: 0 | AR35: 0 | AS35: 0 | AT35: 0 | AU35: 0 | AV35: 0 | AW35: 0 | AX35: 0 | AY35: 0 | AZ35: 0 | BA35: 0 | BB35: 0 | BC35: 14564.21 | BD35: 1425.46 | BE35: 249.45 | BF35: 101 | BG35: 0 | BH35: 2711.45 | BI35: 0 | BJ35: 0 | BK35: 0 | BL35: 0 | BM35: 0 | BN35: 0 | BO35: 180.06 | BP35: 108.88 | BQ35: 0 | BR35: 0 | BS35: 0 | BT35: 0 | BU35: 202.5 | BV35: 0 | BW35: 0 | BX35: 0 | BY35: 0 | BZ35: 0 | CA35: 0 | CB35: 0 | CC35: 0 | CD35: 0 | CE35: 0 | CF35: 0 | CG35: 0 | CH35: 0 | CI35: 0 | CJ35: 0 | CK35: 0 | CL35: 0 | CM35: 0 | CN35: 0 | CO35: 0 | CP35: -0.36 | CQ35: 0.77 | CR35: 4979.21 | CS35: 9585 | CT35: 1282.91 | CU35: 106.91 | CV35: 10974.82
A36: 000037 | B36: 1983-10-20 | C36: 3 | D36: 8975 | E36: 0 | F36: 0 | G36: 0 | H36: 0 | I36: 67.5 | J36: 0 | K36: 0 | L36: 0 | M36: 0 | N36: 0 | O36: 0 | P36: 0 | Q36: 0 | R36: 0 | S36: 0 | T36: 0 | U36: 326.77 | V36: 37.73 | W36: 345.19 | X36: 0 | Y36: 0 | Z36: 0 | AA36: 0 | AB36: 0 | AC36: 33.75 | AD36: 0 | AE36: 0 | AF36: 0 | AG36: 0 | AH36: 1645.42 | AI36: 0 | AJ36: 0 | AK36: 60.02 | AL36: 0 | AM36: 0 | AN36: 0 | AO36: 0 | AP36: 0 | AQ36: 0 | AR36: 0 | AS36: 0 | AT36: 0 | AU36: 0 | AV36: 0 | AW36: 0 | AX36: 0 | AY36: 0 | AZ36: 0 | BA36: 0 | BB36: 0 | BC36: 11491.38 | BD36: 1143.14 | BE36: 222.91 | BF36: 106.48 | BG36: 0 | BH36: 1804.55 | BI36: 5 | BJ36: 0 | BK36: 0 | BL36: 0 | BM36: 0 | BN36: 0 | BO36: 60.02 | BP36: 777.9 | BQ36: 0 | BR36: 0 | BS36: 0 | BT36: 0 | BU36: 67.5 | BV36: 0 | BW36: 0 | BX36: 0 | BY36: 0 | BZ36: 0 | CA36: 0 | CB36: 0 | CC36: 0 | CD36: 0 | CE36: 0 | CF36: 897.5 | CG36: 0 | CH36: 0 | CI36: 0 | CJ36: 0 | CK36: 0 | CL36: 0 | CM36: 0 | CN36: 0 | CO36: 0 | CP36: -0.11 | CQ36: 0.49 | CR36: 5085.38 | CS36: 6406 | CT36: 1028.82 | CU36: 85.74 | CV36: 7520.56
A37: 000038 | B37: 1983-10-27 | C37: 3 | D37: 6198.9 | E37: 0 | F37: 0 | G37: 0 | H37: 0 | I37: 65 | J37: 0 | K37: 170.21 | L37: 55.02 | M37: 0 | N37: 0 | O37: 0 | P37: 0 | Q37: 0 | R37: 0 | S37: 0 | T37: 0 | U37: 0 | V37: 0 | W37: 264.73 | X37: 0 | Y37: 0 | Z37: 0 | AA37: 0 | AB37: 0 | AC37: 63.75 | AD37: 0 | AE37: 0 | AF37: 0 | AG37: 96 | AH37: 0 | AI37: 0 | AJ37: 0 | AK37: 180.06 | AL37: 0 | AM37: 0 | AN37: 0 | AO37: 1000 | AP37: 0 | AQ37: 0 | AR37: 458.87 | AS37: 0 | AT37: 0 | AU37: 0 | AV37: 0 | AW37: 0 | AX37: 0 | AY37: 0 | AZ37: 0 | BA37: 0 | BB37: 0 | BC37: 8552.54 | BD37: 827.65 | BE37: 161.39 | BF37: 106.48 | BG37: 0 | BH37: 1277.58 | BI37: 0 | BJ37: 0 | BK37: 0 | BL37: 0 | BM37: 0 | BN37: 0 | BO37: 180.06 | BP37: 726.22 | BQ37: 0 | BR37: 0 | BS37: 0 | BT37: 0 | BU37: 127.5 | BV37: 0 | BW37: 0 | BX37: 0 | BY37: 0 | BZ37: 0 | CA37: 0 | CB37: 0 | CC37: 0 | CD37: 0 | CE37: 0 | CF37: 688.3 | CG37: 0 | CH37: 0 | CI37: 1000 | CJ37: 0 | CK37: 0 | CL37: 0 | CM37: 0 | CN37: 0 | CO37: 0 | CP37: -0.15 | CQ37: 0.39 | CR37: 5095.42 | CS37: 3457.12 | CT37: 744.88 | CU37: 69.57 | CV37: 4271.57
A38: 000039 | B38: 1983-11-23 | C38: 3 | D38: 5000.27 | E38: 0 | F38: 0 | G38: 0 | H38: 0 | I38: 175 | J38: 0 | K38: 136.58 | L38: 44.15 | M38: 0 | N38: 0 | O38: 0 | P38: 0 | Q38: 0 | R38: 0 | S38: 0 | T38: 0 | U38: 0 | V38: 0 | W38: 0 | X38: 0 | Y38: 0 | Z38: 0 | AA38: 0 | AB38: 0 | AC38: 10 | AD38: 0 | AE38: 0 | AF38: 0 | AG38: 28.8 | AH38: 0 | AI38: 0 | AJ38: 0 | AK38: 180.06 | AL38: 0 | AM38: 0 | AN38: 0 | AO38: 0 | AP38: 0 | AQ38: 0 | AR38: 0 | AS38: 0 | AT38: 0 | AU38: 0 | AV38: 0 | AW38: 0 | AX38: 0 | AY38: 0 | AZ38: 0 | BA38: 0 | BB38: 0 | BC38: 5574.86 | BD38: 536.6 | BE38: 93.91 | BF38: 69.22 | BG38: 0 | BH38: 649.6 | BI38: 5 | BJ38: 0 | BK38: 0 | BL38: 0 | BM38: 0 | BN38: 0 | BO38: 180.06 | BP38: 417.55 | BQ38: 0 | BR38: 0 | BS38: 0 | BT38: 20 | BU38: 0 | BV38: 0 | BW38: 0 | BX38: 0 | BY38: 0 | BZ38: 0 | CA38: 0 | CB38: 0 | CC38: 0 | CD38: 0 | CE38: 0 | CF38: 518.1 | CG38: 0 | CH38: 0 | CI38: 0 | CJ38: 0 | CK38: 0 | CL38: 0 | CM38: 0 | CN38: 0 | CO38: 0 | CP38: -0.71 | CQ38: 0.53 | CR38: 2489.86 | CS38: 3085 | CT38: 482.94 | CU38: 40.25 | CV38: 3608.19
A39: 000040 | B39: 1984-06-01 | C39: 30 | D39: 6665 | E39: 0 | F39: 0 | G39: 0 | H39: 0 | I39: 0 | J39: 0 | K39: 0 | L39: 0 | M39: 0 | N39: 0 | O39: 0 | P39: 0 | Q39: 0 | R39: 0 | S39: 0 | T39: 0 | U39: 0 | V39: 0 | W39: 0 | X39: 0 | Y39: 0 | Z39: 0 | AA39: 0 | AB39: 0 | AC39: 85 | AD39: 0 | AE39: 0 | AF39: 0 | AG39: 0 | AH39: 0 | AI39: 0 | AJ39: 0 | AK39: 60.02 | AL39: 0 | AM39: 0 | AN39: 0 | AO39: 0 | AP39: 0 | AQ39: 0 | AR39: 0 | AS39: 0 | AT39: 0 | AU39: 0 | AV39: 0 | AW39: 0 | AX39: 0 | AY39: 0 | AZ39: 0 | BA39: 0 | BB39: 0 | BC39: 6810.02 | BD39: 675 | BE39: 118.13 | BF39: 87.08 | BG39: 0 | BH39: 868.75 | BI39: 5 | BJ39: 0 | BK39: 0 | BL39: 0 | BM39: 0 | BN39: 0 | BO39: 60.02 | BP39: 347.17 | BQ39: 0 | BR39: 0 | BS39: 0 | BT39: 80 | BU39: 0 | BV39: 90 | BW39: 0 | BX39: 0 | BY39: 0 | BZ39: 0 | CA39: 0 | CB39: 0 | CC39: 0 | CD39: 0 | CE39: 0 | CF39: 0 | CG39: 0 | CH39: 0 | CI39: 0 | CJ39: 0 | CK39: 0 | CL39: 0 | CM39: 0 | CN39: 0 | CO39: 0 | CP39: -0.64 | CQ39: 0.51 | CR39: 2331.02 | CS39: 4479 | CT39: 607.5 | CU39: 50.63 | CV39: 5137.13
A40: 000041 | B40: 1985-01-03 | C40: 30 | D40: 7579 | E40: 0 | F40: 0 | G40: 0 | H40: 0 | I40: 67.5 | J40: 0 | K40: 0 | L40: 0 | M40: 0 | N40: 0 | O40: 0 | P40: 0 | Q40: 0 | R40: 0 | S40: 0 | T40: 0 | U40: 0 | V40: 0 | W40: 0 | X40: 0 | Y40: 0 | Z40: 0 | AA40: 0 | AB40: 0 | AC40: 70 | AD40: 0 | AE40: 0 | AF40: 0 | AG40: 0 | AH40: 0 | AI40: 0 | AJ40: 0 | AK40: 60.02 | AL40: 0 | AM40: 0 | AN40: 0 | AO40: 0 | AP40: 0 | AQ40: 0 | AR40: 0 | AS40: 0 | AT40: 0 | AU40: 0 | AV40: 0 | AW40: 0 | AX40: 0 | AY40: 0 | AZ40: 0 | BA40: 0 | BB40: 0 | BC40: 7776.52 | BD40: 771.65 | BE40: 135.04 | BF40: 99.54 | BG40: 0 | BH40: 1038.27 | BI40: 0 | BJ40: 0 | BK40: 0 | BL40: 0 | BM40: 0 | BN40: 0 | BO40: 60.02 | BP40: 495.11 | BQ40: 0 | BR40: 0 | BS40: 0 | BT40: 40 | BU40: 0 | BV40: 100 | BW40: 0 | BX40: 0 | BY40: 0 | BZ40: 0 | CA40: 0 | CB40: 0 | CC40: 0 | CD40: 0 | CE40: 0 | CF40: 757.9 | CG40: 0 | CH40: 80 | CI40: 0 | CJ40: 0 | CK40: 0 | CL40: 0 | CM40: 0 | CN40: 0 | CO40: 0 | CP40: -0.83 | CQ40: 0.82 | CR40: 3577.52 | CS40: 4199 | CT40: 694.49 | CU40: 57.87 | CV40: 4951.36
A41: 000042 | B41: 1985-03-25 | C41: 30 | D41: 9270 | E41: 0 | F41: 0 | G41: 0 | H41: 0 | I41: 67.5 | J41: 0 | K41: 0 | L41: 0 | M41: 0 | N41: 0 | O41: 0 | P41: 0 | Q41: 0 | R41: 0 | S41: 0 | T41: 0 | U41: 0 | V41: 0 | W41: 0 | X41: 0 | Y41: 0 | Z41: 0 | AA41: 0 | AB41: 0 | AC41: 100 | AD41: 0 | AE41: 0 | AF41: 0 | AG41: 0 | AH41: 0 | AI41: 0 | AJ41: 0 | AK41: 60.02 | AL41: 0 | AM41: 0 | AN41: 0 | AO41: 0 | AP41: 0 | AQ41: 0 | AR41: 0 | AS41: 0 | AT41: 0 | AU41: 0 | AV41: 0 | AW41: 0 | AX41: 0 | AY41: 0 | AZ41: 0 | BA41: 0 | BB41: 0 | BC41: 9497.52 | BD41: 943.75 | BE41: 169.88 | BF41: 90.82 | BG41: 0 | BH41: 1381.42 | BI41: 5 | BJ41: 0 | BK41: 0 | BL41: 0 | BM41: 0 | BN41: 0 | BO41: 60.02 | BP41: 417.55 | BQ41: 0 | BR41: 0 | BS41: 0 | BT41: 50 | BU41: 0 | BV41: 150 | BW41: 0 | BX41: 0 | BY41: 0 | BZ41: 0 | CA41: 0 | CB41: 0 | CC41: 0 | CD41: 0 | CE41: 0 | CF41: 0 | CG41: 0 | CH41: 0 | CI41: 0 | CJ41: 0 | CK41: 0 | CL41: 0 | CM41: 0 | CN41: 0 | CO41: 0 | CP41: -0.25 | CQ41: 0.33 | CR41: 3268.52 | CS41: 6229 | CT41: 849.38 | CU41: 70.78 | CV41: 7149.16
A42: 000043 | B42: 1985-04-16 | C42: 30 | D42: 5844 | E42: 0 | F42: 0 | G42: 0 | H42: 0 | I42: 67.5 | J42: 0 | K42: 0 | L42: 0 | M42: 0 | N42: 0 | O42: 0 | P42: 0 | Q42: 0 | R42: 0 | S42: 0 | T42: 0 | U42: 0 | V42: 0 | W42: 0 | X42: 0 | Y42: 0 | Z42: 0 | AA42: 0 | AB42: 0 | AC42: 0 | AD42: 0 | AE42: 0 | AF42: 0 | AG42: 0 | AH42: 0 | AI42: 0 | AJ42: 0 | AK42: 60.02 | AL42: 0 | AM42: 0 | AN42: 0 | AO42: 0 | AP42: 0 | AQ42: 0 | AR42: 0 | AS42: 0 | AT42: 0 | AU42: 0 | AV42: 0 | AW42: 0 | AX42: 0 | AY42: 0 | AZ42: 0 | BA42: 0 | BB42: 0 | BC42: 5971.52 | BD42: 591.15 | BE42: 106.41 | BF42: 68.57 | BG42: 0 | BH42: 722.79 | BI42: 5 | BJ42: 0 | BK42: 0 | BL42: 0 | BM42: 0 | BN42: 0 | BO42: 60.02 | BP42: 495.11 | BQ42: 0 | BR42: 0 | BS42: 0 | BT42: 0 | BU42: 0 | BV42: 0 | BW42: 0 | BX42: 0 | BY42: 0 | BZ42: 0 | CA42: 0 | CB42: 0 | CC42: 0 | CD42: 0 | CE42: 0 | CF42: 0 | CG42: 0 | CH42: 0 | CI42: 0 | CJ42: 0 | CK42: 0 | CL42: 0 | CM42: 0 | CN42: 0 | CO42: 0 | CP42: -0.55 | CQ42: 0.02 | CR42: 2048.52 | CS42: 3923 | CT42: 532.04 | CU42: 44.34 | CV42: 4499.38
A43: 000044 | B43: 1986-01-02 | C43: 3 | D43: 9983 | E43: 0 | F43: 0 | G43: 0 | H43: 0 | I43: 0 | J43: 0 | K43: 0 | L43: 0 | M43: 0 | N43: 0 | O43: 0 | P43: 0 | Q43: 0 | R43: 0 | S43: 0 | T43: 0 | U43: 0 | V43: 0 | W43: 0 | X43: 0 | Y43: 0 | Z43: 0 | AA43: 0 | AB43: 0 | AC43: 82.5 | AD43: 0 | AE43: 0 | AF43: 0 | AG43: 0 | AH43: 3660.43 | AI43: 0 | AJ43: 0 | AK43: 60.02 | AL43: 0 | AM43: 0 | AN43: 0 | AO43: 0 | AP43: 0 | AQ43: 0 | AR43: 0 | AS43: 0 | AT43: 0 | AU43: 0 | AV43: 0 | AW43: 0 | AX43: 0 | AY43: 0 | AZ43: 0 | BA43: 0 | BB43: 0 | BC43: 13785.95 | BD43: 1372.59 | BE43: 247.07 | BF43: 90.82 | BG43: 0 | BH43: 2304.58 | BI43: 0 | BJ43: 0 | BK43: 0 | BL43: 0 | BM43: 0 | BN43: 0 | BO43: 60.02 | BP43: 401.05 | BQ43: 0 | BR43: 0 | BS43: 0 | BT43: 0 | BU43: 165 | BV43: 0 | BW43: 0 | BX43: 0 | BY43: 0 | BZ43: 0 | CA43: 0 | CB43: 0 | CC43: 0 | CD43: 0 | CE43: 0 | CF43: 0 | CG43: 0 | CH43: 0 | CI43: 0 | CJ43: 0 | CK43: 0 | CL43: 0 | CM43: 0 | CN43: 0 | CO43: 0 | CP43: -0.72 | CQ43: 0.54 | CR43: 4640.95 | CS43: 9145 | CT43: 1235.33 | CU43: 102.94 | CV43: 10483.27
A44: 000045 | B44: 1985-05-16 | C44: 21 | D44: 0 | E44: 0 | F44: 13489 | G44: 0 | H44: 0 | I44: 67.5 | J44: 0 | K44: 0 | L44: 0 | M44: 0 | N44: 0 | O44: 0 | P44: 0 | Q44: 0 | R44: 0 | S44: 0 | T44: 0 | U44: 0 | V44: 0 | W44: 0 | X44: 0 | Y44: 0 | Z44: 0 | AA44: 0 | AB44: 0 | AC44: 0 | AD44: 0 | AE44: 0 | AF44: 0 | AG44: 0 | AH44: 0 | AI44: 0 | AJ44: 0 | AK44: 60.02 | AL44: 0 | AM44: 0 | AN44: 0 | AO44: 0 | AP44: 0 | AQ44: 0 | AR44: 0 | AS44: 0 | AT44: 0 | AU44: 1327.47 | AV44: 2275.67 | AW44: 0 | AX44: 0 | AY44: 0 | AZ44: 0 | BA44: 0 | BB44: 153.61 | BC44: 17373.27 | BD44: 1355.65 | BE44: 237.24 | BF44: 101 | BG44: 0 | BH44: 2429.74 | BI44: 0 | BJ44: 0 | BK44: 0 | BL44: 0 | BM44: 0 | BN44: 0 | BO44: 60.02 | BP44: 786.91 | BQ44: 491.29 | BR44: 0 | BS44: 0 | BT44: 0 | BU44: 0 | BV44: 0 | BW44: 0 | BX44: 0 | BY44: 0 | BZ44: 0 | CA44: 0 | CB44: 0 | CC44: 0 | CD44: 0 | CE44: 0 | CF44: 0 | CG44: 0 | CH44: 0 | CI44: 0 | CJ44: 0 | CK44: 0 | CL44: 0 | CM44: 0 | CN44: 0 | CO44: 0 | CP44: -0.66 | CQ44: 0.08 | CR44: 5461.27 | CS44: 11912 | CT44: 1220.09 | CU44: 101.67 | CV44: 13233.76
A45: 000046 | B45: 1985-08-01 | C45: 21 | D45: 0 | E45: 0 | F45: 21426 | G45: 0 | H45: 0 | I45: 67.5 | J45: 0 | K45: 0 | L45: 0 | M45: 0 | N45: 0 | O45: 0 | P45: 0 | Q45: 0 | R45: 0 | S45: 0 | T45: 0 | U45: 0 | V45: 0 | W45: 0 | X45: 0 | Y45: 0 | Z45: 0 | AA45: 0 | AB45: 0 | AC45: 30 | AD45: 0 | AE45: 0 | AF45: 0 | AG45: 0 | AH45: 0 | AI45: 0 | AJ45: 0 | AK45: 60.02 | AL45: 0 | AM45: 0 | AN45: 0 | AO45: 0 | AP45: 0 | AQ45: 0 | AR45: 0 | AS45: 0 | AT45: 0 | AU45: 2100.34 | AV45: 3600.58 | AW45: 0 | AX45: 0 | AY45: 0 | AZ45: 0 | BA45: 0 | BB45: 243.04 | BC45: 27527.48 | BD45: 2152.35 | BE45: 387.42 | BF45: 90.82 | BG45: 0 | BH45: 5018.39 | BI45: 5 | BJ45: 0 | BK45: 0 | BL45: 0 | BM45: 0 | BN45: 0 | BO45: 60.02 | BP45: 1178.6 | BQ45: 889 | BR45: 0 | BS45: 0 | BT45: 10 | BU45: 0 | BV45: 50 | BW45: 0 | BX45: 0 | BY45: 0 | BZ45: 0 | CA45: 0 | CB45: 0 | CC45: 0 | CD45: 0 | CE45: 0 | CF45: 0 | CG45: 0 | CH45: 0 | CI45: 0 | CJ45: 0 | CK45: 0 | CL45: 0 | CM45: 0 | CN45: 0 | CO45: 0 | CP45: -0.36 | CQ45: 0.24 | CR45: 9841.48 | CS45: 17686 | CT45: 1937.12 | CU45: 161.43 | CV45: 19784.55
A46: 000047 | B46: 1985-08-07 | C46: 21 | D46: 0 | E46: 0 | F46: 10159 | G46: 0 | H46: 0 | I46: 67.5 | J46: 0 | K46: 0 | L46: 0 | M46: 0 | N46: 0 | O46: 0 | P46: 0 | Q46: 0 | R46: 0 | S46: 0 | T46: 0 | U46: 0 | V46: 0 | W46: 0 | X46: 0 | Y46: 0 | Z46: 0 | AA46: 0 | AB46: 0 | AC46: 15 | AD46: 0 | AE46: 0 | AF46: 0 | AG46: 0 | AH46: 0 | AI46: 0 | AJ46: 0 | AK46: 60.02 | AL46: 0 | AM46: 0 | AN46: 0 | AO46: 0 | AP46: 0 | AQ46: 0 | AR46: 0 | AS46: 0 | AT46: 0 | AU46: 1003.09 | AV46: 1719.58 | AW46: 0 | AX46: 0 | AY46: 0 | AZ46: 0 | BA46: 0 | BB46: 116.07 | BC46: 13140.26 | BD46: 1024.15 | BE46: 179.23 | BF46: 101 | BG46: 0 | BH46: 1608.93 | BI46: 0 | BJ46: 0 | BK46: 0 | BL46: 0 | BM46: 0 | BN46: 0 | BO46: 60.02 | BP46: 452.73 | BQ46: 0 | BR46: 0 | BS46: 0 | BT46: 20 | BU46: 0 | BV46: 10 | BW46: 0 | BX46: 0 | BY46: 0 | BZ46: 0 | CA46: 0 | CB46: 0 | CC46: 0 | CD46: 0 | CE46: 0 | CF46: 0 | CG46: 0 | CH46: 0 | CI46: 0 | CJ46: 0 | CK46: 0 | CL46: 0 | CM46: 0 | CN46: 0 | CO46: 0 | CP46: -0.81 | CQ46: 0.01 | CR46: 3455.26 | CS46: 9685 | CT46: 921.74 | CU46: 76.81 | CV46: 10683.55
A47: 000048 | B47: 1985-08-19 | C47: 21 | D47: 0 | E47: 0 | F47: 15682 | G47: 0 | H47: 0 | I47: 67.5 | J47: 0 | K47: 0 | L47: 0 | M47: 0 | N47: 0 | O47: 0 | P47: 0 | Q47: 0 | R47: 0 | S47: 0 | T47: 0 | U47: 0 | V47: 0 | W47: 0 | X47: 0 | Y47: 0 | Z47: 0 | AA47: 0 | AB47: 0 | AC47: 30 | AD47: 0 | AE47: 0 | AF47: 0 | AG47: 0 | AH47: 0 | AI47: 0 | AJ47: 0 | AK47: 60.02 | AL47: 0 | AM47: 0 | AN47: 0 | AO47: 0 | AP47: 0 | AQ47: 0 | AR47: 0 | AS47: 0 | AT47: 0 | AU47: 1541.9 | AV47: 2643.25 | AW47: 0 | AX47: 0 | AY47: 0 | AZ47: 0 | BA47: 0 | BB47: 178.42 | BC47: 20203.09 | BD47: 1577.95 | BE47: 307.7 | BF47: 106.48 | BG47: 0 | BH47: 3107.2 | BI47: 5 | BJ47: 0 | BK47: 0 | BL47: 0 | BM47: 0 | BN47: 0 | BO47: 60.02 | BP47: 735.81 | BQ47: 0 | BR47: 0 | BS47: 0 | BT47: 0 | BU47: 0 | BV47: 60 | BW47: 0 | BX47: 0 | BY47: 0 | BZ47: 0 | CA47: 0 | CB47: 0 | CC47: 0 | CD47: 0 | CE47: 0 | CF47: 0 | CG47: 0 | CH47: 80 | CI47: 0 | CJ47: 0 | CK47: 0 | CL47: 0 | CM47: 0 | CN47: 0 | CO47: 0 | CP47: -0.13 | CQ47: 0.06 | CR47: 6040.09 | CS47: 14163 | CT47: 1420.16 | CU47: 118.35 | CV47: 15701.51
A48: 000049 | B48: 1985-12-16 | C48: 3 | D48: 6425.13 | E48: 0 | F48: 0 | G48: 0 | H48: 0 | I48: 175 | J48: 0 | K48: 0 | L48: 0 | M48: 93.87 | N48: 0 | O48: 0 | P48: 0 | Q48: 0 | R48: 0 | S48: 0 | T48: 601.2 | U48: 272.31 | V48: 641.42 | W48: 1002.92 | X48: 0 | Y48: 0 | Z48: 0 | AA48: 0 | AB48: 0 | AC48: 67.5 | AD48: 0 | AE48: 0 | AF48: 0 | AG48: 129.6 | AH48: 0 | AI48: 0 | AJ48: 0 | AK48: 180.06 | AL48: 0 | AM48: 0 | AN48: 0 | AO48: 0 | AP48: 0 | AQ48: 0 | AR48: 0 | AS48: 0 | AT48: 0 | AU48: 0 | AV48: 0 | AW48: 0 | AX48: 0 | AY48: 0 | AZ48: 0 | BA48: 0 | BB48: 0 | BC48: 9589.01 | BD48: 949.67 | BE48: 166.19 | BF48: 101 | BG48: 0 | BH48: 1391.03 | BI48: 5 | BJ48: 0 | BK48: 0 | BL48: 50 | BM48: 0 | BN48: 0 | BO48: 180.06 | BP48: 177.06 | BQ48: 0 | BR48: 0 | BS48: 0 | BT48: 0 | BU48: 135 | BV48: 0 | BW48: 0 | BX48: 0 | BY48: 0 | BZ48: 0 | CA48: 0 | CB48: 0 | CC48: 0 | CD48: 0 | CE48: 0 | CF48: 0 | CG48: 0 | CH48: 0 | CI48: 0 | CJ48: 0 | CK48: 0 | CL48: 0 | CM48: 0 | CN48: 0 | CO48: 0 | CP48: -0.72 | CQ48: 0.02 | CR48: 3154.31 | CS48: 6434.7 | CT48: 854.7 | CU48: 71.22 | CV48: 7360.62
A49: 000050 | B49: 1986-01-02 | C49: 30 | D49: 10363 | E49: 0 | F49: 0 | G49: 0 | H49: 0 | I49: 67.5 | J49: 0 | K49: 0 | L49: 0 | M49: 0 | N49: 0 | O49: 0 | P49: 0 | Q49: 0 | R49: 0 | S49: 0 | T49: 0 | U49: 0 | V49: 0 | W49: 0 | X49: 0 | Y49: 0 | Z49: 0 | AA49: 0 | AB49: 0 | AC49: 65 | AD49: 0 | AE49: 0 | AF49: 0 | AG49: 0 | AH49: 0 | AI49: 0 | AJ49: 0 | AK49: 60.02 | AL49: 0 | AM49: 0 | AN49: 0 | AO49: 0 | AP49: 0 | AQ49: 0 | AR49: 0 | AS49: 0 | AT49: 0 | AU49: 0 | AV49: 0 | AW49: 0 | AX49: 0 | AY49: 0 | AZ49: 0 | BA49: 0 | BB49: 0 | BC49: 10555.52 | BD49: 1049.55 | BE49: 183.67 | BF49: 101 | BG49: 0 | BH49: 1641.85 | BI49: 0 | BJ49: 0 | BK49: 0 | BL49: 0 | BM49: 0 | BN49: 0 | BO49: 60.02 | BP49: 761.4 | BQ49: 0 | BR49: 0 | BS49: 0 | BT49: 0 | BU49: 0 | BV49: 130 | BW49: 0 | BX49: 0 | BY49: 0 | BZ49: 0 | CA49: 0 | CB49: 0 | CC49: 0 | CD49: 0 | CE49: 0 | CF49: 1036.3 | CG49: 0 | CH49: 80 | CI49: 0 | CJ49: 0 | CK49: 0 | CL49: 0 | CM49: 0 | CN49: 0 | CO49: 0 | CP49: -0.3 | CQ49: 0.03 | CR49: 5043.52 | CS49: 5512 | CT49: 944.6 | CU49: 78.72 | CV49: 6535.32
A50: 000051 | B50: 1986-01-24 | C50: 30 | D50: 8766 | E50: 0 | F50: 0 | G50: 0 | H50: 0 | I50: 67.5 | J50: 0 | K50: 0 | L50: 0 | M50: 0 | N50: 0 | O50: 0 | P50: 0 | Q50: 0 | R50: 0 | S50: 0 | T50: 0 | U50: 0 | V50: 0 | W50: 0 | X50: 0 | Y50: 0 | Z50: 0 | AA50: 0 | AB50: 0 | AC50: 0 | AD50: 0 | AE50: 0 | AF50: 0 | AG50: 0 | AH50: 0 | AI50: 0 | AJ50: 0 | AK50: 60.02 | AL50: 0 | AM50: 0 | AN50: 0 | AO50: 0 | AP50: 0 | AQ50: 0 | AR50: 0 | AS50: 0 | AT50: 0 | AU50: 0 | AV50: 0 | AW50: 0 | AX50: 0 | AY50: 0 | AZ50: 0 | BA50: 0 | BB50: 0 | BC50: 8893.52 | BD50: 883.35 | BE50: 154.59 | BF50: 101 | BG50: 0 | BH50: 1236.74 | BI50: 0 | BJ50: 0 | BK50: 0 | BL50: 0 | BM50: 0 | BN50: 0 | BO50: 60.02 | BP50: 202.94 | BQ50: 0 | BR50: 0 | BS50: 0 | BT50: 0 | BU50: 0 | BV50: 0 | BW50: 0 | BX50: 0 | BY50: 0 | BZ50: 0 | CA50: 0 | CB50: 0 | CC50: 0 | CD50: 0 | CE50: 0 | CF50: 876.6 | CG50: 0 | CH50: 0 | CI50: 0 | CJ50: 0 | CK50: 0 | CL50: 0 | CM50: 0 | CN50: 0 | CO50: 0 | CP50: -0.2 | CQ50: 0.48 | CR50: 3515.52 | CS50: 5378 | CT50: 795.02 | CU50: 66.25 | CV50: 6239.27
A51: 000052 | B51: 1986-04-07 | C51: 3 | D51: 7665.04 | E51: 0 | F51: 0 | G51: 0 | H51: 0 | I51: 65 | J51: 0 | K51: 309.81 | L51: 100.15 | M51: 0 | N51: 0 | O51: 0 | P51: 0 | Q51: 0 | R51: 0 | S51: 0 | T51: 0 | U51: 354 | V51: 264.12 | W51: 1552.88 | X51: 1552.88 | Y51: 0 | Z51: 0 | AA51: 0 | AB51: 0 | AC51: 78.75 | AD51: 0 | AE51: 0 | AF51: 0 | AG51: 124.8 | AH51: 538.33 | AI51: 0 | AJ51: 0 | AK51: 180.06 | AL51: 0 | AM51: 0 | AN51: 0 | AO51: 0 | AP51: 0 | AQ51: 0 | AR51: 0 | AS51: 0 | AT51: 0 | AU51: 0 | AV51: 0 | AW51: 0 | AX51: 0 | AY51: 0 | AZ51: 0 | BA51: 0 | BB51: 0 | BC51: 12785.82 | BD51: 1248.1 | BE51: 218.42 | BF51: 101 | BG51: 0 | BH51: 2147.95 | BI51: 0 | BJ51: 0 | BK51: 0 | BL51: 50 | BM51: 0 | BN51: 0 | BO51: 180.06 | BP51: 434.05 | BQ51: 0 | BR51: 0 | BS51: 0 | BT51: 0 | BU51: 157.5 | BV51: 0 | BW51: 0 | BX51: 0 | BY51: 0 | BZ51: 0 | CA51: 0 | CB51: 0 | CC51: 0 | CD51: 0 | CE51: 0 | CF51: 807.5 | CG51: 0 | CH51: 0 | CI51: 0 | CJ51: 0 | CK51: 0 | CL51: 0 | CM51: 0 | CN51: 0 | CO51: 0 | CP51: -0.32 | CQ51: 0.56 | CR51: 5344.82 | CS51: 7441 | CT51: 1123.29 | CU51: 93.61 | CV51: 8657.9
A52: 000053 | B52: 1986-06-16 | C52: 30 | D52: 9429 | E52: 0 | F52: 0 | G52: 0 | H52: 0 | I52: 0 | J52: 0 | K52: 0 | L52: 0 | M52: 0 | N52: 0 | O52: 0 | P52: 0 | Q52: 0 | R52: 0 | S52: 0 | T52: 0 | U52: 0 | V52: 0 | W52: 0 | X52: 0 | Y52: 0 | Z52: 0 | AA52: 0 | AB52: 0 | AC52: 90 | AD52: 0 | AE52: 0 | AF52: 0 | AG52: 0 | AH52: 0 | AI52: 0 | AJ52: 0 | AK52: 60.02 | AL52: 0 | AM52: 0 | AN52: 0 | AO52: 0 | AP52: 0 | AQ52: 0 | AR52: 0 | AS52: 0 | AT52: 0 | AU52: 0 | AV52: 0 | AW52: 0 | AX52: 0 | AY52: 0 | AZ52: 0 | BA52: 0 | BB52: 0 | BC52: 9579.02 | BD52: 951.9 | BE52: 171.34 | BF52: 90.82 | BG52: 0 | BH52: 1401.73 | BI52: 0 | BJ52: 0 | BK52: 0 | BL52: 0 | BM52: 0 | BN52: 0 | BO52: 60.02 | BP52: 639.34 | BQ52: 0 | BR52: 0 | BS52: 0 | BT52: 130 | BU52: 0 | BV52: 50 | BW52: 0 | BX52: 0 | BY52: 0 | BZ52: 0 | CA52: 0 | CB52: 0 | CC52: 0 | CD52: 0 | CE52: 0 | CF52: 0 | CG52: 0 | CH52: 0 | CI52: 0 | CJ52: 0 | CK52: 0 | CL52: 0 | CM52: 0 | CN52: 0 | CO52: 0 | CP52: -0.98 | CQ52: 0.85 | CR52: 3495.02 | CS52: 6084 | CT52: 856.71 | CU52: 71.39 | CV52: 7012.1
A53: 000054 | B53: 1986-09-01 | C53: 30 | D53: 9425 | E53: 0 | F53: 0 | G53: 0 | H53: 0 | I53: 0 | J53: 0 | K53: 0 | L53: 0 | M53: 0 | N53: 0 | O53: 0 | P53: 0 | Q53: 0 | R53: 0 | S53: 0 | T53: 0 | U53: 0 | V53: 0 | W53: 0 | X53: 0 | Y53: 0 | Z53: 0 | AA53: 0 | AB53: 0 | AC53: 65 | AD53: 0 | AE53: 0 | AF53: 0 | AG53: 0 | AH53: 0 | AI53: 0 | AJ53: 0 | AK53: 60.02 | AL53: 0 | AM53: 0 | AN53: 0 | AO53: 1000 | AP53: 0 | AQ53: 0 | AR53: 0 | AS53: 0 | AT53: 0 | AU53: 0 | AV53: 0 | AW53: 0 | AX53: 0 | AY53: 0 | AZ53: 0 | BA53: 0 | BB53: 0 | BC53: 10550.02 | BD53: 1049 | BE53: 204.56 | BF53: 106.48 | BG53: 0 | BH53: 1713.68 | BI53: 0 | BJ53: 0 | BK53: 0 | BL53: 0 | BM53: 0 | BN53: 0 | BO53: 60.02 | BP53: 55 | BQ53: 0 | BR53: 0 | BS53: 0 | BT53: 0 | BU53: 0 | BV53: 130 | BW53: 0 | BX53: 0 | BY53: 0 | BZ53: 0 | CA53: 0 | CB53: 0 | CC53: 0 | CD53: 0 | CE53: 0 | CF53: 942.5 | CG53: 0 | CH53: 0 | CI53: 1000 | CJ53: 0 | CK53: 0 | CL53: 0 | CM53: 0 | CN53: 0 | CO53: 0 | CP53: -0.77 | CQ53: 0.7 | CR53: 5261.17 | CS53: 5288.85 | CT53: 944.1 | CU53: 86.18 | CV53: 6319.13
A54: 000055 | B54: 2008-11-01 | C54: 21 | D54: 0 | E54: 0 | F54: 21525 | G54: 0 | H54: 0 | I54: 67.5 | J54: 0 | K54: 0 | L54: 0 | M54: 0 | N54: 0 | O54: 0 | P54: 0 | Q54: 0 | R54: 0 | S54: 0 | T54: 0 | U54: 0 | V54: 0 | W54: 0 | X54: 0 | Y54: 0 | Z54: 0 | AA54: 0 | AB54: 0 | AC54: 40 | AD54: 0 | AE54: 0 | AF54: 0 | AG54: 0 | AH54: 0 | AI54: 0 | AJ54: 0 | AK54: 60.02 | AL54: 0 | AM54: 0 | AN54: 0 | AO54: 0 | AP54: 0 | AQ54: 0 | AR54: 0 | AS54: 0 | AT54: 0 | AU54: 2109.97 | AV54: 3617.08 | AW54: 0 | AX54: 0 | AY54: 0 | AZ54: 0 | BA54: 0 | BB54: 244.15 | BC54: 27663.72 | BD54: 2163.25 | BE54: 389.39 | BF54: 90.82 | BG54: 0 | BH54: 5056.38 | BI54: 0 | BJ54: 0 | BK54: 0 | BL54: 0 | BM54: 0 | BN54: 0 | BO54: 60.02 | BP54: 786.91 | BQ54: 0 | BR54: 0 | BS54: 0 | BT54: 80 | BU54: 0 | BV54: 0 | BW54: 0 | BX54: 0 | BY54: 0 | BZ54: 0 | CA54: 0 | CB54: 0 | CC54: 0 | CD54: 0 | CE54: 0 | CF54: 0 | CG54: 0 | CH54: 0 | CI54: 0 | CJ54: 0 | CK54: 0 | CL54: 0 | CM54: 0 | CN54: 0 | CO54: 0 | CP54: -0.96 | CQ54: 0.91 | CR54: 8626.72 | CS54: 19037 | CT54: 1946.93 | CU54: 162.24 | CV54: 21146.17
A55: 000056 | B55: 1986-10-06 | C55: 3 | D55: 5382.76 | E55: 0 | F55: 0 | G55: 0 | H55: 0 | I55: 395 | J55: 0 | K55: 252.53 | L55: 81.63 | M55: 0 | N55: 0 | O55: 0 | P55: 0 | Q55: 0 | R55: 0 | S55: 0 | T55: 0 | U55: 0 | V55: 0 | W55: 0 | X55: 0 | Y55: 0 | Z55: 0 | AA55: 0 | AB55: 0 | AC55: 97.5 | AD55: 0 | AE55: 0 | AF55: 0 | AG55: 129.6 | AH55: 2115.3 | AI55: 0 | AJ55: 0 | AK55: 180.06 | AL55: 0 | AM55: 0 | AN55: 0 | AO55: 0 | AP55: 0 | AQ55: 0 | AR55: 0 | AS55: 0 | AT55: 0 | AU55: 0 | AV55: 0 | AW55: 0 | AX55: 0 | AY55: 0 | AZ55: 0 | BA55: 0 | BB55: 0 | BC55: 8634.38 | BD55: 832.47 | BE55: 145.68 | BF55: 101 | BG55: 0 | BH55: 1134.84 | BI55: 5 | BJ55: 3641.44 | BK55: 0 | BL55: 50 | BM55: 0 | BN55: 0 | BO55: 180.06 | BP55: 219.44 | BQ55: 0 | BR55: 0 | BS55: 0 | BT55: 0 | BU55: 195 | BV55: 0 | BW55: 0 | BX55: 0 | BY55: 0 | BZ55: 0 | CA55: 0 | CB55: 0 | CC55: 0 | CD55: 0 | CE55: 0 | CF55: 576.9 | CG55: 0 | CH55: 0 | CI55: 0 | CJ55: 0 | CK55: 0 | CL55: 0 | CM55: 0 | CN55: 0 | CO55: 0 | CP55: -0.91 | CQ55: 0.46 | CR55: 7081.38 | CS55: 1553 | CT55: 749.22 | CU55: 62.44 | CV55: 2364.66
A56: 000057 | B56: 1986-10-06 | C56: 3 | D56: 5420.97 | E56: 0 | F56: 0 | G56: 0 | H56: 0 | I56: 175 | J56: 0 | K56: 179.13 | L56: 57.9 | M56: 0 | N56: 0 | O56: 0 | P56: 0 | Q56: 0 | R56: 0 | S56: 0 | T56: 0 | U56: 245.08 | V56: 679.15 | W56: 652.85 | X56: 0 | Y56: 0 | Z56: 0 | AA56: 0 | AB56: 0 | AC56: 52.5 | AD56: 0 | AE56: 0 | AF56: 0 | AG56: 129.6 | AH56: 0 | AI56: 0 | AJ56: 0 | AK56: 180.06 | AL56: 0 | AM56: 0 | AN56: 0 | AO56: 0 | AP56: 0 | AQ56: 0 | AR56: 0 | AS56: 0 | AT56: 0 | AU56: 0 | AV56: 0 | AW56: 0 | AX56: 0 | AY56: 0 | AZ56: 0 | BA56: 0 | BB56: 0 | BC56: 7772.24 | BD56: 746.26 | BE56: 130.6 | BF56: 96.27 | BG56: 0 | BH56: 1009.95 | BI56: 5 | BJ56: 0 | BK56: 0 | BL56: 50 | BM56: 0 | BN56: 0 | BO56: 180.06 | BP56: 761.4 | BQ56: 180.76 | BR56: 0 | BS56: 0 | BT56: 0 | BU56: 105 | BV56: 0 | BW56: 0 | BX56: 0 | BY56: 0 | BZ56: 0 | CA56: 0 | CB56: 0 | CC56: 0 | CD56: 0 | CE56: 0 | CF56: 565.8 | CG56: 0 | CH56: 0 | CI56: 0 | CJ56: 0 | CK56: 0 | CL56: 0 | CM56: 0 | CN56: 0 | CO56: 0 | CP56: -0.2 | CQ56: 0.34 | CR56: 3831.24 | CS56: 3941 | CT56: 671.63 | CU56: 55.97 | CV56: 4668.6
A57: 000058 | B57: 1986-10-16 | C57: 3 | D57: 3877.34 | E57: 0 | F57: 0 | G57: 0 | H57: 0 | I57: 67.5 | J57: 0 | K57: 0 | L57: 0 | M57: 0 | N57: 0 | O57: 0 | P57: 0 | Q57: 0 | R57: 0 | S57: 0 | T57: 0 | U57: 0 | V57: 0 | W57: 0 | X57: 0 | Y57: 0 | Z57: 0 | AA57: 0 | AB57: 0 | AC57: 95 | AD57: 0 | AE57: 0 | AF57: 0 | AG57: 0 | AH57: 0 | AI57: 0 | AJ57: 0 | AK57: 60.02 | AL57: 0 | AM57: 0 | AN57: 0 | AO57: 0 | AP57: 0 | AQ57: 0 | AR57: 0 | AS57: 0 | AT57: 0 | AU57: 0 | AV57: 0 | AW57: 0 | AX57: 0 | AY57: 0 | AZ57: 0 | BA57: 0 | BB57: 0 | BC57: 4099.86 | BD57: 403.98 | BE57: 70.7 | BF57: 52.11 | BG57: 0 | BH57: 394.23 | BI57: 5 | BJ57: 0 | BK57: 0 | BL57: 0 | BM57: 0 | BN57: 0 | BO57: 60.02 | BP57: 158.38 | BQ57: 0 | BR57: 0 | BS57: 0 | BT57: 0 | BU57: 0 | BV57: 190 | BW57: 0 | BX57: 0 | BY57: 0 | BZ57: 0 | CA57: 0 | CB57: 0 | CC57: 0 | CD57: 0 | CE57: 0 | CF57: 387.73 | CG57: 0 | CH57: 0 | CI57: 0 | CJ57: 0 | CK57: 0 | CL57: 0 | CM57: 0 | CN57: 0 | CO57: 0 | CP57: -0.17 | CQ57: 0.88 | CR57: 1722.86 | CS57: 2377 | CT57: 363.59 | CU57: 30.3 | CV57: 2770.89
A58: 000059 | B58: 1986-10-20 | C58: 3 | D58: 7584.03 | E58: 0 | F58: 0 | G58: 0 | H58: 0 | I58: 175 | J58: 0 | K58: 244.49 | L58: 78.48 | M58: 0 | N58: 0 | O58: 0 | P58: 0 | Q58: 0 | R58: 0 | S58: 0 | T58: 318.48 | U58: 0 | V58: 0 | W58: 1520.58 | X58: 1520.58 | Y58: 0 | Z58: 0 | AA58: 0 | AB58: 0 | AC58: 78.75 | AD58: 0 | AE58: 0 | AF58: 0 | AG58: 105.6 | AH58: 1976.75 | AI58: 0 | AJ58: 0 | AK58: 180.06 | AL58: 0 | AM58: 0 | AN58: 0 | AO58: 1000 | AP58: 0 | AQ58: 0 | AR58: 0 | AS58: 0 | AT58: 0 | AU58: 0 | AV58: 0 | AW58: 0 | AX58: 0 | AY58: 0 | AZ58: 0 | BA58: 0 | BB58: 0 | BC58: 14782.8 | BD58: 1449.71 | BE58: 253.7 | BF58: 101 | BG58: 0 | BH58: 2229.64 | BI58: 0 | BJ58: 0 | BK58: 0 | BL58: 50 | BM58: 0 | BN58: 0 | BO58: 180.06 | BP58: 417.55 | BQ58: 24.78 | BR58: 0 | BS58: 0 | BT58: 0 | BU58: 157.5 | BV58: 0 | BW58: 0 | BX58: 0 | BY58: 0 | BZ58: 0 | CA58: 0 | CB58: 0 | CC58: 0 | CD58: 0 | CE58: 0 | CF58: 790.7 | CG58: 0 | CH58: 80 | CI58: 1000 | CJ58: 0 | CK58: 0 | CL58: 0 | CM58: 0 | CN58: 0 | CO58: 0 | CP58: -0.75 | CQ58: 0.06 | CR58: 6733.95 | CS58: 8048.85 | CT58: 1304.74 | CU58: 116.23 | CV58: 9469.82
A59: 000060 | B59: 1986-10-22 | C59: 3 | D59: 4737 | E59: 0 | F59: 0 | G59: 0 | H59: 0 | I59: 67.5 | J59: 0 | K59: 6.59 | L59: 2.13 | M59: 0 | N59: 0 | O59: 0 | P59: 0 | Q59: 0 | R59: 0 | S59: 0 | T59: 0 | U59: 245.08 | V59: 641.42 | W59: 547.58 | X59: 0 | Y59: 0 | Z59: 0 | AA59: 0 | AB59: 0 | AC59: 7.5 | AD59: 0 | AE59: 0 | AF59: 0 | AG59: 0 | AH59: 0 | AI59: 0 | AJ59: 0 | AK59: 60.02 | AL59: 0 | AM59: 0 | AN59: 0 | AO59: 1000 | AP59: 0 | AQ59: 0 | AR59: 0 | AS59: 0 | AT59: 0 | AU59: 0 | AV59: 0 | AW59: 0 | AX59: 0 | AY59: 0 | AZ59: 0 | BA59: 0 | BB59: 0 | BC59: 7314.82 | BD59: 725.48 | BE59: 130.59 | BF59: 84.16 | BG59: 0 | BH59: 975.69 | BI59: 0 | BJ59: 0 | BK59: 0 | BL59: 50 | BM59: 0 | BN59: 0 | BO59: 60.02 | BP59: 495.11 | BQ59: 0 | BR59: 0 | BS59: 0 | BT59: 0 | BU59: 15 | BV59: 0 | BW59: 0 | BX59: 0 | BY59: 0 | BZ59: 0 | CA59: 0 | CB59: 0 | CC59: 0 | CD59: 0 | CE59: 0 | CF59: 474.57 | CG59: 0 | CH59: 0 | CI59: 1000 | CJ59: 0 | CK59: 0 | CL59: 0 | CM59: 0 | CN59: 0 | CO59: 0 | CP59: -0.75 | CQ59: 0.83 | CR59: 4010.7 | CS59: 3304.12 | CT59: 652.93 | CU59: 61.91 | CV59: 4018.96
A60: 000062 | B60: 1986-11-03 | C60: 3 | D60: 5189.82 | E60: 0 | F60: 0 | G60: 0 | H60: 0 | I60: 65 | J60: 0 | K60: 181.51 | L60: 58.67 | M60: 0 | N60: 0 | O60: 0 | P60: 0 | Q60: 0 | R60: 0 | S60: 0 | T60: 0 | U60: 54.46 | V60: 0 | W60: 208.85 | X60: 0 | Y60: 0 | Z60: 0 | AA60: 0 | AB60: 0 | AC60: 97.5 | AD60: 0 | AE60: 0 | AF60: 0 | AG60: 129.6 | AH60: 1900.5 | AI60: 0 | AJ60: 0 | AK60: 180.06 | AL60: 0 | AM60: 0 | AN60: 0 | AO60: 0 | AP60: 0 | AQ60: 0 | AR60: 0 | AS60: 0 | AT60: 0 | AU60: 0 | AV60: 0 | AW60: 0 | AX60: 0 | AY60: 0 | AZ60: 0 | BA60: 0 | BB60: 0 | BC60: 8065.97 | BD60: 775.63 | BE60: 139.61 | BF60: 89.97 | BG60: 0 | BH60: 1037.84 | BI60: 0 | BJ60: 0 | BK60: 0 | BL60: 50 | BM60: 0 | BN60: 0 | BO60: 180.06 | BP60: 401.05 | BQ60: 0 | BR60: 0 | BS60: 0 | BT60: 0 | BU60: 195 | BV60: 0 | BW60: 0 | BX60: 0 | BY60: 0 | BZ60: 0 | CA60: 0 | CB60: 0 | CC60: 0 | CD60: 0 | CE60: 0 | CF60: 543 | CG60: 0 | CH60: 0 | CI60: 0 | CJ60: 0 | CK60: 0 | CL60: 0 | CM60: 0 | CN60: 0 | CO60: 0 | CP60: -0.5 | CQ60: 0.31 | CR60: 3411.97 | CS60: 4654 | CT60: 698.07 | CU60: 58.17 | CV60: 5410.24
A61: 000063 | B61: 1987-01-05 | C61: 30 | D61: 6138.24 | E61: 0 | F61: 0 | G61: 0 | H61: 0 | I61: 67.5 | J61: 0 | K61: 0 | L61: 0 | M61: 0 | N61: 0 | O61: 0 | P61: 0 | Q61: 0 | R61: 0 | S61: 0 | T61: 0 | U61: 0 | V61: 0 | W61: 0 | X61: 0 | Y61: 0 | Z61: 0 | AA61: 0 | AB61: 0 | AC61: 85 | AD61: 0 | AE61: 0 | AF61: 0 | AG61: 0 | AH61: 0 | AI61: 0 | AJ61: 0 | AK61: 60.02 | AL61: 0 | AM61: 0 | AN61: 1280 | AO61: 0 | AP61: 0 | AQ61: 0 | AR61: 0 | AS61: 0 | AT61: 0 | AU61: 0 | AV61: 0 | AW61: 0 | AX61: 0 | AY61: 0 | AZ61: 0 | BA61: 0 | BB61: 0 | BC61: 7630.76 | BD61: 629.07 | BE61: 113.23 | BF61: 72.97 | BG61: 0 | BH61: 872.33 | BI61: 0 | BJ61: 0 | BK61: 0 | BL61: 0 | BM61: 0 | BN61: 0 | BO61: 60.02 | BP61: 511.61 | BQ61: 0 | BR61: 0 | BS61: 0 | BT61: 170 | BU61: 0 | BV61: 0 | BW61: 0 | BX61: 0 | BY61: 0 | BZ61: 0 | CA61: 0 | CB61: 0 | CC61: 0 | CD61: 0 | CE61: 0 | CF61: 617.9 | CG61: 0 | CH61: 0 | CI61: 0 | CJ61: 0 | CK61: 0 | CL61: 0 | CM61: 0 | CN61: 0 | CO61: 0 | CP61: -0.09 | CQ61: 0.72 | CR61: 3047.76 | CS61: 4583 | CT61: 566.17 | CU61: 47.18 | CV61: 5196.35
A62: 000064 | B62: 1987-01-02 | C62: 30 | D62: 8848 | E62: 0 | F62: 0 | G62: 0 | H62: 0 | I62: 67.5 | J62: 0 | K62: 0 | L62: 0 | M62: 0 | N62: 0 | O62: 0 | P62: 0 | Q62: 0 | R62: 0 | S62: 0 | T62: 0 | U62: 0 | V62: 0 | W62: 0 | X62: 0 | Y62: 0 | Z62: 0 | AA62: 0 | AB62: 0 | AC62: 100 | AD62: 0 | AE62: 0 | AF62: 0 | AG62: 0 | AH62: 0 | AI62: 0 | AJ62: 0 | AK62: 60.02 | AL62: 0 | AM62: 0 | AN62: 0 | AO62: 0 | AP62: 0 | AQ62: 0 | AR62: 0 | AS62: 0 | AT62: 0 | AU62: 0 | AV62: 0 | AW62: 0 | AX62: 0 | AY62: 0 | AZ62: 0 | BA62: 0 | BB62: 0 | BC62: 9075.52 | BD62: 901.55 | BE62: 175.8 | BF62: 106.48 | BG62: 0 | BH62: 1278.03 | BI62: 5 | BJ62: 0 | BK62: 0 | BL62: 0 | BM62: 0 | BN62: 0 | BO62: 60.02 | BP62: 219.44 | BQ62: 108.5 | BR62: 0 | BS62: 0 | BT62: 20 | BU62: 0 | BV62: 180 | BW62: 0 | BX62: 0 | BY62: 0 | BZ62: 0 | CA62: 0 | CB62: 0 | CC62: 0 | CD62: 0 | CE62: 0 | CF62: 884.8 | CG62: 0 | CH62: 0 | CI62: 0 | CJ62: 0 | CK62: 0 | CL62: 0 | CM62: 0 | CN62: 0 | CO62: 0 | CP62: -0.85 | CQ62: 0.75 | CR62: 3939.52 | CS62: 5136 | CT62: 811.4 | CU62: 67.62 | CV62: 6015.02
A63: 000065 | B63: 2012-02-01 | C63: 30 | D63: 7000 | E63: 0 | F63: 0 | G63: 0 | H63: 0 | I63: 0 | J63: 0 | K63: 0 | L63: 0 | M63: 0 | N63: 0 | O63: 0 | P63: 0 | Q63: 0 | R63: 0 | S63: 0 | T63: 0 | U63: 0 | V63: 0 | W63: 0 | X63: 0 | Y63: 0 | Z63: 0 | AA63: 0 | AB63: 0 | AC63: 0 | AD63: 0 | AE63: 0 | AF63: 0 | AG63: 0 | AH63: 0 | AI63: 0 | AJ63: 0 | AK63: 0 | AL63: 0 | AM63: 0 | AN63: 0 | AO63: 0 | AP63: 0 | AQ63: 0 | AR63: 0 | AS63: 0 | AT63: 0 | AU63: 0 | AV63: 0 | AW63: 0 | AX63: 0 | AY63: 0 | AZ63: 0 | BA63: 0 | BB63: 0 | BC63: 7000 | BD63: 700 | BE63: 122.5 | BF63: 90.3 | BG63: 0 | BH63: 860.68 | BI63: 0 | BJ63: 0 | BK63: 0 | BL63: 0 | BM63: 0 | BN63: 0 | BO63: 0 | BP63: 0 | BQ63: 0 | BR63: 0 | BS63: 0 | BT63: 0 | BU63: 0 | BV63: 0 | BW63: 0 | BX63: 0 | BY63: 0 | BZ63: 0 | CA63: 0 | CB63: 0 | CC63: 0 | CD63: 0 | CE63: 0 | CF63: 0 | CG63: 0 | CH63: 0 | CI63: 0 | CJ63: 0 | CK63: 0 | CL63: 0 | CM63: 0 | CN63: 0 | CO63: 0 | CP63: 0 | CQ63: 0.52 | CR63: 1774 | CS63: 5226 | CT63: 630 | CU63: 52.5 | CV63: 5908.5
A64: 000066 | B64: 1987-03-10 | C64: 30 | D64: 5684.98 | E64: 0 | F64: 0 | G64: 0 | H64: 0 | I64: 0 | J64: 0 | K64: 0 | L64: 0 | M64: 0 | N64: 0 | O64: 0 | P64: 0 | Q64: 0 | R64: 0 | S64: 0 | T64: 0 | U64: 0 | V64: 0 | W64: 0 | X64: 0 | Y64: 0 | Z64: 0 | AA64: 0 | AB64: 0 | AC64: 15 | AD64: 0 | AE64: 0 | AF64: 0 | AG64: 0 | AH64: 0 | AI64: 0 | AJ64: 0 | AK64: 60.02 | AL64: 0 | AM64: 0 | AN64: 0 | AO64: 0 | AP64: 0 | AQ64: 0 | AR64: 0 | AS64: 0 | AT64: 0 | AU64: 0 | AV64: 0 | AW64: 0 | AX64: 0 | AY64: 0 | AZ64: 0 | BA64: 0 | BB64: 0 | BC64: =SUM(D64:BB64) -> 5760 | BD64: 570 | BE64: 102.6 | BF64: 66.12 | BG64: 0 | BH64: 696.01 | BI64: 0 | BJ64: 0 | BK64: 0 | BL64: 0 | BM64: 0 | BN64: 0 | BO64: 60.02 | BP64: 347.17 | BQ64: 0 | BR64: 0 | BS64: 0 | BT64: 30 | BU64: 0 | BV64: 0 | BW64: 0 | BX64: 0 | BY64: 0 | BZ64: 0 | CA64: 0 | CB64: 0 | CC64: 0 | CD64: 0 | CE64: 0 | CF64: 0 | CG64: 0 | CH64: 0 | CI64: 0 | CJ64: 0 | CK64: 0 | CL64: 0 | CM64: 0 | CN64: 0 | CO64: 0 | CP64: -0.28 | CQ64: 0.36 | CR64: =SUM(BD64:CQ64) -> 1872 | CS64: =+BC64-CR64 -> 3888 | CT64: 513 | CU64: 42.75 | CV64: 4443.75
A65: 000067 | B65: 1987-03-23 | C65: 30 | D65: 6174 | E65: 0 | F65: 0 | G65: 0 | H65: 0 | I65: 67.5 | J65: 0 | K65: 0 | L65: 0 | M65: 0 | N65: 0 | O65: 0 | P65: 0 | Q65: 0 | R65: 0 | S65: 0 | T65: 0 | U65: 0 | V65: 0 | W65: 0 | X65: 0 | Y65: 0 | Z65: 0 | AA65: 0 | AB65: 0 | AC65: 70 | AD65: 0 | AE65: 0 | AF65: 0 | AG65: 0 | AH65: 0 | AI65: 0 | AJ65: 0 | AK65: 60.02 | AL65: 0 | AM65: 0 | AN65: 1280 | AO65: 0 | AP65: 0 | AQ65: 0 | AR65: 0 | AS65: 0 | AT65: 0 | AU65: 0 | AV65: 0 | AW65: 0 | AX65: 0 | AY65: 0 | AZ65: 0 | BA65: 0 | BB65: 0 | BC65: 7651.52 | BD65: 631.15 | BE65: 123.07 | BF65: 85.84 | BG65: 0 | BH65: 983.76 | BI65: 5 | BJ65: 0 | BK65: 0 | BL65: 0 | BM65: 0 | BN65: 0 | BO65: 60.02 | BP65: 469.23 | BQ65: 131.72 | BR65: 0 | BS65: 0 | BT65: 140 | BU65: 0 | BV65: 0 | BW65: 0 | BX65: 0 | BY65: 0 | BZ65: 0 | CA65: 0 | CB65: 0 | CC65: 0 | CD65: 0 | CE65: 0 | CF65: 0 | CG65: 0 | CH65: 0 | CI65: 0 | CJ65: 0 | CK65: 0 | CL65: 0 | CM65: 0 | CN65: 0 | CO65: 0 | CP65: -0.4 | CQ65: 0.13 | CR65: 2629.52 | CS65: 5022 | CT65: 568.04 | CU65: 47.34 | CV65: 5637.38
A66: 000068 | B66: 1987-03-23 | C66: 30 | D66: 6174 | E66: 0 | F66: 0 | G66: 0 | H66: 0 | I66: 67.5 | J66: 0 | K66: 0 | L66: 0 | M66: 0 | N66: 0 | O66: 0 | P66: 0 | Q66: 0 | R66: 0 | S66: 0 | T66: 0 | U66: 0 | V66: 0 | W66: 0 | X66: 0 | Y66: 0 | Z66: 0 | AA66: 0 | AB66: 0 | AC66: 75 | AD66: 0 | AE66: 0 | AF66: 0 | AG66: 0 | AH66: 0 | AI66: 0 | AJ66: 0 | AK66: 60.02 | AL66: 0 | AM66: 0 | AN66: 0 | AO66: 0 | AP66: 0 | AQ66: 0 | AR66: 0 | AS66: 0 | AT66: 0 | AU66: 0 | AV66: 0 | AW66: 0 | AX66: 0 | AY66: 0 | AZ66: 0 | BA66: 0 | BB66: 0 | BC66: 6376.52 | BD66: 631.65 | BE66: 113.7 | BF66: 73.27 | BG66: 0 | BH66: 793.01 | BI66: 5 | BJ66: 0 | BK66: 0 | BL66: 0 | BM66: 0 | BN66: 0 | BO66: 60.02 | BP66: 434.05 | BQ66: 676.93 | BR66: 0 | BS66: 0 | BT66: 150 | BU66: 0 | BV66: 0 | BW66: 0 | BX66: 0 | BY66: 0 | BZ66: 0 | CA66: 0 | CB66: 0 | CC66: 0 | CD66: 0 | CE66: 0 | CF66: 0 | CG66: 0 | CH66: 0 | CI66: 0 | CJ66: 0 | CK66: 0 | CL66: 0 | CM66: 0 | CN66: 0 | CO66: 0 | CP66: -0.62 | CQ66: 0.51 | CR66: 2937.52 | CS66: 3439 | CT66: 568.49 | CU66: 47.37 | CV66: 4054.86
A67: 000069 | B67: 1987-05-07 | C67: 3 | D67: 5795 | E67: 0 | F67: 0 | G67: 0 | H67: 0 | I67: 67.5 | J67: 0 | K67: 0 | L67: 0 | M67: 0 | N67: 0 | O67: 0 | P67: 0 | Q67: 0 | R67: 0 | S67: 0 | T67: 772.67 | U67: 0 | V67: 0 | W67: 222.88 | X67: 0 | Y67: 0 | Z67: 0 | AA67: 0 | AB67: 0 | AC67: 63.75 | AD67: 0 | AE67: 0 | AF67: 0 | AG67: 0 | AH67: 0 | AI67: 0 | AJ67: 0 | AK67: 60.02 | AL67: 0 | AM67: 0 | AN67: 0 | AO67: 1000 | AP67: 0 | AQ67: 0 | AR67: 0 | AS67: 0 | AT67: 0 | AU67: 0 | AV67: 0 | AW67: 0 | AX67: 0 | AY67: 0 | AZ67: 0 | BA67: 0 | BB67: 0 | BC67: 7981.82 | BD67: 792.18 | BE67: 138.63 | BF67: 101 | BG67: 0 | BH67: 1134.1 | BI67: 5 | BJ67: 0 | BK67: 0 | BL67: 0 | BM67: 0 | BN67: 0 | BO67: 60.02 | BP67: 202.94 | BQ67: 0 | BR67: 0 | BS67: 0 | BT67: 0 | BU67: 127.5 | BV67: 0 | BW67: 0 | BX67: 0 | BY67: 0 | BZ67: 0 | CA67: 0 | CB67: 0 | CC67: 0 | CD67: 0 | CE67: 0 | CF67: 0 | CG67: 0 | CH67: 0 | CI67: 1000 | CJ67: 0 | CK67: 0 | CL67: 0 | CM67: 0 | CN67: 0 | CO67: 0 | CP67: -0.54 | CQ67: 0.87 | CR67: 3561.7 | CS67: 4420.12 | CT67: 712.96 | CU67: 66.91 | CV67: =SUM(CS67:CU67) -> 5199.99
A68: 000070 | B68: 1987-05-25 | C68: 21 | D68: 0 | E68: 0 | F68: 10105 | G68: 0 | H68: 0 | I68: 67.5 | J68: 0 | K68: 0 | L68: 0 | M68: 0 | N68: 0 | O68: 0 | P68: 0 | Q68: 0 | R68: 0 | S68: 0 | T68: 0 | U68: 0 | V68: 0 | W68: 0 | X68: 0 | Y68: 0 | Z68: 0 | AA68: 0 | AB68: 0 | AC68: 105 | AD68: 0 | AE68: 0 | AF68: 0 | AG68: 0 | AH68: 0 | AI68: 0 | AJ68: 0 | AK68: 60.02 | AL68: 0 | AM68: 0 | AN68: 1280 | AO68: 0 | AP68: 0 | AQ68: 0 | AR68: 0 | AS68: 0 | AT68: 0 | AU68: 998.47 | AV68: 1711.67 | AW68: 0 | AX68: 0 | AY68: 0 | AZ68: 0 | BA68: 0 | BB68: 115.54 | BC68: 14443.2 | BD68: 1027.75 | BE68: 179.86 | BF68: 101 | BG68: 0 | BH68: 1883.52 | BI68: 5 | BJ68: 0 | BK68: 0 | BL68: 0 | BM68: 0 | BN68: 0 | BO68: 60.02 | BP68: 761.4 | BQ68: 0 | BR68: 0 | BS68: 0 | BT68: 20 | BU68: 0 | BV68: 190 | BW68: 0 | BX68: 0 | BY68: 0 | BZ68: 0 | CA68: 0 | CB68: 0 | CC68: 0 | CD68: 0 | CE68: 0 | CF68: 0 | CG68: 0 | CH68: 0 | CI68: 0 | CJ68: 0 | CK68: 0 | CL68: 0 | CM68: 0 | CN68: 0 | CO68: 0 | CP68: -0.93 | CQ68: 0.58 | CR68: 4228.2 | CS68: 10215 | CT68: 924.98 | CU68: 77.08 | CV68: 11217.06
A69: 000071 | B69: 1987-06-05 | C69: 30 | D69: 9124 | E69: 0 | F69: 0 | G69: 0 | H69: 0 | I69: 67.5 | J69: 0 | K69: 0 | L69: 0 | M69: 0 | N69: 0 | O69: 0 | P69: 0 | Q69: 0 | R69: 0 | S69: 0 | T69: 0 | U69: 0 | V69: 0 | W69: 0 | X69: 0 | Y69: 0 | Z69: 0 | AA69: 0 | AB69: 0 | AC69: 45 | AD69: 0 | AE69: 0 | AF69: 0 | AG69: 0 | AH69: 0 | AI69: 0 | AJ69: 0 | AK69: 60.02 | AL69: 0 | AM69: 0 | AN69: 0 | AO69: 0 | AP69: 0 | AQ69: 0 | AR69: 0 | AS69: 0 | AT69: 0 | AU69: 0 | AV69: 0 | AW69: 0 | AX69: 0 | AY69: 0 | AZ69: 0 | BA69: 0 | BB69: 0 | BC69: 9296.52 | BD69: 923.65 | BE69: 166.26 | BF69: 90.82 | BG69: 0 | BH69: 1334.1 | BI69: 5 | BJ69: 0 | BK69: 0 | BL69: 0 | BM69: 0 | BN69: 0 | BO69: 60.02 | BP69: 363.67 | BQ69: 0 | BR69: 0 | BS69: 0 | BT69: 10 | BU69: 0 | BV69: 80 | BW69: 0 | BX69: 0 | BY69: 0 | BZ69: 0 | CA69: 0 | CB69: 0 | CC69: 0 | CD69: 0 | CE69: 0 | CF69: 881.5 | CG69: 0 | CH69: 0 | CI69: 0 | CJ69: 0 | CK69: 0 | CL69: 0 | CM69: 0 | CN69: 0 | CO69: 0 | CP69: -0.21 | CQ69: 0.71 | CR69: 3915.52 | CS69: 5381 | CT69: 831.29 | CU69: 69.27 | CV69: 6281.56
A70: 000072 | B70: 1987-06-15 | C70: 21 | D70: 0 | E70: 0 | F70: 13171 | G70: 0 | H70: 0 | I70: 67.5 | J70: 0 | K70: 0 | L70: 0 | M70: 0 | N70: 0 | O70: 0 | P70: 0 | Q70: 0 | R70: 0 | S70: 0 | T70: 0 | U70: 0 | V70: 0 | W70: 0 | X70: 0 | Y70: 0 | Z70: 0 | AA70: 0 | AB70: 0 | AC70: 65 | AD70: 0 | AE70: 0 | AF70: 0 | AG70: 0 | AH70: 0 | AI70: 0 | AJ70: 0 | AK70: 60.02 | AL70: 0 | AM70: 0 | AN70: 0 | AO70: 0 | AP70: 0 | AQ70: 0 | AR70: 0 | AS70: 0 | AT70: 0 | AU70: 1297.77 | AV70: 2224.75 | AW70: 0 | AX70: 0 | AY70: 0 | AZ70: 0 | BA70: 0 | BB70: 150.17 | BC70: 17036.21 | BD70: 1330.35 | BE70: 239.46 | BF70: 90.82 | BG70: 0 | BH70: 2365.2 | BI70: 0 | BJ70: 0 | BK70: 0 | BL70: 0 | BM70: 0 | BN70: 0 | BO70: 60.02 | BP70: 1127.5 | BQ70: 0 | BR70: 0 | BS70: 0 | BT70: 130 | BU70: 0 | BV70: 0 | BW70: 0 | BX70: 0 | BY70: 0 | BZ70: 0 | CA70: 0 | CB70: 0 | CC70: 0 | CD70: 0 | CE70: 0 | CF70: 0 | CG70: 0 | CH70: 0 | CI70: 0 | CJ70: 0 | CK70: 0 | CL70: 0 | CM70: 0 | CN70: 0 | CO70: 0 | CP70: -0.11 | CQ70: 0.97 | CR70: 5344.21 | CS70: 11692 | CT70: 1197.32 | CU70: 99.78 | CV70: 12989.1
A71: 000073 | B71: 1987-07-01 | C71: 30 | D71: 4056 | E71: 0 | F71: 0 | G71: 0 | H71: 0 | I71: 67.5 | J71: 0 | K71: 0 | L71: 0 | M71: 0 | N71: 0 | O71: 0 | P71: 0 | Q71: 0 | R71: 0 | S71: 0 | T71: 0 | U71: 0 | V71: 0 | W71: 0 | X71: 0 | Y71: 0 | Z71: 0 | AA71: 0 | AB71: 0 | AC71: 70 | AD71: 0 | AE71: 0 | AF71: 0 | AG71: 0 | AH71: 0 | AI71: 0 | AJ71: 0 | AK71: 60.02 | AL71: 0 | AM71: 0 | AN71: 1280 | AO71: 0 | AP71: 0 | AQ71: 0 | AR71: 0 | AS71: 0 | AT71: 0 | AU71: 0 | AV71: 0 | AW71: 0 | AX71: 0 | AY71: 0 | AZ71: 0 | BA71: 0 | BB71: 0 | BC71: 5533.52 | BD71: 419.35 | BE71: 73.39 | BF71: 54.1 | BG71: 0 | BH71: 612.97 | BI71: 5 | BJ71: 0 | BK71: 0 | BL71: 0 | BM71: 0 | BN71: 0 | BO71: 60.02 | BP71: 219.44 | BQ71: 0 | BR71: 0 | BS71: 0 | BT71: 10 | BU71: 0 | BV71: 130 | BW71: 0 | BX71: 0 | BY71: 0 | BZ71: 0 | CA71: 0 | CB71: 0 | CC71: 0 | CD71: 0 | CE71: 0 | CF71: 405.6 | CG71: 0 | CH71: 0 | CI71: 0 | CJ71: 0 | CK71: 0 | CL71: 0 | CM71: 0 | CN71: 0 | CO71: 0 | CP71: -0.39 | CQ71: 0.04 | CR71: 1989.52 | CS71: 3544 | CT71: 377.42 | CU71: 31.45 | CV71: 3952.87
A72: 000074 | B72: 1987-07-01 | C72: 30 | D72: 4019.32 | E72: 0 | F72: 0 | G72: 0 | H72: 0 | I72: 67.5 | J72: 0 | K72: 0 | L72: 0 | M72: 0 | N72: 0 | O72: 0 | P72: 0 | Q72: 0 | R72: 0 | S72: 0 | T72: 0 | U72: 0 | V72: 0 | W72: 0 | X72: 0 | Y72: 0 | Z72: 0 | AA72: 0 | AB72: 0 | AC72: 0 | AD72: 0 | AE72: 0 | AF72: 0 | AG72: 0 | AH72: 0 | AI72: 0 | AJ72: 0 | AK72: 60.02 | AL72: 0 | AM72: 0 | AN72: 2560 | AO72: 0 | AP72: 0 | AQ72: 0 | AR72: 0 | AS72: 0 | AT72: 0 | AU72: 0 | AV72: 0 | AW72: 0 | AX72: 0 | AY72: 0 | AZ72: 0 | BA72: 0 | BB72: 0 | BC72: 6706.84 | BD72: 408.68 | BE72: 71.52 | BF72: 52.72 | BG72: 0 | BH72: 818.69 | BI72: 5 | BJ72: 0 | BK72: 0 | BL72: 0 | BM72: 0 | BN72: 0 | BO72: 60.02 | BP72: 434.05 | BQ72: 0 | BR72: 0 | BS72: 0 | BT72: 0 | BU72: 0 | BV72: 0 | BW72: 0 | BX72: 0 | BY72: 0 | BZ72: 0 | CA72: 0 | CB72: 0 | CC72: 0 | CD72: 0 | CE72: 0 | CF72: 422.5 | CG72: 0 | CH72: 0 | CI72: 0 | CJ72: 0 | CK72: 0 | CL72: 0 | CM72: 0 | CN72: 0 | CO72: 0 | CP72: -0.2 | CQ72: 0.86 | CR72: 2273.84 | CS72: 4433 | CT72: 367.81 | CU72: 30.65 | CV72: 4831.46
A73: 000075 | B73: 1987-07-01 | C73: 30 | D73: 4120 | E73: 0 | F73: 0 | G73: 0 | H73: 0 | I73: 67.5 | J73: 0 | K73: 0 | L73: 0 | M73: 0 | N73: 0 | O73: 0 | P73: 0 | Q73: 0 | R73: 0 | S73: 0 | T73: 0 | U73: 0 | V73: 0 | W73: 0 | X73: 0 | Y73: 0 | Z73: 0 | AA73: 0 | AB73: 0 | AC73: 115 | AD73: 0 | AE73: 0 | AF73: 0 | AG73: 0 | AH73: 0 | AI73: 0 | AJ73: 0 | AK73: 60.02 | AL73: 0 | AM73: 0 | AN73: 0 | AO73: 0 | AP73: 0 | AQ73: 0 | AR73: 0 | AS73: 0 | AT73: 0 | AU73: 0 | AV73: 0 | AW73: 0 | AX73: 0 | AY73: 0 | AZ73: 0 | BA73: 0 | BB73: 0 | BC73: 4362.52 | BD73: 430.25 | BE73: 83.9 | BF73: 58.51 | BG73: 0 | BH73: 439.69 | BI73: 5 | BJ73: 0 | BK73: 0 | BL73: 0 | BM73: 0 | BN73: 0 | BO73: 60.02 | BP73: 158.38 | BQ73: 0 | BR73: 0 | BS73: 0 | BT73: 10 | BU73: 0 | BV73: 220 | BW73: 0 | BX73: 0 | BY73: 0 | BZ73: 0 | CA73: 0 | CB73: 0 | CC73: 0 | CD73: 0 | CE73: 0 | CF73: 412 | CG73: 0 | CH73: 0 | CI73: 0 | CJ73: 0 | CK73: 0 | CL73: 0 | CM73: 0 | CN73: 0 | CO73: 0 | CP73: -0.23 | CQ73: 0 | CR73: 1877.52 | CS73: 2485 | CT73: 387.23 | CU73: 32.27 | CV73: 2904.5
A74: 000076 | B74: 1987-07-15 | C74: 30 | D74: 10043 | E74: 0 | F74: 0 | G74: 0 | H74: 0 | I74: 67.5 | J74: 0 | K74: 0 | L74: 0 | M74: 0 | N74: 0 | O74: 0 | P74: 0 | Q74: 0 | R74: 0 | S74: 0 | T74: 0 | U74: 0 | V74: 0 | W74: 0 | X74: 0 | Y74: 0 | Z74: 0 | AA74: 0 | AB74: 0 | AC74: 55 | AD74: 0 | AE74: 0 | AF74: 0 | AG74: 0 | AH74: 0 | AI74: 0 | AJ74: 0 | AK74: 60.02 | AL74: 0 | AM74: 0 | AN74: 1280 | AO74: 0 | AP74: 0 | AQ74: 0 | AR74: 0 | AS74: 0 | AT74: 0 | AU74: 0 | AV74: 0 | AW74: 0 | AX74: 0 | AY74: 0 | AZ74: 0 | BA74: 0 | BB74: 0 | BC74: 11505.52 | BD74: 1016.55 | BE74: 198.23 | BF74: 106.48 | BG74: 0 | BH74: 1830.15 | BI74: 5 | BJ74: 2084.56 | BK74: 0 | BL74: 0 | BM74: 0 | BN74: 0 | BO74: 60.02 | BP74: 469.23 | BQ74: 0 | BR74: 0 | BS74: 0 | BT74: 0 | BU74: 0 | BV74: 110 | BW74: 0 | BX74: 0 | BY74: 0 | BZ74: 0 | CA74: 0 | CB74: 0 | CC74: 0 | CD74: 0 | CE74: 0 | CF74: 0 | CG74: 0 | CH74: 0 | CI74: 0 | CJ74: 0 | CK74: 0 | CL74: 0 | CM74: 0 | CN74: 0 | CO74: 0 | CP74: -0.22 | CQ74: 0.52 | CR74: 5880.52 | CS74: 5625 | CT74: 914.9 | CU74: 76.24 | CV74: 6616.14
A75: 000077 | B75: 1987-08-27 | C75: 3 | D75: 5303.48 | E75: 0 | F75: 0 | G75: 0 | H75: 0 | I75: 120 | J75: 0 | K75: 267.92 | L75: 86.6 | M75: 0 | N75: 0 | O75: 0 | P75: 0 | Q75: 0 | R75: 0 | S75: 0 | T75: 754.4 | U75: 354 | V75: 226.38 | W75: 217.62 | X75: 0 | Y75: 0 | Z75: 0 | AA75: 0 | AB75: 0 | AC75: 86.25 | AD75: 0 | AE75: 0 | AF75: 0 | AG75: 134.4 | AH75: 660.1 | AI75: 0 | AJ75: 0 | AK75: 180.06 | AL75: 0 | AM75: 0 | AN75: 0 | AO75: 1000 | AP75: 0 | AQ75: 0 | AR75: 0 | AS75: 0 | AT75: 0 | AU75: 0 | AV75: 0 | AW75: 0 | AX75: 0 | AY75: 0 | AZ75: 0 | BA75: 0 | BB75: 0 | BC75: 9391.21 | BD75: 907.68 | BE75: 158.84 | BF75: 101 | BG75: 0 | BH75: 1322.29 | BI75: 5 | BJ75: 0 | BK75: 0 | BL75: 50 | BM75: 0 | BN75: 0 | BO75: 180.06 | BP75: 744.9 | BQ75: 0 | BR75: 0 | BS75: 0 | BT75: 0 | BU75: 172.5 | BV75: 0 | BW75: 0 | BX75: 0 | BY75: 0 | BZ75: 0 | CA75: 0 | CB75: 0 | CC75: 0 | CD75: 0 | CE75: 0 | CF75: 0 | CG75: 0 | CH75: 0 | CI75: 1000 | CJ75: 0 | CK75: 0 | CL75: 0 | CM75: 0 | CN75: 0 | CO75: 0 | CP75: -0.18 | CQ75: 0 | CR75: 4642.09 | CS75: 4749.12 | CT75: 816.91 | CU75: 75.58 | CV75: 5641.61
A76: 000078 | B76: 1987-10-01 | C76: 3 | D76: 8750.91 | E76: 0 | F76: 0 | G76: 0 | H76: 0 | I76: 67.5 | J76: 0 | K76: 0 | L76: 0 | M76: 0 | N76: 0 | O76: 0 | P76: 0 | Q76: 0 | R76: 0 | S76: 0 | T76: 0 | U76: 136.15 | V76: 150.92 | W76: 1009.72 | X76: 1009.72 | Y76: 0 | Z76: 0 | AA76: 0 | AB76: 0 | AC76: 22.5 | AD76: 0 | AE76: 0 | AF76: 0 | AG76: 0 | AH76: 729.24 | AI76: 0 | AJ76: 0 | AK76: 60.02 | AL76: 0 | AM76: 0 | AN76: 0 | AO76: 0 | AP76: 0 | AQ76: 0 | AR76: 0 | AS76: 0 | AT76: 0 | AU76: 0 | AV76: 0 | AW76: 0 | AX76: 0 | AY76: 0 | AZ76: 0 | BA76: 0 | BB76: 0 | BC76: 11936.68 | BD76: 1187.67 | BE76: 207.84 | BF76: 101 | BG76: 0 | BH76: 1987.3 | BI76: 0 | BJ76: 0 | BK76: 0 | BL76: 0 | BM76: 0 | BN76: 0 | BO76: 60.02 | BP76: 141.88 | BQ76: 0 | BR76: 0 | BS76: 0 | BT76: 0 | BU76: 45 | BV76: 0 | BW76: 0 | BX76: 0 | BY76: 0 | BZ76: 0 | CA76: 0 | CB76: 0 | CC76: 0 | CD76: 0 | CE76: 0 | CF76: 875.09 | CG76: 0 | CH76: 0 | CI76: 0 | CJ76: 0 | CK76: 0 | CL76: 0 | CM76: 0 | CN76: 0 | CO76: 0 | CP76: -0.58 | CQ76: 0.46 | CR76: 4605.68 | CS76: 7331 | CT76: 1068.9 | CU76: 89.07 | CV76: 8488.97
A77: 000079 | B77: 1987-10-09 | C77: 30 | D77: 4157.27 | E77: 0 | F77: 0 | G77: 0 | H77: 0 | I77: 67.5 | J77: 0 | K77: 0 | L77: 0 | M77: 0 | N77: 0 | O77: 0 | P77: 0 | Q77: 0 | R77: 0 | S77: 0 | T77: 0 | U77: 0 | V77: 0 | W77: 0 | X77: 0 | Y77: 0 | Z77: 0 | AA77: 0 | AB77: 0 | AC77: 110 | AD77: 0 | AE77: 0 | AF77: 0 | AG77: 0 | AH77: 0 | AI77: 0 | AJ77: 0 | AK77: 60.02 | AL77: 0 | AM77: 0 | AN77: 0 | AO77: 0 | AP77: 0 | AQ77: 0 | AR77: 0 | AS77: 0 | AT77: 0 | AU77: 0 | AV77: 0 | AW77: 0 | AX77: 0 | AY77: 0 | AZ77: 0 | BA77: 0 | BB77: 0 | BC77: 4394.79 | BD77: 433.48 | BE77: 75.86 | BF77: 55.92 | BG77: 0 | BH77: 445.29 | BI77: 5 | BJ77: 0 | BK77: 0 | BL77: 0 | BM77: 0 | BN77: 0 | BO77: 60.02 | BP77: 485.73 | BQ77: 0 | BR77: 0 | BS77: 0 | BT77: 50 | BU77: 0 | BV77: 170 | BW77: 0 | BX77: 0 | BY77: 0 | BZ77: 0 | CA77: 0 | CB77: 0 | CC77: 0 | CD77: 0 | CE77: 0 | CF77: 415.9 | CG77: 0 | CH77: 0 | CI77: 0 | CJ77: 0 | CK77: 150 | CL77: 0 | CM77: 0 | CN77: 0 | CO77: 0 | CP77: -0.53 | CQ77: 0.12 | CR77: 2346.79 | CS77: 2048 | CT77: 390.13 | CU77: 32.51 | CV77: 2470.64
A78: 000080 | B78: 1987-10-13 | C78: 21 | D78: 0 | E78: 0 | F78: 13470 | G78: 0 | H78: 0 | I78: 67.5 | J78: 0 | K78: 0 | L78: 0 | M78: 0 | N78: 0 | O78: 0 | P78: 0 | Q78: 0 | R78: 0 | S78: 0 | T78: 0 | U78: 0 | V78: 0 | W78: 0 | X78: 0 | Y78: 0 | Z78: 0 | AA78: 0 | AB78: 0 | AC78: 37.8 | AD78: 0 | AE78: 0 | AF78: 0 | AG78: 0 | AH78: 0 | AI78: 0 | AJ78: 0 | AK78: 60.02 | AL78: 0 | AM78: 0 | AN78: 0 | AO78: 0 | AP78: 0 | AQ78: 0 | AR78: 0 | AS78: 0 | AT78: 0 | AU78: 1325.09 | AV78: 2271.58 | AW78: 0 | AX78: 0 | AY78: 0 | AZ78: 0 | BA78: 0 | BB78: 153.33 | BC78: 17385.32 | BD78: 1357.53 | BE78: 237.57 | BF78: 101 | BG78: 0 | BH78: 2432.77 | BI78: 0 | BJ78: 1728.06 | BK78: 0 | BL78: 0 | BM78: 0 | BN78: 0 | BO78: 60.02 | BP78: 304.32 | BQ78: 0 | BR78: 0 | BS78: 0 | BT78: 0 | BU78: 0 | BV78: 0 | BW78: 0 | BX78: 0 | BY78: 0 | BZ78: 75.6 | CA78: 0 | CB78: 0 | CC78: 0 | CD78: 0 | CE78: 0 | CF78: 0 | CG78: 0 | CH78: 0 | CI78: 0 | CJ78: 0 | CK78: 0 | CL78: 0 | CM78: 0 | CN78: 0 | CO78: 0 | CP78: -0.75 | CQ78: 0.2 | CR78: 6296.32 | CS78: 11089 | CT78: 1221.78 | CU78: 101.81 | CV78: 12412.59
A79: 000081 | B79: 1988-01-04 | C79: 30 | D79: 6641 | E79: 0 | F79: 0 | G79: 0 | H79: 0 | I79: 67.5 | J79: 0 | K79: 0 | L79: 0 | M79: 0 | N79: 0 | O79: 0 | P79: 0 | Q79: 0 | R79: 0 | S79: 0 | T79: 0 | U79: 0 | V79: 0 | W79: 0 | X79: 0 | Y79: 0 | Z79: 0 | AA79: 0 | AB79: 0 | AC79: 10 | AD79: 0 | AE79: 0 | AF79: 0 | AG79: 0 | AH79: 0 | AI79: 0 | AJ79: 0 | AK79: 60.02 | AL79: 0 | AM79: 0 | AN79: 0 | AO79: 0 | AP79: 0 | AQ79: 0 | AR79: 0 | AS79: 0 | AT79: 0 | AU79: 0 | AV79: 0 | AW79: 0 | AX79: 0 | AY79: 0 | AZ79: 0 | BA79: 0 | BB79: 0 | BC79: 6778.52 | BD79: 671.85 | BE79: 120.93 | BF79: 77.93 | BG79: 0 | BH79: 865.12 | BI79: 5 | BJ79: 0 | BK79: 0 | BL79: 0 | BM79: 0 | BN79: 0 | BO79: 60.02 | BP79: 452.73 | BQ79: 0 | BR79: 0 | BS79: 0 | BT79: 20 | BU79: 0 | BV79: 0 | BW79: 0 | BX79: 0 | BY79: 0 | BZ79: 0 | CA79: 0 | CB79: 0 | CC79: 0 | CD79: 0 | CE79: 0 | CF79: 0 | CG79: 0 | CH79: 0 | CI79: 0 | CJ79: 0 | CK79: 0 | CL79: 0 | CM79: 0 | CN79: 0 | CO79: 0 | CP79: -0.01 | CQ79: 0.95 | CR79: 2274.52 | CS79: 4504 | CT79: 604.67 | CU79: 50.39 | CV79: 5159.06
A80: 000082 | B80: 1988-01-04 | C80: 30 | D80: 6365 | E80: 0 | F80: 0 | G80: 0 | H80: 0 | I80: 67.5 | J80: 0 | K80: 0 | L80: 0 | M80: 0 | N80: 0 | O80: 0 | P80: 0 | Q80: 0 | R80: 0 | S80: 0 | T80: 0 | U80: 0 | V80: 0 | W80: 0 | X80: 0 | Y80: 0 | Z80: 0 | AA80: 0 | AB80: 0 | AC80: 25 | AD80: 0 | AE80: 0 | AF80: 0 | AG80: 0 | AH80: 0 | AI80: 0 | AJ80: 0 | AK80: 60.02 | AL80: 0 | AM80: 0 | AN80: 0 | AO80: 0 | AP80: 0 | AQ80: 0 | AR80: 0 | AS80: 0 | AT80: 0 | AU80: 0 | AV80: 0 | AW80: 0 | AX80: 0 | AY80: 0 | AZ80: 0 | BA80: 0 | BB80: 0 | BC80: 6517.52 | BD80: 645.75 | BE80: 113.01 | BF80: 83.3 | BG80: 0 | BH80: 819.07 | BI80: 0 | BJ80: 0 | BK80: 0 | BL80: 0 | BM80: 0 | BN80: 0 | BO80: 60.02 | BP80: 495.11 | BQ80: 0 | BR80: 0 | BS80: 0 | BT80: 20 | BU80: 0 | BV80: 30 | BW80: 0 | BX80: 0 | BY80: 0 | BZ80: 0 | CA80: 0 | CB80: 0 | CC80: 0 | CD80: 0 | CE80: 0 | CF80: 636.5 | CG80: 0 | CH80: 0 | CI80: 0 | CJ80: 0 | CK80: 0 | CL80: 0 | CM80: 0 | CN80: 0 | CO80: 0 | CP80: -0.93 | CQ80: 0.69 | CR80: 2902.52 | CS80: 3615 | CT80: 581.18 | CU80: 48.43 | CV80: 4244.61
A81: 000083 | B81: 1988-01-07 | C81: 30 | D81: 5418.16 | E81: 0 | F81: 0 | G81: 0 | H81: 0 | I81: 67.5 | J81: 0 | K81: 0 | L81: 0 | M81: 0 | N81: 0 | O81: 0 | P81: 0 | Q81: 0 | R81: 0 | S81: 0 | T81: 0 | U81: 0 | V81: 0 | W81: 0 | X81: 0 | Y81: 0 | Z81: 0 | AA81: 0 | AB81: 0 | AC81: 90 | AD81: 0 | AE81: 0 | AF81: 0 | AG81: 0 | AH81: 0 | AI81: 0 | AJ81: 0 | AK81: 60.02 | AL81: 0 | AM81: 0 | AN81: 1280 | AO81: 0 | AP81: 0 | AQ81: 0 | AR81: 0 | AS81: 0 | AT81: 0 | AU81: 0 | AV81: 0 | AW81: 0 | AX81: 0 | AY81: 0 | AZ81: 0 | BA81: 0 | BB81: 0 | BC81: 6915.68 | BD81: 557.57 | BE81: 100.36 | BF81: 64.68 | BG81: 0 | BH81: 860.74 | BI81: 5 | BJ81: 0 | BK81: 0 | BL81: 0 | BM81: 0 | BN81: 0 | BO81: 60.02 | BP81: 434.05 | BQ81: 0 | BR81: 0 | BS81: 0 | BT81: 20 | BU81: 0 | BV81: 160 | BW81: 0 | BX81: 0 | BY81: 0 | BZ81: 0 | CA81: 0 | CB81: 0 | CC81: 0 | CD81: 0 | CE81: 0 | CF81: 545.3 | CG81: 0 | CH81: 0 | CI81: 0 | CJ81: 0 | CK81: 0 | CL81: 0 | CM81: 0 | CN81: 0 | CO81: 0 | CP81: -0.34 | CQ81: 0.3 | CR81: 2807.68 | CS81: 4108 | CT81: 501.81 | CU81: 41.82 | CV81: 4651.63
A82: 000084 | B82: 1988-01-22 | C82: 3 | D82: 5124.12 | E82: 0 | F82: 0 | G82: 0 | H82: 0 | I82: 120 | J82: 0 | K82: 260.94 | L82: 84.34 | M82: 0 | N82: 0 | O82: 0 | P82: 0 | Q82: 0 | R82: 0 | S82: 0 | T82: 377.2 | U82: 0 | V82: 226.38 | W82: 0 | X82: 0 | Y82: 0 | Z82: 0 | AA82: 0 | AB82: 0 | AC82: 105 | AD82: 0 | AE82: 0 | AF82: 0 | AG82: 129.6 | AH82: 1603.1 | AI82: 0 | AJ82: 0 | AK82: 180.06 | AL82: 0 | AM82: 0 | AN82: 0 | AO82: 1000 | AP82: 0 | AQ82: 0 | AR82: 0 | AS82: 0 | AT82: 0 | AU82: 0 | AV82: 0 | AW82: 0 | AX82: 0 | AY82: 0 | AZ82: 0 | BA82: 0 | BB82: 0 | BC82: 9210.74 | BD82: 890.11 | BE82: 160.22 | BF82: 90.82 | BG82: 0 | BH82: 1321.01 | BI82: 0 | BJ82: 0 | BK82: 0 | BL82: 50 | BM82: 0 | BN82: 0 | BO82: 180.06 | BP82: 450.55 | BQ82: 0 | BR82: 0 | BS82: 0 | BT82: 0 | BU82: 210 | BV82: 0 | BW82: 0 | BX82: 0 | BY82: 0 | BZ82: 0 | CA82: 0 | CB82: 0 | CC82: 0 | CD82: 0 | CE82: 0 | CF82: 565.8 | CG82: 0 | CH82: 0 | CI82: 1000 | CJ82: 0 | CK82: 0 | CL82: 0 | CM82: 0 | CN82: 0 | CO82: 0 | CP82: -0.75 | CQ82: 0.8 | CR82: 4918.62 | CS82: 4292.12 | CT82: 801.1 | CU82: 74.26 | CV82: 5167.48
A83: 000085 | B83: 1988-02-02 | C83: 3 | D83: 0 | E83: 0 | F83: 0 | G83: 0 | H83: 0 | I83: 175 | J83: 6468.88 | K83: 260.06 | L83: 84.06 | M83: 0 | N83: 0 | O83: 0 | P83: 0 | Q83: 0 | R83: 0 | S83: 0 | T83: 0 | U83: 54.46 | V83: 0 | W83: 0 | X83: 0 | Y83: 0 | Z83: 0 | AA83: 0 | AB83: 0 | AC83: 37.5 | AD83: 0 | AE83: 0 | AF83: 0 | AG83: 129.6 | AH83: 2271 | AI83: 0 | AJ83: 0 | AK83: 300.1 | AL83: 0 | AM83: 6863.31 | AN83: 0 | AO83: 1000 | AP83: 0 | AQ83: 0 | AR83: 0 | AS83: 0 | AT83: 0 | AU83: 0 | AV83: 0 | AW83: 65.63 | AX83: 0 | AY83: 0 | AZ83: 0 | BA83: 0 | BB83: 0 | BC83: 17709.6 | BD83: 1733.02 | BE83: 370.87 | BF83: 111.18 | BG83: 0 | BH83: 2576.69 | BI83: 0 | BJ83: 0 | BK83: 0 | BL83: 0 | BM83: 0 | BN83: 0 | BO83: 300.1 | BP83: 495.11 | BQ83: 0 | BR83: 0 | BS83: 0 | BT83: 0 | BU83: 75 | BV83: 0 | BW83: 0 | BX83: 0 | BY83: 0 | BZ83: 0 | CA83: 0 | CB83: 0 | CC83: 0 | CD83: 0 | CE83: 0 | CF83: 0 | CG83: 9583 | CH83: 0 | CI83: 1000 | CJ83: 0 | CK83: 0 | CL83: 0 | CM83: 0 | CN83: 0 | CO83: 0 | CP83: -0.57 | CQ83: 0.39 | CR83: 16244.79 | CS83: 1464.81 | CT83: 1559.72 | CU83: 137.48 | CV83: 3162.01
A84: 000086 | B84: 1988-06-16 | C84: 3 | D84: 6701.74 | E84: 0 | F84: 0 | G84: 0 | H84: 0 | I84: 0 | J84: 0 | K84: 187.96 | L84: 60.3 | M84: 0 | N84: 0 | O84: 0 | P84: 0 | Q84: 0 | R84: 0 | S84: 0 | T84: 0 | U84: 326.77 | V84: 226.38 | W84: 0 | X84: 0 | Y84: 0 | Z84: 0 | AA84: 0 | AB84: 0 | AC84: 101.25 | AD84: 0 | AE84: 0 | AF84: 0 | AG84: 129.6 | AH84: 810.83 | AI84: 0 | AJ84: 0 | AK84: 180.06 | AL84: 0 | AM84: 0 | AN84: 0 | AO84: 0 | AP84: 0 | AQ84: 0 | AR84: 0 | AS84: 0 | AT84: 0 | AU84: 0 | AV84: 0 | AW84: 0 | AX84: 0 | AY84: 0 | AZ84: 0 | BA84: 0 | BB84: 0 | BC84: 8724.89 | BD84: 841.52 | BE84: 180.09 | BF84: 111.18 | BG84: 0 | BH84: 1161.53 | BI84: 0 | BJ84: 0 | BK84: 0 | BL84: 0 | BM84: 0 | BN84: 0 | BO84: 180.06 | BP84: 55 | BQ84: 0 | BR84: 0 | BS84: 0 | BT84: 0 | BU84: 202.5 | BV84: 0 | BW84: 0 | BX84: 0 | BY84: 0 | BZ84: 0 | CA84: 0 | CB84: 0 | CC84: 0 | CD84: 0 | CE84: 0 | CF84: 674.8 | CG84: 0 | CH84: 80 | CI84: 0 | CJ84: 0 | CK84: 0 | CL84: 0 | CM84: 0 | CN84: 0 | CO84: 0 | CP84: -0.54 | CQ84: 0.75 | CR84: 3486.89 | CS84: 5238 | CT84: 757.37 | CU84: 63.11 | CV84: 6058.48
A85: 000087 | B85: 1988-06-16 | C85: 3 | D85: 8852 | E85: 0 | F85: 0 | G85: 0 | H85: 0 | I85: 0 | J85: 0 | K85: 0 | L85: 0 | M85: 0 | N85: 0 | O85: 0 | P85: 0 | Q85: 0 | R85: 0 | S85: 0 | T85: 0 | U85: 0 | V85: 0 | W85: 0 | X85: 0 | Y85: 0 | Z85: 0 | AA85: 0 | AB85: 0 | AC85: 97.4 | AD85: 0 | AE85: 442.6 | AF85: 0 | AG85: 0 | AH85: 0 | AI85: 0 | AJ85: 0 | AK85: 60.02 | AL85: 0 | AM85: 0 | AN85: 0 | AO85: 0 | AP85: 0 | AQ85: 0 | AR85: 0 | AS85: 0 | AT85: 0 | AU85: 0 | AV85: 0 | AW85: 0 | AX85: 0 | AY85: 0 | AZ85: 0 | BA85: 0 | BB85: 0 | BC85: 9452.02 | BD85: 939.2 | BE85: 183.14 | BF85: 106.48 | BG85: 0 | BH85: 1365.43 | BI85: 0 | BJ85: 0 | BK85: 0 | BL85: 0 | BM85: 0 | BN85: 0 | BO85: 60.02 | BP85: 55 | BQ85: 0 | BR85: 0 | BS85: 0 | BT85: 10 | BU85: 0 | BV85: 0 | BW85: 0 | BX85: 0 | BY85: 0 | BZ85: 184.8 | CA85: 0 | CB85: 0 | CC85: 0 | CD85: 0 | CE85: 0 | CF85: 0 | CG85: 0 | CH85: 0 | CI85: 0 | CJ85: 0 | CK85: 0 | CL85: 0 | CM85: 0 | CN85: 0 | CO85: 0 | CP85: -0.08 | CQ85: 0.03 | CR85: 2904.02 | CS85: 6548 | CT85: 845.28 | CU85: 70.44 | CV85: 7463.72
A86: 000088 | B86: 1988-06-16 | C86: 3 | D86: 6376.28 | E86: 0 | F86: 0 | G86: 0 | H86: 0 | I86: 65 | J86: 0 | K86: 291.5 | L86: 94.22 | M86: 0 | N86: 0 | O86: 0 | P86: 0 | Q86: 0 | R86: 0 | S86: 0 | T86: 0 | U86: 272.31 | V86: 113.19 | W86: 1300.38 | X86: 1300.38 | Y86: 0 | Z86: 0 | AA86: 0 | AB86: 0 | AC86: 26.25 | AD86: 0 | AE86: 0 | AF86: 0 | AG86: 129.6 | AH86: 1352.4 | AI86: 0 | AJ86: 0 | AK86: 180.06 | AL86: 0 | AM86: 0 | AN86: 0 | AO86: 0 | AP86: 0 | AQ86: 0 | AR86: 0 | AS86: 0 | AT86: 0 | AU86: 0 | AV86: 0 | AW86: 0 | AX86: 0 | AY86: 0 | AZ86: 0 | BA86: 0 | BB86: 0 | BC86: 11501.57 | BD86: 1119.19 | BE86: 201.45 | BF86: 90.82 | BG86: 0 | BH86: 1634.14 | BI86: 0 | BJ86: 0 | BK86: 0 | BL86: 50 | BM86: 0 | BN86: 0 | BO86: 180.06 | BP86: 108.88 | BQ86: 0 | BR86: 0 | BS86: 0 | BT86: 0 | BU86: 52.5 | BV86: 0 | BW86: 0 | BX86: 0 | BY86: 0 | BZ86: 0 | CA86: 0 | CB86: 0 | CC86: 0 | CD86: 0 | CE86: 0 | CF86: 656.5 | CG86: 0 | CH86: 0 | CI86: 0 | CJ86: 0 | CK86: 0 | CL86: 0 | CM86: 0 | CN86: 0 | CO86: 0 | CP86: -0.5 | CQ86: 0.53 | CR86: 4093.57 | CS86: 7408 | CT86: 1007.27 | CU86: 83.94 | CV86: 8499.21
A87: 000089 | B87: 1988-06-16 | C87: 3 | D87: 6597.61 | E87: 0 | F87: 0 | G87: 0 | H87: 0 | I87: 175 | J87: 0 | K87: 271.6 | L87: 87.79 | M87: 0 | N87: 0 | O87: 0 | P87: 0 | Q87: 0 | R87: 0 | S87: 0 | T87: 231.9 | U87: 54.46 | V87: 0 | W87: 1070.31 | X87: 1070.31 | Y87: 0 | Z87: 0 | AA87: 0 | AB87: 0 | AC87: 67.5 | AD87: 0 | AE87: 0 | AF87: 0 | AG87: 91.2 | AH87: 1507.35 | AI87: 0 | AJ87: 0 | AK87: 180.06 | AL87: 0 | AM87: 0 | AN87: 0 | AO87: 1000 | AP87: 0 | AQ87: 0 | AR87: 0 | AS87: 0 | AT87: 0 | AU87: 0 | AV87: 0 | AW87: 0 | AX87: 0 | AY87: 0 | AZ87: 0 | BA87: 0 | BB87: 0 | BC87: 12405.09 | BD87: 1213.38 | BE87: 218.41 | BF87: 90.82 | BG87: 0 | BH87: 2234.1 | BI87: 0 | BJ87: 0 | BK87: 0 | BL87: 50 | BM87: 0 | BN87: 0 | BO87: 180.06 | BP87: 495.11 | BQ87: 0 | BR87: 0 | BS87: 0 | BT87: 0 | BU87: 135 | BV87: 0 | BW87: 0 | BX87: 0 | BY87: 0 | BZ87: 0 | CA87: 0 | CB87: 0 | CC87: 0 | CD87: 0 | CE87: 0 | CF87: 675.4 | CG87: 0 | CH87: 0 | CI87: 1000 | CJ87: 0 | CK87: 0 | CL87: 0 | CM87: 0 | CN87: 0 | CO87: 0 | CP87: -0.92 | CQ87: 0.88 | CR87: 6292.24 | CS87: 6112.85 | CT87: 1092.04 | CU87: 98.5 | CV87: 7303.39
A88: 000090 | B88: 1988-06-16 | C88: 3 | D88: 5413.28 | E88: 0 | F88: 0 | G88: 0 | H88: 0 | I88: 65 | J88: 0 | K88: 172.85 | L88: 55.87 | M88: 0 | N88: 0 | O88: 0 | P88: 0 | Q88: 0 | R88: 0 | S88: 0 | T88: 188.07 | U88: 0 | V88: 0 | W88: 0 | X88: 0 | Y88: 0 | Z88: 0 | AA88: 0 | AB88: 0 | AC88: 97.5 | AD88: 0 | AE88: 0 | AF88: 0 | AG88: 129.6 | AH88: 2068.73 | AI88: 0 | AJ88: 0 | AK88: 180.06 | AL88: 0 | AM88: 0 | AN88: 0 | AO88: 0 | AP88: 0 | AQ88: 0 | AR88: 0 | AS88: 0 | AT88: 0 | AU88: 0 | AV88: 0 | AW88: 0 | AX88: 0 | AY88: 0 | AZ88: 0 | BA88: 0 | BB88: 0 | BC88: 8370.96 | BD88: 806.13 | BE88: 141.07 | BF88: 101 | BG88: 0 | BH88: 1096.07 | BI88: 0 | BJ88: 0 | BK88: 0 | BL88: 50 | BM88: 0 | BN88: 0 | BO88: 180.06 | BP88: 125.38 | BQ88: 0 | BR88: 0 | BS88: 0 | BT88: 0 | BU88: 195 | BV88: 0 | BW88: 0 | BX88: 0 | BY88: 0 | BZ88: 0 | CA88: 0 | CB88: 0 | CC88: 0 | CD88: 0 | CE88: 0 | CF88: 564.2 | CG88: 0 | CH88: 0 | CI88: 0 | CJ88: 0 | CK88: 0 | CL88: 0 | CM88: 0 | CN88: 0 | CO88: 0 | CP88: -0.92 | CQ88: 0.97 | CR88: 3258.96 | CS88: 5112 | CT88: 725.52 | CU88: 60.46 | CV88: 5897.98
A89: 000091 | B89: 1988-06-16 | C89: 21 | D89: 0 | E89: 0 | F89: 7903 | G89: 0 | H89: 0 | I89: 67.5 | J89: 0 | K89: 0 | L89: 0 | M89: 0 | N89: 0 | O89: 0 | P89: 0 | Q89: 0 | R89: 0 | S89: 0 | T89: 0 | U89: 0 | V89: 0 | W89: 0 | X89: 0 | Y89: 0 | Z89: 0 | AA89: 0 | AB89: 0 | AC89: 0 | AD89: 0 | AE89: 1367.22 | AF89: 0 | AG89: 0 | AH89: 0 | AI89: 0 | AJ89: 0 | AK89: 60.02 | AL89: 0 | AM89: 0 | AN89: 0 | AO89: 0 | AP89: 0 | AQ89: 0 | AR89: 0 | AS89: 0 | AT89: 0 | AU89: 917.31 | AV89: 1572.54 | AW89: 0 | AX89: 0 | AY89: 0 | AZ89: 0 | BA89: 0 | BB89: 106.15 | BC89: 11993.74 | BD89: 933.77 | BE89: 163.41 | BF89: 101 | BG89: 0 | BH89: 1453.79 | BI89: 5 | BJ89: 0 | BK89: 0 | BL89: 0 | BM89: 0 | BN89: 0 | BO89: 60.02 | BP89: 803.78 | BQ89: 26.95 | BR89: 0 | BS89: 0 | BT89: 0 | BU89: 0 | BV89: 0 | BW89: 0 | BX89: 0 | BY89: 0 | BZ89: 0 | CA89: 0 | CB89: 0 | CC89: 0 | CD89: 0 | CE89: 0 | CF89: 0 | CG89: 0 | CH89: 0 | CI89: 0 | CJ89: 0 | CK89: 0 | CL89: 0 | CM89: 0 | CN89: 0 | CO89: 0 | CP89: -0.07 | CQ89: 0.09 | CR89: 3547.74 | CS89: 8446 | CT89: 840.39 | CU89: 70.03 | CV89: 9356.42
A90: 000092 | B90: 1988-08-15 | C90: 3 | D90: 7412.55 | E90: 0 | F90: 0 | G90: 0 | H90: 0 | I90: 230 | J90: 0 | K90: 339.66 | L90: 109.79 | M90: 0 | N90: 0 | O90: 0 | P90: 0 | Q90: 0 | R90: 0 | S90: 0 | T90: 0 | U90: 245.08 | V90: 264.12 | W90: 1511.92 | X90: 1511.92 | Y90: 0 | Z90: 0 | AA90: 0 | AB90: 0 | AC90: 67.5 | AD90: 0 | AE90: 0 | AF90: 0 | AG90: 129.6 | AH90: 1048.27 | AI90: 0 | AJ90: 0 | AK90: 180.06 | AL90: 0 | AM90: 0 | AN90: 0 | AO90: 0 | AP90: 0 | AQ90: 0 | AR90: 0 | AS90: 0 | AT90: 0 | AU90: 0 | AV90: 0 | AW90: 0 | AX90: 0 | AY90: 0 | AZ90: 0 | BA90: 0 | BB90: 0 | BC90: 13050.47 | BD90: 1274.08 | BE90: 222.96 | BF90: 101 | BG90: 0 | BH90: 2209.92 | BI90: 0 | BJ90: 0 | BK90: 0 | BL90: 50 | BM90: 0 | BN90: 0 | BO90: 180.06 | BP90: 787.28 | BQ90: 0 | BR90: 0 | BS90: 0 | BT90: 0 | BU90: 135 | BV90: 0 | BW90: 0 | BX90: 0 | BY90: 0 | BZ90: 0 | CA90: 0 | CB90: 0 | CC90: 0 | CD90: 0 | CE90: 0 | CF90: 786.2 | CG90: 0 | CH90: 0 | CI90: 0 | CJ90: 0 | CK90: 0 | CL90: 0 | CM90: 0 | CN90: 0 | CO90: 0 | CP90: -0.17 | CQ90: 0.14 | CR90: 5746.47 | CS90: 7304 | CT90: 1146.67 | CU90: 95.56 | CV90: 8546.23
A91: 000093 | B91: 1989-06-01 | C91: 21 | D91: 0 | E91: 0 | F91: 11159 | G91: 0 | H91: 0 | I91: 0 | J91: 0 | K91: 0 | L91: 0 | M91: 0 | N91: 0 | O91: 0 | P91: 0 | Q91: 0 | R91: 0 | S91: 0 | T91: 0 | U91: 0 | V91: 0 | W91: 0 | X91: 0 | Y91: 0 | Z91: 0 | AA91: 0 | AB91: 0 | AC91: 110 | AD91: 0 | AE91: 0 | AF91: 0 | AG91: 0 | AH91: 0 | AI91: 0 | AJ91: 0 | AK91: 60.02 | AL91: 0 | AM91: 0 | AN91: 0 | AO91: 0 | AP91: 0 | AQ91: 0 | AR91: 0 | AS91: 0 | AT91: 0 | AU91: 1095.6 | AV91: 1878.17 | AW91: 0 | AX91: 0 | AY91: 0 | AZ91: 0 | BA91: 0 | BB91: 126.78 | BC91: 14429.57 | BD91: 1126.9 | BE91: 219.75 | BF91: 106.48 | BG91: 0 | BH91: 1860.26 | BI91: 0 | BJ91: 0 | BK91: 0 | BL91: 0 | BM91: 0 | BN91: 0 | BO91: 60.02 | BP91: 611.45 | BQ91: 0 | BR91: 0 | BS91: 0 | BT91: 100 | BU91: 0 | BV91: 120 | BW91: 0 | BX91: 0 | BY91: 0 | BZ91: 0 | CA91: 0 | CB91: 0 | CC91: 0 | CD91: 0 | CE91: 0 | CF91: 0 | CG91: 0 | CH91: 0 | CI91: 0 | CJ91: 0 | CK91: 0 | CL91: 0 | CM91: 0 | CN91: 0 | CO91: 0 | CP91: -0.15 | CQ91: 0.86 | CR91: 4205.57 | CS91: 10224 | CT91: 1014.21 | CU91: 84.52 | CV91: 11322.73
A92: 000094 | B92: 1989-06-01 | C92: 21 | D92: 0 | E92: 0 | F92: 13911 | G92: 0 | H92: 0 | I92: 67.5 | J92: 0 | K92: 0 | L92: 0 | M92: 0 | N92: 0 | O92: 0 | P92: 0 | Q92: 0 | R92: 0 | S92: 0 | T92: 0 | U92: 0 | V92: 0 | W92: 0 | X92: 0 | Y92: 0 | Z92: 0 | AA92: 0 | AB92: 0 | AC92: 55 | AD92: 0 | AE92: 0 | AF92: 0 | AG92: 0 | AH92: 0 | AI92: 0 | AJ92: 0 | AK92: 60.02 | AL92: 0 | AM92: 0 | AN92: 0 | AO92: 0 | AP92: 0 | AQ92: 0 | AR92: 0 | AS92: 0 | AT92: 0 | AU92: 1369.72 | AV92: 2348.08 | AW92: 0 | AX92: 0 | AY92: 0 | AZ92: 0 | BA92: 0 | BB92: 158.5 | BC92: 17969.82 | BD92: 1403.35 | BE92: 245.59 | BF92: 101 | BG92: 0 | BH92: 2546.15 | BI92: 0 | BJ92: 0 | BK92: 0 | BL92: 0 | BM92: 0 | BN92: 0 | BO92: 60.02 | BP92: 298.67 | BQ92: 155.19 | BR92: 0 | BS92: 0 | BT92: 10 | BU92: 0 | BV92: 100 | BW92: 0 | BX92: 0 | BY92: 0 | BZ92: 0 | CA92: 0 | CB92: 0 | CC92: 0 | CD92: 0 | CE92: 0 | CF92: 0 | CG92: 0 | CH92: 0 | CI92: 0 | CJ92: 0 | CK92: 0 | CL92: 0 | CM92: 0 | CN92: 0 | CO92: 0 | CP92: -0.88 | CQ92: 0.73 | CR92: 4919.82 | CS92: 13050 | CT92: 1263.02 | CU92: 105.25 | CV92: 14418.27
A93: 000095 | B93: 1989-08-28 | C93: 30 | D93: 5508.49 | E93: 0 | F93: 0 | G93: 0 | H93: 0 | I93: 67.5 | J93: 0 | K93: 0 | L93: 0 | M93: 0 | N93: 0 | O93: 0 | P93: 0 | Q93: 0 | R93: 0 | S93: 0 | T93: 0 | U93: 0 | V93: 0 | W93: 0 | X93: 0 | Y93: 0 | Z93: 0 | AA93: 0 | AB93: 0 | AC93: 55 | AD93: 0 | AE93: 0 | AF93: 0 | AG93: 0 | AH93: 0 | AI93: 0 | AJ93: 0 | AK93: 60.02 | AL93: 0 | AM93: 0 | AN93: 0 | AO93: 0 | AP93: 0 | AQ93: 0 | AR93: 0 | AS93: 0 | AT93: 0 | AU93: 0 | AV93: 0 | AW93: 0 | AX93: 0 | AY93: 0 | AZ93: 0 | BA93: 0 | BB93: 0 | BC93: 5691.01 | BD93: 563.1 | BE93: 98.54 | BF93: 72.64 | BG93: 0 | BH93: 702.9 | BI93: 5 | BJ93: 0 | BK93: 0 | BL93: 0 | BM93: 0 | BN93: 0 | BO93: 60.02 | BP93: 495.11 | BQ93: 0 | BR93: 0 | BS93: 0 | BT93: 110 | BU93: 0 | BV93: 0 | BW93: 0 | BX93: 0 | BY93: 0 | BZ93: 0 | CA93: 0 | CB93: 0 | CC93: 0 | CD93: 0 | CE93: 0 | CF93: 0 | CG93: 0 | CH93: 0 | CI93: 0 | CJ93: 0 | CK93: 0 | CL93: 0 | CM93: 0 | CN93: 0 | CO93: 0 | CP93: -0.1 | CQ93: 0.8 | CR93: 2108.01 | CS93: 3583 | CT93: 506.79 | CU93: 42.23 | CV93: 4132.02
A94: 000096 | B94: 1989-12-14 | C94: 3 | D94: 5388.81 | E94: 0 | F94: 0 | G94: 0 | H94: 0 | I94: 55 | J94: 0 | K94: 175.06 | L94: 56.13 | M94: 0 | N94: 0 | O94: 0 | P94: 0 | Q94: 0 | R94: 0 | S94: 0 | T94: 0 | U94: 0 | V94: 415.04 | W94: 0 | X94: 0 | Y94: 0 | Z94: 0 | AA94: 0 | AB94: 0 | AC94: 22.5 | AD94: 0 | AE94: 0 | AF94: 0 | AG94: 76.8 | AH94: 281 | AI94: 0 | AJ94: 0 | AK94: 180.06 | AL94: 0 | AM94: 0 | AN94: 1280 | AO94: 0 | AP94: 0 | AQ94: 0 | AR94: 0 | AS94: 0 | AT94: 0 | AU94: 0 | AV94: 0 | AW94: 0 | AX94: 0 | AY94: 0 | AZ94: 0 | BA94: 0 | BB94: 0 | BC94: 7930.4 | BD94: 639.35 | BE94: 111.89 | BF94: 82.48 | BG94: 0 | BH94: 1032.02 | BI94: 0 | BJ94: 0 | BK94: 0 | BL94: 50 | BM94: 0 | BN94: 0 | BO94: 180.06 | BP94: 71.5 | BQ94: 0 | BR94: 0 | BS94: 0 | BT94: 0 | BU94: 45 | BV94: 0 | BW94: 0 | BX94: 0 | BY94: 0 | BZ94: 0 | CA94: 0 | CB94: 0 | CC94: 0 | CD94: 0 | CE94: 0 | CF94: 562 | CG94: 0 | CH94: 0 | CI94: 0 | CJ94: 0 | CK94: 0 | CL94: 0 | CM94: 0 | CN94: 0 | CO94: 0 | CP94: -0.79 | CQ94: 0.89 | CR94: 2774.4 | CS94: 5156 | CT94: 575.42 | CU94: 47.95 | CV94: 5779.37
A95: 000097 | B95: 1989-12-18 | C95: 21 | D95: 0 | E95: 0 | F95: 12748 | G95: 0 | H95: 0 | I95: 0 | J95: 0 | K95: 0 | L95: 0 | M95: 0 | N95: 0 | O95: 0 | P95: 0 | Q95: 0 | R95: 0 | S95: 0 | T95: 0 | U95: 0 | V95: 0 | W95: 0 | X95: 0 | Y95: 0 | Z95: 0 | AA95: 0 | AB95: 0 | AC95: 90 | AD95: 0 | AE95: 0 | AF95: 0 | AG95: 0 | AH95: 0 | AI95: 0 | AJ95: 0 | AK95: 60.02 | AL95: 0 | AM95: 0 | AN95: 0 | AO95: 0 | AP95: 0 | AQ95: 0 | AR95: 0 | AS95: 0 | AT95: 0 | AU95: 1250.08 | AV95: 2143 | AW95: 0 | AX95: 0 | AY95: 0 | AZ95: 0 | BA95: 0 | BB95: 144.65 | BC95: 16435.75 | BD95: 1283.8 | BE95: 250.34 | BF95: 106.48 | BG95: 0 | BH95: 2249.12 | BI95: 0 | BJ95: 0 | BK95: 0 | BL95: 0 | BM95: 0 | BN95: 0 | BO95: 60.02 | BP95: 957.61 | BQ95: 0 | BR95: 0 | BS95: 0 | BT95: 180 | BU95: 0 | BV95: 0 | BW95: 0 | BX95: 0 | BY95: 0 | BZ95: 0 | CA95: 0 | CB95: 0 | CC95: 0 | CD95: 0 | CE95: 0 | CF95: 0 | CG95: 0 | CH95: 0 | CI95: 0 | CJ95: 0 | CK95: 0 | CL95: 0 | CM95: 0 | CN95: 0 | CO95: 0 | CP95: -0.52 | CQ95: 0.9 | CR95: 5087.75 | CS95: 11348 | CT95: 1155.42 | CU95: 96.29 | CV95: 12599.71
A96: 000098 | B96: 1990-02-12 | C96: 30 | D96: 0 | E96: 0 | F96: 0 | G96: 0 | H96: 0 | I96: 67.5 | J96: 7651 | K96: 0 | L96: 0 | M96: 0 | N96: 0 | O96: 0 | P96: 0 | Q96: 0 | R96: 0 | S96: 0 | T96: 0 | U96: 0 | V96: 0 | W96: 0 | X96: 0 | Y96: 0 | Z96: 0 | AA96: 0 | AB96: 0 | AC96: 35 | AD96: 0 | AE96: 0 | AF96: 0 | AG96: 0 | AH96: 0 | AI96: 0 | AJ96: 0 | AK96: 60.02 | AL96: 0 | AM96: 0 | AN96: 0 | AO96: 0 | AP96: 0 | AQ96: 0 | AR96: 0 | AS96: 0 | AT96: 0 | AU96: 0 | AV96: 0 | AW96: 28.33 | AX96: 0 | AY96: 0 | AZ96: 0 | BA96: 0 | BB96: 0 | BC96: 7841.85 | BD96: 778.18 | BE96: 151.75 | BF96: 105.83 | BG96: 0 | BH96: 1049.86 | BI96: 0 | BJ96: 0 | BK96: 0 | BL96: 0 | BM96: 0 | BN96: 0 | BO96: 60.02 | BP96: 495.11 | BQ96: 0 | BR96: 0 | BS96: 0 | BT96: 70 | BU96: 0 | BV96: 0 | BW96: 0 | BX96: 0 | BY96: 0 | BZ96: 0 | CA96: 0 | CB96: 0 | CC96: 0 | CD96: 0 | CE96: 0 | CF96: 0 | CG96: 5055 | CH96: 0 | CI96: 0 | CJ96: 0 | CK96: 0 | CL96: 0 | CM96: 0 | CN96: 0 | CO96: 0 | CP96: -0.81 | CQ96: 0.91 | CR96: 7765.85 | CS96: 76 | CT96: 700.36 | CU96: 58.36 | CV96: 834.72
A97: 000099 | B97: 1990-03-01 | C97: 30 | D97: 8663 | E97: 0 | F97: 0 | G97: 0 | H97: 0 | I97: 67.5 | J97: 0 | K97: 0 | L97: 0 | M97: 0 | N97: 0 | O97: 0 | P97: 0 | Q97: 0 | R97: 0 | S97: 0 | T97: 0 | U97: 0 | V97: 0 | W97: 0 | X97: 0 | Y97: 0 | Z97: 0 | AA97: 0 | AB97: 0 | AC97: 85 | AD97: 0 | AE97: 0 | AF97: 0 | AG97: 0 | AH97: 0 | AI97: 0 | AJ97: 0 | AK97: 60.02 | AL97: 0 | AM97: 0 | AN97: 0 | AO97: 0 | AP97: 0 | AQ97: 0 | AR97: 0 | AS97: 0 | AT97: 0 | AU97: 0 | AV97: 0 | AW97: 0 | AX97: 0 | AY97: 0 | AZ97: 0 | BA97: 0 | BB97: 0 | BC97: 8875.52 | BD97: 881.55 | BE97: 171.9 | BF97: 106.48 | BG97: 0 | BH97: 1228.7 | BI97: 0 | BJ97: 3186.57 | BK97: 0 | BL97: 0 | BM97: 0 | BN97: 0 | BO97: 60.02 | BP97: 452.73 | BQ97: 0 | BR97: 0 | BS97: 0 | BT97: 170 | BU97: 0 | BV97: 0 | BW97: 0 | BX97: 0 | BY97: 0 | BZ97: 0 | CA97: 0 | CB97: 0 | CC97: 0 | CD97: 0 | CE97: 0 | CF97: 0 | CG97: 0 | CH97: 0 | CI97: 0 | CJ97: 0 | CK97: 0 | CL97: 0 | CM97: 0 | CN97: 0 | CO97: 0 | CP97: -0.94 | CQ97: 0.51 | CR97: 6257.52 | CS97: 2618 | CT97: 793.4 | CU97: 66.12 | CV97: 3477.52
A98: 000100 | B98: 1990-03-12 | C98: 21 | D98: 0 | E98: 0 | F98: 16523 | G98: 0 | H98: 0 | I98: 67.5 | J98: 0 | K98: 0 | L98: 0 | M98: 0 | N98: 0 | O98: 0 | P98: 0 | Q98: 0 | R98: 0 | S98: 0 | T98: 0 | U98: 0 | V98: 0 | W98: 0 | X98: 0 | Y98: 0 | Z98: 0 | AA98: 0 | AB98: 0 | AC98: 45 | AD98: 0 | AE98: 0 | AF98: 0 | AG98: 0 | AH98: 0 | AI98: 0 | AJ98: 0 | AK98: 60.02 | AL98: 0 | AM98: 0 | AN98: 0 | AO98: 0 | AP98: 0 | AQ98: 0 | AR98: 0 | AS98: 0 | AT98: 0 | AU98: 1623.66 | AV98: 2783.42 | AW98: 0 | AX98: 0 | AY98: 0 | AZ98: 0 | BA98: 0 | BB98: 187.88 | BC98: 21290.48 | BD98: 1663.55 | BE98: 324.39 | BF98: 106.48 | BG98: 0 | BH98: 3290.3 | BI98: 0 | BJ98: 0 | BK98: 0 | BL98: 0 | BM98: 0 | BN98: 0 | BO98: 60.02 | BP98: 1178.6 | BQ98: 0 | BR98: 0 | BS98: 0 | BT98: 30 | BU98: 0 | BV98: 60 | BW98: 0 | BX98: 0 | BY98: 0 | BZ98: 0 | CA98: 0 | CB98: 0 | CC98: 0 | CD98: 0 | CE98: 0 | CF98: 0 | CG98: 0 | CH98: 0 | CI98: 0 | CJ98: 0 | CK98: 0 | CL98: 0 | CM98: 0 | CN98: 0 | CO98: 0 | CP98: -0.68 | CQ98: 0.82 | CR98: 6713.48 | CS98: 14577 | CT98: 1497.2 | CU98: 124.77 | CV98: 16198.97
A99: 000101 | B99: 1990-05-21 | C99: 3 | D99: 6959.51 | E99: 0 | F99: 0 | G99: 0 | H99: 0 | I99: 230 | J99: 0 | K99: 242.2 | L99: 78.29 | M99: 0 | N99: 0 | O99: 0 | P99: 0 | Q99: 0 | R99: 0 | S99: 0 | T99: 748.22 | U99: 381.23 | V99: 0 | W99: 1400 | X99: 1400 | Y99: 0 | Z99: 0 | AA99: 0 | AB99: 0 | AC99: 60 | AD99: 0 | AE99: 0 | AF99: 0 | AG99: 129.6 | AH99: 1213.33 | AI99: 0 | AJ99: 0 | AK99: 180.06 | AL99: 0 | AM99: 0 | AN99: 0 | AO99: 1000 | AP99: 0 | AQ99: 0 | AR99: 0 | AS99: 0 | AT99: 0 | AU99: 0 | AV99: 0 | AW99: 0 | AX99: 0 | AY99: 0 | AZ99: 0 | BA99: 0 | BB99: 0 | BC99: 14022.44 | BD99: 1371.28 | BE99: 267.4 | BF99: 106.48 | BG99: 0 | BH99: 1541.17 | BI99: 0 | BJ99: 0 | BK99: 0 | BL99: 0 | BM99: 0 | BN99: 0 | BO99: 180.06 | BP99: 511.61 | BQ99: 542.19 | BR99: 0 | BS99: 0 | BT99: 0 | BU99: 120 | BV99: 0 | BW99: 0 | BX99: 0 | BY99: 0 | BZ99: 0 | CA99: 0 | CB99: 0 | CC99: 0 | CD99: 0 | CE99: 0 | CF99: 681.65 | CG99: 0 | CH99: 0 | CI99: 1000 | CJ99: 0 | CK99: 0 | CL99: 0 | CM99: 0 | CN99: 0 | CO99: 0 | CP99: -0.7 | CQ99: 0.45 | CR99: 6321.59 | CS99: 7700.85 | CT99: 1234.15 | CU99: 110.35 | CV99: 9045.35
A100: 000102 | B100: 1990-05-28 | C100: 21 | D100: 0 | E100: 0 | F100: 11316 | G100: 0 | H100: 0 | I100: 67.5 | J100: 0 | K100: 0 | L100: 0 | M100: 0 | N100: 0 | O100: 0 | P100: 0 | Q100: 0 | R100: 0 | S100: 0 | T100: 0 | U100: 0 | V100: 0 | W100: 0 | X100: 0 | Y100: 0 | Z100: 0 | AA100: 0 | AB100: 0 | AC100: 15 | AD100: 0 | AE100: 0 | AF100: 0 | AG100: 0 | AH100: 0 | AI100: 0 | AJ100: 0 | AK100: 60.02 | AL100: 0 | AM100: 0 | AN100: 0 | AO100: 0 | AP100: 0 | AQ100: 0 | AR100: 0 | AS100: 0 | AT100: 0 | AU100: 1117.42 | AV100: 1915.58 | AW100: 0 | AX100: 0 | AY100: 0 | AZ100: 0 | BA100: 0 | BB100: 129.3 | BC100: 14620.82 | BD100: 1139.85 | BE100: 222.27 | BF100: 106.48 | BG100: 0 | BH100: 1895.84 | BI100: 0 | BJ100: 2457.4 | BK100: 0 | BL100: 0 | BM100: 0 | BN100: 0 | BO100: 60.02 | BP100: 735.81 | BQ100: 0 | BR100: 0 | BS100: 0 | BT100: 0 | BU100: 0 | BV100: 30 | BW100: 0 | BX100: 0 | BY100: 0 | BZ100: 0 | CA100: 0 | CB100: 0 | CC100: 0 | CD100: 0 | CE100: 0 | CF100: 0 | CG100: 0 | CH100: 0 | CI100: 0 | CJ100: 0 | CK100: 0 | CL100: 0 | CM100: 0 | CN100: 0 | CO100: 0 | CP100: -0.57 | CQ100: 0.72 | CR100: 6647.82 | CS100: 7973 | CT100: 1025.87 | CU100: 85.49 | CV100: 9084.36
A101: 000103 | B101: 1990-06-01 | C101: 21 | D101: 0 | E101: 0 | F101: 13242 | G101: 0 | H101: 0 | I101: 67.5 | J101: 0 | K101: 0 | L101: 0 | M101: 0 | N101: 0 | O101: 0 | P101: 0 | Q101: 0 | R101: 0 | S101: 0 | T101: 0 | U101: 0 | V101: 0 | W101: 0 | X101: 0 | Y101: 0 | Z101: 0 | AA101: 0 | AB101: 0 | AC101: 92.4 | AD101: 0 | AE101: 2322.65 | AF101: 0 | AG101: 0 | AH101: 0 | AI101: 0 | AJ101: 2375.57 | AK101: 60.02 | AL101: 0 | AM101: 0 | AN101: 0 | AO101: 0 | AP101: 0 | AQ101: 0 | AR101: 0 | AS101: 0 | AT101: 0 | AU101: 1528.74 | AV101: 2620.69 | AW101: 0 | AX101: 0 | AY101: 0 | AZ101: 0 | BA101: 0 | BB101: 176.9 | BC101: 22486.47 | BD101: 1572.46 | BE101: 275.18 | BF101: 101 | BG101: 0 | BH101: 3461.25 | BI101: 0 | BJ101: 0 | BK101: 0 | BL101: 0 | BM101: 0 | BN101: 0 | BO101: 60.02 | BP101: 219.76 | BQ101: 0 | BR101: 0 | BS101: 0 | BT101: 0 | BU101: 0 | BV101: 0 | BW101: 0 | BX101: 0 | BY101: 0 | BZ101: 184.8 | CA101: 0 | CB101: 0 | CC101: 0 | CD101: 0 | CE101: 0 | CF101: 0 | CG101: 0 | CH101: 0 | CI101: 0 | CJ101: 0 | CK101: 0 | CL101: 0 | CM101: 0 | CN101: 0 | CO101: 0 | CP101: -0.33 | CQ101: 0.33 | CR101: 5874.47 | CS101: 16612 | CT101: 1415.21 | CU101: 117.93 | CV101: 18145.14
A102: 000104 | B102: 1990-06-01 | C102: 1 | D102: 11096.98 | E102: 0 | F102: 0 | G102: 0 | H102: 0 | I102: 120 | J102: 0 | K102: 184 | L102: 59.02 | M102: 0 | N102: 0 | O102: 0 | P102: 0 | Q102: 0 | R102: 0 | S102: 0 | T102: 0 | U102: 0 | V102: 0 | W102: 0 | X102: 0 | Y102: 0 | Z102: 0 | AA102: 0 | AB102: 0 | AC102: 5 | AD102: 0 | AE102: 0 | AF102: 0 | AG102: 0 | AH102: 0 | AI102: 0 | AJ102: 0 | AK102: 180.06 | AL102: 0 | AM102: 0 | AN102: 0 | AO102: 0 | AP102: 0 | AQ102: 0 | AR102: 0 | AS102: 0 | AT102: 0 | AU102: 0 | AV102: 0 | AW102: 0 | AX102: 0 | AY102: 0 | AZ102: 0 | BA102: 0 | BB102: 0 | BC102: 11645.06 | BD102: 1146.5 | BE102: 200.64 | BF102: 101 | BG102: 0 | BH102: 1904.53 | BI102: 0 | BJ102: 0 | BK102: 0 | BL102: 0 | BM102: 0 | BN102: 0 | BO102: 180.06 | BP102: 1127.5 | BQ102: 0 | BR102: 0 | BS102: 0 | BT102: 10 | BU102: 0 | BV102: 0 | BW102: 0 | BX102: 0 | BY102: 0 | BZ102: 0 | CA102: 0 | CB102: 0 | CC102: 0 | CD102: 0 | CE102: 0 | CF102: 0 | CG102: 0 | CH102: 0 | CI102: 0 | CJ102: 0 | CK102: 0 | CL102: 0 | CM102: 0 | CN102: 0 | CO102: 0 | CP102: -0.95 | CQ102: 0.78 | CR102: 4670.06 | CS102: 6975 | CT102: 1031.85 | CU102: 85.99 | CV102: 8092.84
A103: 000105 | B103: 1990-07-02 | C103: 30 | D103: 6843 | E103: 0 | F103: 0 | G103: 0 | H103: 0 | I103: 67.5 | J103: 0 | K103: 0 | L103: 0 | M103: 0 | N103: 0 | O103: 0 | P103: 0 | Q103: 0 | R103: 0 | S103: 0 | T103: 0 | U103: 0 | V103: 0 | W103: 0 | X103: 0 | Y103: 0 | Z103: 0 | AA103: 0 | AB103: 0 | AC103: 85 | AD103: 0 | AE103: 0 | AF103: 0 | AG103: 0 | AH103: 0 | AI103: 0 | AJ103: 0 | AK103: 60.02 | AL103: 0 | AM103: 0 | AN103: 0 | AO103: 0 | AP103: 0 | AQ103: 0 | AR103: 0 | AS103: 0 | AT103: 0 | AU103: 0 | AV103: 0 | AW103: 0 | AX103: 0 | AY103: 0 | AZ103: 0 | BA103: 0 | BB103: 0 | BC103: 7055.52 | BD103: 699.55 | BE103: 122.42 | BF103: 90.24 | BG103: 0 | BH103: 911.72 | BI103: 5 | BJ103: 0 | BK103: 0 | BL103: 0 | BM103: 0 | BN103: 0 | BO103: 60.02 | BP103: 787.28 | BQ103: 0 | BR103: 0 | BS103: 0 | BT103: 0 | BU103: 0 | BV103: 170 | BW103: 0 | BX103: 0 | BY103: 0 | BZ103: 0 | CA103: 0 | CB103: 0 | CC103: 0 | CD103: 0 | CE103: 0 | CF103: 684.3 | CG103: 0 | CH103: 0 | CI103: 0 | CJ103: 0 | CK103: 0 | CL103: 0 | CM103: 0 | CN103: 0 | CO103: 0 | CP103: -0.83 | CQ103: 0.82 | CR103: 3530.52 | CS103: 3525 | CT103: 629.6 | CU103: 52.47 | CV103: 4207.07
A104: 000106 | B104: 1990-07-09 | C104: 30 | D104: 8632 | E104: 0 | F104: 0 | G104: 0 | H104: 0 | I104: 67.5 | J104: 0 | K104: 0 | L104: 0 | M104: 0 | N104: 0 | O104: 0 | P104: 0 | Q104: 0 | R104: 0 | S104: 0 | T104: 0 | U104: 0 | V104: 0 | W104: 0 | X104: 0 | Y104: 0 | Z104: 0 | AA104: 0 | AB104: 0 | AC104: 65 | AD104: 0 | AE104: 0 | AF104: 0 | AG104: 0 | AH104: 0 | AI104: 0 | AJ104: 0 | AK104: 60.02 | AL104: 0 | AM104: 0 | AN104: 0 | AO104: 0 | AP104: 0 | AQ104: 0 | AR104: 0 | AS104: 0 | AT104: 0 | AU104: 0 | AV104: 0 | AW104: 0 | AX104: 0 | AY104: 0 | AZ104: 0 | BA104: 0 | BB104: 0 | BC104: 8824.52 | BD104: 876.45 | BE104: 157.76 | BF104: 90.82 | BG104: 0 | BH104: 1216.71 | BI104: 0 | BJ104: 0 | BK104: 0 | BL104: 0 | BM104: 0 | BN104: 0 | BO104: 60.02 | BP104: 177.06 | BQ104: 0 | BR104: 0 | BS104: 0 | BT104: 0 | BU104: 0 | BV104: 130 | BW104: 0 | BX104: 0 | BY104: 0 | BZ104: 0 | CA104: 0 | CB104: 0 | CC104: 0 | CD104: 0 | CE104: 0 | CF104: 830 | CG104: 0 | CH104: 0 | CI104: 0 | CJ104: 0 | CK104: 0 | CL104: 0 | CM104: 0 | CN104: 0 | CO104: 0 | CP104: -0.51 | CQ104: 0.21 | CR104: 3538.52 | CS104: 5286 | CT104: 788.81 | CU104: 65.73 | CV104: 6140.54
A105: 000107 | B105: 1990-07-09 | C105: 30 | D105: 9440 | E105: 0 | F105: 0 | G105: 0 | H105: 0 | I105: 67.5 | J105: 0 | K105: 0 | L105: 0 | M105: 0 | N105: 0 | O105: 0 | P105: 0 | Q105: 0 | R105: 0 | S105: 0 | T105: 0 | U105: 0 | V105: 0 | W105: 0 | X105: 0 | Y105: 0 | Z105: 0 | AA105: 0 | AB105: 0 | AC105: 100 | AD105: 0 | AE105: 0 | AF105: 0 | AG105: 0 | AH105: 0 | AI105: 0 | AJ105: 0 | AK105: 60.02 | AL105: 0 | AM105: 0 | AN105: 0 | AO105: 0 | AP105: 0 | AQ105: 0 | AR105: 0 | AS105: 0 | AT105: 0 | AU105: 0 | AV105: 0 | AW105: 0 | AX105: 0 | AY105: 0 | AZ105: 0 | BA105: 0 | BB105: 0 | BC105: 9667.52 | BD105: 960.75 | BE105: 187.35 | BF105: 106.48 | BG105: 0 | BH105: 1423.07 | BI105: 0 | BJ105: 0 | BK105: 0 | BL105: 0 | BM105: 0 | BN105: 0 | BO105: 60.02 | BP105: 744.9 | BQ105: 0 | BR105: 0 | BS105: 0 | BT105: 60 | BU105: 0 | BV105: 140 | BW105: 0 | BX105: 0 | BY105: 0 | BZ105: 0 | CA105: 0 | CB105: 0 | CC105: 0 | CD105: 0 | CE105: 0 | CF105: 907.7 | CG105: 0 | CH105: 80 | CI105: 0 | CJ105: 0 | CK105: 0 | CL105: 0 | CM105: 0 | CN105: 0 | CO105: 0 | CP105: -0.41 | CQ105: 0.66 | CR105: 4670.52 | CS105: 4997 | CT105: 864.68 | CU105: 72.06 | CV105: 5933.74
A106: 000108 | B106: 1990-07-09 | C106: 3 | D106: 5890.57 | E106: 0 | F106: 0 | G106: 0 | H106: 0 | I106: 175 | J106: 0 | K106: 210.42 | L106: 68.01 | M106: 0 | N106: 0 | O106: 0 | P106: 0 | Q106: 0 | R106: 0 | S106: 0 | T106: 0 | U106: 0 | V106: 226.38 | W106: 0 | X106: 0 | Y106: 0 | Z106: 0 | AA106: 0 | AB106: 0 | AC106: 7.5 | AD106: 0 | AE106: 0 | AF106: 0 | AG106: 43.2 | AH106: 205.63 | AI106: 0 | AJ106: 0 | AK106: 180.06 | AL106: 0 | AM106: 0 | AN106: 0 | AO106: 0 | AP106: 0 | AQ106: 0 | AR106: 0 | AS106: 0 | AT106: 0 | AU106: 0 | AV106: 0 | AW106: 0 | AX106: 0 | AY106: 0 | AZ106: 0 | BA106: 0 | BB106: 0 | BC106: 7006.77 | BD106: 678.35 | BE106: 118.71 | BF106: 87.51 | BG106: 0 | BH106: 905.93 | BI106: 0 | BJ106: 0 | BK106: 0 | BL106: 50 | BM106: 0 | BN106: 0 | BO106: 180.06 | BP106: 787.28 | BQ106: 0 | BR106: 0 | BS106: 0 | BT106: 0 | BU106: 15 | BV106: 0 | BW106: 0 | BX106: 0 | BY106: 0 | BZ106: 0 | CA106: 0 | CB106: 0 | CC106: 0 | CD106: 0 | CE106: 0 | CF106: 604.8 | CG106: 0 | CH106: 0 | CI106: 0 | CJ106: 0 | CK106: 0 | CL106: 0 | CM106: 0 | CN106: 0 | CO106: 0 | CP106: -0.85 | CQ106: 0.98 | CR106: 3427.77 | CS106: 3579 | CT106: 610.52 | CU106: 50.88 | CV106: 4240.4
A107: 000109 | B107: 1990-07-18 | C107: 21 | D107: 0 | E107: 0 | F107: 11235 | G107: 0 | H107: 0 | I107: 67.5 | J107: 0 | K107: 0 | L107: 0 | M107: 0 | N107: 0 | O107: 0 | P107: 0 | Q107: 0 | R107: 0 | S107: 0 | T107: 0 | U107: 0 | V107: 0 | W107: 0 | X107: 0 | Y107: 0 | Z107: 0 | AA107: 0 | AB107: 0 | AC107: 50 | AD107: 0 | AE107: 0 | AF107: 0 | AG107: 0 | AH107: 0 | AI107: 0 | AJ107: 0 | AK107: 60.02 | AL107: 0 | AM107: 0 | AN107: 0 | AO107: 0 | AP107: 0 | AQ107: 0 | AR107: 0 | AS107: 0 | AT107: 0 | AU107: 1109.55 | AV107: 1902.08 | AW107: 0 | AX107: 0 | AY107: 0 | AZ107: 0 | BA107: 0 | BB107: 128.39 | BC107: 14552.54 | BD107: 1135.25 | BE107: 204.35 | BF107: 90.82 | BG107: 0 | BH107: 1883.15 | BI107: 5 | BJ107: 0 | BK107: 0 | BL107: 0 | BM107: 0 | BN107: 0 | BO107: 60.02 | BP107: 741.46 | BQ107: 72.61 | BR107: 0 | BS107: 0 | BT107: 60 | BU107: 0 | BV107: 40 | BW107: 0 | BX107: 0 | BY107: 0 | BZ107: 0 | CA107: 0 | CB107: 0 | CC107: 0 | CD107: 0 | CE107: 0 | CF107: 0 | CG107: 0 | CH107: 0 | CI107: 0 | CJ107: 0 | CK107: 0 | CL107: 0 | CM107: 0 | CN107: 0 | CO107: 0 | CP107: -0.3 | CQ107: 0.18 | CR107: 4292.54 | CS107: 10260 | CT107: 1021.73 | CU107: 85.14 | CV107: 11366.87
A108: 000110 | B108: 1990-08-13 | C108: 21 | D108: 0 | E108: 0 | F108: 12439 | G108: 0 | H108: 0 | I108: 67.5 | J108: 0 | K108: 0 | L108: 0 | M108: 0 | N108: 0 | O108: 0 | P108: 0 | Q108: 0 | R108: 0 | S108: 0 | T108: 0 | U108: 0 | V108: 0 | W108: 0 | X108: 0 | Y108: 0 | Z108: 0 | AA108: 0 | AB108: 0 | AC108: 70 | AD108: 0 | AE108: 0 | AF108: 0 | AG108: 0 | AH108: 0 | AI108: 0 | AJ108: 0 | AK108: 60.02 | AL108: 0 | AM108: 0 | AN108: 0 | AO108: 0 | AP108: 0 | AQ108: 0 | AR108: 0 | AS108: 0 | AT108: 0 | AU108: 1226.6 | AV108: 2102.75 | AW108: 0 | AX108: 0 | AY108: 0 | AZ108: 0 | BA108: 0 | BB108: 141.94 | BC108: 16107.81 | BD108: 1257.65 | BE108: 226.38 | BF108: 90.82 | BG108: 0 | BH108: 2185.18 | BI108: 5 | BJ108: 0 | BK108: 0 | BL108: 0 | BM108: 0 | BN108: 0 | BO108: 60.02 | BP108: 1224.05 | BQ108: 0 | BR108: 0 | BS108: 0 | BT108: 10 | BU108: 0 | BV108: 130 | BW108: 0 | BX108: 0 | BY108: 0 | BZ108: 0 | CA108: 0 | CB108: 0 | CC108: 0 | CD108: 0 | CE108: 0 | CF108: 0 | CG108: 0 | CH108: 80 | CI108: 0 | CJ108: 0 | CK108: 0 | CL108: 0 | CM108: 0 | CN108: 0 | CO108: 0 | CP108: -0.14 | CQ108: 0.85 | CR108: 5269.81 | CS108: 10838 | CT108: 1131.89 | CU108: 94.32 | CV108: 12064.21
A109: 000111 | B109: 1990-08-13 | C109: 30 | D109: 8849 | E109: 0 | F109: 0 | G109: 0 | H109: 0 | I109: 67.5 | J109: 0 | K109: 0 | L109: 0 | M109: 0 | N109: 0 | O109: 0 | P109: 0 | Q109: 0 | R109: 0 | S109: 0 | T109: 0 | U109: 0 | V109: 0 | W109: 0 | X109: 0 | Y109: 0 | Z109: 0 | AA109: 0 | AB109: 0 | AC109: 55 | AD109: 0 | AE109: 0 | AF109: 0 | AG109: 0 | AH109: 0 | AI109: 0 | AJ109: 0 | AK109: 60.02 | AL109: 0 | AM109: 0 | AN109: 0 | AO109: 0 | AP109: 0 | AQ109: 0 | AR109: 0 | AS109: 0 | AT109: 0 | AU109: 0 | AV109: 0 | AW109: 0 | AX109: 0 | AY109: 0 | AZ109: 0 | BA109: 0 | BB109: 0 | BC109: 9031.52 | BD109: 897.15 | BE109: 157 | BF109: 101 | BG109: 0 | BH109: 1268.82 | BI109: 0 | BJ109: 0 | BK109: 0 | BL109: 0 | BM109: 0 | BN109: 0 | BO109: 60.02 | BP109: 495.11 | BQ109: 773.11 | BR109: 0 | BS109: 0 | BT109: 90 | BU109: 0 | BV109: 20 | BW109: 0 | BX109: 0 | BY109: 0 | BZ109: 0 | CA109: 0 | CB109: 0 | CC109: 0 | CD109: 0 | CE109: 0 | CF109: 884.9 | CG109: 0 | CH109: 0 | CI109: 0 | CJ109: 0 | CK109: 0 | CL109: 0 | CM109: 0 | CN109: 0 | CO109: 0 | CP109: -0.46 | CQ109: 0.87 | CR109: 4747.52 | CS109: 4284 | CT109: 807.44 | CU109: 67.29 | CV109: 5158.73
A110: 000112 | B110: 1990-08-13 | C110: 30 | D110: 10094 | E110: 0 | F110: 0 | G110: 0 | H110: 0 | I110: 0 | J110: 0 | K110: 0 | L110: 0 | M110: 0 | N110: 0 | O110: 0 | P110: 0 | Q110: 0 | R110: 0 | S110: 0 | T110: 0 | U110: 0 | V110: 0 | W110: 0 | X110: 0 | Y110: 0 | Z110: 0 | AA110: 0 | AB110: 0 | AC110: 30 | AD110: 0 | AE110: 0 | AF110: 0 | AG110: 0 | AH110: 0 | AI110: 0 | AJ110: 0 | AK110: 60.02 | AL110: 0 | AM110: 0 | AN110: 0 | AO110: 0 | AP110: 0 | AQ110: 0 | AR110: 0 | AS110: 0 | AT110: 0 | AU110: 0 | AV110: 0 | AW110: 0 | AX110: 0 | AY110: 0 | AZ110: 0 | BA110: 0 | BB110: 0 | BC110: 10184.02 | BD110: 1012.4 | BE110: 177.17 | BF110: 101 | BG110: 0 | BH110: 1552.06 | BI110: 0 | BJ110: 0 | BK110: 0 | BL110: 0 | BM110: 0 | BN110: 0 | BO110: 60.02 | BP110: 401.05 | BQ110: 0 | BR110: 0 | BS110: 0 | BT110: 0 | BU110: 0 | BV110: 60 | BW110: 0 | BX110: 0 | BY110: 0 | BZ110: 0 | CA110: 0 | CB110: 0 | CC110: 0 | CD110: 0 | CE110: 0 | CF110: 1009.4 | CG110: 0 | CH110: 80 | CI110: 0 | CJ110: 0 | CK110: 0 | CL110: 0 | CM110: 0 | CN110: 0 | CO110: 0 | CP110: -0.55 | CQ110: 0.47 | CR110: 4453.02 | CS110: 5731 | CT110: 911.16 | CU110: 75.93 | CV110: 6718.09
A111: 000113 | B111: 1990-10-25 | C111: 3 | D111: 4707.5 | E111: 0 | F111: 0 | G111: 0 | H111: 0 | I111: 175 | J111: 0 | K111: 157.5 | L111: 51 | M111: 0 | N111: 0 | O111: 0 | P111: 0 | Q111: 0 | R111: 0 | S111: 0 | T111: 0 | U111: 81.69 | V111: 415.04 | W111: 0 | X111: 0 | Y111: 0 | Z111: 0 | AA111: 0 | AB111: 0 | AC111: 97.5 | AD111: 0 | AE111: 0 | AF111: 0 | AG111: 124.8 | AH111: 819.33 | AI111: 0 | AJ111: 0 | AK111: 180.06 | AL111: 0 | AM111: 0 | AN111: 0 | AO111: 0 | AP111: 0 | AQ111: 0 | AR111: 0 | AS111: 0 | AT111: 0 | AU111: 0 | AV111: 0 | AW111: 0 | AX111: 0 | AY111: 0 | AZ111: 0 | BA111: 0 | BB111: 0 | BC111: 6809.42 | BD111: 650.46 | BE111: 113.83 | BF111: 83.91 | BG111: 0 | BH111: 843.24 | BI111: 0 | BJ111: 0 | BK111: 0 | BL111: 50 | BM111: 0 | BN111: 0 | BO111: 180.06 | BP111: 787.28 | BQ111: 0 | BR111: 0 | BS111: 0 | BT111: 0 | BU111: 195 | BV111: 0 | BW111: 0 | BX111: 0 | BY111: 0 | BZ111: 0 | CA111: 0 | CB111: 0 | CC111: 0 | CD111: 0 | CE111: 0 | CF111: 491.6 | CG111: 0 | CH111: 0 | CI111: 0 | CJ111: 0 | CK111: 0 | CL111: 0 | CM111: 0 | CN111: 0 | CO111: 0 | CP111: -0.87 | CQ111: 0.91 | CR111: 3395.42 | CS111: 3414 | CT111: 585.41 | CU111: 48.78 | CV111: 4048.19
A112: 000114 | B112: 1990-11-06 | C112: 21 | D112: 0 | E112: 0 | F112: 10615 | G112: 0 | H112: 0 | I112: 67.5 | J112: 0 | K112: 0 | L112: 0 | M112: 0 | N112: 0 | O112: 0 | P112: 0 | Q112: 0 | R112: 0 | S112: 0 | T112: 0 | U112: 0 | V112: 0 | W112: 0 | X112: 0 | Y112: 0 | Z112: 0 | AA112: 0 | AB112: 0 | AC112: 0 | AD112: 0 | AE112: 510 | AF112: 0 | AG112: 0 | AH112: 0 | AI112: 0 | AJ112: 3393.67 | AK112: 60.02 | AL112: 0 | AM112: 0 | AN112: 0 | AO112: 0 | AP112: 0 | AQ112: 0 | AR112: 0 | AS112: 0 | AT112: 0 | AU112: 1097.1 | AV112: 1880.75 | AW112: 0 | AX112: 0 | AY112: 0 | AZ112: 0 | BA112: 0 | BB112: 126.95 | BC112: 17750.99 | BD112: 1119.25 | BE112: 201.47 | BF112: 90.82 | BG112: 0 | BH112: 2557.44 | BI112: 0 | BJ112: 0 | BK112: 0 | BL112: 0 | BM112: 0 | BN112: 0 | BO112: 60.02 | BP112: 741.46 | BQ112: 0 | BR112: 0 | BS112: 0 | BT112: 0 | BU112: 0 | BV112: 0 | BW112: 0 | BX112: 0 | BY112: 0 | BZ112: 0 | CA112: 0 | CB112: 0 | CC112: 0 | CD112: 0 | CE112: 0 | CF112: 0 | CG112: 0 | CH112: 0 | CI112: 0 | CJ112: 0 | CK112: 0 | CL112: 0 | CM112: 0 | CN112: 0 | CO112: 0 | CP112: -0.75 | CQ112: 0.28 | CR112: 4769.99 | CS112: 12981 | CT112: 1007.33 | CU112: 83.94 | CV112: 14072.27
A113: 000115 | B113: 1990-11-05 | C113: 21 | D113: 0 | E113: 0 | F113: 11391 | G113: 0 | H113: 0 | I113: 67.5 | J113: 0 | K113: 0 | L113: 0 | M113: 0 | N113: 0 | O113: 0 | P113: 0 | Q113: 0 | R113: 0 | S113: 0 | T113: 0 | U113: 0 | V113: 0 | W113: 0 | X113: 0 | Y113: 0 | Z113: 0 | AA113: 0 | AB113: 0 | AC113: 80 | AD113: 0 | AE113: 0 | AF113: 0 | AG113: 0 | AH113: 0 | AI113: 0 | AJ113: 0 | AK113: 60.02 | AL113: 0 | AM113: 0 | AN113: 0 | AO113: 0 | AP113: 0 | AQ113: 0 | AR113: 0 | AS113: 0 | AT113: 0 | AU113: 1124.72 | AV113: 1928.08 | AW113: 0 | AX113: 0 | AY113: 0 | AZ113: 0 | BA113: 0 | BB113: 130.15 | BC113: 14781.47 | BD113: 1153.85 | BE113: 207.69 | BF113: 90.82 | BG113: 0 | BH113: 1928.04 | BI113: 5 | BJ113: 0 | BK113: 0 | BL113: 0 | BM113: 0 | BN113: 0 | BO113: 60.02 | BP113: 690.36 | BQ113: 1256.33 | BR113: 0 | BS113: 0 | BT113: 40 | BU113: 0 | BV113: 120 | BW113: 0 | BX113: 0 | BY113: 0 | BZ113: 0 | CA113: 0 | CB113: 0 | CC113: 0 | CD113: 0 | CE113: 0 | CF113: 0 | CG113: 0 | CH113: 0 | CI113: 0 | CJ113: 0 | CK113: 0 | CL113: 0 | CM113: 0 | CN113: 0 | CO113: 0 | CP113: -0.44 | CQ113: 0.8 | CR113: 5552.47 | CS113: 9229 | CT113: 1038.47 | CU113: 86.54 | CV113: 10354.01
A114: 000116 | B114: 1990-11-02 | C114: 21 | D114: 0 | E114: 0 | F114: 12912 | G114: 0 | H114: 0 | I114: 67.5 | J114: 0 | K114: 0 | L114: 0 | M114: 0 | N114: 0 | O114: 0 | P114: 0 | Q114: 0 | R114: 0 | S114: 0 | T114: 0 | U114: 0 | V114: 0 | W114: 0 | X114: 0 | Y114: 0 | Z114: 0 | AA114: 0 | AB114: 0 | AC114: 40 | AD114: 0 | AE114: 0 | AF114: 0 | AG114: 0 | AH114: 0 | AI114: 0 | AJ114: 0 | AK114: 60.02 | AL114: 0 | AM114: 0 | AN114: 0 | AO114: 0 | AP114: 0 | AQ114: 0 | AR114: 0 | AS114: 0 | AT114: 0 | AU114: 1272.59 | AV114: 2181.58 | AW114: 0 | AX114: 0 | AY114: 0 | AZ114: 0 | BA114: 0 | BB114: 147.26 | BC114: 16680.95 | BD114: 1301.95 | BE114: 253.88 | BF114: 106.48 | BG114: 0 | BH114: 2295.88 | BI114: 0 | BJ114: 0 | BK114: 0 | BL114: 0 | BM114: 0 | BN114: 0 | BO114: 60.02 | BP114: 1178.6 | BQ114: 0 | BR114: 0 | BS114: 0 | BT114: 0 | BU114: 0 | BV114: 80 | BW114: 0 | BX114: 0 | BY114: 0 | BZ114: 0 | CA114: 0 | CB114: 0 | CC114: 0 | CD114: 0 | CE114: 0 | CF114: 0 | CG114: 0 | CH114: 0 | CI114: 0 | CJ114: 0 | CK114: 0 | CL114: 0 | CM114: 0 | CN114: 0 | CO114: 0 | CP114: -0.25 | CQ114: 0.39 | CR114: 5276.95 | CS114: 11404 | CT114: 1171.76 | CU114: 97.65 | CV114: 12673.41
A115: 000117 | B115: 1990-11-02 | C115: 21 | D115: 0 | E115: 0 | F115: 11274 | G115: 0 | H115: 0 | I115: 67.5 | J115: 0 | K115: 0 | L115: 0 | M115: 0 | N115: 0 | O115: 0 | P115: 0 | Q115: 0 | R115: 0 | S115: 0 | T115: 0 | U115: 0 | V115: 0 | W115: 0 | X115: 0 | Y115: 0 | Z115: 0 | AA115: 0 | AB115: 0 | AC115: 50 | AD115: 0 | AE115: 0 | AF115: 0 | AG115: 0 | AH115: 0 | AI115: 0 | AJ115: 0 | AK115: 60.02 | AL115: 0 | AM115: 0 | AN115: 0 | AO115: 0 | AP115: 0 | AQ115: 0 | AR115: 0 | AS115: 0 | AT115: 0 | AU115: 1113.34 | AV115: 1908.58 | AW115: 0 | AX115: 0 | AY115: 0 | AZ115: 0 | BA115: 0 | BB115: 128.83 | BC115: 14602.27 | BD115: 1139.15 | BE115: 243.78 | BF115: 111.18 | BG115: 0 | BH115: 1892.8 | BI115: 5 | BJ115: 0 | BK115: 0 | BL115: 0 | BM115: 0 | BN115: 0 | BO115: 60.02 | BP115: 957.61 | BQ115: 0 | BR115: 0 | BS115: 0 | BT115: 100 | BU115: 0 | BV115: 0 | BW115: 0 | BX115: 0 | BY115: 0 | BZ115: 0 | CA115: 0 | CB115: 0 | CC115: 0 | CD115: 0 | CE115: 0 | CF115: 0 | CG115: 0 | CH115: 0 | CI115: 0 | CJ115: 0 | CK115: 0 | CL115: 0 | CM115: 0 | CN115: 0 | CO115: 0 | CP115: -0.57 | CQ115: 0.3 | CR115: 4509.27 | CS115: 10093 | CT115: 1025.24 | CU115: 85.44 | CV115: 11203.68
A116: 000118 | B116: 1990-11-29 | C116: 3 | D116: 8119.64 | E116: 0 | F116: 0 | G116: 0 | H116: 0 | I116: 175 | J116: 0 | K116: 151.41 | L116: 48.95 | M116: 0 | N116: 0 | O116: 0 | P116: 0 | Q116: 0 | R116: 0 | S116: 0 | T116: 0 | U116: 81.69 | V116: 377.31 | W116: 960 | X116: 0 | Y116: 0 | Z116: 0 | AA116: 0 | AB116: 0 | AC116: 78.75 | AD116: 0 | AE116: 0 | AF116: 0 | AG116: 124.8 | AH116: 1664 | AI116: 0 | AJ116: 0 | AK116: 180.06 | AL116: 0 | AM116: 0 | AN116: 0 | AO116: 1000 | AP116: 0 | AQ116: 0 | AR116: 0 | AS116: 0 | AT116: 0 | AU116: 0 | AV116: 0 | AW116: 0 | AX116: 0 | AY116: 0 | AZ116: 0 | BA116: 0 | BB116: 0 | BC116: 12961.61 | BD116: 1265.68 | BE116: 221.49 | BF116: 101 | BG116: 0 | BH116: 1663.8 | BI116: 0 | BJ116: 0 | BK116: 0 | BL116: 0 | BM116: 0 | BN116: 0 | BO116: 180.06 | BP116: 469.23 | BQ116: 0 | BR116: 0 | BS116: 0 | BT116: 0 | BU116: 157.5 | BV116: 0 | BW116: 0 | BX116: 0 | BY116: 0 | BZ116: 0 | CA116: 0 | CB116: 0 | CC116: 0 | CD116: 0 | CE116: 0 | CF116: 0 | CG116: 0 | CH116: 0 | CI116: 1000 | CJ116: 0 | CK116: 0 | CL116: 0 | CM116: 0 | CN116: 0 | CO116: 0 | CP116: -0.41 | CQ116: 0.41 | CR116: 5058.76 | CS116: 7902.85 | CT116: 1139.11 | CU116: 102.43 | CV116: 9144.39
A117: 000119 | B117: 1990-12-11 | C117: 30 | D117: 5872 | E117: 0 | F117: 0 | G117: 0 | H117: 0 | I117: 67.5 | J117: 0 | K117: 0 | L117: 0 | M117: 0 | N117: 0 | O117: 0 | P117: 0 | Q117: 0 | R117: 0 | S117: 0 | T117: 0 | U117: 0 | V117: 0 | W117: 0 | X117: 0 | Y117: 0 | Z117: 0 | AA117: 0 | AB117: 0 | AC117: 40 | AD117: 0 | AE117: 0 | AF117: 0 | AG117: 0 | AH117: 0 | AI117: 0 | AJ117: 0 | AK117: 60.02 | AL117: 0 | AM117: 0 | AN117: 1280 | AO117: 0 | AP117: 0 | AQ117: 0 | AR117: 0 | AS117: 0 | AT117: 0 | AU117: 0 | AV117: 0 | AW117: 0 | AX117: 0 | AY117: 0 | AZ117: 0 | BA117: 0 | BB117: 0 | BC117: 7319.52 | BD117: 597.95 | BE117: 127.96 | BF117: 84.91 | BG117: 0 | BH117: 927.04 | BI117: 0 | BJ117: 0 | BK117: 0 | BL117: 0 | BM117: 0 | BN117: 0 | BO117: 60.02 | BP117: 125.38 | BQ117: 0 | BR117: 0 | BS117: 0 | BT117: 80 | BU117: 0 | BV117: 0 | BW117: 0 | BX117: 0 | BY117: 0 | BZ117: 0 | CA117: 0 | CB117: 0 | CC117: 0 | CD117: 0 | CE117: 0 | CF117: 587.2 | CG117: 0 | CH117: 0 | CI117: 0 | CJ117: 0 | CK117: 0 | CL117: 0 | CM117: 0 | CN117: 0 | CO117: 0 | CP117: -0.57 | CQ117: 0.63 | CR117: 2590.52 | CS117: 4729 | CT117: 538.16 | CU117: 44.85 | CV117: 5312.01
A118: 000120 | B118: 1990-12-17 | C118: 30 | D118: 5874.19 | E118: 0 | F118: 0 | G118: 0 | H118: 0 | I118: 67.5 | J118: 0 | K118: 0 | L118: 0 | M118: 0 | N118: 0 | O118: 0 | P118: 0 | Q118: 0 | R118: 0 | S118: 0 | T118: 0 | U118: 0 | V118: 0 | W118: 0 | X118: 0 | Y118: 0 | Z118: 0 | AA118: 0 | AB118: 0 | AC118: 35 | AD118: 0 | AE118: 0 | AF118: 0 | AG118: 0 | AH118: 0 | AI118: 0 | AJ118: 0 | AK118: 60.02 | AL118: 0 | AM118: 0 | AN118: 0 | AO118: 0 | AP118: 0 | AQ118: 0 | AR118: 0 | AS118: 0 | AT118: 0 | AU118: 0 | AV118: 0 | AW118: 0 | AX118: 0 | AY118: 0 | AZ118: 0 | BA118: 0 | BB118: 0 | BC118: 6036.71 | BD118: 597.67 | BE118: 107.58 | BF118: 69.33 | BG118: 0 | BH118: 735.97 | BI118: 0 | BJ118: 0 | BK118: 0 | BL118: 0 | BM118: 0 | BN118: 0 | BO118: 60.02 | BP118: 787.28 | BQ118: 0 | BR118: 0 | BS118: 0 | BT118: 10 | BU118: 0 | BV118: 60 | BW118: 0 | BX118: 0 | BY118: 0 | BZ118: 0 | CA118: 0 | CB118: 0 | CC118: 0 | CD118: 0 | CE118: 0 | CF118: 0 | CG118: 0 | CH118: 0 | CI118: 0 | CJ118: 0 | CK118: 0 | CL118: 0 | CM118: 0 | CN118: 0 | CO118: 0 | CP118: -0.26 | CQ118: 0.12 | CR118: 2427.71 | CS118: 3609 | CT118: 537.9 | CU118: 44.83 | CV118: 4191.73
A119: 000121 | B119: 1990-12-17 | C119: 21 | D119: 0 | E119: 0 | F119: 14162 | G119: 0 | H119: 0 | I119: 67.5 | J119: 0 | K119: 0 | L119: 0 | M119: 0 | N119: 0 | O119: 0 | P119: 0 | Q119: 0 | R119: 0 | S119: 0 | T119: 0 | U119: 0 | V119: 0 | W119: 0 | X119: 0 | Y119: 0 | Z119: 0 | AA119: 0 | AB119: 0 | AC119: 60 | AD119: 0 | AE119: 0 | AF119: 0 | AG119: 0 | AH119: 0 | AI119: 0 | AJ119: 0 | AK119: 60.02 | AL119: 0 | AM119: 0 | AN119: 0 | AO119: 0 | AP119: 0 | AQ119: 0 | AR119: 0 | AS119: 0 | AT119: 0 | AU119: 1394.12 | AV119: 2389.92 | AW119: 0 | AX119: 0 | AY119: 0 | AZ119: 0 | BA119: 0 | BB119: 161.32 | BC119: 18294.88 | BD119: 1428.95 | BE119: 278.65 | BF119: 106.48 | BG119: 0 | BH119: 2609.28 | BI119: 0 | BJ119: 0 | BK119: 0 | BL119: 0 | BM119: 0 | BN119: 0 | BO119: 60.02 | BP119: 1127.5 | BQ119: 0 | BR119: 0 | BS119: 0 | BT119: 60 | BU119: 0 | BV119: 60 | BW119: 0 | BX119: 0 | BY119: 0 | BZ119: 0 | CA119: 0 | CB119: 0 | CC119: 0 | CD119: 0 | CE119: 0 | CF119: 0 | CG119: 0 | CH119: 0 | CI119: 0 | CJ119: 0 | CK119: 0 | CL119: 0 | CM119: 0 | CN119: 0 | CO119: 0 | CP119: -0.74 | CQ119: 0.74 | CR119: 5730.88 | CS119: 12564 | CT119: 1286.06 | CU119: 107.17 | CV119: 13957.23
A120: 000122 | B120: 1991-01-16 | C120: 3 | D120: 7535.49 | E120: 0 | F120: 0 | G120: 0 | H120: 0 | I120: 175 | J120: 0 | K120: 227.1 | L120: 73.41 | M120: 0 | N120: 0 | O120: 0 | P120: 0 | Q120: 0 | R120: 0 | S120: 0 | T120: 0 | U120: 0 | V120: 150.92 | W120: 0 | X120: 0 | Y120: 0 | Z120: 0 | AA120: 0 | AB120: 0 | AC120: 33.75 | AD120: 0 | AE120: 0 | AF120: 0 | AG120: 43.2 | AH120: 522.4 | AI120: 0 | AJ120: 0 | AK120: 180.06 | AL120: 0 | AM120: 0 | AN120: 0 | AO120: 0 | AP120: 0 | AQ120: 0 | AR120: 0 | AS120: 0 | AT120: 0 | AU120: 0 | AV120: 0 | AW120: 0 | AX120: 0 | AY120: 0 | AZ120: 0 | BA120: 0 | BB120: 0 | BC120: 8941.33 | BD120: 871.81 | BE120: 152.57 | BF120: 101 | BG120: 0 | BH120: 1223.57 | BI120: 0 | BJ120: 0 | BK120: 0 | BL120: 0 | BM120: 0 | BN120: 0 | BO120: 180.06 | BP120: 469.23 | BQ120: 0 | BR120: 0 | BS120: 0 | BT120: 0 | BU120: 67.5 | BV120: 0 | BW120: 0 | BX120: 0 | BY120: 0 | BZ120: 0 | CA120: 0 | CB120: 0 | CC120: 0 | CD120: 0 | CE120: 0 | CF120: 0 | CG120: 0 | CH120: 0 | CI120: 0 | CJ120: 0 | CK120: 0 | CL120: 0 | CM120: 0 | CN120: 0 | CO120: 0 | CP120: -0.39 | CQ120: 0.98 | CR120: 3066.33 | CS120: 5875 | CT120: 784.63 | CU120: 65.39 | CV120: 6725.02
A121: 000123 | B121: 1991-04-01 | C121: 21 | D121: 0 | E121: 0 | F121: 13773 | G121: 0 | H121: 0 | I121: 67.5 | J121: 0 | K121: 0 | L121: 0 | M121: 0 | N121: 0 | O121: 0 | P121: 0 | Q121: 0 | R121: 0 | S121: 0 | T121: 0 | U121: 0 | V121: 0 | W121: 0 | X121: 0 | Y121: 0 | Z121: 0 | AA121: 0 | AB121: 0 | AC121: 100 | AD121: 0 | AE121: 0 | AF121: 0 | AG121: 0 | AH121: 0 | AI121: 0 | AJ121: 0 | AK121: 60.02 | AL121: 0 | AM121: 0 | AN121: 0 | AO121: 0 | AP121: 0 | AQ121: 0 | AR121: 0 | AS121: 0 | AT121: 0 | AU121: 1356.3 | AV121: 2325.08 | AW121: 0 | AX121: 0 | AY121: 0 | AZ121: 0 | BA121: 0 | BB121: 156.94 | BC121: 17838.84 | BD121: 1394.05 | BE121: 250.93 | BF121: 90.82 | BG121: 0 | BH121: 2521.46 | BI121: 0 | BJ121: 0 | BK121: 0 | BL121: 0 | BM121: 0 | BN121: 0 | BO121: 60.02 | BP121: 1127.5 | BQ121: 0 | BR121: 0 | BS121: 0 | BT121: 0 | BU121: 0 | BV121: 200 | BW121: 0 | BX121: 0 | BY121: 0 | BZ121: 0 | CA121: 0 | CB121: 0 | CC121: 0 | CD121: 0 | CE121: 0 | CF121: 0 | CG121: 0 | CH121: 0 | CI121: 0 | CJ121: 0 | CK121: 0 | CL121: 0 | CM121: 0 | CN121: 0 | CO121: 0 | CP121: -0.67 | CQ121: 0.73 | CR121: 5644.84 | CS121: 12194 | CT121: 1254.65 | CU121: 104.55 | CV121: 13553.2
A122: 000124 | B122: 1991-06-17 | C122: 3 | D122: 6158.47 | E122: 0 | F122: 0 | G122: 0 | H122: 0 | I122: 175 | J122: 0 | K122: 187.06 | L122: 60.47 | M122: 0 | N122: 0 | O122: 0 | P122: 0 | Q122: 0 | R122: 0 | S122: 0 | T122: 0 | U122: 0 | V122: 0 | W122: 246.38 | X122: 0 | Y122: 0 | Z122: 0 | AA122: 0 | AB122: 0 | AC122: 26.25 | AD122: 0 | AE122: 0 | AF122: 0 | AG122: 38.4 | AH122: 747.37 | AI122: 0 | AJ122: 0 | AK122: 180.06 | AL122: 0 | AM122: 0 | AN122: 0 | AO122: 1000 | AP122: 0 | AQ122: 0 | AR122: 0 | AS122: 0 | AT122: 0 | AU122: 0 | AV122: 0 | AW122: 0 | AX122: 0 | AY122: 0 | AZ122: 0 | BA122: 0 | BB122: 0 | BC122: 8819.46 | BD122: 860.1 | BE122: 167.72 | BF122: 106.48 | BG122: 0 | BH122: 1242.96 | BI122: 0 | BJ122: 0 | BK122: 0 | BL122: 50 | BM122: 0 | BN122: 0 | BO122: 180.06 | BP122: 495.11 | BQ122: 0 | BR122: 0 | BS122: 0 | BT122: 0 | BU122: 52.5 | BV122: 0 | BW122: 0 | BX122: 0 | BY122: 0 | BZ122: 0 | CA122: 0 | CB122: 0 | CC122: 0 | CD122: 0 | CE122: 0 | CF122: 631.1 | CG122: 0 | CH122: 0 | CI122: 1000 | CJ122: 0 | CK122: 0 | CL122: 0 | CM122: 0 | CN122: 0 | CO122: 0 | CP122: -0.48 | CQ122: 0.79 | CR122: 4786.34 | CS122: 4033.12 | CT122: 774.09 | CU122: 72.01 | CV122: 4879.22
A123: 000125 | B123: 1991-08-15 | C123: 30 | D123: 11526 | E123: 0 | F123: 0 | G123: 0 | H123: 0 | I123: 0 | J123: 0 | K123: 0 | L123: 0 | M123: 0 | N123: 0 | O123: 0 | P123: 0 | Q123: 0 | R123: 0 | S123: 0 | T123: 0 | U123: 0 | V123: 0 | W123: 0 | X123: 0 | Y123: 0 | Z123: 0 | AA123: 0 | AB123: 0 | AC123: 55 | AD123: 0 | AE123: 0 | AF123: 0 | AG123: 0 | AH123: 0 | AI123: 0 | AJ123: 0 | AK123: 60.02 | AL123: 0 | AM123: 0 | AN123: 0 | AO123: 0 | AP123: 0 | AQ123: 0 | AR123: 0 | AS123: 0 | AT123: 0 | AU123: 0 | AV123: 0 | AW123: 0 | AX123: 0 | AY123: 0 | AZ123: 0 | BA123: 0 | BB123: 0 | BC123: 11641.02 | BD123: 1158.1 | BE123: 202.67 | BF123: 101 | BG123: 0 | BH123: 1908.15 | BI123: 0 | BJ123: 0 | BK123: 0 | BL123: 0 | BM123: 0 | BN123: 0 | BO123: 60.02 | BP123: 347.17 | BQ123: 0 | BR123: 0 | BS123: 0 | BT123: 70 | BU123: 0 | BV123: 40 | BW123: 0 | BX123: 0 | BY123: 0 | BZ123: 0 | CA123: 0 | CB123: 0 | CC123: 0 | CD123: 0 | CE123: 0 | CF123: 1152.6 | CG123: 0 | CH123: 0 | CI123: 0 | CJ123: 0 | CK123: 0 | CL123: 0 | CM123: 0 | CN123: 0 | CO123: 0 | CP123: -0.36 | CQ123: 0.67 | CR123: 5040.02 | CS123: 6601 | CT123: 1042.29 | CU123: 86.86 | CV123: 7730.15
A124: 000126 | B124: 1991-12-12 | C124: 3 | D124: 4842.97 | E124: 0 | F124: 0 | G124: 0 | H124: 0 | I124: 230 | J124: 0 | K124: 222.21 | L124: 71.82 | M124: 0 | N124: 0 | O124: 0 | P124: 0 | Q124: 0 | R124: 0 | S124: 0 | T124: 0 | U124: 27.23 | V124: 264.12 | W124: 395.15 | X124: 395.15 | Y124: 0 | Z124: 0 | AA124: 0 | AB124: 0 | AC124: 26.25 | AD124: 0 | AE124: 0 | AF124: 0 | AG124: 72 | AH124: 513.7 | AI124: 0 | AJ124: 0 | AK124: 180.06 | AL124: 0 | AM124: 0 | AN124: 1280 | AO124: 0 | AP124: 0 | AQ124: 0 | AR124: 0 | AS124: 0 | AT124: 0 | AU124: 0 | AV124: 0 | AW124: 0 | AX124: 0 | AY124: 0 | AZ124: 0 | BA124: 0 | BB124: 0 | BC124: 8520.66 | BD124: 698.86 | BE124: 122.3 | BF124: 90.15 | BG124: 0 | BH124: 1140.22 | BI124: 5 | BJ124: 0 | BK124: 0 | BL124: 50 | BM124: 0 | BN124: 0 | BO124: 180.06 | BP124: 803.78 | BQ124: 0 | BR124: 0 | BS124: 0 | BT124: 0 | BU124: 52.5 | BV124: 0 | BW124: 0 | BX124: 0 | BY124: 0 | BZ124: 0 | CA124: 0 | CB124: 0 | CC124: 0 | CD124: 0 | CE124: 0 | CF124: 513.7 | CG124: 0 | CH124: 0 | CI124: 0 | CJ124: 0 | CK124: 0 | CL124: 0 | CM124: 0 | CN124: 0 | CO124: 0 | CP124: -0.93 | CQ124: 0.02 | CR124: 3655.66 | CS124: 4865 | CT124: 628.97 | CU124: 52.41 | CV124: 5546.38
A125: 000127 | B125: 1991-12-16 | C125: 3 | D125: 4826.95 | E125: 0 | F125: 0 | G125: 0 | H125: 0 | I125: 230 | J125: 0 | K125: 111.13 | L125: 35.92 | M125: 0 | N125: 0 | O125: 0 | P125: 0 | Q125: 0 | R125: 0 | S125: 0 | T125: 0 | U125: 0 | V125: 226.38 | W125: 0 | X125: 0 | Y125: 0 | Z125: 0 | AA125: 0 | AB125: 0 | AC125: 11.25 | AD125: 0 | AE125: 0 | AF125: 0 | AG125: 43.2 | AH125: 165.8 | AI125: 0 | AJ125: 0 | AK125: 180.06 | AL125: 0 | AM125: 0 | AN125: 0 | AO125: 0 | AP125: 0 | AQ125: 0 | AR125: 0 | AS125: 0 | AT125: 0 | AU125: 0 | AV125: 0 | AW125: 0 | AX125: 0 | AY125: 0 | AZ125: 0 | BA125: 0 | BB125: 0 | BC125: 5830.69 | BD125: 560.74 | BE125: 98.13 | BF125: 72.34 | BG125: 0 | BH125: 695.62 | BI125: 0 | BJ125: 2097.33 | BK125: 0 | BL125: 50 | BM125: 0 | BN125: 0 | BO125: 180.06 | BP125: 787.28 | BQ125: 193.49 | BR125: 0 | BS125: 0 | BT125: 0 | BU125: 22.5 | BV125: 0 | BW125: 0 | BX125: 0 | BY125: 0 | BZ125: 0 | CA125: 0 | CB125: 0 | CC125: 0 | CD125: 0 | CE125: 0 | CF125: 0 | CG125: 0 | CH125: 0 | CI125: 0 | CJ125: 0 | CK125: 0 | CL125: 0 | CM125: 0 | CN125: 0 | CO125: 0 | CP125: -0.8 | CQ125: 0 | CR125: 4756.69 | CS125: 1074 | CT125: 504.67 | CU125: 42.06 | CV125: 1620.73
A126: 000128 | B126: 1992-01-02 | C126: 21 | D126: 0 | E126: 0 | F126: 16555 | G126: 0 | H126: 0 | I126: 67.5 | J126: 0 | K126: 0 | L126: 0 | M126: 0 | N126: 0 | O126: 0 | P126: 0 | Q126: 0 | R126: 0 | S126: 0 | T126: 0 | U126: 0 | V126: 0 | W126: 0 | X126: 0 | Y126: 0 | Z126: 0 | AA126: 0 | AB126: 0 | AC126: 5 | AD126: 0 | AE126: 0 | AF126: 0 | AG126: 0 | AH126: 0 | AI126: 0 | AJ126: 0 | AK126: 60.02 | AL126: 0 | AM126: 0 | AN126: 0 | AO126: 0 | AP126: 0 | AQ126: 0 | AR126: 0 | AS126: 0 | AT126: 0 | AU126: 1625.56 | AV126: 2786.67 | AW126: 0 | AX126: 0 | AY126: 0 | AZ126: 0 | BA126: 0 | BB126: 188.1 | BC126: 21287.85 | BD126: 1662.75 | BE126: 290.98 | BF126: 101 | BG126: 0 | BH126: 3288.94 | BI126: 5 | BJ126: 0 | BK126: 0 | BL126: 0 | BM126: 0 | BN126: 0 | BO126: 60.02 | BP126: 219.76 | BQ126: 27.33 | BR126: 0 | BS126: 0 | BT126: 10 | BU126: 0 | BV126: 0 | BW126: 0 | BX126: 0 | BY126: 0 | BZ126: 0 | CA126: 0 | CB126: 0 | CC126: 0 | CD126: 0 | CE126: 0 | CF126: 0 | CG126: 0 | CH126: 0 | CI126: 0 | CJ126: 0 | CK126: 0 | CL126: 0 | CM126: 0 | CN126: 0 | CO126: 0 | CP126: -0.57 | CQ126: 0.64 | CR126: 5665.85 | CS126: 15622 | CT126: 1496.48 | CU126: 124.71 | CV126: 17243.19
A127: 000129 | B127: 1992-02-03 | C127: 30 | D127: 0 | E127: 0 | F127: 0 | G127: 0 | H127: 0 | I127: 285 | J127: 9990.72 | K127: 336.51 | L127: 108.77 | M127: 0 | N127: 0 | O127: 0 | P127: 0 | Q127: 0 | R127: 0 | S127: 0 | T127: 0 | U127: 0 | V127: 0 | W127: 0 | X127: 0 | Y127: 0 | Z127: 0 | AA127: 0 | AB127: 0 | AC127: 0 | AD127: 0 | AE127: 2087.2 | AF127: 0 | AG127: 105.6 | AH127: 0 | AI127: 39737.08 | AJ127: 0 | AK127: 300.1 | AL127: 0 | AM127: 10436 | AN127: 0 | AO127: 0 | AP127: 0 | AQ127: 0 | AR127: 0 | AS127: 0 | AT127: 0 | AU127: 0 | AV127: 0 | AW127: 12.5 | AX127: 0 | AY127: 0 | AZ127: 0 | BA127: 0 | BB127: 0 | BC127: 63399.48 | BD127: 2534.39 | BE127: 456.19 | BF127: 90.82 | BG127: 0 | BH127: 18185.54 | BI127: 0 | BJ127: 25598.87 | BK127: 0 | BL127: 0 | BM127: 0 | BN127: 0 | BO127: 300.1 | BP127: 202.94 | BQ127: 0 | BR127: 0 | BS127: 0 | BT127: 0 | BU127: 0 | BV127: 0 | BW127: 0 | BX127: 0 | BY127: 0 | BZ127: 0 | CA127: 0 | CB127: 0 | CC127: 0 | CD127: 0 | CE127: 0 | CF127: 0 | CG127: 11845 | CH127: 0 | CI127: 0 | CJ127: 0 | CK127: 0 | CL127: 0 | CM127: 0 | CN127: 0 | CO127: 0 | CP127: -0.1 | CQ127: 0.93 | CR127: 59214.68 | CS127: 4184.8 | CT127: 2280.95 | CU127: 190.08 | CV127: 6655.83
A128: 000130 | B128: 1992-02-03 | C128: 30 | D128: 0 | E128: 0 | F128: 0 | G128: 0 | H128: 0 | I128: 0 | J128: 5401 | K128: 0 | L128: 0 | M128: 0 | N128: 0 | O128: 0 | P128: 0 | Q128: 0 | R128: 0 | S128: 0 | T128: 0 | U128: 0 | V128: 0 | W128: 0 | X128: 0 | Y128: 0 | Z128: 0 | AA128: 0 | AB128: 0 | AC128: 90 | AD128: 0 | AE128: 0 | AF128: 0 | AG128: 0 | AH128: 0 | AI128: 20565.35 | AJ128: 0 | AK128: 60.02 | AL128: 0 | AM128: 0 | AN128: 0 | AO128: 0 | AP128: 0 | AQ128: 0 | AR128: 0 | AS128: 0 | AT128: 0 | AU128: 0 | AV128: 0 | AW128: 77.5 | AX128: 0 | AY128: 0 | AZ128: 0 | BA128: 0 | BB128: 0 | BC128: =SUM(D128:BB128) -> 26193.87 | BD128: 556.85 | BE128: 97.45 | BF128: 71.83 | BG128: 0 | BH128: 3737.62 | BI128: 5 | BJ128: 0 | BK128: 0 | BL128: 0 | BM128: 0 | BN128: 0 | BO128: 60.02 | BP128: 347.17 | BQ128: 0 | BR128: 0 | BS128: 0 | BT128: 30 | BU128: 0 | BV128: 150 | BW128: 0 | BX128: 0 | BY128: 0 | BZ128: 0 | CA128: 0 | CB128: 0 | CC128: 0 | CD128: 0 | CE128: 0 | CF128: 0 | CG128: 3698 | CH128: 0 | CI128: 0 | CJ128: 0 | CK128: 0 | CL128: 0 | CM128: 0 | CN128: 0 | CO128: 0 | CP128: -0.32 | CQ128: 0.25 | CR128: =SUM(BD128:CQ128) -> 8753.87 | CS128: =+BC128-CR128 -> 17440 | CT128: 501.17 | CU128: 41.76 | CV128: 17982.93
A129: 000131 | B129: 1992-03-16 | C129: 30 | D129: 8372 | E129: 0 | F129: 0 | G129: 0 | H129: 0 | I129: 67.5 | J129: 0 | K129: 0 | L129: 0 | M129: 0 | N129: 0 | O129: 0 | P129: 0 | Q129: 0 | R129: 0 | S129: 0 | T129: 0 | U129: 0 | V129: 0 | W129: 0 | X129: 0 | Y129: 0 | Z129: 0 | AA129: 0 | AB129: 0 | AC129: 110 | AD129: 0 | AE129: 0 | AF129: 0 | AG129: 0 | AH129: 0 | AI129: 0 | AJ129: 0 | AK129: 60.02 | AL129: 0 | AM129: 0 | AN129: 0 | AO129: 0 | AP129: 0 | AQ129: 0 | AR129: 0 | AS129: 0 | AT129: 0 | AU129: 0 | AV129: 0 | AW129: 0 | AX129: 0 | AY129: 0 | AZ129: 0 | BA129: 0 | BB129: 0 | BC129: 8609.52 | BD129: 854.95 | BE129: 149.62 | BF129: 101 | BG129: 0 | BH129: 1160.8 | BI129: 0 | BJ129: 0 | BK129: 0 | BL129: 0 | BM129: 0 | BN129: 0 | BO129: 60.02 | BP129: 401.05 | BQ129: 0 | BR129: 0 | BS129: 0 | BT129: 120 | BU129: 0 | BV129: 100 | BW129: 0 | BX129: 0 | BY129: 0 | BZ129: 0 | CA129: 0 | CB129: 0 | CC129: 0 | CD129: 0 | CE129: 0 | CF129: 0 | CG129: 0 | CH129: 0 | CI129: 0 | CJ129: 0 | CK129: 0 | CL129: 0 | CM129: 0 | CN129: 0 | CO129: 0 | CP129: -0.94 | CQ129: 0.02 | CR129: 2946.52 | CS129: 5663 | CT129: 769.46 | CU129: 64.12 | CV129: 6496.58
A130: 000132 | B130: 1992-04-14 | C130: 3 | D130: 7835 | E130: 0 | F130: 0 | G130: 0 | H130: 0 | I130: 67.5 | J130: 0 | K130: 0 | L130: 0 | M130: 0 | N130: 0 | O130: 0 | P130: 0 | Q130: 0 | R130: 0 | S130: 0 | T130: 0 | U130: 326.77 | V130: 452.77 | W130: 0 | X130: 0 | Y130: 0 | Z130: 0 | AA130: 0 | AB130: 0 | AC130: 18.75 | AD130: 0 | AE130: 0 | AF130: 0 | AG130: 0 | AH130: 261.17 | AI130: 0 | AJ130: 0 | AK130: 60.02 | AL130: 0 | AM130: 0 | AN130: 0 | AO130: 0 | AP130: 0 | AQ130: 0 | AR130: 0 | AS130: 0 | AT130: 0 | AU130: 0 | AV130: 0 | AW130: 0 | AX130: 0 | AY130: 0 | AZ130: 0 | BA130: 0 | BB130: 0 | BC130: 9021.98 | BD130: 896.2 | BE130: 156.83 | BF130: 101 | BG130: 0 | BH130: 1245.28 | BI130: 0 | BJ130: 0 | BK130: 0 | BL130: 0 | BM130: 0 | BN130: 0 | BO130: 60.02 | BP130: 219.44 | BQ130: 0 | BR130: 0 | BS130: 0 | BT130: 0 | BU130: 37.5 | BV130: 0 | BW130: 0 | BX130: 0 | BY130: 0 | BZ130: 0 | CA130: 0 | CB130: 0 | CC130: 0 | CD130: 0 | CE130: 0 | CF130: 0 | CG130: 0 | CH130: 0 | CI130: 0 | CJ130: 0 | CK130: 0 | CL130: 0 | CM130: 0 | CN130: 0 | CO130: 0 | CP130: -0.98 | CQ130: 0.69 | CR130: 2715.98 | CS130: 6306 | CT130: 806.58 | CU130: 67.21 | CV130: 7179.79
A131: 000133 | B131: 1992-06-01 | C131: 21 | D131: 0 | E131: 0 | F131: 12657 | G131: 0 | H131: 0 | I131: 67.5 | J131: 0 | K131: 0 | L131: 0 | M131: 0 | N131: 0 | O131: 0 | P131: 0 | Q131: 0 | R131: 0 | S131: 0 | T131: 0 | U131: 0 | V131: 0 | W131: 0 | X131: 0 | Y131: 0 | Z131: 0 | AA131: 0 | AB131: 0 | AC131: 5 | AD131: 0 | AE131: 0 | AF131: 0 | AG131: 0 | AH131: 0 | AI131: 0 | AJ131: 0 | AK131: 60.02 | AL131: 0 | AM131: 0 | AN131: 0 | AO131: 0 | AP131: 0 | AQ131: 0 | AR131: 0 | AS131: 0 | AT131: 0 | AU131: 1247.8 | AV131: 2139.08 | AW131: 0 | AX131: 0 | AY131: 0 | AZ131: 0 | BA131: 0 | BB131: 144.39 | BC131: 16320.79 | BD131: 1272.95 | BE131: 229.13 | BF131: 90.82 | BG131: 0 | BH131: 2225.45 | BI131: 0 | BJ131: 0 | BK131: 0 | BL131: 0 | BM131: 0 | BN131: 0 | BO131: 60.02 | BP131: 741.46 | BQ131: 0 | BR131: 0 | BS131: 0 | BT131: 10 | BU131: 0 | BV131: 0 | BW131: 0 | BX131: 0 | BY131: 0 | BZ131: 0 | CA131: 0 | CB131: 0 | CC131: 0 | CD131: 0 | CE131: 0 | CF131: 0 | CG131: 0 | CH131: 0 | CI131: 0 | CJ131: 0 | CK131: 0 | CL131: 0 | CM131: 0 | CN131: 0 | CO131: 0 | CP131: -0.36 | CQ131: 0.32 | CR131: 4629.79 | CS131: 11691 | CT131: 1145.66 | CU131: 95.47 | CV131: =SUM(CS131:CU131) -> 12932.13
A132: 000134 | B132: 1992-07-01 | C132: 3 | D132: 9400.99 | E132: 0 | F132: 0 | G132: 0 | H132: 0 | I132: 67.5 | J132: 0 | K132: 0 | L132: 0 | M132: 0 | N132: 0 | O132: 0 | P132: 0 | Q132: 0 | R132: 0 | S132: 0 | T132: 0 | U132: 0 | V132: 0 | W132: 0 | X132: 0 | Y132: 0 | Z132: 0 | AA132: 0 | AB132: 0 | AC132: 63.75 | AD132: 0 | AE132: 0 | AF132: 0 | AG132: 0 | AH132: 2350.25 | AI132: 0 | AJ132: 0 | AK132: 60.02 | AL132: 0 | AM132: 0 | AN132: 0 | AO132: 0 | AP132: 0 | AQ132: 0 | AR132: 0 | AS132: 0 | AT132: 0 | AU132: 0 | AV132: 0 | AW132: 0 | AX132: 0 | AY132: 0 | AZ132: 0 | BA132: 0 | BB132: 0 | BC132: 11942.51 | BD132: 1188.25 | BE132: 213.88 | BF132: 90.82 | BG132: 0 | BH132: 1899.45 | BI132: 0 | BJ132: 0 | BK132: 0 | BL132: 0 | BM132: 0 | BN132: 0 | BO132: 60.02 | BP132: 0 | BQ132: 0 | BR132: 0 | BS132: 0 | BT132: 0 | BU132: 127.5 | BV132: 0 | BW132: 0 | BX132: 0 | BY132: 0 | BZ132: 0 | CA132: 0 | CB132: 0 | CC132: 0 | CD132: 0 | CE132: 0 | CF132: 0 | CG132: 0 | CH132: 0 | CI132: 0 | CJ132: 0 | CK132: 0 | CL132: 0 | CM132: 0 | CN132: 0 | CO132: 0 | CP132: -0.95 | CQ132: 0.54 | CR132: 3579.51 | CS132: 8363 | CT132: 1069.42 | CU132: 89.12 | CV132: 9521.54
A133: 000135 | B133: 1992-07-15 | C133: 3 | D133: 6114.72 | E133: 0 | F133: 0 | G133: 0 | H133: 0 | I133: 0 | J133: 0 | K133: 128.28 | L133: 41 | M133: 0 | N133: 0 | O133: 0 | P133: 0 | Q133: 0 | R133: 0 | S133: 0 | T133: 0 | U133: 0 | V133: 226.38 | W133: 1208.46 | X133: 1208.46 | Y133: 0 | Z133: 0 | AA133: 0 | AB133: 0 | AC133: 90 | AD133: 0 | AE133: 0 | AF133: 0 | AG133: 124.8 | AH133: 1571 | AI133: 0 | AJ133: 0 | AK133: 180.06 | AL133: 0 | AM133: 0 | AN133: 0 | AO133: 1000 | AP133: 0 | AQ133: 0 | AR133: 0 | AS133: 0 | AT133: 0 | AU133: 0 | AV133: 0 | AW133: 0 | AX133: 0 | AY133: 0 | AZ133: 0 | BA133: 0 | BB133: 0 | BC133: 11893.16 | BD133: 1158.83 | BE133: 202.8 | BF133: 101 | BG133: 0 | BH133: 1743.51 | BI133: 0 | BJ133: 0 | BK133: 0 | BL133: 50 | BM133: 0 | BN133: 0 | BO133: 180.06 | BP133: 639.34 | BQ133: 0 | BR133: 0 | BS133: 0 | BT133: 0 | BU133: 180 | BV133: 0 | BW133: 0 | BX133: 0 | BY133: 0 | BZ133: 0 | CA133: 0 | CB133: 0 | CC133: 0 | CD133: 0 | CE133: 0 | CF133: 0 | CG133: 0 | CH133: 80 | CI133: 1000 | CJ133: 0 | CK133: 0 | CL133: 0 | CM133: 0 | CN133: 0 | CO133: 0 | CP133: -0.27 | CQ133: 0.77 | CR133: 5336.04 | CS133: 6557.12 | CT133: 1042.95 | CU133: 94.41 | CV133: 7694.48
A134: 000136 | B134: 1992-10-01 | C134: 3 | D134: 5637 | E134: 0 | F134: 0 | G134: 0 | H134: 0 | I134: 0 | J134: 0 | K134: 0 | L134: 0 | M134: 0 | N134: 0 | O134: 0 | P134: 0 | Q134: 0 | R134: 0 | S134: 0 | T134: 0 | U134: 190.62 | V134: 150.92 | W134: 433.62 | X134: 0 | Y134: 0 | Z134: 0 | AA134: 0 | AB134: 0 | AC134: 30 | AD134: 0 | AE134: 0 | AF134: 0 | AG134: 0 | AH134: 1221.35 | AI134: 0 | AJ134: 0 | AK134: 60.02 | AL134: 0 | AM134: 0 | AN134: 0 | AO134: 0 | AP134: 0 | AQ134: 0 | AR134: 0 | AS134: 0 | AT134: 0 | AU134: 0 | AV134: 0 | AW134: 0 | AX134: 0 | AY134: 0 | AZ134: 0 | BA134: 0 | BB134: 0 | BC134: 7723.53 | BD134: 943.05 | BE134: 183.89 | BF134: 106.48 | BG134: 0 | BH134: 1274.71 | BI134: 0 | BJ134: 0 | BK134: 0 | BL134: 0 | BM134: 0 | BN134: 0 | BO134: 60.02 | BP134: 71.5 | BQ134: 0 | BR134: 0 | BS134: 0 | BT134: 0 | BU134: 60 | BV134: 0 | BW134: 0 | BX134: 0 | BY134: 0 | BZ134: 0 | CA134: 0 | CB134: 0 | CC134: 0 | CD134: 0 | CE134: 0 | CF134: 563.7 | CG134: 0 | CH134: 0 | CI134: 0 | CJ134: 0 | CK134: 0 | CL134: 0 | CM134: 0 | CN134: 0 | CO134: 0 | CP134: -0.66 | CQ134: 0.83 | CR134: 3263.52 | CS134: 4460.01 | CT134: 848.75 | CU134: 70.73 | CV134: 5379.49
A135: 000137 | B135: 1992-10-13 | C135: 30 | D135: 8288 | E135: 0 | F135: 0 | G135: 0 | H135: 0 | I135: 67.5 | J135: 0 | K135: 0 | L135: 0 | M135: 0 | N135: 0 | O135: 0 | P135: 0 | Q135: 0 | R135: 0 | S135: 0 | T135: 0 | U135: 0 | V135: 0 | W135: 0 | X135: 0 | Y135: 0 | Z135: 0 | AA135: 0 | AB135: 0 | AC135: 50 | AD135: 0 | AE135: 0 | AF135: 0 | AG135: 0 | AH135: 0 | AI135: 0 | AJ135: 0 | AK135: 60.02 | AL135: 0 | AM135: 0 | AN135: 0 | AO135: 0 | AP135: 0 | AQ135: 0 | AR135: 0 | AS135: 0 | AT135: 0 | AU135: 0 | AV135: 0 | AW135: 0 | AX135: 0 | AY135: 0 | AZ135: 0 | BA135: 0 | BB135: 0 | BC135: 8465.52 | BD135: 840.55 | BE135: 147.1 | BF135: 101 | BG135: 0 | BH135: 1127.09 | BI135: 0 | BJ135: 0 | BK135: 0 | BL135: 0 | BM135: 0 | BN135: 0 | BO135: 60.02 | BP135: 202.94 | BQ135: 0 | BR135: 0 | BS135: 0 | BT135: 30 | BU135: 0 | BV135: 70 | BW135: 0 | BX135: 0 | BY135: 0 | BZ135: 0 | CA135: 0 | CB135: 0 | CC135: 0 | CD135: 0 | CE135: 0 | CF135: 828.8 | CG135: 0 | CH135: 0 | CI135: 0 | CJ135: 0 | CK135: 0 | CL135: 0 | CM135: 0 | CN135: 0 | CO135: 0 | CP135: -0.96 | CQ135: 0.98 | CR135: 3407.52 | CS135: 5058 | CT135: 756.5 | CU135: 63.04 | CV135: 5877.54
A136: 000138 | B136: 1992-10-15 | C136: 30 | D136: 8050.93 | E136: 0 | F136: 0 | G136: 0 | H136: 0 | I136: 67.5 | J136: 0 | K136: 0 | L136: 0 | M136: 0 | N136: 0 | O136: 0 | P136: 0 | Q136: 0 | R136: 0 | S136: 0 | T136: 0 | U136: 0 | V136: 0 | W136: 0 | X136: 0 | Y136: 0 | Z136: 0 | AA136: 0 | AB136: 0 | AC136: 70 | AD136: 0 | AE136: 0 | AF136: 0 | AG136: 0 | AH136: 0 | AI136: 0 | AJ136: 0 | AK136: 60.02 | AL136: 0 | AM136: 0 | AN136: 0 | AO136: 0 | AP136: 0 | AQ136: 0 | AR136: 575.07 | AS136: 0 | AT136: 0 | AU136: 0 | AV136: 0 | AW136: 0 | AX136: 0 | AY136: 0 | AZ136: 0 | BA136: 0 | BB136: 0 | BC136: 8823.52 | BD136: 876.35 | BE136: 153.36 | BF136: 101 | BG136: 0 | BH136: 1310.55 | BI136: 0 | BJ136: 0 | BK136: 0 | BL136: 0 | BM136: 0 | BN136: 0 | BO136: 60.02 | BP136: 787.28 | BQ136: 0 | BR136: 0 | BS136: 0 | BT136: 0 | BU136: 0 | BV136: 140 | BW136: 0 | BX136: 0 | BY136: 0 | BZ136: 0 | CA136: 0 | CB136: 0 | CC136: 0 | CD136: 0 | CE136: 0 | CF136: 0 | CG136: 0 | CH136: 0 | CI136: 0 | CJ136: 0 | CK136: 0 | CL136: 0 | CM136: 0 | CN136: 0 | CO136: 0 | CP136: -0.4 | CQ136: 0.36 | CR136: 3428.52 | CS136: 5395 | CT136: 788.72 | CU136: 65.73 | CV136: 6249.45
A137: 000139 | B137: 1992-10-13 | C137: 3 | D137: 4746.68 | E137: 0 | F137: 0 | G137: 0 | H137: 0 | I137: 65 | J137: 0 | K137: 92.51 | L137: 29.91 | M137: 0 | N137: 0 | O137: 0 | P137: 0 | Q137: 0 | R137: 0 | S137: 0 | T137: 0 | U137: 326.77 | V137: 188.65 | W137: 581.19 | X137: 0 | Y137: 0 | Z137: 0 | AA137: 0 | AB137: 0 | AC137: 56.25 | AD137: 0 | AE137: 0 | AF137: 0 | AG137: 124.8 | AH137: 671.6 | AI137: 0 | AJ137: 0 | AK137: 180.06 | AL137: 0 | AM137: 0 | AN137: 0 | AO137: 0 | AP137: 0 | AQ137: 0 | AR137: 0 | AS137: 0 | AT137: 0 | AU137: 0 | AV137: 0 | AW137: 0 | AX137: 0 | AY137: 0 | AZ137: 0 | BA137: 0 | BB137: 0 | BC137: 7063.42 | BD137: 745.6 | BE137: 134.21 | BF137: 86.49 | BG137: 0 | BH137: 1010.31 | BI137: 0 | BJ137: 1599.12 | BK137: 0 | BL137: 50 | BM137: 0 | BN137: 0 | BO137: 180.06 | BP137: 108.88 | BQ137: 0 | BR137: 0 | BS137: 0 | BT137: 0 | BU137: 112.5 | BV137: 0 | BW137: 0 | BX137: 0 | BY137: 0 | BZ137: 0 | CA137: 0 | CB137: 0 | CC137: 0 | CD137: 0 | CE137: 0 | CF137: 0 | CG137: 0 | CH137: 0 | CI137: 0 | CJ137: 0 | CK137: 0 | CL137: 0 | CM137: 0 | CN137: 0 | CO137: 0 | CP137: -0.16 | CQ137: 0.84 | CR137: 4027.85 | CS137: 3035.57 | CT137: 671.04 | CU137: 55.92 | CV137: 3762.53
A138: 000140 | B138: 2011-09-01 | C138: 21 | D138: 0 | E138: 0 | F138: 14500 | G138: 0 | H138: 0 | I138: 67.5 | J138: 0 | K138: 0 | L138: 0 | M138: 0 | N138: 0 | O138: 0 | P138: 0 | Q138: 0 | R138: 0 | S138: 0 | T138: 0 | U138: 0 | V138: 0 | W138: 0 | X138: 0 | Y138: 0 | Z138: 0 | AA138: 0 | AB138: 0 | AC138: 50 | AD138: 0 | AE138: 0 | AF138: 0 | AG138: 0 | AH138: 0 | AI138: 0 | AJ138: 0 | AK138: 60.02 | AL138: 0 | AM138: 0 | AN138: 0 | AO138: 0 | AP138: 0 | AQ138: 0 | AR138: 0 | AS138: 0 | AT138: 0 | AU138: 1426.98 | AV138: 2446.25 | AW138: 0 | AX138: 0 | AY138: 0 | AZ138: 0 | BA138: 0 | BB138: 165.12 | BC138: 18715.87 | BD138: 1461.75 | BE138: 285.04 | BF138: 106.48 | BG138: 0 | BH138: 2690.79 | BI138: 0 | BJ138: 0 | BK138: 0 | BL138: 0 | BM138: 0 | BN138: 0 | BO138: 60.02 | BP138: 304.32 | BQ138: 1067.09 | BR138: 0 | BS138: 0 | BT138: 0 | BU138: 0 | BV138: 100 | BW138: 0 | BX138: 0 | BY138: 0 | BZ138: 0 | CA138: 0 | CB138: 0 | CC138: 0 | CD138: 0 | CE138: 0 | CF138: 0 | CG138: 0 | CH138: 80 | CI138: 0 | CJ138: 0 | CK138: 0 | CL138: 0 | CM138: 0 | CN138: 0 | CO138: 0 | CP138: -0.03 | CQ138: 0.41 | CR138: 6155.87 | CS138: 12560 | CT138: 1315.58 | CU138: 109.63 | CV138: 13985.21
A139: 000141 | B139: 1993-03-11 | C139: 3 | D139: 6776.89 | E139: 0 | F139: 0 | G139: 0 | H139: 0 | I139: 175 | J139: 0 | K139: 237.38 | L139: 76.73 | M139: 0 | N139: 0 | O139: 0 | P139: 0 | Q139: 0 | R139: 0 | S139: 0 | T139: 0 | U139: 0 | V139: 490.5 | W139: 818.19 | X139: 0 | Y139: 0 | Z139: 0 | AA139: 0 | AB139: 0 | AC139: 67.5 | AD139: 0 | AE139: 0 | AF139: 0 | AG139: 100.8 | AH139: 0 | AI139: 0 | AJ139: 0 | AK139: 180.06 | AL139: 0 | AM139: 0 | AN139: 0 | AO139: 1000 | AP139: 0 | AQ139: 0 | AR139: 0 | AS139: 0 | AT139: 0 | AU139: 0 | AV139: 0 | AW139: 0 | AX139: 0 | AY139: 0 | AZ139: 0 | BA139: 0 | BB139: 0 | BC139: 9923.05 | BD139: 964.22 | BE139: 188.02 | BF139: 106.48 | BG139: 0 | BH139: 1440.36 | BI139: 5 | BJ139: 0 | BK139: 0 | BL139: 0 | BM139: 0 | BN139: 0 | BO139: 180.06 | BP139: 495.11 | BQ139: 0 | BR139: 0 | BS139: 0 | BT139: 0 | BU139: 135 | BV139: 0 | BW139: 0 | BX139: 0 | BY139: 0 | BZ139: 0 | CA139: 0 | CB139: 0 | CC139: 0 | CD139: 0 | CE139: 0 | CF139: 0 | CG139: 0 | CH139: 80 | CI139: 1000 | CJ139: 0 | CK139: 0 | CL139: 0 | CM139: 0 | CN139: 0 | CO139: 0 | CP139: -0.14 | CQ139: 0.82 | CR139: 4594.93 | CS139: 5328.12 | CT139: 867.8 | CU139: 79.82 | CV139: 6275.74
A140: 000142 | B140: 1993-04-12 | C140: 21 | D140: 0 | E140: 0 | F140: 15001 | G140: 0 | H140: 0 | I140: 67.5 | J140: 0 | K140: 0 | L140: 0 | M140: 0 | N140: 0 | O140: 0 | P140: 0 | Q140: 0 | R140: 0 | S140: 0 | T140: 0 | U140: 0 | V140: 0 | W140: 0 | X140: 0 | Y140: 0 | Z140: 0 | AA140: 0 | AB140: 0 | AC140: 0 | AD140: 0 | AE140: 0 | AF140: 0 | AG140: 0 | AH140: 0 | AI140: 0 | AJ140: 0 | AK140: 60.02 | AL140: 0 | AM140: 0 | AN140: 0 | AO140: 0 | AP140: 0 | AQ140: 0 | AR140: 0 | AS140: 0 | AT140: 0 | AU140: 1474.47 | AV140: 2527.67 | AW140: 0 | AX140: 0 | AY140: 0 | AZ140: 0 | BA140: 0 | BB140: 170.62 | BC140: 19301.28 | BD140: 1506.85 | BE140: 293.84 | BF140: 106.48 | BG140: 0 | BH140: 2857.84 | BI140: 5 | BJ140: 0 | BK140: 0 | BL140: 0 | BM140: 0 | BN140: 0 | BO140: 60.02 | BP140: 253.22 | BQ140: 0 | BR140: 0 | BS140: 0 | BT140: 0 | BU140: 0 | BV140: 0 | BW140: 0 | BX140: 0 | BY140: 0 | BZ140: 0 | CA140: 0 | CB140: 0 | CC140: 0 | CD140: 0 | CE140: 0 | CF140: 0 | CG140: 0 | CH140: 80 | CI140: 0 | CJ140: 0 | CK140: 0 | CL140: 0 | CM140: 0 | CN140: 0 | CO140: 0 | CP140: -0.72 | CQ140: 0.75 | CR140: 5163.28 | CS140: 14138 | CT140: 1356.17 | CU140: 113.01 | CV140: 15607.18
A141: 000143 | B141: 1993-05-17 | C141: 21 | D141: 0 | E141: 0 | F141: 14020 | G141: 0 | H141: 0 | I141: 67.5 | J141: 0 | K141: 0 | L141: 0 | M141: 0 | N141: 0 | O141: 0 | P141: 0 | Q141: 0 | R141: 0 | S141: 0 | T141: 0 | U141: 0 | V141: 0 | W141: 0 | X141: 0 | Y141: 0 | Z141: 0 | AA141: 0 | AB141: 0 | AC141: 30 | AD141: 0 | AE141: 0 | AF141: 0 | AG141: 0 | AH141: 0 | AI141: 0 | AJ141: 0 | AK141: 60.02 | AL141: 0 | AM141: 0 | AN141: 0 | AO141: 0 | AP141: 0 | AQ141: 0 | AR141: 0 | AS141: 0 | AT141: 0 | AU141: 1380.31 | AV141: 2366.25 | AW141: 0 | AX141: 0 | AY141: 0 | AZ141: 0 | BA141: 0 | BB141: 159.72 | BC141: 18083.8 | BD141: 1411.75 | BE141: 254.12 | BF141: 90.82 | BG141: 0 | BH141: 2567.86 | BI141: 5 | BJ141: 0 | BK141: 0 | BL141: 0 | BM141: 0 | BN141: 0 | BO141: 60.02 | BP141: 735.81 | BQ141: 0 | BR141: 0 | BS141: 0 | BT141: 0 | BU141: 0 | BV141: 60 | BW141: 0 | BX141: 0 | BY141: 0 | BZ141: 0 | CA141: 0 | CB141: 0 | CC141: 0 | CD141: 0 | CE141: 0 | CF141: 0 | CG141: 0 | CH141: 0 | CI141: 0 | CJ141: 0 | CK141: 0 | CL141: 0 | CM141: 0 | CN141: 0 | CO141: 0 | CP141: -0.5 | CQ141: 0.92 | CR141: 5185.8 | CS141: 12898 | CT141: 1270.58 | CU141: 105.88 | CV141: 14274.46
A142: 000144 | B142: 1993-06-28 | C142: 30 | D142: 8508 | E142: 0 | F142: 0 | G142: 0 | H142: 0 | I142: 67.5 | J142: 0 | K142: 0 | L142: 0 | M142: 0 | N142: 0 | O142: 0 | P142: 0 | Q142: 0 | R142: 0 | S142: 0 | T142: 0 | U142: 0 | V142: 0 | W142: 0 | X142: 0 | Y142: 0 | Z142: 0 | AA142: 0 | AB142: 0 | AC142: 83.75 | AD142: 0 | AE142: 0 | AF142: 0 | AG142: 0 | AH142: 0 | AI142: 0 | AJ142: 0 | AK142: 60.02 | AL142: 0 | AM142: 0 | AN142: 0 | AO142: 0 | AP142: 2272.72 | AQ142: 0 | AR142: 0 | AS142: 0 | AT142: 0 | AU142: 0 | AV142: 0 | AW142: 0 | AX142: 0 | AY142: 0 | AZ142: 0 | BA142: 0 | BB142: 0 | BC142: 10991.99 | BD142: 1093.2 | BE142: 191.31 | BF142: 101 | BG142: 0 | BH142: 1666.75 | BI142: 0 | BJ142: 0 | BK142: 0 | BL142: 0 | BM142: 0 | BN142: 0 | BO142: 60.02 | BP142: 787.28 | BQ142: 0 | BR142: 0 | BS142: 0 | BT142: 30 | BU142: 7.5 | BV142: 130 | BW142: 0 | BX142: 0 | BY142: 0 | BZ142: 0 | CA142: 0 | CB142: 0 | CC142: 0 | CD142: 0 | CE142: 0 | CF142: 0 | CG142: 0 | CH142: 0 | CI142: 0 | CJ142: 0 | CK142: 0 | CL142: 0 | CM142: 0 | CN142: 0 | CO142: 0 | CP142: -0.48 | CQ142: 0.41 | CR142: 4066.99 | CS142: 6925 | CT142: 983.88 | CU142: 81.99 | CV142: 7990.87
A143: 000145 | B143: 1993-07-12 | C143: 3 | D143: 6439 | E143: 0 | F143: 0 | G143: 0 | H143: 0 | I143: 67.5 | J143: 0 | K143: 0 | L143: 0 | M143: 0 | N143: 0 | O143: 0 | P143: 0 | Q143: 0 | R143: 0 | S143: 0 | T143: 0 | U143: 0 | V143: 0 | W143: 0 | X143: 0 | Y143: 0 | Z143: 0 | AA143: 0 | AB143: 0 | AC143: 40 | AD143: 0 | AE143: 0 | AF143: 0 | AG143: 0 | AH143: 0 | AI143: 0 | AJ143: 0 | AK143: 60.02 | AL143: 0 | AM143: 0 | AN143: 0 | AO143: 0 | AP143: 0 | AQ143: 0 | AR143: 0 | AS143: 0 | AT143: 0 | AU143: 0 | AV143: 0 | AW143: 0 | AX143: 0 | AY143: 0 | AZ143: 0 | BA143: 0 | BB143: 0 | BC143: 6606.52 | BD143: 654.65 | BE143: 127.66 | BF143: 89.03 | BG143: 0 | BH143: 834.27 | BI143: 0 | BJ143: 0 | BK143: 0 | BL143: 0 | BM143: 0 | BN143: 0 | BO143: 60.02 | BP143: 202.94 | BQ143: 0 | BR143: 0 | BS143: 0 | BT143: 0 | BU143: 0 | BV143: 80 | BW143: 0 | BX143: 0 | BY143: 0 | BZ143: 0 | CA143: 0 | CB143: 0 | CC143: 0 | CD143: 0 | CE143: 0 | CF143: 625.1 | CG143: 0 | CH143: 0 | CI143: 0 | CJ143: 0 | CK143: 0 | CL143: 0 | CM143: 0 | CN143: 0 | CO143: 0 | CP143: -0.4 | CQ143: 0.25 | CR143: 2673.52 | CS143: 3933 | CT143: 589.19 | CU143: 49.1 | CV143: 4571.29
A144: 000146 | B144: 1993-07-20 | C144: 30 | D144: 5640 | E144: 0 | F144: 0 | G144: 0 | H144: 0 | I144: 67.5 | J144: 0 | K144: 0 | L144: 0 | M144: 0 | N144: 0 | O144: 0 | P144: 0 | Q144: 0 | R144: 0 | S144: 0 | T144: 0 | U144: 0 | V144: 0 | W144: 0 | X144: 0 | Y144: 0 | Z144: 0 | AA144: 0 | AB144: 0 | AC144: 0 | AD144: 0 | AE144: 0 | AF144: 0 | AG144: 0 | AH144: 0 | AI144: 0 | AJ144: 0 | AK144: 60.02 | AL144: 0 | AM144: 0 | AN144: 0 | AO144: 0 | AP144: 0 | AQ144: 0 | AR144: 0 | AS144: 0 | AT144: 0 | AU144: 0 | AV144: 0 | AW144: 0 | AX144: 0 | AY144: 0 | AZ144: 0 | BA144: 0 | BB144: 0 | BC144: 5767.52 | BD144: 570.75 | BE144: 102.74 | BF144: 66.21 | BG144: 0 | BH144: 688.44 | BI144: 0 | BJ144: 0 | BK144: 0 | BL144: 0 | BM144: 0 | BN144: 0 | BO144: 60.02 | BP144: 495.11 | BQ144: 0 | BR144: 0 | BS144: 0 | BT144: 0 | BU144: 0 | BV144: 0 | BW144: 0 | BX144: 0 | BY144: 0 | BZ144: 0 | CA144: 0 | CB144: 0 | CC144: 0 | CD144: 0 | CE144: 0 | CF144: 0 | CG144: 0 | CH144: 0 | CI144: 0 | CJ144: 0 | CK144: 0 | CL144: 0 | CM144: 0 | CN144: 0 | CO144: 0 | CP144: -0.73 | CQ144: 0.98 | CR144: 1983.52 | CS144: 3784 | CT144: 513.68 | CU144: 42.81 | CV144: 4340.49
A145: 000148 | B145: 1994-03-21 | C145: 3 | D145: 10756.91 | E145: 0 | F145: 0 | G145: 0 | H145: 0 | I145: 67.5 | J145: 0 | K145: 0 | L145: 0 | M145: 0 | N145: 0 | O145: 0 | P145: 0 | Q145: 0 | R145: 0 | S145: 0 | T145: 0 | U145: 0 | V145: 0 | W145: 0 | X145: 0 | Y145: 0 | Z145: 0 | AA145: 0 | AB145: 0 | AC145: 51 | AD145: 0 | AE145: 0 | AF145: 0 | AG145: 0 | AH145: 0 | AI145: 0 | AJ145: 0 | AK145: 60.02 | AL145: 0 | AM145: 0 | AN145: 0 | AO145: 1000 | AP145: 0 | AQ145: 0 | AR145: 0 | AS145: 0 | AT145: 0 | AU145: 0 | AV145: 0 | AW145: 0 | AX145: 0 | AY145: 0 | AZ145: 0 | BA145: 0 | BB145: 0 | BC145: 11935.43 | BD145: 1187.54 | BE145: 207.82 | BF145: 101 | BG145: 0 | BH145: 1883.06 | BI145: 0 | BJ145: 0 | BK145: 0 | BL145: 0 | BM145: 0 | BN145: 0 | BO145: 60.02 | BP145: 202.94 | BQ145: 0 | BR145: 0 | BS145: 0 | BT145: 60 | BU145: 0 | BV145: 0 | BW145: 0 | BX145: 0 | BY145: 0 | BZ145: 42 | CA145: 0 | CB145: 0 | CC145: 0 | CD145: 0 | CE145: 0 | CF145: 0 | CG145: 0 | CH145: 0 | CI145: 1000 | CJ145: 0 | CK145: 0 | CL145: 0 | CM145: 0 | CN145: 0 | CO145: 0 | CP145: -0.53 | CQ145: 0.73 | CR145: 4744.58 | CS145: 7190.85 | CT145: 1068.79 | CU145: 96.57 | CV145: 8356.21
A146: 000149 | B146: 1994-04-15 | C146: 3 | D146: 4907.93 | E146: 0 | F146: 0 | G146: 0 | H146: 0 | I146: 0 | J146: 0 | K146: 0 | L146: 0 | M146: 0 | N146: 0 | O146: 0 | P146: 0 | Q146: 0 | R146: 0 | S146: 0 | T146: 0 | U146: 0 | V146: 0 | W146: 0 | X146: 0 | Y146: 0 | Z146: 0 | AA146: 0 | AB146: 0 | AC146: 45 | AD146: 0 | AE146: 0 | AF146: 0 | AG146: 0 | AH146: 0 | AI146: 0 | AJ146: 0 | AK146: 60.02 | AL146: 0 | AM146: 0 | AN146: 0 | AO146: 0 | AP146: 0 | AQ146: 0 | AR146: 0 | AS146: 0 | AT146: 0 | AU146: 0 | AV146: 0 | AW146: 0 | AX146: 0 | AY146: 0 | AZ146: 7346.83 | BA146: 2288.92 | BB146: 154.5 | BC146: 14803.2 | BD146: 1229.98 | BE146: 215.25 | BF146: 101 | BG146: 0 | BH146: -2054.17 | BI146: 0 | BJ146: 0 | BK146: 0 | BL146: 0 | BM146: 0 | BN146: 0 | BO146: 60.02 | BP146: 108.88 | BQ146: 0 | BR146: 0 | BS146: 0 | BT146: 50 | BU146: 0 | BV146: 40 | BW146: 0 | BX146: 0 | BY146: 0 | BZ146: 0 | CA146: 0 | CB146: 0 | CC146: 0 | CD146: 0 | CE146: 15109 | CF146: 0 | CG146: 0 | CH146: 0 | CI146: 0 | CJ146: 0 | CK146: 0 | CL146: 0 | CM146: 0 | CN146: 0 | CO146: -56.44 | CP146: -0.32 | CQ146: 0 | CR146: 14803.2 | CS146: 0 | CT146: 1106.98 | CU146: 92.25 | CV146: 1199.23
A147: 000150 | B147: 1994-04-18 | C147: 21 | D147: 0 | E147: 0 | F147: 13613 | G147: 0 | H147: 0 | I147: 67.5 | J147: 0 | K147: 0 | L147: 0 | M147: 0 | N147: 0 | O147: 0 | P147: 0 | Q147: 0 | R147: 0 | S147: 0 | T147: 0 | U147: 0 | V147: 0 | W147: 0 | X147: 0 | Y147: 0 | Z147: 0 | AA147: 0 | AB147: 0 | AC147: 35 | AD147: 0 | AE147: 0 | AF147: 0 | AG147: 0 | AH147: 0 | AI147: 0 | AJ147: 0 | AK147: 60.02 | AL147: 0 | AM147: 0 | AN147: 0 | AO147: 0 | AP147: 0 | AQ147: 0 | AR147: 0 | AS147: 0 | AT147: 0 | AU147: 1340.74 | AV147: 2298.42 | AW147: 0 | AX147: 0 | AY147: 0 | AZ147: 0 | BA147: 0 | BB147: 155.14 | BC147: 17569.82 | BD147: 1371.55 | BE147: 246.88 | BF147: 90.82 | BG147: 0 | BH147: 2468.23 | BI147: 5 | BJ147: 0 | BK147: 0 | BL147: 0 | BM147: 0 | BN147: 0 | BO147: 60.02 | BP147: 1178.6 | BQ147: 0 | BR147: 0 | BS147: 0 | BT147: 70 | BU147: 0 | BV147: 0 | BW147: 0 | BX147: 0 | BY147: 0 | BZ147: 0 | CA147: 0 | CB147: 0 | CC147: 0 | CD147: 0 | CE147: 0 | CF147: 0 | CG147: 0 | CH147: 0 | CI147: 0 | CJ147: 0 | CK147: 0 | CL147: 0 | CM147: 0 | CN147: 0 | CO147: 0 | CP147: -0.13 | CQ147: 0.85 | CR147: 5491.82 | CS147: 12078 | CT147: 1234.4 | CU147: 102.87 | CV147: 13415.27
A148: 000151 | B148: 1994-10-21 | C148: 21 | D148: 0 | E148: 0 | F148: 14186 | G148: 0 | H148: 0 | I148: 67.5 | J148: 0 | K148: 0 | L148: 0 | M148: 0 | N148: 0 | O148: 0 | P148: 0 | Q148: 0 | R148: 0 | S148: 0 | T148: 0 | U148: 0 | V148: 0 | W148: 0 | X148: 0 | Y148: 0 | Z148: 0 | AA148: 0 | AB148: 0 | AC148: 80 | AD148: 0 | AE148: 0 | AF148: 0 | AG148: 0 | AH148: 0 | AI148: 0 | AJ148: 0 | AK148: 60.02 | AL148: 0 | AM148: 0 | AN148: 0 | AO148: 0 | AP148: 0 | AQ148: 0 | AR148: 0 | AS148: 0 | AT148: 0 | AU148: 1396.45 | AV148: 2393.92 | AW148: 0 | AX148: 0 | AY148: 0 | AZ148: 0 | BA148: 0 | BB148: 161.59 | BC148: 18345.48 | BD148: 1433.35 | BE148: 258 | BF148: 90.82 | BG148: 0 | BH148: 2619.42 | BI148: 0 | BJ148: 0 | BK148: 0 | BL148: 0 | BM148: 0 | BN148: 0 | BO148: 60.02 | BP148: 304.32 | BQ148: 0 | BR148: 0 | BS148: 0 | BT148: 0 | BU148: 0 | BV148: 160 | BW148: 0 | BX148: 0 | BY148: 0 | BZ148: 0 | CA148: 0 | CB148: 0 | CC148: 0 | CD148: 0 | CE148: 0 | CF148: 0 | CG148: 0 | CH148: 80 | CI148: 0 | CJ148: 0 | CK148: 0 | CL148: 0 | CM148: 0 | CN148: 0 | CO148: 0 | CP148: -0.68 | CQ148: 0.23 | CR148: 5005.48 | CS148: 13340 | CT148: 1290.02 | CU148: 107.5 | CV148: 14737.52
A149: 000152 | B149: 1994-11-02 | C149: 30 | D149: 5712 | E149: 0 | F149: 0 | G149: 0 | H149: 0 | I149: 67.5 | J149: 0 | K149: 0 | L149: 0 | M149: 0 | N149: 0 | O149: 0 | P149: 0 | Q149: 0 | R149: 0 | S149: 0 | T149: 0 | U149: 0 | V149: 0 | W149: 0 | X149: 0 | Y149: 0 | Z149: 0 | AA149: 0 | AB149: 0 | AC149: 85 | AD149: 0 | AE149: 0 | AF149: 0 | AG149: 0 | AH149: 0 | AI149: 0 | AJ149: 0 | AK149: 60.02 | AL149: 0 | AM149: 0 | AN149: 0 | AO149: 0 | AP149: 0 | AQ149: 0 | AR149: 0 | AS149: 0 | AT149: 0 | AU149: 0 | AV149: 0 | AW149: 0 | AX149: 0 | AY149: 0 | AZ149: 0 | BA149: 0 | BB149: 0 | BC149: 5924.52 | BD149: 586.45 | BE149: 114.36 | BF149: 79.76 | BG149: 0 | BH149: 713.79 | BI149: 5 | BJ149: 0 | BK149: 0 | BL149: 0 | BM149: 0 | BN149: 0 | BO149: 60.02 | BP149: 693.22 | BQ149: 0 | BR149: 0 | BS149: 0 | BT149: 80 | BU149: 0 | BV149: 90 | BW149: 0 | BX149: 0 | BY149: 0 | BZ149: 0 | CA149: 0 | CB149: 0 | CC149: 0 | CD149: 0 | CE149: 0 | CF149: 0 | CG149: 0 | CH149: 80 | CI149: 0 | CJ149: 0 | CK149: 0 | CL149: 0 | CM149: 0 | CN149: 0 | CO149: 0 | CP149: -0.07 | CQ149: 0.99 | CR149: 2503.52 | CS149: 3421 | CT149: 527.81 | CU149: 43.98 | CV149: 3992.79
A150: 000153 | B150: 1994-11-02 | C150: 30 | D150: 5576 | E150: 0 | F150: 0 | G150: 0 | H150: 0 | I150: 0 | J150: 0 | K150: 0 | L150: 0 | M150: 0 | N150: 0 | O150: 0 | P150: 0 | Q150: 0 | R150: 0 | S150: 0 | T150: 0 | U150: 0 | V150: 0 | W150: 0 | X150: 0 | Y150: 0 | Z150: 0 | AA150: 0 | AB150: 0 | AC150: 30 | AD150: 0 | AE150: 0 | AF150: 0 | AG150: 0 | AH150: 0 | AI150: 0 | AJ150: 0 | AK150: 60.02 | AL150: 0 | AM150: 0 | AN150: 0 | AO150: 0 | AP150: 0 | AQ150: 0 | AR150: 0 | AS150: 0 | AT150: 0 | AU150: 0 | AV150: 0 | AW150: 0 | AX150: 0 | AY150: 0 | AZ150: 0 | BA150: 0 | BB150: 0 | BC150: 5666.02 | BD150: 560.6 | BE150: 109.32 | BF150: 76.24 | BG150: 0 | BH150: 669.93 | BI150: 5 | BJ150: 0 | BK150: 0 | BL150: 0 | BM150: 0 | BN150: 0 | BO150: 60.02 | BP150: 108.88 | BQ150: 0 | BR150: 0 | BS150: 0 | BT150: 60 | BU150: 0 | BV150: 0 | BW150: 0 | BX150: 0 | BY150: 0 | BZ150: 0 | CA150: 0 | CB150: 0 | CC150: 0 | CD150: 0 | CE150: 0 | CF150: 557.6 | CG150: 0 | CH150: 0 | CI150: 0 | CJ150: 0 | CK150: 0 | CL150: 0 | CM150: 0 | CN150: 0 | CO150: 0 | CP150: -0.48 | CQ150: 0.91 | CR150: 2208.02 | CS150: 3458 | CT150: 504.54 | CU150: 42.05 | CV150: 4004.59
A151: 000154 | B151: 1995-03-16 | C151: 30 | D151: 9708 | E151: 0 | F151: 0 | G151: 0 | H151: 0 | I151: 67.5 | J151: 0 | K151: 0 | L151: 0 | M151: 0 | N151: 0 | O151: 0 | P151: 0 | Q151: 0 | R151: 0 | S151: 0 | T151: 0 | U151: 0 | V151: 0 | W151: 0 | X151: 0 | Y151: 0 | Z151: 0 | AA151: 0 | AB151: 0 | AC151: 0 | AD151: 0 | AE151: 0 | AF151: 0 | AG151: 0 | AH151: 0 | AI151: 0 | AJ151: 0 | AK151: 60.02 | AL151: 0 | AM151: 0 | AN151: 0 | AO151: 0 | AP151: 0 | AQ151: 0 | AR151: 0 | AS151: 0 | AT151: 0 | AU151: 0 | AV151: 0 | AW151: 0 | AX151: 0 | AY151: 0 | AZ151: 0 | BA151: 0 | BB151: 0 | BC151: 9835.52 | BD151: 977.55 | BE151: 171.07 | BF151: 101 | BG151: 0 | BH151: 1467.73 | BI151: 5 | BJ151: 0 | BK151: 0 | BL151: 0 | BM151: 0 | BN151: 0 | BO151: 60.02 | BP151: 787.28 | BQ151: 165.2 | BR151: 0 | BS151: 0 | BT151: 0 | BU151: 0 | BV151: 0 | BW151: 0 | BX151: 0 | BY151: 0 | BZ151: 0 | CA151: 0 | CB151: 0 | CC151: 0 | CD151: 0 | CE151: 0 | CF151: 0 | CG151: 0 | CH151: 0 | CI151: 0 | CJ151: 0 | CK151: 0 | CL151: 0 | CM151: 0 | CN151: 0 | CO151: 0 | CP151: -0.94 | CQ151: 0.61 | CR151: 3734.52 | CS151: 6101 | CT151: 879.8 | CU151: 73.32 | CV151: 7054.12
A152: 000155 | B152: 1996-03-01 | C152: 21 | D152: 0 | E152: 0 | F152: 13910 | G152: 0 | H152: 0 | I152: 67.5 | J152: 0 | K152: 0 | L152: 0 | M152: 0 | N152: 0 | O152: 0 | P152: 0 | Q152: 0 | R152: 0 | S152: 0 | T152: 0 | U152: 0 | V152: 0 | W152: 0 | X152: 0 | Y152: 0 | Z152: 0 | AA152: 0 | AB152: 0 | AC152: 5 | AD152: 0 | AE152: 0 | AF152: 0 | AG152: 0 | AH152: 0 | AI152: 0 | AJ152: 0 | AK152: 60.02 | AL152: 0 | AM152: 0 | AN152: 0 | AO152: 0 | AP152: 0 | AQ152: 0 | AR152: 0 | AS152: 0 | AT152: 0 | AU152: 1368.4 | AV152: 2345.83 | AW152: 0 | AX152: 0 | AY152: 0 | AZ152: 0 | BA152: 0 | BB152: 158.34 | BC152: 17915.09 | BD152: 1398.25 | BE152: 251.69 | BF152: 90.82 | BG152: 0 | BH152: 2534.93 | BI152: 5 | BJ152: 0 | BK152: 0 | BL152: 0 | BM152: 0 | BN152: 0 | BO152: 60.02 | BP152: 1178.6 | BQ152: 0 | BR152: 0 | BS152: 0 | BT152: 10 | BU152: 0 | BV152: 0 | BW152: 0 | BX152: 0 | BY152: 0 | BZ152: 0 | CA152: 0 | CB152: 0 | CC152: 0 | CD152: 0 | CE152: 0 | CF152: 0 | CG152: 0 | CH152: 0 | CI152: 0 | CJ152: 0 | CK152: 0 | CL152: 0 | CM152: 0 | CN152: 0 | CO152: 0 | CP152: -0.31 | CQ152: 0.09 | CR152: 5529.09 | CS152: 12386 | CT152: 1258.43 | CU152: 104.87 | CV152: 13749.3
A153: 000156 | B153: 1996-07-01 | C153: 3 | D153: 7541 | E153: 0 | F153: 0 | G153: 0 | H153: 0 | I153: 0 | J153: 0 | K153: 0 | L153: 0 | M153: 0 | N153: 0 | O153: 0 | P153: 0 | Q153: 0 | R153: 0 | S153: 0 | T153: 0 | U153: 0 | V153: 0 | W153: 0 | X153: 0 | Y153: 0 | Z153: 0 | AA153: 0 | AB153: 0 | AC153: 55 | AD153: 0 | AE153: 0 | AF153: 0 | AG153: 0 | AH153: 0 | AI153: 0 | AJ153: 0 | AK153: 60.02 | AL153: 0 | AM153: 0 | AN153: 0 | AO153: 0 | AP153: 0 | AQ153: 0 | AR153: 0 | AS153: 0 | AT153: 0 | AU153: 0 | AV153: 0 | AW153: 0 | AX153: 0 | AY153: 0 | AZ153: 0 | BA153: 0 | BB153: 0 | BC153: 7656.02 | BD153: 759.6 | BE153: 136.73 | BF153: 88.11 | BG153: 0 | BH153: 1017.55 | BI153: 0 | BJ153: 0 | BK153: 0 | BL153: 0 | BM153: 0 | BN153: 0 | BO153: 60.02 | BP153: 639.34 | BQ153: 0 | BR153: 0 | BS153: 0 | BT153: 90 | BU153: 0 | BV153: 20 | BW153: 0 | BX153: 0 | BY153: 0 | BZ153: 0 | CA153: 0 | CB153: 0 | CC153: 0 | CD153: 0 | CE153: 0 | CF153: 0 | CG153: 0 | CH153: 0 | CI153: 0 | CJ153: 0 | CK153: 0 | CL153: 0 | CM153: 0 | CN153: 0 | CO153: 0 | CP153: -0.12 | CQ153: 0.79 | CR153: 2812.02 | CS153: 4844 | CT153: 683.64 | CU153: 56.97 | CV153: 5584.61
A154: 000157 | B154: 2002-06-17 | C154: 30 | D154: 6062 | E154: 0 | F154: 0 | G154: 0 | H154: 0 | I154: 0 | J154: 0 | K154: 0 | L154: 0 | M154: 0 | N154: 0 | O154: 0 | P154: 0 | Q154: 0 | R154: 0 | S154: 0 | T154: 0 | U154: 0 | V154: 0 | W154: 0 | X154: 0 | Y154: 0 | Z154: 0 | AA154: 0 | AB154: 0 | AC154: 65 | AD154: 0 | AE154: 0 | AF154: 0 | AG154: 0 | AH154: 0 | AI154: 0 | AJ154: 0 | AK154: 60.02 | AL154: 0 | AM154: 0 | AN154: 0 | AO154: 0 | AP154: 0 | AQ154: 0 | AR154: 0 | AS154: 0 | AT154: 0 | AU154: 0 | AV154: 0 | AW154: 0 | AX154: 0 | AY154: 0 | AZ154: 0 | BA154: 0 | BB154: 0 | BC154: 6187.02 | BD154: 612.7 | BE154: 110.29 | BF154: 71.07 | BG154: 0 | BH154: 717.29 | BI154: 0 | BJ154: 0 | BK154: 0 | BL154: 0 | BM154: 0 | BN154: 0 | BO154: 60.02 | BP154: 347.17 | BQ154: 86.47 | BR154: 0 | BS154: 0 | BT154: 130 | BU154: 0 | BV154: 0 | BW154: 0 | BX154: 0 | BY154: 0 | BZ154: 0 | CA154: 0 | CB154: 0 | CC154: 0 | CD154: 0 | CE154: 0 | CF154: 585.7 | CG154: 0 | CH154: 0 | CI154: 0 | CJ154: 0 | CK154: 0 | CL154: 0 | CM154: 0 | CN154: 0 | CO154: 0 | CP154: -0.77 | CQ154: 0.08 | CR154: 2720.02 | CS154: 3467 | CT154: 551.43 | CU154: 45.95 | CV154: 4064.38
A155: 000158 | B155: 1997-01-02 | C155: 30 | D155: 5519 | E155: 0 | F155: 0 | G155: 0 | H155: 0 | I155: 67.5 | J155: 0 | K155: 0 | L155: 0 | M155: 0 | N155: 0 | O155: 0 | P155: 0 | Q155: 0 | R155: 0 | S155: 0 | T155: 0 | U155: 0 | V155: 0 | W155: 0 | X155: 0 | Y155: 0 | Z155: 0 | AA155: 0 | AB155: 0 | AC155: 83.75 | AD155: 0 | AE155: 0 | AF155: 0 | AG155: 0 | AH155: 0 | AI155: 0 | AJ155: 0 | AK155: 60.02 | AL155: 0 | AM155: 0 | AN155: 1280 | AO155: 1000 | AP155: 0 | AQ155: 0 | AR155: 0 | AS155: 0 | AT155: 0 | AU155: 0 | AV155: 0 | AW155: 0 | AX155: 0 | AY155: 0 | AZ155: 0 | BA155: 0 | BB155: 0 | BC155: 8010.27 | BD155: 667.03 | BE155: 116.73 | BF155: 86.05 | BG155: 0 | BH155: 1080.16 | BI155: 5 | BJ155: 0 | BK155: 0 | BL155: 0 | BM155: 0 | BN155: 0 | BO155: 60.02 | BP155: 787.28 | BQ155: 0 | BR155: 0 | BS155: 0 | BT155: 80 | BU155: 7.5 | BV155: 80 | BW155: 0 | BX155: 0 | BY155: 0 | BZ155: 0 | CA155: 0 | CB155: 0 | CC155: 0 | CD155: 0 | CE155: 0 | CF155: 551.9 | CG155: 0 | CH155: 0 | CI155: 1000 | CJ155: 0 | CK155: 0 | CL155: 0 | CM155: 0 | CN155: 0 | CO155: 0 | CP155: -0.14 | CQ155: 0.62 | CR155: 4522.15 | CS155: 3488.12 | CT155: 600.32 | CU155: 57.53 | CV155: 4145.97
A156: 000159 | B156: 1996-09-16 | C156: 30 | D156: 5757 | E156: 0 | F156: 0 | G156: 0 | H156: 0 | I156: 67.5 | J156: 0 | K156: 0 | L156: 0 | M156: 0 | N156: 0 | O156: 0 | P156: 0 | Q156: 0 | R156: 0 | S156: 0 | T156: 0 | U156: 0 | V156: 0 | W156: 0 | X156: 0 | Y156: 0 | Z156: 0 | AA156: 0 | AB156: 0 | AC156: 75 | AD156: 0 | AE156: 0 | AF156: 0 | AG156: 0 | AH156: 0 | AI156: 0 | AJ156: 0 | AK156: 60.02 | AL156: 0 | AM156: 0 | AN156: 0 | AO156: 0 | AP156: 0 | AQ156: 0 | AR156: 0 | AS156: 0 | AT156: 0 | AU156: 0 | AV156: 0 | AW156: 0 | AX156: 0 | AY156: 0 | AZ156: 0 | BA156: 0 | BB156: 0 | BC156: 5959.52 | BD156: 589.95 | BE156: 106.19 | BF156: 68.43 | BG156: 0 | BH156: 720.17 | BI156: 0 | BJ156: 0 | BK156: 0 | BL156: 0 | BM156: 0 | BN156: 0 | BO156: 60.02 | BP156: 495.11 | BQ156: 0 | BR156: 0 | BS156: 0 | BT156: 10 | BU156: 0 | BV156: 140 | BW156: 0 | BX156: 0 | BY156: 0 | BZ156: 0 | CA156: 0 | CB156: 0 | CC156: 0 | CD156: 0 | CE156: 0 | CF156: 0 | CG156: 0 | CH156: 0 | CI156: 0 | CJ156: 0 | CK156: 0 | CL156: 0 | CM156: 0 | CN156: 0 | CO156: 0 | CP156: -0.21 | CQ156: 0.86 | CR156: 2190.52 | CS156: 3769 | CT156: 530.96 | CU156: 44.25 | CV156: 4344.21
A157: 000160 | B157: 1997-01-02 | C157: 30 | D157: 7269 | E157: 0 | F157: 0 | G157: 0 | H157: 0 | I157: 67.5 | J157: 0 | K157: 0 | L157: 0 | M157: 0 | N157: 0 | O157: 0 | P157: 0 | Q157: 0 | R157: 0 | S157: 0 | T157: 0 | U157: 0 | V157: 0 | W157: 0 | X157: 0 | Y157: 0 | Z157: 0 | AA157: 0 | AB157: 0 | AC157: 70 | AD157: 0 | AE157: 0 | AF157: 0 | AG157: 0 | AH157: 0 | AI157: 0 | AJ157: 0 | AK157: 60.02 | AL157: 0 | AM157: 0 | AN157: 0 | AO157: 0 | AP157: 0 | AQ157: 0 | AR157: 0 | AS157: 0 | AT157: 0 | AU157: 0 | AV157: 0 | AW157: 0 | AX157: 0 | AY157: 0 | AZ157: 0 | BA157: 0 | BB157: 0 | BC157: 7466.52 | BD157: 740.65 | BE157: 133.32 | BF157: 85.92 | BG157: 0 | BH157: 984.02 | BI157: 5 | BJ157: 0 | BK157: 0 | BL157: 0 | BM157: 0 | BN157: 0 | BO157: 60.02 | BP157: 495.11 | BQ157: 0 | BR157: 0 | BS157: 0 | BT157: 120 | BU157: 0 | BV157: 20 | BW157: 0 | BX157: 0 | BY157: 0 | BZ157: 0 | CA157: 0 | CB157: 0 | CC157: 0 | CD157: 0 | CE157: 0 | CF157: 0 | CG157: 0 | CH157: 0 | CI157: 0 | CJ157: 0 | CK157: 0 | CL157: 0 | CM157: 0 | CN157: 0 | CO157: 0 | CP157: -0.76 | CQ157: 0.24 | CR157: 2643.52 | CS157: 4823 | CT157: 666.59 | CU157: 55.55 | CV157: 5545.14
A158: 000161 | B158: 1996-09-16 | C158: 30 | D158: 8197 | E158: 0 | F158: 0 | G158: 0 | H158: 0 | I158: 67.5 | J158: 0 | K158: 0 | L158: 0 | M158: 0 | N158: 0 | O158: 0 | P158: 0 | Q158: 0 | R158: 0 | S158: 0 | T158: 0 | U158: 0 | V158: 0 | W158: 0 | X158: 0 | Y158: 0 | Z158: 0 | AA158: 0 | AB158: 0 | AC158: 60 | AD158: 0 | AE158: 0 | AF158: 0 | AG158: 0 | AH158: 0 | AI158: 0 | AJ158: 0 | AK158: 60.02 | AL158: 0 | AM158: 0 | AN158: 0 | AO158: 0 | AP158: 0 | AQ158: 0 | AR158: 0 | AS158: 0 | AT158: 0 | AU158: 0 | AV158: 0 | AW158: 0 | AX158: 0 | AY158: 0 | AZ158: 0 | BA158: 0 | BB158: 0 | BC158: 8384.52 | BD158: 832.45 | BE158: 162.33 | BF158: 106.48 | BG158: 0 | BH158: 1106.31 | BI158: 0 | BJ158: 0 | BK158: 0 | BL158: 0 | BM158: 0 | BN158: 0 | BO158: 60.02 | BP158: 787.28 | BQ158: 0 | BR158: 0 | BS158: 0 | BT158: 50 | BU158: 0 | BV158: 70 | BW158: 0 | BX158: 0 | BY158: 0 | BZ158: 0 | CA158: 0 | CB158: 0 | CC158: 0 | CD158: 0 | CE158: 0 | CF158: 0 | CG158: 0 | CH158: 0 | CI158: 0 | CJ158: 0 | CK158: 0 | CL158: 0 | CM158: 0 | CN158: 0 | CO158: 0 | CP158: -0.36 | CQ158: 0.01 | CR158: 3174.52 | CS158: 5210 | CT158: 749.21 | CU158: 62.43 | CV158: 6021.64
A159: 000162 | B159: 1996-09-16 | C159: 30 | D159: 6811 | E159: 0 | F159: 0 | G159: 0 | H159: 0 | I159: 0 | J159: 0 | K159: 0 | L159: 0 | M159: 0 | N159: 0 | O159: 0 | P159: 0 | Q159: 0 | R159: 0 | S159: 0 | T159: 0 | U159: 0 | V159: 0 | W159: 0 | X159: 0 | Y159: 0 | Z159: 0 | AA159: 0 | AB159: 0 | AC159: 50 | AD159: 0 | AE159: 0 | AF159: 0 | AG159: 0 | AH159: 0 | AI159: 0 | AJ159: 0 | AK159: 60.02 | AL159: 0 | AM159: 0 | AN159: 0 | AO159: 0 | AP159: 0 | AQ159: 0 | AR159: 0 | AS159: 0 | AT159: 0 | AU159: 0 | AV159: 0 | AW159: 0 | AX159: 0 | AY159: 0 | AZ159: 0 | BA159: 0 | BB159: 0 | BC159: 6921.02 | BD159: 686.1 | BE159: 133.79 | BF159: 93.31 | BG159: 0 | BH159: 889.05 | BI159: 5 | BJ159: 0 | BK159: 0 | BL159: 0 | BM159: 0 | BN159: 0 | BO159: 60.02 | BP159: 639.34 | BQ159: 14.98 | BR159: 0 | BS159: 0 | BT159: 100 | BU159: 0 | BV159: 0 | BW159: 0 | BX159: 0 | BY159: 0 | BZ159: 0 | CA159: 0 | CB159: 0 | CC159: 0 | CD159: 0 | CE159: 0 | CF159: 0 | CG159: 0 | CH159: 0 | CI159: 0 | CJ159: 0 | CK159: 0 | CL159: 0 | CM159: 0 | CN159: 0 | CO159: 0 | CP159: -0.06 | CQ159: 0.49 | CR159: 2622.02 | CS159: 4299 | CT159: 617.49 | CU159: 51.46 | CV159: 4967.95
A160: 000163 | B160: 1997-01-02 | C160: 21 | D160: 0 | E160: 0 | F160: 10116 | G160: 0 | H160: 0 | I160: 67.5 | J160: 0 | K160: 0 | L160: 0 | M160: 0 | N160: 0 | O160: 0 | P160: 0 | Q160: 0 | R160: 0 | S160: 0 | T160: 0 | U160: 0 | V160: 0 | W160: 0 | X160: 0 | Y160: 0 | Z160: 0 | AA160: 0 | AB160: 0 | AC160: 40 | AD160: 0 | AE160: 0 | AF160: 0 | AG160: 0 | AH160: 0 | AI160: 0 | AJ160: 0 | AK160: 60.02 | AL160: 0 | AM160: 0 | AN160: 0 | AO160: 0 | AP160: 0 | AQ160: 0 | AR160: 0 | AS160: 0 | AT160: 0 | AU160: 1000.76 | AV160: 1715.58 | AW160: 0 | AX160: 0 | AY160: 0 | AZ160: 0 | BA160: 0 | BB160: 115.8 | BC160: 13115.66 | BD160: 1022.35 | BE160: 199.36 | BF160: 106.48 | BG160: 0 | BH160: 1604.25 | BI160: 0 | BJ160: 0 | BK160: 0 | BL160: 0 | BM160: 0 | BN160: 0 | BO160: 60.02 | BP160: 520.47 | BQ160: 0 | BR160: 0 | BS160: 0 | BT160: 20 | BU160: 0 | BV160: 60 | BW160: 0 | BX160: 0 | BY160: 0 | BZ160: 0 | CA160: 0 | CB160: 0 | CC160: 0 | CD160: 0 | CE160: 0 | CF160: 0 | CG160: 0 | CH160: 0 | CI160: 0 | CJ160: 0 | CK160: 0 | CL160: 0 | CM160: 0 | CN160: 0 | CO160: 0 | CP160: -0.67 | CQ160: 0.4 | CR160: 3592.66 | CS160: 9523 | CT160: 920.12 | CU160: 76.68 | CV160: 10519.8
A161: 000164 | B161: 1997-01-31 | C161: 30 | D161: 8462 | E161: 0 | F161: 0 | G161: 0 | H161: 0 | I161: 0 | J161: 0 | K161: 0 | L161: 0 | M161: 0 | N161: 0 | O161: 0 | P161: 0 | Q161: 0 | R161: 0 | S161: 0 | T161: 0 | U161: 0 | V161: 0 | W161: 0 | X161: 0 | Y161: 0 | Z161: 0 | AA161: 0 | AB161: 0 | AC161: 55 | AD161: 0 | AE161: 0 | AF161: 0 | AG161: 0 | AH161: 0 | AI161: 0 | AJ161: 0 | AK161: 60.02 | AL161: 0 | AM161: 0 | AN161: 0 | AO161: 0 | AP161: 0 | AQ161: 0 | AR161: 0 | AS161: 0 | AT161: 0 | AU161: 0 | AV161: 0 | AW161: 0 | AX161: 0 | AY161: 0 | AZ161: 0 | BA161: 0 | BB161: 0 | BC161: 8577.02 | BD161: 851.7 | BE161: 153.31 | BF161: 90.82 | BG161: 0 | BH161: 1154.91 | BI161: 0 | BJ161: 0 | BK161: 0 | BL161: 0 | BM161: 0 | BN161: 0 | BO161: 60.02 | BP161: 693.22 | BQ161: 0 | BR161: 0 | BS161: 0 | BT161: 30 | BU161: 0 | BV161: 80 | BW161: 0 | BX161: 0 | BY161: 0 | BZ161: 0 | CA161: 0 | CB161: 0 | CC161: 0 | CD161: 0 | CE161: 0 | CF161: 0 | CG161: 0 | CH161: 0 | CI161: 0 | CJ161: 0 | CK161: 0 | CL161: 0 | CM161: 0 | CN161: 0 | CO161: 0 | CP161: -0.84 | CQ161: 0.88 | CR161: 3114.02 | CS161: 5463 | CT161: 766.53 | CU161: 63.88 | CV161: 6293.41
A162: 000165 | B162: 1997-01-02 | C162: 30 | D162: 8942 | E162: 0 | F162: 0 | G162: 0 | H162: 0 | I162: 67.5 | J162: 0 | K162: 0 | L162: 0 | M162: 0 | N162: 0 | O162: 0 | P162: 0 | Q162: 0 | R162: 0 | S162: 0 | T162: 0 | U162: 0 | V162: 0 | W162: 0 | X162: 0 | Y162: 0 | Z162: 0 | AA162: 0 | AB162: 0 | AC162: 100 | AD162: 0 | AE162: 0 | AF162: 0 | AG162: 0 | AH162: 0 | AI162: 0 | AJ162: 0 | AK162: 60.02 | AL162: 0 | AM162: 0 | AN162: 0 | AO162: 0 | AP162: 0 | AQ162: 0 | AR162: 0 | AS162: 0 | AT162: 0 | AU162: 0 | AV162: 0 | AW162: 0 | AX162: 0 | AY162: 0 | AZ162: 0 | BA162: 0 | BB162: 0 | BC162: 9169.52 | BD162: 910.95 | BE162: 177.64 | BF162: 106.48 | BG162: 0 | BH162: 1301.06 | BI162: 0 | BJ162: 0 | BK162: 0 | BL162: 0 | BM162: 0 | BN162: 0 | BO162: 60.02 | BP162: 787.28 | BQ162: 0 | BR162: 0 | BS162: 0 | BT162: 10 | BU162: 0 | BV162: 190 | BW162: 0 | BX162: 0 | BY162: 0 | BZ162: 0 | CA162: 0 | CB162: 0 | CC162: 0 | CD162: 0 | CE162: 0 | CF162: 0 | CG162: 0 | CH162: 0 | CI162: 0 | CJ162: 0 | CK162: 0 | CL162: 0 | CM162: 0 | CN162: 0 | CO162: 0 | CP162: -0.58 | CQ162: 0.67 | CR162: 3543.52 | CS162: 5626 | CT162: 819.86 | CU162: 68.32 | CV162: 6514.18
A163: 000166 | B163: 2002-05-25 | C163: 3 | D163: 4256 | E163: 0 | F163: 0 | G163: 0 | H163: 0 | I163: 175 | J163: 0 | K163: 0 | L163: 0 | M163: 0 | N163: 0 | O163: 0 | P163: 0 | Q163: 0 | R163: 0 | S163: 0 | T163: 461.07 | U163: 163.38 | V163: 264.12 | W163: 0 | X163: 0 | Y163: 0 | Z163: 0 | AA163: 0 | AB163: 0 | AC163: 75 | AD163: 0 | AE163: 0 | AF163: 0 | AG163: 129.6 | AH163: 0 | AI163: 0 | AJ163: 0 | AK163: 180.06 | AL163: 0 | AM163: 0 | AN163: 0 | AO163: 0 | AP163: 0 | AQ163: 0 | AR163: 0 | AS163: 0 | AT163: 0 | AU163: 0 | AV163: 0 | AW163: 0 | AX163: 0 | AY163: 0 | AZ163: 0 | BA163: 0 | BB163: 0 | BC163: 5704.23 | BD163: 539.46 | BE163: 105.19 | BF163: 73.37 | BG163: 0 | BH163: 662.99 | BI163: 0 | BJ163: 0 | BK163: 0 | BL163: 50 | BM163: 0 | BN163: 0 | BO163: 180.06 | BP163: 0 | BQ163: 0 | BR163: 0 | BS163: 0 | BT163: 0 | BU163: 150 | BV163: 0 | BW163: 0 | BX163: 0 | BY163: 0 | BZ163: 0 | CA163: 0 | CB163: 0 | CC163: 0 | CD163: 0 | CE163: 0 | CF163: 394.1 | CG163: 0 | CH163: 0 | CI163: 0 | CJ163: 0 | CK163: 0 | CL163: 0 | CM163: 0 | CN163: 0 | CO163: 0 | CP163: -0.67 | CQ163: 0.73 | CR163: 2155.23 | CS163: 3549 | CT163: 485.51 | CU163: 40.46 | CV163: 4074.97
A164: 000167 | B164: 1997-01-02 | C164: 30 | D164: 7179.04 | E164: 0 | F164: 0 | G164: 0 | H164: 0 | I164: 67.5 | J164: 0 | K164: 0 | L164: 0 | M164: 0 | N164: 0 | O164: 0 | P164: 0 | Q164: 0 | R164: 0 | S164: 0 | T164: 0 | U164: 0 | V164: 0 | W164: 0 | X164: 0 | Y164: 0 | Z164: 0 | AA164: 0 | AB164: 0 | AC164: 85 | AD164: 0 | AE164: 0 | AF164: 0 | AG164: 0 | AH164: 0 | AI164: 0 | AJ164: 0 | AK164: 60.02 | AL164: 0 | AM164: 0 | AN164: 0 | AO164: 0 | AP164: 0 | AQ164: 0 | AR164: 0 | AS164: 0 | AT164: 0 | AU164: 0 | AV164: 0 | AW164: 0 | AX164: 0 | AY164: 0 | AZ164: 0 | BA164: 0 | BB164: 0 | BC164: 7391.56 | BD164: 733.15 | BE164: 131.97 | BF164: 85.05 | BG164: 0 | BH164: 970.52 | BI164: 0 | BJ164: 0 | BK164: 0 | BL164: 0 | BM164: 0 | BN164: 0 | BO164: 60.02 | BP164: 202.94 | BQ164: 0 | BR164: 0 | BS164: 0 | BT164: 40 | BU164: 0 | BV164: 130 | BW164: 0 | BX164: 0 | BY164: 0 | BZ164: 0 | CA164: 0 | CB164: 0 | CC164: 0 | CD164: 0 | CE164: 0 | CF164: 0 | CG164: 0 | CH164: 0 | CI164: 0 | CJ164: 0 | CK164: 0 | CL164: 0 | CM164: 0 | CN164: 0 | CO164: 0 | CP164: -0.36 | CQ164: 0.27 | CR164: 2353.56 | CS164: 5038 | CT164: 659.84 | CU164: 54.99 | CV164: 5752.83
A165: 000168 | B165: 1997-01-02 | C165: 30 | D165: 5879.47 | E165: 0 | F165: 0 | G165: 0 | H165: 0 | I165: 67.5 | J165: 0 | K165: 0 | L165: 0 | M165: 0 | N165: 0 | O165: 0 | P165: 0 | Q165: 0 | R165: 0 | S165: 0 | T165: 0 | U165: 0 | V165: 0 | W165: 0 | X165: 0 | Y165: 0 | Z165: 0 | AA165: 0 | AB165: 0 | AC165: 25 | AD165: 0 | AE165: 0 | AF165: 0 | AG165: 0 | AH165: 0 | AI165: 0 | AJ165: 0 | AK165: 60.02 | AL165: 0 | AM165: 0 | AN165: 0 | AO165: 0 | AP165: 0 | AQ165: 0 | AR165: 0 | AS165: 0 | AT165: 0 | AU165: 0 | AV165: 0 | AW165: 0 | AX165: 0 | AY165: 0 | AZ165: 0 | BA165: 0 | BB165: 0 | BC165: 6031.99 | BD165: 597.2 | BE165: 104.51 | BF165: 77.04 | BG165: 0 | BH165: 740.8 | BI165: 5 | BJ165: 0 | BK165: 0 | BL165: 0 | BM165: 0 | BN165: 0 | BO165: 60.02 | BP165: 787.28 | BQ165: 902.7 | BR165: 0 | BS165: 0 | BT165: 50 | BU165: 0 | BV165: 0 | BW165: 0 | BX165: 0 | BY165: 0 | BZ165: 0 | CA165: 0 | CB165: 0 | CC165: 0 | CD165: 0 | CE165: 0 | CF165: 592.1 | CG165: 0 | CH165: 0 | CI165: 0 | CJ165: 0 | CK165: 0 | CL165: 0 | CM165: 0 | CN165: 0 | CO165: 0 | CP165: -0.53 | CQ165: 0.87 | CR165: 3916.99 | CS165: 2115 | CT165: 537.48 | CU165: 44.79 | CV165: 2697.27
A166: 000169 | B166: 1978-10-30 | C166: 42 | D166: 4757.09 | E166: 0 | F166: 0 | G166: 0 | H166: 0 | I166: 133 | J166: 0 | K166: 122.36 | L166: 39.55 | M166: 0 | N166: 0 | O166: 0 | P166: 0 | Q166: 0 | R166: 0 | S166: 0 | T166: 0 | U166: 198 | V166: 150.69 | W166: 378.38 | X166: 0 | Y166: 0 | Z166: 0 | AA166: 0 | AB166: 0 | AC166: 121.8 | AD166: 0 | AE166: 0 | AF166: 0 | AG166: 0 | AH166: 0 | AI166: 0 | AJ166: 0 | AK166: 150.05 | AL166: 0 | AM166: 0 | AN166: 0 | AO166: 1000 | AP166: 0 | AQ166: 0 | AR166: 0 | AS166: 0 | AT166: 0 | AU166: 0 | AV166: 0 | AW166: 0 | AX166: 0 | AY166: 0 | AZ166: 0 | BA166: 0 | BB166: 0 | BC166: 7050.92 | BD166: 690.09 | BE166: 134.57 | BF166: 93.85 | BG166: 0 | BH166: 936.34 | BI166: 5 | BJ166: 0 | BK166: 0 | BL166: 50 | BM166: 0 | BN166: 0 | BO166: 150.05 | BP166: 95.25 | BQ166: 0 | BR166: 0 | BS166: 0 | BT166: 0 | BU166: 0 | BV166: 0 | BW166: 0 | BX166: 0 | BY166: 0 | BZ166: 243.6 | CA166: 0 | CB166: 0 | CC166: 0 | CD166: 0 | CE166: 0 | CF166: 491.9 | CG166: 0 | CH166: 0 | CI166: 1000 | CJ166: 0 | CK166: 0 | CL166: 0 | CM166: 0 | CN166: 0 | CO166: 0 | CP166: -0.09 | CQ166: 0.24 | CR166: 3890.8 | CS166: 3160.12 | CT166: 621.08 | CU166: 59.26 | CV166: 3840.46
A167: 000170 | B167: 2004-05-17 | C167: 21 | D167: 0 | E167: 0 | F167: 11715 | G167: 0 | H167: 0 | I167: 67.5 | J167: 0 | K167: 0 | L167: 0 | M167: 0 | N167: 0 | O167: 0 | P167: 0 | Q167: 0 | R167: 0 | S167: 0 | T167: 0 | U167: 0 | V167: 0 | W167: 0 | X167: 0 | Y167: 0 | Z167: 0 | AA167: 0 | AB167: 0 | AC167: 0 | AD167: 0 | AE167: 0 | AF167: 0 | AG167: 0 | AH167: 0 | AI167: 0 | AJ167: 0 | AK167: 60.02 | AL167: 0 | AM167: 0 | AN167: 0 | AO167: 0 | AP167: 0 | AQ167: 0 | AR167: 0 | AS167: 0 | AT167: 0 | AU167: 1154.37 | AV167: 1978.92 | AW167: 0 | AX167: 0 | AY167: 0 | AZ167: 0 | BA167: 0 | BB167: 133.58 | BC167: 15109.39 | BD167: 1178.25 | BE167: 206.19 | BF167: 101 | BG167: 0 | BH167: 1990.68 | BI167: 0 | BJ167: 0 | BK167: 0 | BL167: 0 | BM167: 0 | BN167: 0 | BO167: 60.02 | BP167: 125.38 | BQ167: 0 | BR167: 0 | BS167: 0 | BT167: 0 | BU167: 0 | BV167: 0 | BW167: 0 | BX167: 0 | BY167: 0 | BZ167: 0 | CA167: 0 | CB167: 0 | CC167: 0 | CD167: 0 | CE167: 0 | CF167: 0 | CG167: 0 | CH167: 0 | CI167: 0 | CJ167: 0 | CK167: 0 | CL167: 0 | CM167: 0 | CN167: 0 | CO167: 0 | CP167: -0.97 | CQ167: 0.84 | CR167: 3661.39 | CS167: 11448 | CT167: 1060.43 | CU167: 88.37 | CV167: 12596.8
A168: 000171 | B168: 1981-12-01 | C168: 30 | D168: 8014 | E168: 0 | F168: 0 | G168: 0 | H168: 0 | I168: 0 | J168: 0 | K168: 0 | L168: 0 | M168: 0 | N168: 0 | O168: 0 | P168: 0 | Q168: 0 | R168: 0 | S168: 0 | T168: 0 | U168: 0 | V168: 0 | W168: 0 | X168: 0 | Y168: 0 | Z168: 0 | AA168: 0 | AB168: 0 | AC168: 95 | AD168: 0 | AE168: 0 | AF168: 0 | AG168: 0 | AH168: 0 | AI168: 0 | AJ168: 0 | AK168: 60.02 | AL168: 0 | AM168: 0 | AN168: 0 | AO168: 0 | AP168: 0 | AQ168: 0 | AR168: 0 | AS168: 0 | AT168: 0 | AU168: 0 | AV168: 0 | AW168: 0 | AX168: 0 | AY168: 0 | AZ168: 0 | BA168: 0 | BB168: 0 | BC168: 8169.02 | BD168: 810.9 | BE168: 141.91 | BF168: 101 | BG168: 0 | BH168: 1106.33 | BI168: 5 | BJ168: 0 | BK168: 0 | BL168: 0 | BM168: 0 | BN168: 0 | BO168: 60.02 | BP168: 347.17 | BQ168: 0 | BR168: 0 | BS168: 0 | BT168: 150 | BU168: 0 | BV168: 40 | BW168: 0 | BX168: 0 | BY168: 0 | BZ168: 0 | CA168: 0 | CB168: 0 | CC168: 0 | CD168: 0 | CE168: 0 | CF168: 0 | CG168: 0 | CH168: 80 | CI168: 0 | CJ168: 0 | CK168: 0 | CL168: 0 | CM168: 0 | CN168: 0 | CO168: 0 | CP168: -0.62 | CQ168: 0.31 | CR168: 2842.02 | CS168: 5327 | CT168: 729.81 | CU168: 60.82 | CV168: 6117.63
A169: 000172 | B169: 1990-06-30 | C169: 3 | D169: 8262.09 | E169: 0 | F169: 0 | G169: 0 | H169: 0 | I169: 67.5 | J169: 0 | K169: 0 | L169: 0 | M169: 0 | N169: 0 | O169: 0 | P169: 0 | Q169: 0 | R169: 0 | S169: 0 | T169: 0 | U169: 0 | V169: 0 | W169: 0 | X169: 0 | Y169: 0 | Z169: 0 | AA169: 0 | AB169: 0 | AC169: 22.5 | AD169: 0 | AE169: 0 | AF169: 0 | AG169: 0 | AH169: 1139.6 | AI169: 0 | AJ169: 0 | AK169: 60.02 | AL169: 0 | AM169: 0 | AN169: 0 | AO169: 0 | AP169: 0 | AQ169: 0 | AR169: 0 | AS169: 0 | AT169: 0 | AU169: 0 | AV169: 0 | AW169: 0 | AX169: 0 | AY169: 0 | AZ169: 0 | BA169: 0 | BB169: 0 | BC169: 9551.71 | BD169: 949.17 | BE169: 185.09 | BF169: 106.48 | BG169: 0 | BH169: 1411.23 | BI169: 5 | BJ169: 0 | BK169: 0 | BL169: 0 | BM169: 0 | BN169: 0 | BO169: 60.02 | BP169: 417.55 | BQ169: 458 | BR169: 0 | BS169: 0 | BT169: 0 | BU169: 45 | BV169: 0 | BW169: 0 | BX169: 0 | BY169: 0 | BZ169: 0 | CA169: 0 | CB169: 0 | CC169: 0 | CD169: 0 | CE169: 0 | CF169: 854.7 | CG169: 0 | CH169: 80 | CI169: 0 | CJ169: 0 | CK169: 0 | CL169: 0 | CM169: 0 | CN169: 0 | CO169: 0 | CP169: -0.59 | CQ169: 0.06 | CR169: 4571.71 | CS169: 4980 | CT169: 854.25 | CU169: 71.19 | CV169: 5905.44
A170: 000173 | B170: 1989-03-06 | C170: 42 | D170: 5668.53 | E170: 0 | F170: 0 | G170: 0 | H170: 0 | I170: 67.5 | J170: 0 | K170: 0 | L170: 0 | M170: 0 | N170: 0 | O170: 0 | P170: 0 | Q170: 0 | R170: 0 | S170: 0 | T170: 0 | U170: 264 | V170: 226.04 | W170: 225.54 | X170: 0 | Y170: 0 | Z170: 0 | AA170: 0 | AB170: 0 | AC170: 63 | AD170: 0 | AE170: 0 | AF170: 0 | AG170: 0 | AH170: 0 | AI170: 0 | AJ170: 0 | AK170: 60.02 | AL170: 0 | AM170: 0 | AN170: 0 | AO170: 0 | AP170: 0 | AQ170: 0 | AR170: 0 | AS170: 0 | AT170: 0 | AU170: 0 | AV170: 0 | AW170: 0 | AX170: 0 | AY170: 0 | AZ170: 0 | BA170: 0 | BB170: 0 | BC170: 6574.63 | BD170: 651.46 | BE170: 114.01 | BF170: 84.04 | BG170: 0 | BH170: 863.33 | BI170: 5 | BJ170: 0 | BK170: 0 | BL170: 0 | BM170: 0 | BN170: 0 | BO170: 60.02 | BP170: 116.06 | BQ170: 0 | BR170: 0 | BS170: 0 | BT170: 0 | BU170: 0 | BV170: 0 | BW170: 0 | BX170: 0 | BY170: 0 | BZ170: 126 | CA170: 0 | CB170: 0 | CC170: 0 | CD170: 0 | CE170: 0 | CF170: 0 | CG170: 0 | CH170: 0 | CI170: 0 | CJ170: 0 | CK170: 0 | CL170: 0 | CM170: 0 | CN170: 0 | CO170: 0 | CP170: -0.62 | CQ170: 0.33 | CR170: 2019.63 | CS170: 4555 | CT170: 586.31 | CU170: 48.86 | CV170: 5190.17
A171: 000174 | B171: 1988-03-21 | C171: 42 | D171: 9275 | E171: 0 | F171: 0 | G171: 0 | H171: 0 | I171: 67.5 | J171: 0 | K171: 0 | L171: 0 | M171: 0 | N171: 0 | O171: 0 | P171: 0 | Q171: 0 | R171: 0 | S171: 0 | T171: 0 | U171: 0 | V171: 0 | W171: 0 | X171: 0 | Y171: 0 | Z171: 0 | AA171: 0 | AB171: 0 | AC171: 88.2 | AD171: 0 | AE171: 0 | AF171: 0 | AG171: 0 | AH171: 0 | AI171: 0 | AJ171: 0 | AK171: 60.02 | AL171: 0 | AM171: 0 | AN171: 0 | AO171: 0 | AP171: 0 | AQ171: 0 | AR171: 0 | AS171: 0 | AT171: 0 | AU171: 0 | AV171: 0 | AW171: 0 | AX171: 0 | AY171: 0 | AZ171: 0 | BA171: 0 | BB171: 0 | BC171: 9490.72 | BD171: 943.07 | BE171: 165.04 | BF171: 101 | BG171: 0 | BH171: 1380.16 | BI171: 5 | BJ171: 0 | BK171: 0 | BL171: 0 | BM171: 0 | BN171: 0 | BO171: 60.02 | BP171: 81.41 | BQ171: 0 | BR171: 0 | BS171: 0 | BT171: 0 | BU171: 0 | BV171: 0 | BW171: 0 | BX171: 0 | BY171: 0 | BZ171: 176.4 | CA171: 0 | CB171: 0 | CC171: 0 | CD171: 0 | CE171: 0 | CF171: 0 | CG171: 0 | CH171: 0 | CI171: 0 | CJ171: 0 | CK171: 0 | CL171: 0 | CM171: 0 | CN171: 0 | CO171: 0 | CP171: -0.53 | CQ171: 0.15 | CR171: 2911.72 | CS171: 6579 | CT171: 848.76 | CU171: 70.73 | CV171: 7498.49
A172: 000175 | B172: 1990-01-15 | C172: 21 | D172: 0 | E172: 0 | F172: 14723 | G172: 0 | H172: 0 | I172: 67.5 | J172: 0 | K172: 0 | L172: 0 | M172: 0 | N172: 0 | O172: 0 | P172: 0 | Q172: 0 | R172: 0 | S172: 0 | T172: 0 | U172: 0 | V172: 0 | W172: 0 | X172: 0 | Y172: 0 | Z172: 0 | AA172: 0 | AB172: 0 | AC172: 0 | AD172: 0 | AE172: 0 | AF172: 0 | AG172: 0 | AH172: 0 | AI172: 0 | AJ172: 0 | AK172: 60.02 | AL172: 0 | AM172: 0 | AN172: 0 | AO172: 0 | AP172: 0 | AQ172: 0 | AR172: 0 | AS172: 0 | AT172: 0 | AU172: 1447.44 | AV172: 2481.33 | AW172: 0 | AX172: 0 | AY172: 0 | AZ172: 0 | BA172: 0 | BB172: 167.49 | BC172: 18946.78 | BD172: 1479.05 | BE172: 266.23 | BF172: 90.82 | BG172: 0 | BH172: 2734.99 | BI172: 5 | BJ172: 0 | BK172: 0 | BL172: 0 | BM172: 0 | BN172: 0 | BO172: 60.02 | BP172: 219.76 | BQ172: 0 | BR172: 0 | BS172: 0 | BT172: 0 | BU172: 0 | BV172: 0 | BW172: 0 | BX172: 0 | BY172: 0 | BZ172: 0 | CA172: 0 | CB172: 0 | CC172: 0 | CD172: 0 | CE172: 0 | CF172: 0 | CG172: 0 | CH172: 0 | CI172: 0 | CJ172: 0 | CK172: 0 | CL172: 0 | CM172: 0 | CN172: 0 | CO172: 0 | CP172: 0 | CQ172: 0.91 | CR172: 4856.78 | CS172: 14090 | CT172: 1331.15 | CU172: 110.93 | CV172: 15532.08
A173: 000176 | B173: 1988-07-11 | C173: 3 | D173: 9200 | E173: 0 | F173: 0 | G173: 0 | H173: 0 | I173: 67.5 | J173: 0 | K173: 0 | L173: 0 | M173: 0 | N173: 0 | O173: 0 | P173: 0 | Q173: 0 | R173: 0 | S173: 0 | T173: 0 | U173: 0 | V173: 0 | W173: 0 | X173: 0 | Y173: 0 | Z173: 0 | AA173: 0 | AB173: 0 | AC173: 96.25 | AD173: 0 | AE173: 0 | AF173: 0 | AG173: 0 | AH173: 0 | AI173: 0 | AJ173: 0 | AK173: 60.02 | AL173: 0 | AM173: 0 | AN173: 0 | AO173: 0 | AP173: 0 | AQ173: 0 | AR173: 0 | AS173: 0 | AT173: 0 | AU173: 0 | AV173: 0 | AW173: 0 | AX173: 0 | AY173: 0 | AZ173: 0 | BA173: 0 | BB173: 0 | BC173: 9423.77 | BD173: 936.38 | BE173: 168.55 | BF173: 90.82 | BG173: 0 | BH173: 1363.48 | BI173: 5 | BJ173: 0 | BK173: 0 | BL173: 0 | BM173: 0 | BN173: 0 | BO173: 60.02 | BP173: 108.88 | BQ173: 0 | BR173: 0 | BS173: 0 | BT173: 10 | BU173: 22.5 | BV173: 160 | BW173: 0 | BX173: 0 | BY173: 0 | BZ173: 0 | CA173: 0 | CB173: 0 | CC173: 0 | CD173: 0 | CE173: 0 | CF173: 0 | CG173: 0 | CH173: 0 | CI173: 0 | CJ173: 0 | CK173: 0 | CL173: 0 | CM173: 0 | CN173: 0 | CO173: 0 | CP173: -0.36 | CQ173: 0.5 | CR173: 2925.77 | CS173: 6498 | CT173: 842.74 | CU173: 70.23 | CV173: 7410.97
A174: 000177 | B174: 1989-01-16 | C174: 1 | D174: 11568.34 | E174: 0 | F174: 0 | G174: 0 | H174: 0 | I174: 67.5 | J174: 0 | K174: 0 | L174: 0 | M174: 0 | N174: 0 | O174: 0 | P174: 0 | Q174: 0 | R174: 0 | S174: 0 | T174: 0 | U174: 0 | V174: 0 | W174: 0 | X174: 0 | Y174: 0 | Z174: 0 | AA174: 0 | AB174: 0 | AC174: 0 | AD174: 0 | AE174: 0 | AF174: 0 | AG174: 0 | AH174: 0 | AI174: 0 | AJ174: 0 | AK174: 60.02 | AL174: 0 | AM174: 0 | AN174: 0 | AO174: 0 | AP174: 0 | AQ174: 0 | AR174: 0 | AS174: 0 | AT174: 0 | AU174: 0 | AV174: 0 | AW174: 0 | AX174: 0 | AY174: 0 | AZ174: 0 | BA174: 0 | BB174: 0 | BC174: 11695.86 | BD174: 1163.58 | BE174: 203.63 | BF174: 101 | BG174: 0 | BH174: 1923.51 | BI174: 5 | BJ174: 2476.2 | BK174: 0 | BL174: 0 | BM174: 0 | BN174: 0 | BO174: 60.02 | BP174: 298.67 | BQ174: 0 | BR174: 0 | BS174: 0 | BT174: 0 | BU174: 0 | BV174: 0 | BW174: 0 | BX174: 0 | BY174: 0 | BZ174: 0 | CA174: 0 | CB174: 0 | CC174: 0 | CD174: 0 | CE174: 0 | CF174: 1156.83 | CG174: 0 | CH174: 0 | CI174: 0 | CJ174: 0 | CK174: 0 | CL174: 300 | CM174: 0 | CN174: 0 | CO174: 0 | CP174: -0.42 | CQ174: 0.84 | CR174: 7688.86 | CS174: 4007 | CT174: 1047.23 | CU174: 87.27 | CV174: 5141.5
A175: 000178 | B175: 2003-10-01 | C175: 21 | D175: 0 | E175: 0 | F175: 15492 | G175: 0 | H175: 0 | I175: 67.5 | J175: 0 | K175: 0 | L175: 0 | M175: 0 | N175: 0 | O175: 0 | P175: 0 | Q175: 0 | R175: 0 | S175: 0 | T175: 0 | U175: 0 | V175: 0 | W175: 0 | X175: 0 | Y175: 0 | Z175: 0 | AA175: 0 | AB175: 0 | AC175: 15 | AD175: 0 | AE175: 0 | AF175: 0 | AG175: 0 | AH175: 0 | AI175: 0 | AJ175: 2681 | AK175: 60.02 | AL175: 0 | AM175: 0 | AN175: 1280 | AO175: 0 | AP175: 0 | AQ175: 0 | AR175: 0 | AS175: 0 | AT175: 0 | AU175: 1522.21 | AV175: 2609.5 | AW175: 0 | AX175: 0 | AY175: 0 | AZ175: 0 | BA175: 0 | BB175: 176.14 | BC175: 23903.37 | BD175: 1557.45 | BE175: 272.55 | BF175: 101 | BG175: 0 | BH175: 4253.12 | BI175: 5 | BJ175: 0 | BK175: 0 | BL175: 0 | BM175: 0 | BN175: 0 | BO175: 60.02 | BP175: 1178.6 | BQ175: 0 | BR175: 0 | BS175: 0 | BT175: 0 | BU175: 0 | BV175: 30 | BW175: 0 | BX175: 0 | BY175: 0 | BZ175: 0 | CA175: 0 | CB175: 0 | CC175: 0 | CD175: 0 | CE175: 0 | CF175: 0 | CG175: 0 | CH175: 0 | CI175: 0 | CJ175: 0 | CK175: 0 | CL175: 0 | CM175: 0 | CN175: 0 | CO175: 0 | CP175: -0.67 | CQ175: 0.3 | CR175: 7457.37 | CS175: 16446 | CT175: 1401.71 | CU175: 116.81 | CV175: 17964.52
A176: 000179 | B176: 1991-03-12 | C176: 3 | D176: 6115 | E176: 0 | F176: 0 | G176: 0 | H176: 0 | I176: 67.5 | J176: 0 | K176: 0 | L176: 0 | M176: 0 | N176: 0 | O176: 0 | P176: 0 | Q176: 0 | R176: 0 | S176: 0 | T176: 2122.41 | U176: 435.69 | V176: 37.73 | W176: 1175.96 | X176: 0 | Y176: 0 | Z176: 0 | AA176: 0 | AB176: 0 | AC176: 30 | AD176: 0 | AE176: 0 | AF176: 0 | AG176: 0 | AH176: 0 | AI176: 0 | AJ176: 0 | AK176: 60.02 | AL176: 0 | AM176: 0 | AN176: 0 | AO176: 0 | AP176: 0 | AQ176: 0 | AR176: 0 | AS176: 0 | AT176: 0 | AU176: 0 | AV176: 0 | AW176: 0 | AX176: 0 | AY176: 0 | AZ176: 0 | BA176: 0 | BB176: 0 | BC176: 10044.31 | BD176: 1059.58 | BE176: 185.43 | BF176: 101 | BG176: 0 | BH176: 1543.51 | BI176: 5 | BJ176: 0 | BK176: 0 | BL176: 0 | BM176: 0 | BN176: 0 | BO176: 60.02 | BP176: 147.31 | BQ176: 0 | BR176: 0 | BS176: 0 | BT176: 0 | BU176: 60 | BV176: 0 | BW176: 0 | BX176: 0 | BY176: 0 | BZ176: 0 | CA176: 0 | CB176: 0 | CC176: 0 | CD176: 0 | CE176: 0 | CF176: 0 | CG176: 0 | CH176: 0 | CI176: 0 | CJ176: 0 | CK176: 0 | CL176: 0 | CM176: 0 | CN176: 0 | CO176: 0 | CP176: -0.53 | CQ176: 0.49 | CR176: 3161.81 | CS176: 6882.5 | CT176: 953.62 | CU176: 79.47 | CV176: 7915.59
A177: 000180 | B177: 1993-05-17 | C177: 42 | D177: 4783.75 | E177: 0 | F177: 0 | G177: 0 | H177: 0 | I177: 133 | J177: 0 | K177: 124.88 | L177: 40.37 | M177: 0 | N177: 0 | O177: 0 | P177: 0 | Q177: 0 | R177: 0 | S177: 0 | T177: 0 | U177: 132 | V177: 301.38 | W177: 190.35 | X177: 0 | Y177: 0 | Z177: 0 | AA177: 0 | AB177: 0 | AC177: 75.6 | AD177: 0 | AE177: 0 | AF177: 0 | AG177: 0 | AH177: 0 | AI177: 0 | AJ177: 0 | AK177: 150.05 | AL177: 0 | AM177: 0 | AN177: 0 | AO177: 1000 | AP177: 0 | AQ177: 0 | AR177: 0 | AS177: 0 | AT177: 0 | AU177: 0 | AV177: 0 | AW177: 0 | AX177: 0 | AY177: 0 | AZ177: 0 | BA177: 0 | BB177: 0 | BC177: 6931.38 | BD177: 678.13 | BE177: 118.67 | BF177: 87.48 | BG177: 0 | BH177: 912.45 | BI177: 5 | BJ177: 0 | BK177: 0 | BL177: 50 | BM177: 0 | BN177: 0 | BO177: 150.05 | BP177: 0 | BQ177: 0 | BR177: 0 | BS177: 0 | BT177: 0 | BU177: 0 | BV177: 0 | BW177: 0 | BX177: 0 | BY177: 0 | BZ177: 151.2 | CA177: 0 | CB177: 0 | CC177: 0 | CD177: 0 | CE177: 0 | CF177: 480.5 | CG177: 0 | CH177: 0 | CI177: 1000 | CJ177: 0 | CK177: 0 | CL177: 0 | CM177: 0 | CN177: 0 | CO177: 0 | CP177: -0.71 | CQ177: 0.49 | CR177: 3633.26 | CS177: 3298.12 | CT177: 610.32 | CU177: 58.36 | CV177: 3966.8
A178: 000182 | B178: 1994-04-11 | C178: 42 | D178: 6601 | E178: 0 | F178: 0 | G178: 0 | H178: 0 | I178: 67.5 | J178: 0 | K178: 0 | L178: 0 | M178: 0 | N178: 0 | O178: 0 | P178: 0 | Q178: 206.28 | R178: 0 | S178: 0 | T178: 0 | U178: 110 | V178: 25.12 | W178: 0 | X178: 0 | Y178: 0 | Z178: 0 | AA178: 0 | AB178: 0 | AC178: 107.85 | AD178: 0 | AE178: 0 | AF178: 0 | AG178: 0 | AH178: 0 | AI178: 0 | AJ178: 0 | AK178: 60.02 | AL178: 0 | AM178: 0 | AN178: 0 | AO178: 0 | AP178: 0 | AQ178: 0 | AR178: 0 | AS178: 0 | AT178: 0 | AU178: 0 | AV178: 0 | AW178: 0 | AX178: 0 | AY178: 0 | AZ178: 0 | BA178: 0 | BB178: 0 | BC178: 7177.77 | BD178: 711.78 | BE178: 124.56 | BF178: 91.82 | BG178: 0 | BH178: 939.57 | BI178: 5 | BJ178: 0 | BK178: 0 | BL178: 50 | BM178: 0 | BN178: 0 | BO178: 60.02 | BP178: 133.47 | BQ178: 0 | BR178: 0 | BS178: 0 | BT178: 0 | BU178: 22.5 | BV178: 0 | BW178: 0 | BX178: 0 | BY178: 0 | BZ178: 193.2 | CA178: 0 | CB178: 0 | CC178: 0 | CD178: 0 | CE178: 0 | CF178: 619.8 | CG178: 0 | CH178: 0 | CI178: 0 | CJ178: 0 | CK178: 0 | CL178: 0 | CM178: 0 | CN178: 0 | CO178: 0 | CP178: -0.59 | CQ178: 0.64 | CR178: 2951.77 | CS178: 4226 | CT178: 640.6 | CU178: 53.38 | CV178: 4919.98
A179: 000183 | B179: 1994-06-06 | C179: 42 | D179: 5616 | E179: 0 | F179: 0 | G179: 0 | H179: 0 | I179: 133 | J179: 0 | K179: 0 | L179: 0 | M179: 0 | N179: 0 | O179: 0 | P179: 0 | Q179: 0 | R179: 0 | S179: 0 | T179: 0 | U179: 198 | V179: 0 | W179: 864 | X179: 0 | Y179: 0 | Z179: 0 | AA179: 0 | AB179: 0 | AC179: 58.8 | AD179: 0 | AE179: 0 | AF179: 0 | AG179: 0 | AH179: 0 | AI179: 0 | AJ179: 0 | AK179: 150.05 | AL179: 0 | AM179: 0 | AN179: 0 | AO179: 0 | AP179: 0 | AQ179: 0 | AR179: 0 | AS179: 0 | AT179: 0 | AU179: 0 | AV179: 0 | AW179: 0 | AX179: 0 | AY179: 0 | AZ179: 0 | BA179: 0 | BB179: 0 | BC179: 7019.85 | BD179: 705.7 | BE179: 123.5 | BF179: 91.04 | BG179: 0 | BH179: 924.27 | BI179: 5 | BJ179: 0 | BK179: 0 | BL179: 50 | BM179: 0 | BN179: 0 | BO179: 150.05 | BP179: 116.06 | BQ179: 0 | BR179: 0 | BS179: 0 | BT179: 0 | BU179: 0 | BV179: 0 | BW179: 0 | BX179: 0 | BY179: 0 | BZ179: 117.6 | CA179: 0 | CB179: 0 | CC179: 0 | CD179: 0 | CE179: 0 | CF179: 0 | CG179: 0 | CH179: 0 | CI179: 0 | CJ179: 0 | CK179: 0 | CL179: 0 | CM179: 0 | CN179: 0 | CO179: 0 | CP179: -0.49 | CQ179: 0.32 | CR179: 2283.05 | CS179: 4736.8 | CT179: 635.13 | CU179: 52.93 | CV179: 5424.86
A180: 000184 | B180: 1986-08-18 | C180: 42 | D180: 4278.3 | E180: 0 | F180: 0 | G180: 0 | H180: 0 | I180: 93 | J180: 0 | K180: 81.3 | L180: 26.4 | M180: 0 | N180: 0 | O180: 0 | P180: 0 | Q180: 0 | R180: 0 | S180: 0 | T180: 0 | U180: 0 | V180: 0 | W180: 0 | X180: 0 | Y180: 0 | Z180: 0 | AA180: 0 | AB180: 0 | AC180: 109.2 | AD180: 0 | AE180: 0 | AF180: 0 | AG180: 0 | AH180: 0 | AI180: 0 | AJ180: 0 | AK180: 150.05 | AL180: 0 | AM180: 0 | AN180: 1020 | AO180: 0 | AP180: 0 | AQ180: 0 | AR180: 0 | AS180: 0 | AT180: 0 | AU180: 0 | AV180: 0 | AW180: 0 | AX180: 0 | AY180: 0 | AZ180: 0 | BA180: 0 | BB180: 0 | BC180: 5758.25 | BD180: 458.82 | BE180: 80.29 | BF180: 59.19 | BG180: 0 | BH180: 655.65 | BI180: 5 | BJ180: 0 | BK180: 0 | BL180: 50 | BM180: 0 | BN180: 0 | BO180: 150.05 | BP180: 81.41 | BQ180: 0 | BR180: 0 | BS180: 0 | BT180: 0 | BU180: 0 | BV180: 0 | BW180: 0 | BX180: 0 | BY180: 0 | BZ180: 218.4 | CA180: 0 | CB180: 0 | CC180: 0 | CD180: 0 | CE180: 0 | CF180: 438.6 | CG180: 0 | CH180: 0 | CI180: 0 | CJ180: 0 | CK180: 0 | CL180: 0 | CM180: 0 | CN180: 0 | CO180: 0 | CP180: -0.18 | CQ180: 0.02 | CR180: 2197.25 | CS180: 3561 | CT180: 412.94 | CU180: 34.41 | CV180: 4008.35
A181: 000185 | B181: 1975-08-28 | C181: 42 | D181: 4714.58 | E181: 0 | F181: 0 | G181: 0 | H181: 0 | I181: 133 | J181: 0 | K181: 149.95 | L181: 48.47 | M181: 0 | N181: 0 | O181: 0 | P181: 0 | Q181: 0 | R181: 0 | S181: 0 | T181: 0 | U181: 550 | V181: 0 | W181: 0 | X181: 0 | Y181: 0 | Z181: 0 | AA181: 0 | AB181: 0 | AC181: 113.4 | AD181: 0 | AE181: 0 | AF181: 0 | AG181: 0 | AH181: 0 | AI181: 0 | AJ181: 0 | AK181: 150.05 | AL181: 0 | AM181: 0 | AN181: 0 | AO181: 0 | AP181: 0 | AQ181: 0 | AR181: 0 | AS181: 0 | AT181: 0 | AU181: 0 | AV181: 0 | AW181: 0 | AX181: 0 | AY181: 0 | AZ181: 0 | BA181: 0 | BB181: 0 | BC181: 5859.45 | BD181: 570.94 | BE181: 99.91 | BF181: 73.65 | BG181: 0 | BH181: 688.26 | BI181: 5 | BJ181: 0 | BK181: 0 | BL181: 50 | BM181: 0 | BN181: 0 | BO181: 150.05 | BP181: 116.06 | BQ181: 0 | BR181: 0 | BS181: 0 | BT181: 0 | BU181: 0 | BV181: 0 | BW181: 0 | BX181: 0 | BY181: 0 | BZ181: 226.8 | CA181: 0 | CB181: 0 | CC181: 0 | CD181: 0 | CE181: 0 | CF181: 491.3 | CG181: 0 | CH181: 0 | CI181: 0 | CJ181: 0 | CK181: 0 | CL181: 0 | CM181: 0 | CN181: 0 | CO181: 0 | CP181: -0.82 | CQ181: 0.3 | CR181: 2471.45 | CS181: 3388 | CT181: 513.85 | CU181: 42.82 | CV181: 3944.67
A182: 000186 | B182: 1975-09-09 | C182: 42 | D182: 4512.23 | E182: 0 | F182: 0 | G182: 0 | H182: 0 | I182: 53 | J182: 0 | K182: 161.55 | L182: 52.22 | M182: 0 | N182: 0 | O182: 0 | P182: 0 | Q182: 0 | R182: 0 | S182: 0 | T182: 0 | U182: 0 | V182: 0 | W182: 0 | X182: 0 | Y182: 0 | Z182: 0 | AA182: 0 | AB182: 0 | AC182: 113.4 | AD182: 0 | AE182: 0 | AF182: 0 | AG182: 0 | AH182: 0 | AI182: 0 | AJ182: 0 | AK182: 150.05 | AL182: 0 | AM182: 0 | AN182: 0 | AO182: 1000 | AP182: 0 | AQ182: 0 | AR182: 0 | AS182: 0 | AT182: 0 | AU182: 0 | AV182: 0 | AW182: 0 | AX182: 0 | AY182: 0 | AZ182: 0 | BA182: 0 | BB182: 0 | BC182: 6042.45 | BD182: 589.24 | BE182: 103.12 | BF182: 76.01 | BG182: 0 | BH182: 763.43 | BI182: 5 | BJ182: 0 | BK182: 0 | BL182: 50 | BM182: 0 | BN182: 0 | BO182: 150.05 | BP182: 67.57 | BQ182: 0 | BR182: 0 | BS182: 0 | BT182: 0 | BU182: 0 | BV182: 0 | BW182: 0 | BX182: 0 | BY182: 0 | BZ182: 226.8 | CA182: 0 | CB182: 0 | CC182: 0 | CD182: 0 | CE182: 0 | CF182: 472.6 | CG182: 0 | CH182: 0 | CI182: 1000 | CJ182: 0 | CK182: 0 | CL182: 0 | CM182: 0 | CN182: 0 | CO182: 0 | CP182: -0.89 | CQ182: 0.4 | CR182: 3503.33 | CS182: 2539.12 | CT182: 530.32 | CU182: 51.69 | CV182: 3121.13
A183: 000187 | B183: 1975-12-03 | C183: 42 | D183: 5476.03 | E183: 0 | F183: 0 | G183: 0 | H183: 0 | I183: 93 | J183: 0 | K183: 168.5 | L183: 54.47 | M183: 0 | N183: 0 | O183: 0 | P183: 0 | Q183: 0 | R183: 0 | S183: 0 | T183: 0 | U183: 66 | V183: 175.81 | W183: 219.19 | X183: 0 | Y183: 0 | Z183: 0 | AA183: 0 | AB183: 0 | AC183: 63 | AD183: 0 | AE183: 0 | AF183: 0 | AG183: 0 | AH183: 0 | AI183: 0 | AJ183: 0 | AK183: 150.05 | AL183: 0 | AM183: 0 | AN183: 1020 | AO183: 0 | AP183: 0 | AQ183: 0 | AR183: 0 | AS183: 0 | AT183: 0 | AU183: 0 | AV183: 0 | AW183: 0 | AX183: 0 | AY183: 0 | AZ183: 0 | BA183: 0 | BB183: 0 | BC183: 7486.05 | BD183: 631.6 | BE183: 123.16 | BF183: 85.9 | BG183: 0 | BH183: 950.7 | BI183: 5 | BJ183: 0 | BK183: 0 | BL183: 50 | BM183: 0 | BN183: 0 | BO183: 150.05 | BP183: 0 | BQ183: 0 | BR183: 0 | BS183: 0 | BT183: 0 | BU183: 0 | BV183: 0 | BW183: 0 | BX183: 0 | BY183: 0 | BZ183: 126 | CA183: 0 | CB183: 0 | CC183: 0 | CD183: 0 | CE183: 0 | CF183: 569.9 | CG183: 0 | CH183: 0 | CI183: 0 | CJ183: 0 | CK183: 0 | CL183: 0 | CM183: 0 | CN183: 0 | CO183: 0 | CP183: -0.77 | CQ183: 0.51 | CR183: 2692.05 | CS183: 4794 | CT183: 568.44 | CU183: 47.37 | CV183: 5409.81
A184: 000188 | B184: 1975-12-10 | C184: 42 | D184: 4732.02 | E184: 0 | F184: 0 | G184: 0 | H184: 0 | I184: 133 | J184: 0 | K184: 138.28 | L184: 44.7 | M184: 0 | N184: 0 | O184: 0 | P184: 0 | Q184: 0 | R184: 0 | S184: 0 | T184: 0 | U184: 0 | V184: 0 | W184: 0 | X184: 0 | Y184: 0 | Z184: 0 | AA184: 0 | AB184: 0 | AC184: 117.6 | AD184: 0 | AE184: 0 | AF184: 0 | AG184: 0 | AH184: 0 | AI184: 0 | AJ184: 0 | AK184: 150.05 | AL184: 0 | AM184: 0 | AN184: 0 | AO184: 1000 | AP184: 0 | AQ184: 0 | AR184: 0 | AS184: 0 | AT184: 0 | AU184: 0 | AV184: 0 | AW184: 0 | AX184: 0 | AY184: 0 | AZ184: 0 | BA184: 0 | BB184: 0 | BC184: 6315.65 | BD184: 616.56 | BE184: 107.9 | BF184: 79.54 | BG184: 0 | BH184: 811.34 | BI184: 5 | BJ184: 0 | BK184: 0 | BL184: 50 | BM184: 0 | BN184: 0 | BO184: 150.05 | BP184: 116.06 | BQ184: 0 | BR184: 0 | BS184: 0 | BT184: 0 | BU184: 0 | BV184: 0 | BW184: 0 | BX184: 0 | BY184: 0 | BZ184: 235.2 | CA184: 0 | CB184: 0 | CC184: 0 | CD184: 0 | CE184: 0 | CF184: 491.5 | CG184: 0 | CH184: 0 | CI184: 1000 | CJ184: 0 | CK184: 0 | CL184: 0 | CM184: 0 | CN184: 0 | CO184: 0 | CP184: -0.94 | CQ184: 0.32 | CR184: 3662.53 | CS184: 2653.12 | CT184: 554.9 | CU184: 53.74 | CV184: 3261.76
A185: 000189 | B185: 1978-03-15 | C185: 21 | D185: 0 | E185: 0 | F185: 13126 | G185: 0 | H185: 0 | I185: 67.5 | J185: 0 | K185: 0 | L185: 0 | M185: 0 | N185: 0 | O185: 0 | P185: 0 | Q185: 0 | R185: 0 | S185: 0 | T185: 0 | U185: 0 | V185: 0 | W185: 0 | X185: 0 | Y185: 0 | Z185: 0 | AA185: 0 | AB185: 0 | AC185: 46.2 | AD185: 0 | AE185: 0 | AF185: 0 | AG185: 0 | AH185: 0 | AI185: 0 | AJ185: 0 | AK185: 60.02 | AL185: 0 | AM185: 0 | AN185: 0 | AO185: 0 | AP185: 0 | AQ185: 0 | AR185: 0 | AS185: 0 | AT185: 0 | AU185: 1291.65 | AV185: 2214.25 | AW185: 0 | AX185: 0 | AY185: 0 | AZ185: 0 | BA185: 0 | BB185: 149.46 | BC185: 16955.08 | BD185: 1323.97 | BE185: 231.69 | BF185: 101 | BG185: 0 | BH185: 2349.45 | BI185: 5 | BJ185: 0 | BK185: 0 | BL185: 0 | BM185: 0 | BN185: 0 | BO185: 60.02 | BP185: 174.31 | BQ185: 0 | BR185: 0 | BS185: 0 | BT185: 0 | BU185: 0 | BV185: 0 | BW185: 0 | BX185: 0 | BY185: 0 | BZ185: 92.4 | CA185: 0 | CB185: 0 | CC185: 0 | CD185: 0 | CE185: 0 | CF185: 0 | CG185: 0 | CH185: 0 | CI185: 0 | CJ185: 0 | CK185: 0 | CL185: 0 | CM185: 0 | CN185: 0 | CO185: 0 | CP185: -0.03 | CQ185: 0.27 | CR185: 4338.08 | CS185: 12617 | CT185: 1191.57 | CU185: 99.3 | CV185: 13907.87
A186: 000190 | B186: 1979-01-16 | C186: 42 | D186: 3853.48 | E186: 0 | F186: 0 | G186: 0 | H186: 0 | I186: 173 | J186: 0 | K186: 131.89 | L186: 42.63 | M186: 0 | N186: 0 | O186: 0 | P186: 0 | Q186: 0 | R186: 0 | S186: 0 | T186: 0 | U186: 88 | V186: 226.04 | W186: 464.77 | X186: 0 | Y186: 0 | Z186: 0 | AA186: 0 | AB186: 0 | AC186: 117.6 | AD186: 0 | AE186: 0 | AF186: 0 | AG186: 0 | AH186: 0 | AI186: 0 | AJ186: 0 | AK186: 150.05 | AL186: 0 | AM186: 0 | AN186: 0 | AO186: 0 | AP186: 0 | AQ186: 0 | AR186: 0 | AS186: 0 | AT186: 0 | AU186: 0 | AV186: 0 | AW186: 0 | AX186: 0 | AY186: 0 | AZ186: 0 | BA186: 0 | BB186: 0 | BC186: 5247.46 | BD186: 509.74 | BE186: 91.75 | BF186: 59.13 | BG186: 0 | BH186: 589.52 | BI186: 5 | BJ186: 471.3 | BK186: 0 | BL186: 50 | BM186: 0 | BN186: 0 | BO186: 150.05 | BP186: 0 | BQ186: 0 | BR186: 0 | BS186: 0 | BT186: 0 | BU186: 0 | BV186: 0 | BW186: 0 | BX186: 0 | BY186: 0 | BZ186: 235.2 | CA186: 0 | CB186: 0 | CC186: 0 | CD186: 0 | CE186: 0 | CF186: 402.8 | CG186: 0 | CH186: 0 | CI186: 0 | CJ186: 0 | CK186: 0 | CL186: 0 | CM186: 0 | CN186: 0 | CO186: 0 | CP186: -0.61 | CQ186: 0.58 | CR186: 2564.46 | CS186: 2683 | CT186: 458.77 | CU186: 38.23 | CV186: 3180
A187: 000191 | B187: 1979-04-24 | C187: 42 | D187: 4010.03 | E187: 0 | F187: 0 | G187: 0 | H187: 0 | I187: 93 | J187: 0 | K187: 136.99 | L187: 44.28 | M187: 0 | N187: 0 | O187: 0 | P187: 0 | Q187: 0 | R187: 0 | S187: 0 | T187: 0 | U187: 220 | V187: 150.69 | W187: 358.23 | X187: 0 | Y187: 0 | Z187: 0 | AA187: 0 | AB187: 0 | AC187: 109.2 | AD187: 0 | AE187: 0 | AF187: 0 | AG187: 0 | AH187: 0 | AI187: 0 | AJ187: 0 | AK187: 150.05 | AL187: 0 | AM187: 0 | AN187: 0 | AO187: 0 | AP187: 0 | AQ187: 0 | AR187: 0 | AS187: 0 | AT187: 0 | AU187: 0 | AV187: 0 | AW187: 0 | AX187: 0 | AY187: 0 | AZ187: 0 | BA187: 0 | BB187: 0 | BC187: 5272.47 | BD187: 541.95 | BE187: 97.55 | BF187: 62.87 | BG187: 0 | BH187: 722.42 | BI187: 5 | BJ187: 0 | BK187: 0 | BL187: 50 | BM187: 0 | BN187: 0 | BO187: 150.05 | BP187: 81.41 | BQ187: 0 | BR187: 0 | BS187: 0 | BT187: 0 | BU187: 0 | BV187: 0 | BW187: 0 | BX187: 0 | BY187: 0 | BZ187: 218.4 | CA187: 0 | CB187: 0 | CC187: 0 | CD187: 0 | CE187: 0 | CF187: 465.7 | CG187: 0 | CH187: 0 | CI187: 0 | CJ187: 0 | CK187: 0 | CL187: 0 | CM187: 0 | CN187: 0 | CO187: 0 | CP187: -0.92 | CQ187: 0.08 | CR187: 2394.51 | CS187: 2877.96 | CT187: 487.75 | CU187: 40.65 | CV187: 3406.36
A188: 000192 | B188: 1980-03-10 | C188: 42 | D188: 5412.05 | E188: 0 | F188: 0 | G188: 0 | H188: 0 | I188: 53 | J188: 0 | K188: 154.13 | L188: 49.82 | M188: 0 | N188: 0 | O188: 0 | P188: 0 | Q188: 0 | R188: 0 | S188: 0 | T188: 0 | U188: 154 | V188: 200.92 | W188: 864 | X188: 0 | Y188: 0 | Z188: 0 | AA188: 0 | AB188: 0 | AC188: 0 | AD188: 0 | AE188: 0 | AF188: 0 | AG188: 0 | AH188: 0 | AI188: 0 | AJ188: 0 | AK188: 150.05 | AL188: 0 | AM188: 0 | AN188: 0 | AO188: 0 | AP188: 0 | AQ188: 0 | AR188: 0 | AS188: 0 | AT188: 0 | AU188: 0 | AV188: 0 | AW188: 0 | AX188: 0 | AY188: 0 | AZ188: 0 | BA188: 0 | BB188: 0 | BC188: 7037.97 | BD188: 688.79 | BE188: 123.98 | BF188: 79.9 | BG188: 0 | BH188: 909.21 | BI188: 5 | BJ188: 0 | BK188: 0 | BL188: 50 | BM188: 0 | BN188: 0 | BO188: 150.05 | BP188: 0 | BQ188: 0 | BR188: 0 | BS188: 0 | BT188: 0 | BU188: 0 | BV188: 0 | BW188: 0 | BX188: 0 | BY188: 0 | BZ188: 0 | CA188: 0 | CB188: 0 | CC188: 0 | CD188: 0 | CE188: 0 | CF188: 0 | CG188: 0 | CH188: 0 | CI188: 0 | CJ188: 0 | CK188: 0 | CL188: 0 | CM188: 0 | CN188: 0 | CO188: 0 | CP188: -0.48 | CQ188: 0.52 | CR188: 2006.97 | CS188: 5031 | CT188: 619.91 | CU188: 51.66 | CV188: 5702.57
A189: 000193 | B189: 1980-06-02 | C189: 42 | D189: 5559.02 | E189: 0 | F189: 0 | G189: 0 | H189: 0 | I189: 173 | J189: 0 | K189: 143.57 | L189: 46.41 | M189: 0 | N189: 0 | O189: 0 | P189: 0 | Q189: 0 | R189: 0 | S189: 0 | T189: 95.82 | U189: 198 | V189: 125.58 | W189: 221.12 | X189: 0 | Y189: 0 | Z189: 0 | AA189: 0 | AB189: 0 | AC189: 100.8 | AD189: 0 | AE189: 0 | AF189: 0 | AG189: 0 | AH189: 0 | AI189: 0 | AJ189: 0 | AK189: 150.05 | AL189: 0 | AM189: 0 | AN189: 0 | AO189: 0 | AP189: 0 | AQ189: 0 | AR189: 0 | AS189: 0 | AT189: 0 | AU189: 0 | AV189: 0 | AW189: 0 | AX189: 0 | AY189: 0 | AZ189: 0 | BA189: 0 | BB189: 0 | BC189: 6813.37 | BD189: 666.33 | BE189: 116.61 | BF189: 85.96 | BG189: 0 | BH189: 860.88 | BI189: 5 | BJ189: 0 | BK189: 0 | BL189: 50 | BM189: 0 | BN189: 0 | BO189: 150.05 | BP189: 391.35 | BQ189: 0 | BR189: 0 | BS189: 0 | BT189: 0 | BU189: 0 | BV189: 0 | BW189: 0 | BX189: 0 | BY189: 0 | BZ189: 201.6 | CA189: 0 | CB189: 0 | CC189: 0 | CD189: 0 | CE189: 0 | CF189: 563.6 | CG189: 0 | CH189: 0 | CI189: 0 | CJ189: 0 | CK189: 0 | CL189: 0 | CM189: 0 | CN189: 0 | CO189: 0 | CP189: -0.63 | CQ189: 0.62 | CR189: 3091.37 | CS189: 3722 | CT189: 599.7 | CU189: 49.97 | CV189: 4371.67
A190: 000194 | B190: 1980-09-15 | C190: 42 | D190: 4279.79 | E190: 0 | F190: 0 | G190: 0 | H190: 0 | I190: 133 | J190: 0 | K190: 152.81 | L190: 49.4 | M190: 0 | N190: 0 | O190: 0 | P190: 0 | Q190: 0 | R190: 0 | S190: 0 | T190: 0 | U190: 0 | V190: 0 | W190: 0 | X190: 0 | Y190: 0 | Z190: 0 | AA190: 0 | AB190: 0 | AC190: 0 | AD190: 0 | AE190: 0 | AF190: 0 | AG190: 0 | AH190: 0 | AI190: 0 | AJ190: 0 | AK190: 150.05 | AL190: 0 | AM190: 0 | AN190: 0 | AO190: 0 | AP190: 0 | AQ190: 0 | AR190: 0 | AS190: 0 | AT190: 0 | AU190: 0 | AV190: 0 | AW190: 0 | AX190: 0 | AY190: 0 | AZ190: 0 | BA190: 0 | BB190: 0 | BC190: =SUM(D190:BB190) -> 4765.05 | BD190: 461.5 | BE190: 80.76 | BF190: 59.53 | BG190: 0 | BH190: 509.47 | BI190: 5 | BJ190: 0 | BK190: 0 | BL190: 50 | BM190: 0 | BN190: 0 | BO190: 150.05 | BP190: 95.25 | BQ190: 200 | BR190: 0 | BS190: 0 | BT190: 0 | BU190: 0 | BV190: 0 | BW190: 0 | BX190: 0 | BY190: 0 | BZ190: 0 | CA190: 0 | CB190: 0 | CC190: 0 | CD190: 0 | CE190: 0 | CF190: 448.2 | CG190: 0 | CH190: 0 | CI190: 0 | CJ190: 0 | CK190: 0 | CL190: 0 | CM190: 0 | CN190: 0 | CO190: 0 | CP190: -0.07 | CQ190: 0.36 | CR190: =SUM(BD190:CQ190) -> 2060.05 | CS190: =+BC190-CR190 -> 2705 | CT190: 415.35 | CU190: 34.61 | CV190: 3154.96
A191: 000195 | B191: 1983-10-10 | C191: 21 | D191: 0 | E191: 0 | F191: 10023 | G191: 0 | H191: 0 | I191: 67.5 | J191: 0 | K191: 0 | L191: 0 | M191: 0 | N191: 0 | O191: 0 | P191: 0 | Q191: 0 | R191: 0 | S191: 0 | T191: 0 | U191: 0 | V191: 0 | W191: 0 | X191: 0 | Y191: 0 | Z191: 0 | AA191: 0 | AB191: 0 | AC191: 96.6 | AD191: 0 | AE191: 0 | AF191: 0 | AG191: 0 | AH191: 0 | AI191: 0 | AJ191: 0 | AK191: 60.02 | AL191: 0 | AM191: 0 | AN191: 0 | AO191: 0 | AP191: 0 | AQ191: 0 | AR191: 0 | AS191: 0 | AT191: 0 | AU191: 989.97 | AV191: 1697.08 | AW191: 0 | AX191: 0 | AY191: 0 | AZ191: 0 | BA191: 0 | BB191: 114.55 | BC191: 13048.72 | BD191: 1018.71 | BE191: 183.37 | BF191: 90.82 | BG191: 0 | BH191: 1592.46 | BI191: 5 | BJ191: 0 | BK191: 0 | BL191: 0 | BM191: 0 | BN191: 0 | BO191: 60.02 | BP191: 253.22 | BQ191: 0 | BR191: 0 | BS191: 0 | BT191: 0 | BU191: 0 | BV191: 0 | BW191: 0 | BX191: 0 | BY191: 0 | BZ191: 193.2 | CA191: 0 | CB191: 0 | CC191: 0 | CD191: 0 | CE191: 0 | CF191: 0 | CG191: 0 | CH191: 0 | CI191: 0 | CJ191: 0 | CK191: 0 | CL191: 0 | CM191: 0 | CN191: 0 | CO191: 0 | CP191: -0.01 | CQ191: 0.93 | CR191: 3397.72 | CS191: 9651 | CT191: 916.84 | CU191: 76.4 | CV191: 10644.24
A192: 000196 | B192: 1984-10-01 | C192: 42 | D192: 5031.08 | E192: 0 | F192: 0 | G192: 0 | H192: 0 | I192: 173 | J192: 0 | K192: 135.21 | L192: 43.71 | M192: 0 | N192: 0 | O192: 0 | P192: 0 | Q192: 0 | R192: 0 | S192: 0 | T192: 0 | U192: 0 | V192: 0 | W192: 0 | X192: 0 | Y192: 0 | Z192: 0 | AA192: 0 | AB192: 0 | AC192: 25.2 | AD192: 0 | AE192: 0 | AF192: 0 | AG192: 0 | AH192: 0 | AI192: 0 | AJ192: 0 | AK192: 150.05 | AL192: 0 | AM192: 0 | AN192: 0 | AO192: 1000 | AP192: 0 | AQ192: 0 | AR192: 0 | AS192: 0 | AT192: 0 | AU192: 0 | AV192: 0 | AW192: 0 | AX192: 0 | AY192: 0 | AZ192: 0 | BA192: 0 | BB192: 0 | BC192: 6558.25 | BD192: 640.82 | BE192: 112.14 | BF192: 82.67 | BG192: 0 | BH192: 856.13 | BI192: 5 | BJ192: 0 | BK192: 0 | BL192: 50 | BM192: 0 | BN192: 0 | BO192: 150.05 | BP192: 147.31 | BQ192: 0 | BR192: 0 | BS192: 0 | BT192: 0 | BU192: 0 | BV192: 0 | BW192: 0 | BX192: 0 | BY192: 0 | BZ192: 50.4 | CA192: 0 | CB192: 0 | CC192: 0 | CD192: 0 | CE192: 0 | CF192: 521 | CG192: 0 | CH192: 0 | CI192: 1000 | CJ192: 0 | CK192: 0 | CL192: 0 | CM192: 0 | CN192: 0 | CO192: 0 | CP192: -0.4 | CQ192: 0.01 | CR192: 3615.13 | CS192: 2943.12 | CT192: 576.74 | CU192: 55.56 | CV192: 3575.42
A193: 000197 | B193: 1984-11-19 | C193: 42 | D193: 5880.2 | E193: 0 | F193: 0 | G193: 0 | H193: 0 | I193: 173 | J193: 0 | K193: 166.11 | L193: 53.69 | M193: 0 | N193: 0 | O193: 0 | P193: 0 | Q193: 0 | R193: 0 | S193: 0 | T193: 0 | U193: 88 | V193: 125.58 | W193: 469.23 | X193: 0 | Y193: 0 | Z193: 0 | AA193: 0 | AB193: 0 | AC193: 42 | AD193: 0 | AE193: 0 | AF193: 0 | AG193: 0 | AH193: 0 | AI193: 0 | AJ193: 0 | AK193: 150.05 | AL193: 0 | AM193: 0 | AN193: 0 | AO193: 0 | AP193: 0 | AQ193: 0 | AR193: 0 | AS193: 0 | AT193: 0 | AU193: 0 | AV193: 0 | AW193: 0 | AX193: 0 | AY193: 0 | AZ193: 0 | BA193: 0 | BB193: 0 | BC193: 7147.86 | BD193: 699.78 | BE193: 125.96 | BF193: 81.17 | BG193: 0 | BH193: 926.23 | BI193: 5 | BJ193: 0 | BK193: 0 | BL193: 50 | BM193: 0 | BN193: 0 | BO193: 150.05 | BP193: 129.9 | BQ193: 0 | BR193: 0 | BS193: 0 | BT193: 0 | BU193: 0 | BV193: 0 | BW193: 0 | BX193: 0 | BY193: 0 | BZ193: 84 | CA193: 0 | CB193: 0 | CC193: 0 | CD193: 0 | CE193: 0 | CF193: 0 | CG193: 0 | CH193: 0 | CI193: 0 | CJ193: 0 | CK193: 0 | CL193: 0 | CM193: 0 | CN193: 0 | CO193: 0 | CP193: -0.56 | CQ193: 0.33 | CR193: 2251.86 | CS193: 4896 | CT193: 629.8 | CU193: 52.48 | CV193: 5578.28
A194: 000198 | B194: 1986-01-02 | C194: 42 | D194: 8675 | E194: 0 | F194: 0 | G194: 0 | H194: 0 | I194: 67.5 | J194: 0 | K194: 0 | L194: 0 | M194: 0 | N194: 0 | O194: 0 | P194: 0 | Q194: 0 | R194: 0 | S194: 0 | T194: 0 | U194: 132 | V194: 150.69 | W194: 0 | X194: 0 | Y194: 0 | Z194: 0 | AA194: 0 | AB194: 0 | AC194: 63 | AD194: 0 | AE194: 0 | AF194: 0 | AG194: 0 | AH194: 0 | AI194: 0 | AJ194: 0 | AK194: 60.02 | AL194: 0 | AM194: 0 | AN194: 0 | AO194: 0 | AP194: 0 | AQ194: 0 | AR194: 0 | AS194: 0 | AT194: 0 | AU194: 0 | AV194: 0 | AW194: 0 | AX194: 0 | AY194: 0 | AZ194: 0 | BA194: 0 | BB194: 0 | BC194: 9148.21 | BD194: 908.82 | BE194: 163.59 | BF194: 90.82 | BG194: 0 | BH194: 1298.46 | BI194: 5 | BJ194: 0 | BK194: 0 | BL194: 0 | BM194: 0 | BN194: 0 | BO194: 60.02 | BP194: 143.74 | BQ194: 0 | BR194: 0 | BS194: 0 | BT194: 0 | BU194: 0 | BV194: 0 | BW194: 0 | BX194: 0 | BY194: 0 | BZ194: 126 | CA194: 0 | CB194: 0 | CC194: 0 | CD194: 0 | CE194: 0 | CF194: 0 | CG194: 0 | CH194: 0 | CI194: 0 | CJ194: 0 | CK194: 0 | CL194: 0 | CM194: 0 | CN194: 0 | CO194: 0 | CP194: -0.82 | CQ194: 0.58 | CR194: 2796.21 | CS194: 6352 | CT194: 817.94 | CU194: 68.16 | CV194: 7238.1
A195: 000199 | B195: 1986-03-07 | C195: 42 | D195: 6061.41 | E195: 0 | F195: 0 | G195: 0 | H195: 0 | I195: 93 | J195: 0 | K195: 187.86 | L195: 60.73 | M195: 0 | N195: 0 | O195: 0 | P195: 0 | Q195: 59.16 | R195: 0 | S195: 0 | T195: 0 | U195: 0 | V195: 0 | W195: 0 | X195: 0 | Y195: 0 | Z195: 0 | AA195: 0 | AB195: 0 | AC195: 109.2 | AD195: 0 | AE195: 0 | AF195: 0 | AG195: 0 | AH195: 0 | AI195: 0 | AJ195: 0 | AK195: 150.05 | AL195: 0 | AM195: 0 | AN195: 0 | AO195: 0 | AP195: 0 | AQ195: 0 | AR195: 0 | AS195: 0 | AT195: 0 | AU195: 0 | AV195: 0 | AW195: 0 | AX195: 0 | AY195: 0 | AZ195: 0 | BA195: 0 | BB195: 0 | BC195: 6721.41 | BD195: 657.14 | BE195: 115 | BF195: 84.77 | BG195: 0 | BH195: 864.52 | BI195: 5 | BJ195: 0 | BK195: 0 | BL195: 50 | BM195: 0 | BN195: 0 | BO195: 150.05 | BP195: 81.41 | BQ195: 0 | BR195: 0 | BS195: 0 | BT195: 0 | BU195: 0 | BV195: 0 | BW195: 0 | BX195: 0 | BY195: 0 | BZ195: 218.4 | CA195: 0 | CB195: 0 | CC195: 0 | CD195: 0 | CE195: 0 | CF195: 0 | CG195: 0 | CH195: 0 | CI195: 0 | CJ195: 0 | CK195: 0 | CL195: 0 | CM195: 0 | CN195: 0 | CO195: 0 | CP195: -0.1 | CQ195: 0.22 | CR195: 2226.41 | CS195: 4495 | CT195: 591.42 | CU195: 49.29 | CV195: =SUM(CS195:CU195) -> 5135.71
A196: 000200 | B196: 1986-09-15 | C196: 21 | D196: 0 | E196: 0 | F196: 15679 | G196: 0 | H196: 0 | I196: 67.5 | J196: 0 | K196: 0 | L196: 0 | M196: 0 | N196: 0 | O196: 0 | P196: 0 | Q196: 0 | R196: 0 | S196: 0 | T196: 0 | U196: 0 | V196: 0 | W196: 0 | X196: 0 | Y196: 0 | Z196: 0 | AA196: 0 | AB196: 0 | AC196: 50 | AD196: 0 | AE196: 0 | AF196: 0 | AG196: 0 | AH196: 0 | AI196: 0 | AJ196: 0 | AK196: 60.02 | AL196: 0 | AM196: 0 | AN196: 0 | AO196: 0 | AP196: 0 | AQ196: 0 | AR196: 0 | AS196: 0 | AT196: 0 | AU196: 1541.6 | AV196: 2642.75 | AW196: 0 | AX196: 0 | AY196: 0 | AZ196: 0 | BA196: 0 | BB196: 178.39 | BC196: 20219.26 | BD196: 1579.65 | BE196: 284.34 | BF196: 90.82 | BG196: 0 | BH196: 3101.67 | BI196: 5 | BJ196: 0 | BK196: 0 | BL196: 0 | BM196: 0 | BN196: 0 | BO196: 60.02 | BP196: 1048.59 | BQ196: 0 | BR196: 0 | BS196: 0 | BT196: 100 | BU196: 0 | BV196: 0 | BW196: 0 | BX196: 0 | BY196: 0 | BZ196: 0 | CA196: 0 | CB196: 0 | CC196: 0 | CD196: 0 | CE196: 0 | CF196: 0 | CG196: 0 | CH196: 0 | CI196: 0 | CJ196: 0 | CK196: 0 | CL196: 0 | CM196: 0 | CN196: 0 | CO196: 0 | CP196: -0.07 | CQ196: 0.24 | CR196: 6270.26 | CS196: 13949 | CT196: 1421.69 | CU196: 118.47 | CV196: 15489.16
A197: 000201 | B197: 1987-12-21 | C197: 42 | D197: 6066.03 | E197: 0 | F197: 0 | G197: 0 | H197: 0 | I197: 133 | J197: 0 | K197: 153.39 | L197: 49.58 | M197: 0 | N197: 0 | O197: 0 | P197: 0 | Q197: 0 | R197: 0 | S197: 0 | T197: 0 | U197: 44 | V197: 150.69 | W197: 482.23 | X197: 0 | Y197: 0 | Z197: 0 | AA197: 0 | AB197: 0 | AC197: 21 | AD197: 0 | AE197: 0 | AF197: 0 | AG197: 0 | AH197: 0 | AI197: 0 | AJ197: 0 | AK197: 150.05 | AL197: 0 | AM197: 0 | AN197: 0 | AO197: 0 | AP197: 0 | AQ197: 0 | AR197: 0 | AS197: 0 | AT197: 0 | AU197: 0 | AV197: 0 | AW197: 0 | AX197: 0 | AY197: 0 | AZ197: 0 | BA197: 0 | BB197: 0 | BC197: 7249.97 | BD197: 709.99 | BE197: 127.8 | BF197: 82.36 | BG197: 0 | BH197: 954 | BI197: 5 | BJ197: 0 | BK197: 0 | BL197: 50 | BM197: 0 | BN197: 0 | BO197: 150.05 | BP197: 0 | BQ197: 0 | BR197: 0 | BS197: 0 | BT197: 0 | BU197: 0 | BV197: 0 | BW197: 0 | BX197: 0 | BY197: 0 | BZ197: 42 | CA197: 0 | CB197: 0 | CC197: 0 | CD197: 0 | CE197: 0 | CF197: 0 | CG197: 0 | CH197: 0 | CI197: 0 | CJ197: 0 | CK197: 0 | CL197: 0 | CM197: 0 | CN197: 0 | CO197: 0 | CP197: -0.89 | CQ197: 0.66 | CR197: 2120.97 | CS197: 5129 | CT197: 638.99 | CU197: 53.25 | CV197: 5821.24
A198: 000202 | B198: 1988-04-11 | C198: 42 | D198: 5492.79 | E198: 0 | F198: 0 | G198: 0 | H198: 0 | I198: 173 | J198: 0 | K198: 202.69 | L198: 65.52 | M198: 0 | N198: 0 | O198: 0 | P198: 0 | Q198: 0 | R198: 0 | S198: 0 | T198: 0 | U198: 132 | V198: 150.69 | W198: 443.15 | X198: 0 | Y198: 0 | Z198: 0 | AA198: 0 | AB198: 0 | AC198: 58.8 | AD198: 0 | AE198: 0 | AF198: 0 | AG198: 0 | AH198: 0 | AI198: 0 | AJ198: 0 | AK198: 150.05 | AL198: 0 | AM198: 0 | AN198: 1020 | AO198: 0 | AP198: 0 | AQ198: 0 | AR198: 0 | AS198: 0 | AT198: 0 | AU198: 0 | AV198: 0 | AW198: 0 | AX198: 0 | AY198: 0 | AZ198: 0 | BA198: 0 | BB198: 0 | BC198: 7888.69 | BD198: 671.86 | BE198: 117.58 | BF198: 86.67 | BG198: 0 | BH198: 1026.11 | BI198: 5 | BJ198: 3482.45 | BK198: 0 | BL198: 50 | BM198: 0 | BN198: 0 | BO198: 150.05 | BP198: 147.31 | BQ198: 256 | BR198: 0 | BS198: 0 | BT198: 0 | BU198: 0 | BV198: 0 | BW198: 0 | BX198: 0 | BY198: 0 | BZ198: 117.6 | CA198: 0 | CB198: 0 | CC198: 0 | CD198: 0 | CE198: 0 | CF198: 0 | CG198: 0 | CH198: 0 | CI198: 0 | CJ198: 0 | CK198: 0 | CL198: 0 | CM198: 0 | CN198: 0 | CO198: 0 | CP198: -0.69 | CQ198: 0.75 | CR198: 6110.69 | CS198: 1778 | CT198: 604.68 | CU198: 50.39 | CV198: 2433.07
A199: 000203 | B199: 1989-07-01 | C199: 30 | D199: 6534 | E199: 0 | F199: 0 | G199: 0 | H199: 0 | I199: 67.5 | J199: 0 | K199: 0 | L199: 0 | M199: 0 | N199: 0 | O199: 0 | P199: 0 | Q199: 0 | R199: 0 | S199: 0 | T199: 0 | U199: 0 | V199: 0 | W199: 0 | X199: 0 | Y199: 0 | Z199: 0 | AA199: 0 | AB199: 0 | AC199: 95 | AD199: 0 | AE199: 0 | AF199: 0 | AG199: 0 | AH199: 0 | AI199: 0 | AJ199: 0 | AK199: 60.02 | AL199: 0 | AM199: 0 | AN199: 1280 | AO199: 0 | AP199: 0 | AQ199: 0 | AR199: 0 | AS199: 0 | AT199: 0 | AU199: 0 | AV199: 0 | AW199: 0 | AX199: 0 | AY199: 0 | AZ199: 0 | BA199: 0 | BB199: 0 | BC199: 8036.52 | BD199: 669.65 | BE199: 117.19 | BF199: 86.38 | BG199: 0 | BH199: 1051.14 | BI199: 5 | BJ199: 0 | BK199: 0 | BL199: 0 | BM199: 0 | BN199: 0 | BO199: 60.02 | BP199: 202.94 | BQ199: 0 | BR199: 0 | BS199: 0 | BT199: 20 | BU199: 0 | BV199: 170 | BW199: 0 | BX199: 0 | BY199: 0 | BZ199: 0 | CA199: 0 | CB199: 0 | CC199: 0 | CD199: 0 | CE199: 0 | CF199: 653.4 | CG199: 0 | CH199: 0 | CI199: 0 | CJ199: 0 | CK199: 0 | CL199: 0 | CM199: 0 | CN199: 0 | CO199: 0 | CP199: -0.16 | CQ199: 0.96 | CR199: 3036.52 | CS199: 5000 | CT199: 602.69 | CU199: 50.22 | CV199: 5652.91
A200: 000204 | B200: 1991-07-01 | C200: 42 | D200: 5139.45 | E200: 0 | F200: 0 | G200: 0 | H200: 0 | I200: 213 | J200: 0 | K200: 138.71 | L200: 44.84 | M200: 0 | N200: 0 | O200: 0 | P200: 0 | Q200: 0 | R200: 0 | S200: 0 | T200: 0 | U200: 198 | V200: 226.04 | W200: 409.46 | X200: 0 | Y200: 0 | Z200: 0 | AA200: 0 | AB200: 0 | AC200: 79.8 | AD200: 0 | AE200: 0 | AF200: 0 | AG200: 0 | AH200: 0 | AI200: 0 | AJ200: 0 | AK200: 150.05 | AL200: 0 | AM200: 0 | AN200: 0 | AO200: 0 | AP200: 0 | AQ200: 0 | AR200: 0 | AS200: 0 | AT200: 0 | AU200: 0 | AV200: 0 | AW200: 0 | AX200: 0 | AY200: 0 | AZ200: 0 | BA200: 0 | BB200: 0 | BC200: 6599.35 | BD200: 644.93 | BE200: 112.86 | BF200: 83.2 | BG200: 0 | BH200: 817.86 | BI200: 5 | BJ200: 2372.07 | BK200: 0 | BL200: 50 | BM200: 0 | BN200: 0 | BO200: 150.05 | BP200: 0 | BQ200: 0 | BR200: 0 | BS200: 0 | BT200: 0 | BU200: 0 | BV200: 0 | BW200: 0 | BX200: 0 | BY200: 0 | BZ200: 159.6 | CA200: 0 | CB200: 0 | CC200: 0 | CD200: 0 | CE200: 0 | CF200: 516.8 | CG200: 0 | CH200: 0 | CI200: 0 | CJ200: 0 | CK200: 0 | CL200: 0 | CM200: 0 | CN200: 0 | CO200: 0 | CP200: -0.27 | CQ200: 0.25 | CR200: 4912.35 | CS200: 1687 | CT200: 580.44 | CU200: 48.37 | CV200: 2315.81
... 710 more rows

Sheet Hoja2
B3: Codigo Trabajador | C3: Total_Ingresos | D3: Total_Descuentos | E3: Neto_Boleta | F3: ESSALUD | G3: SENATI | H3: Total_Desembolso_Empresa
B4: 000001 | C4: 21054.59 | D4: 6503.59 | E4: 14551 | F4: 1479.92 | G4: 123.33 | H4: 16154.25
B5: 000002 | C5: 20636.98 | D5: 5500.98 | E5: 15136 | F5: 1450.44 | G5: 120.87 | H5: 16707.31
B6: 000003 | C6: 19444.73 | D6: 5002.73 | E6: 14442 | F6: 1366.29 | G6: 113.86 | H6: 15922.15
B7: 000004 | C7: 9220.76 | D7: 3508.76 | E7: 5712 | F7: 802 | G7: 66.83 | H7: 6580.83
B8: 000005 | C8: 13691.02 | D8: 5213.02 | E8: 8478 | F8: 1226.79 | G8: 102.23 | H8: 9807.02
B9: 000006 | C9: 14929.18 | D9: 4859.18 | E9: 10070 | F9: 1338.22 | G9: 111.52 | H9: 11519.74
B10: 000007 | C10: 19111.53 | D10: 5289.53 | E10: 13822 | F10: 1342.53 | G10: 111.88 | H10: 15276.41
B11: 000008 | C11: 10892.77 | D11: 3272.77 | E11: 7620 | F11: 952.48 | G11: 79.37 | H11: 8651.85
B12: 000009 | C12: 18797.79 | D12: 4881.79 | E12: 13916 | F12: 1321.07 | G12: 110.09 | H12: 15347.16
B13: 000010 | C13: 7802.62 | D13: 6044.62 | E13: 1758 | F13: 674.37 | G13: 56.2 | H13: 2488.57
B14: 000011 | C14: 8998.34 | D14: 4116.34 | E14: 4882 | F14: 786.73 | G14: 65.56 | H14: 5734.29
B15: 000012 | C15: 6717.02 | D15: 3446.02 | E15: 3271 | F15: 599.13 | G15: 49.93 | H15: 3920.06
B16: 000014 | C16: 11970.23 | D16: 6013.23 | E16: 5957 | F16: 1053.77 | G16: 87.81 | H16: 7098.58
B17: 000015 | C17: 12414.06 | D17: 6072.06 | E17: 6342 | F17: 1101.06 | G17: 91.76 | H17: 7534.82
B18: 000016 | C18: 14647.27 | D18: 5739.27 | E18: 8908 | F18: 1312.85 | G18: 109.4 | H18: 10330.25
B19: 000017 | C19: 10369.68 | D19: 4289.68 | E19: 6080 | F19: 905.83 | G19: 75.49 | H19: 7061.32
B20: 000018 | C20: 7504.52 | D20: 2111.52 | E20: 5393 | F20: 554.81 | G20: 46.23 | H20: 5994.04
B21: 000019 | C21: 6051.52 | D21: 1867.52 | E21: 4184 | F21: 539.24 | G21: 44.94 | H21: 4768.18
B22: 000021 | C22: 13982.86 | D22: 4554.86 | E22: 9428 | F22: 981.23 | G22: 81.77 | H22: 10491
B23: 000022 | C23: 6257.18 | D23: 3177.18 | E23: 3080 | F23: 557.74 | G23: 46.48 | H23: 3684.22
B24: 000023 | C24: 18253.87 | D24: 4911.87 | E24: 13342 | F24: 1283.36 | G24: 106.95 | H24: 14732.31
B25: 000024 | C25: 14993.08 | D25: 6879.23 | E25: 8113.85 | F25: 1321.51 | G25: 117.63 | H25: 9552.99
B26: 000025 | C26: 11492.81 | D26: 3879.81 | E26: 7613 | F26: 1009.08 | G26: 84.09 | H26: 8706.17
B27: 000026 | C27: 12475.11 | D27: 6526.26 | E27: 5948.85 | F27: 1095.32 | G27: 98.78 | H27: 7142.95
B28: 000027 | C28: 10377.13 | D28: 5254.01 | E28: 5123.12 | F28: 906.5 | G28: 83.04 | H28: 6112.66
B29: 000028 | C29: 11425.24 | D29: 4217.82 | E29: 7207.42 | F29: 1025.01 | G29: 85.42 | H29: 8317.85
B30: 000029 | C30: 24934.84 | D30: 7967.84 | E30: 16967 | F30: 1753.79 | G30: 146.15 | H30: 18866.94
B31: 000030 | C31: 11733.11 | D31: 7980.11 | E31: 3753 | F31: 1028.11 | G31: 85.68 | H31: 4866.79
B32: 000031 | C32: 9938.53 | D32: 4068.53 | E32: 5870 | F32: 871.35 | G32: 72.61 | H32: 6813.96
B33: 000032 | C33: 23464.38 | D33: 7017.38 | E33: 16447 | F33: 1651.46 | G33: 137.62 | H33: 18236.08
B34: 000033 | C34: 14854.15 | D34: 3737.15 | E34: 11117 | F34: 1043.6 | G34: 86.97 | H34: 12247.57
B35: 000034 | C35: 7161 | D35: 2925 | E35: 4236 | F35: 617.48 | G35: 51.46 | H35: 4904.94
B36: 000035 | C36: 10917.1 | D36: 3637.1 | E36: 7280 | F36: 954.67 | G36: 79.56 | H36: 8314.23
B37: 000036 | C37: 14564.21 | D37: 4979.21 | E37: 9585 | F37: 1282.91 | G37: 106.91 | H37: 10974.82
B38: 000037 | C38: 11491.38 | D38: 5085.38 | E38: 6406 | F38: 1028.82 | G38: 85.74 | H38: 7520.56
B39: 000038 | C39: 8552.54 | D39: 5095.42 | E39: 3457.12 | F39: 744.88 | G39: 69.57 | H39: 4271.57
B40: 000039 | C40: 5574.86 | D40: 2489.86 | E40: 3085 | F40: 482.94 | G40: 40.25 | H40: 3608.19
B41: 000040 | C41: 6810.02 | D41: 2331.02 | E41: 4479 | F41: 607.5 | G41: 50.63 | H41: 5137.13
B42: 000041 | C42: 7776.52 | D42: 3577.52 | E42: 4199 | F42: 694.49 | G42: 57.87 | H42: 4951.36
B43: 000042 | C43: 9497.52 | D43: 3268.52 | E43: 6229 | F43: 849.38 | G43: 70.78 | H43: 7149.16
B44: 000043 | C44: 5971.52 | D44: 2048.52 | E44: 3923 | F44: 532.04 | G44: 44.34 | H44: 4499.38
B45: 000044 | C45: 13785.95 | D45: 4640.95 | E45: 9145 | F45: 1235.33 | G45: 102.94 | H45: 10483.27
B46: 000045 | C46: 17373.27 | D46: 5461.27 | E46: 11912 | F46: 1220.09 | G46: 101.67 | H46: 13233.76
B47: 000046 | C47: 27527.48 | D47: 9841.48 | E47: 17686 | F47: 1937.12 | G47: 161.43 | H47: 19784.55
B48: 000047 | C48: 13140.26 | D48: 3455.26 | E48: 9685 | F48: 921.74 | G48: 76.81 | H48: 10683.55
B49: 000048 | C49: 20203.09 | D49: 6040.09 | E49: 14163 | F49: 1420.16 | G49: 118.35 | H49: 15701.51
B50: 000049 | C50: 9589.01 | D50: 3154.31 | E50: 6434.7 | F50: 854.7 | G50: 71.22 | H50: 7360.62
B51: 000050 | C51: 10555.52 | D51: 5043.52 | E51: 5512 | F51: 944.6 | G51: 78.72 | H51: 6535.32
B52: 000051 | C52: 8893.52 | D52: 3515.52 | E52: 5378 | F52: 795.02 | G52: 66.25 | H52: 6239.27
B53: 000052 | C53: 12785.82 | D53: 5344.82 | E53: 7441 | F53: 1123.29 | G53: 93.61 | H53: 8657.9
B54: 000053 | C54: 9579.02 | D54: 3495.02 | E54: 6084 | F54: 856.71 | G54: 71.39 | H54: 7012.1
B55: 000054 | C55: 10550.02 | D55: 5261.17 | E55: 5288.85 | F55: 944.1 | G55: 86.18 | H55: 6319.13
B56: 000055 | C56: 27663.72 | D56: 8626.72 | E56: 19037 | F56: 1946.93 | G56: 162.24 | H56: 21146.17
B57: 000056 | C57: 8634.38 | D57: 7081.38 | E57: 1553 | F57: 749.22 | G57: 62.44 | H57: 2364.66
B58: 000057 | C58: 7772.24 | D58: 3831.24 | E58: 3941 | F58: 671.63 | G58: 55.97 | H58: 4668.6
B59: 000058 | C59: 4099.86 | D59: 1722.86 | E59: 2377 | F59: 363.59 | G59: 30.3 | H59: 2770.89
B60: 000059 | C60: 14782.8 | D60: 6733.95 | E60: 8048.85 | F60: 1304.74 | G60: 116.23 | H60: 9469.82
B61: 000060 | C61: 7314.82 | D61: 4010.7 | E61: 3304.12 | F61: 652.93 | G61: 61.91 | H61: 4018.96
B62: 000062 | C62: 8065.97 | D62: 3411.97 | E62: 4654 | F62: 698.07 | G62: 58.17 | H62: 5410.24
B63: 000063 | C63: 7630.76 | D63: 3047.76 | E63: 4583 | F63: 566.17 | G63: 47.18 | H63: 5196.35
B64: 000064 | C64: 9075.52 | D64: 3939.52 | E64: 5136 | F64: 811.4 | G64: 67.62 | H64: 6015.02
B65: 000065 | C65: 7000 | D65: 1774 | E65: 5226 | F65: 630 | G65: 52.5 | H65: 5908.5
B66: 000066 | C66: 5760 | D66: 1872 | E66: 3888 | F66: 513 | G66: 42.75 | H66: 4443.75
B67: 000067 | C67: 7651.52 | D67: 2629.52 | E67: 5022 | F67: 568.04 | G67: 47.34 | H67: 5637.38
B68: 000068 | C68: 6376.52 | D68: 2937.52 | E68: 3439 | F68: 568.49 | G68: 47.37 | H68: 4054.86
B69: 000069 | C69: 7981.82 | D69: 3561.7 | E69: 4420.12 | F69: 712.96 | G69: 66.91 | H69: 5199.99
B70: 000070 | C70: 14443.2 | D70: 4228.2 | E70: 10215 | F70: 924.98 | G70: 77.08 | H70: 11217.06
B71: 000071 | C71: 9296.52 | D71: 3915.52 | E71: 5381 | F71: 831.29 | G71: 69.27 | H71: 6281.56
B72: 000072 | C72: 17036.21 | D72: 5344.21 | E72: 11692 | F72: 1197.32 | G72: 99.78 | H72: 12989.1
B73: 000073 | C73: 5533.52 | D73: 1989.52 | E73: 3544 | F73: 377.42 | G73: 31.45 | H73: 3952.87
B74: 000074 | C74: 6706.84 | D74: 2273.84 | E74: 4433 | F74: 367.81 | G74: 30.65 | H74: 4831.46
B75: 000075 | C75: 4362.52 | D75: 1877.52 | E75: 2485 | F75: 387.23 | G75: 32.27 | H75: 2904.5
B76: 000076 | C76: 11505.52 | D76: 5880.52 | E76: 5625 | F76: 914.9 | G76: 76.24 | H76: 6616.14
B77: 000077 | C77: 9391.21 | D77: 4642.09 | E77: 4749.12 | F77: 816.91 | G77: 75.58 | H77: 5641.61
B78: 000078 | C78: 11936.68 | D78: 4605.68 | E78: 7331 | F78: 1068.9 | G78: 89.07 | H78: 8488.97
B79: 000079 | C79: 4394.79 | D79: 2346.79 | E79: 2048 | F79: 390.13 | G79: 32.51 | H79: 2470.64
B80: 000080 | C80: 17385.32 | D80: 6296.32 | E80: 11089 | F80: 1221.78 | G80: 101.81 | H80: 12412.59
B81: 000081 | C81: 6778.52 | D81: 2274.52 | E81: 4504 | F81: 604.67 | G81: 50.39 | H81: 5159.06
B82: 000082 | C82: 6517.52 | D82: 2902.52 | E82: 3615 | F82: 581.18 | G82: 48.43 | H82: 4244.61
B83: 000083 | C83: 6915.68 | D83: 2807.68 | E83: 4108 | F83: 501.81 | G83: 41.82 | H83: 4651.63
B84: 000084 | C84: 9210.74 | D84: 4918.62 | E84: 4292.12 | F84: 801.1 | G84: 74.26 | H84: 5167.48
B85: 000085 | C85: 17709.6 | D85: 16244.79 | E85: 1464.81 | F85: 1559.72 | G85: 137.48 | H85: 3162.01
B86: 000086 | C86: 8724.89 | D86: 3486.89 | E86: 5238 | F86: 757.37 | G86: 63.11 | H86: 6058.48
B87: 000087 | C87: 9452.02 | D87: 2904.02 | E87: 6548 | F87: 845.28 | G87: 70.44 | H87: 7463.72
B88: 000088 | C88: 11501.57 | D88: 4093.57 | E88: 7408 | F88: 1007.27 | G88: 83.94 | H88: 8499.21
B89: 000089 | C89: 12405.09 | D89: 6292.24 | E89: 6112.85 | F89: 1092.04 | G89: 98.5 | H89: 7303.39
B90: 000090 | C90: 8370.96 | D90: 3258.96 | E90: 5112 | F90: 725.52 | G90: 60.46 | H90: 5897.98
B91: 000091 | C91: 11993.74 | D91: 3547.74 | E91: 8446 | F91: 840.39 | G91: 70.03 | H91: 9356.42
B92: 000092 | C92: 13050.47 | D92: 5746.47 | E92: 7304 | F92: 1146.67 | G92: 95.56 | H92: 8546.23
B93: 000093 | C93: 14429.57 | D93: 4205.57 | E93: 10224 | F93: 1014.21 | G93: 84.52 | H93: 11322.73
B94: 000094 | C94: 17969.82 | D94: 4919.82 | E94: 13050 | F94: 1263.02 | G94: 105.25 | H94: 14418.27
B95: 000095 | C95: 5691.01 | D95: 2108.01 | E95: 3583 | F95: 506.79 | G95: 42.23 | H95: 4132.02
B96: 000096 | C96: 7930.4 | D96: 2774.4 | E96: 5156 | F96: 575.42 | G96: 47.95 | H96: 5779.37
B97: 000097 | C97: 16435.75 | D97: 5087.75 | E97: 11348 | F97: 1155.42 | G97: 96.29 | H97: 12599.71
B98: 000098 | C98: 7841.85 | D98: 7765.85 | E98: 76 | F98: 700.36 | G98: 58.36 | H98: 834.72
B99: 000099 | C99: 8875.52 | D99: 6257.52 | E99: 2618 | F99: 793.4 | G99: 66.12 | H99: 3477.52
B100: 000100 | C100: 21290.48 | D100: 6713.48 | E100: 14577 | F100: 1497.2 | G100: 124.77 | H100: 16198.97
B101: 000101 | C101: 14022.44 | D101: 6321.59 | E101: 7700.85 | F101: 1234.15 | G101: 110.35 | H101: 9045.35
B102: 000102 | C102: 14620.82 | D102: 6647.82 | E102: 7973 | F102: 1025.87 | G102: 85.49 | H102: 9084.36
B103: 000103 | C103: 22486.47 | D103: 5874.47 | E103: 16612 | F103: 1415.21 | G103: 117.93 | H103: 18145.14
B104: 000104 | C104: 11645.06 | D104: 4670.06 | E104: 6975 | F104: 1031.85 | G104: 85.99 | H104: 8092.84
B105: 000105 | C105: 7055.52 | D105: 3530.52 | E105: 3525 | F105: 629.6 | G105: 52.47 | H105: 4207.07
B106: 000106 | C106: 8824.52 | D106: 3538.52 | E106: 5286 | F106: 788.81 | G106: 65.73 | H106: 6140.54
B107: 000107 | C107: 9667.52 | D107: 4670.52 | E107: 4997 | F107: 864.68 | G107: 72.06 | H107: 5933.74
B108: 000108 | C108: 7006.77 | D108: 3427.77 | E108: 3579 | F108: 610.52 | G108: 50.88 | H108: 4240.4
B109: 000109 | C109: 14552.54 | D109: 4292.54 | E109: 10260 | F109: 1021.73 | G109: 85.14 | H109: 11366.87
B110: 000110 | C110: 16107.81 | D110: 5269.81 | E110: 10838 | F110: 1131.89 | G110: 94.32 | H110: 12064.21
B111: 000111 | C111: 9031.52 | D111: 4747.52 | E111: 4284 | F111: 807.44 | G111: 67.29 | H111: 5158.73
B112: 000112 | C112: 10184.02 | D112: 4453.02 | E112: 5731 | F112: 911.16 | G112: 75.93 | H112: 6718.09
B113: 000113 | C113: 6809.42 | D113: 3395.42 | E113: 3414 | F113: 585.41 | G113: 48.78 | H113: 4048.19
B114: 000114 | C114: 17750.99 | D114: 4769.99 | E114: 12981 | F114: 1007.33 | G114: 83.94 | H114: 14072.27
B115: 000115 | C115: 14781.47 | D115: 5552.47 | E115: 9229 | F115: 1038.47 | G115: 86.54 | H115: 10354.01
B116: 000116 | C116: 16680.95 | D116: 5276.95 | E116: 11404 | F116: 1171.76 | G116: 97.65 | H116: 12673.41
B117: 000117 | C117: 14602.27 | D117: 4509.27 | E117: 10093 | F117: 1025.24 | G117: 85.44 | H117: 11203.68
B118: 000118 | C118: 12961.61 | D118: 5058.76 | E118: 7902.85 | F118: 1139.11 | G118: 102.43 | H118: 9144.39
B119: 000119 | C119: 7319.52 | D119: 2590.52 | E119: 4729 | F119: 538.16 | G119: 44.85 | H119: 5312.01
B120: 000120 | C120: 6036.71 | D120: 2427.71 | E120: 3609 | F120: 537.9 | G120: 44.83 | H120: 4191.73
B121: 000121 | C121: 18294.88 | D121: 5730.88 | E121: 12564 | F121: 1286.06 | G121: 107.17 | H121: 13957.23
B122: 000122 | C122: 8941.33 | D122: 3066.33 | E122: 5875 | F122: 784.63 | G122: 65.39 | H122: 6725.02
B123: 000123 | C123: 17838.84 | D123: 5644.84 | E123: 12194 | F123: 1254.65 | G123: 104.55 | H123: 13553.2
B124: 000124 | C124: 8819.46 | D124: 4786.34 | E124: 4033.12 | F124: 774.09 | G124: 72.01 | H124: 4879.22
B125: 000125 | C125: 11641.02 | D125: 5040.02 | E125: 6601 | F125: 1042.29 | G125: 86.86 | H125: 7730.15
B126: 000126 | C126: 8520.66 | D126: 3655.66 | E126: 4865 | F126: 628.97 | G126: 52.41 | H126: 5546.38
B127: 000127 | C127: 5830.69 | D127: 4756.69 | E127: 1074 | F127: 504.67 | G127: 42.06 | H127: 1620.73
B128: 000128 | C128: 21287.85 | D128: 5665.85 | E128: 15622 | F128: 1496.48 | G128: 124.71 | H128: 17243.19
B129: 000129 | C129: 63399.48 | D129: 59214.68 | E129: 4184.8 | F129: 2280.95 | G129: 190.08 | H129: 6655.83
B130: 000130 | C130: 26193.87 | D130: 8753.87 | E130: 17440 | F130: 501.17 | G130: 41.76 | H130: 17982.93
B131: 000131 | C131: 8609.52 | D131: 2946.52 | E131: 5663 | F131: 769.46 | G131: 64.12 | H131: 6496.58
B132: 000132 | C132: 9021.98 | D132: 2715.98 | E132: 6306 | F132: 806.58 | G132: 67.21 | H132: 7179.79
B133: 000133 | C133: 16320.79 | D133: 4629.79 | E133: 11691 | F133: 1145.66 | G133: 95.47 | H133: 12932.13
B134: 000134 | C134: 11942.51 | D134: 3579.51 | E134: 8363 | F134: 1069.42 | G134: 89.12 | H134: 9521.54
B135: 000135 | C135: 11893.16 | D135: 5336.04 | E135: 6557.12 | F135: 1042.95 | G135: 94.41 | H135: 7694.48
B136: 000136 | C136: 7723.53 | D136: 3263.52 | E136: 4460.01 | F136: 848.75 | G136: 70.73 | H136: 5379.49
B137: 000137 | C137: 8465.52 | D137: 3407.52 | E137: 5058 | F137: 756.5 | G137: 63.04 | H137: 5877.54
B138: 000138 | C138: 8823.52 | D138: 3428.52 | E138: 5395 | F138: 788.72 | G138: 65.73 | H138: 6249.45
B139: 000139 | C139: 7063.42 | D139: 4027.85 | E139: 3035.57 | F139: 671.04 | G139: 55.92 | H139: 3762.53
B140: 000140 | C140: 18715.87 | D140: 6155.87 | E140: 12560 | F140: 1315.58 | G140: 109.63 | H140: 13985.21
B141: 000141 | C141: 9923.05 | D141: 4594.93 | E141: 5328.12 | F141: 867.8 | G141: 79.82 | H141: 6275.74
B142: 000142 | C142: 19301.28 | D142: 5163.28 | E142: 14138 | F142: 1356.17 | G142: 113.01 | H142: 15607.18
B143: 000143 | C143: 18083.8 | D143: 5185.8 | E143: 12898 | F143: 1270.58 | G143: 105.88 | H143: 14274.46
B144: 000144 | C144: 10991.99 | D144: 4066.99 | E144: 6925 | F144: 983.88 | G144: 81.99 | H144: 7990.87
B145: 000145 | C145: 6606.52 | D145: 2673.52 | E145: 3933 | F145: 589.19 | G145: 49.1 | H145: 4571.29
B146: 000146 | C146: 5767.52 | D146: 1983.52 | E146: 3784 | F146: 513.68 | G146: 42.81 | H146: 4340.49
B147: 000148 | C147: 11935.43 | D147: 4744.58 | E147: 7190.85 | F147: 1068.79 | G147: 96.57 | H147: 8356.21
B148: 000149 | C148: 14803.2 | D148: 14803.2 | E148: 0 | F148: 1106.98 | G148: 92.25 | H148: 1199.23
B149: 000150 | C149: 17569.82 | D149: 5491.82 | E149: 12078 | F149: 1234.4 | G149: 102.87 | H149: 13415.27
B150: 000151 | C150: 18345.48 | D150: 5005.48 | E150: 13340 | F150: 1290.02 | G150: 107.5 | H150: 14737.52
B151: 000152 | C151: 5924.52 | D151: 2503.52 | E151: 3421 | F151: 527.81 | G151: 43.98 | H151: 3992.79
B152: 000153 | C152: 5666.02 | D152: 2208.02 | E152: 3458 | F152: 504.54 | G152: 42.05 | H152: 4004.59
B153: 000154 | C153: 9835.52 | D153: 3734.52 | E153: 6101 | F153: 879.8 | G153: 73.32 | H153: 7054.12
B154: 000155 | C154: 17915.09 | D154: 5529.09 | E154: 12386 | F154: 1258.43 | G154: 104.87 | H154: 13749.3
B155: 000156 | C155: 7656.02 | D155: 2812.02 | E155: 4844 | F155: 683.64 | G155: 56.97 | H155: 5584.61
B156: 000157 | C156: 6187.02 | D156: 2720.02 | E156: 3467 | F156: 551.43 | G156: 45.95 | H156: 4064.38
B157: 000158 | C157: 8010.27 | D157: 4522.15 | E157: 3488.12 | F157: 600.32 | G157: 57.53 | H157: 4145.97
B158: 000159 | C158: 5959.52 | D158: 2190.52 | E158: 3769 | F158: 530.96 | G158: 44.25 | H158: 4344.21
B159: 000160 | C159: 7466.52 | D159: 2643.52 | E159: 4823 | F159: 666.59 | G159: 55.55 | H159: 5545.14
B160: 000161 | C160: 8384.52 | D160: 3174.52 | E160: 5210 | F160: 749.21 | G160: 62.43 | H160: 6021.64
B161: 000162 | C161: 6921.02 | D161: 2622.02 | E161: 4299 | F161: 617.49 | G161: 51.46 | H161: 4967.95
B162: 000163 | C162: 13115.66 | D162: 3592.66 | E162: 9523 | F162: 920.12 | G162: 76.68 | H162: 10519.8
B163: 000164 | C163: 8577.02 | D163: 3114.02 | E163: 5463 | F163: 766.53 | G163: 63.88 | H163: 6293.41
B164: 000165 | C164: 9169.52 | D164: 3543.52 | E164: 5626 | F164: 819.86 | G164: 68.32 | H164: 6514.18
B165: 000166 | C165: 5704.23 | D165: 2155.23 | E165: 3549 | F165: 485.51 | G165: 40.46 | H165: 4074.97
B166: 000167 | C166: 7391.56 | D166: 2353.56 | E166: 5038 | F166: 659.84 | G166: 54.99 | H166: 5752.83
B167: 000168 | C167: 6031.99 | D167: 3916.99 | E167: 2115 | F167: 537.48 | G167: 44.79 | H167: 2697.27
B168: 000169 | C168: 7050.92 | D168: 3890.8 | E168: 3160.12 | F168: 621.08 | G168: 59.26 | H168: 3840.46
B169: 000170 | C169: 15109.39 | D169: 3661.39 | E169: 11448 | F169: 1060.43 | G169: 88.37 | H169: 12596.8
B170: 000171 | C170: 8169.02 | D170: 2842.02 | E170: 5327 | F170: 729.81 | G170: 60.82 | H170: 6117.63
B171: 000172 | C171: 9551.71 | D171: 4571.71 | E171: 4980 | F171: 854.25 | G171: 71.19 | H171: 5905.44
B172: 000173 | C172: 6574.63 | D172: 2019.63 | E172: 4555 | F172: 586.31 | G172: 48.86 | H172: 5190.17
B173: 000174 | C173: 9490.72 | D173: 2911.72 | E173: 6579 | F173: 848.76 | G173: 70.73 | H173: 7498.49
B174: 000175 | C174: 18946.78 | D174: 4856.78 | E174: 14090 | F174: 1331.15 | G174: 110.93 | H174: 15532.08
B175: 000176 | C175: 9423.77 | D175: 2925.77 | E175: 6498 | F175: 842.74 | G175: 70.23 | H175: 7410.97
B176: 000177 | C176: 11695.86 | D176: 7688.86 | E176: 4007 | F176: 1047.23 | G176: 87.27 | H176: 5141.5
B177: 000178 | C177: 23903.37 | D177: 7457.37 | E177: 16446 | F177: 1401.71 | G177: 116.81 | H177: 17964.52
B178: 000179 | C178: 10044.31 | D178: 3161.81 | E178: 6882.5 | F178: 953.62 | G178: 79.47 | H178: 7915.59
B179: 000180 | C179: 6931.38 | D179: 3633.26 | E179: 3298.12 | F179: 610.32 | G179: 58.36 | H179: 3966.8
B180: 000182 | C180: 7177.77 | D180: 2951.77 | E180: 4226 | F180: 640.6 | G180: 53.38 | H180: 4919.98
B181: 000183 | C181: 7019.85 | D181: 2283.05 | E181: 4736.8 | F181: 635.13 | G181: 52.93 | H181: 5424.86
B182: 000184 | C182: 5758.25 | D182: 2197.25 | E182: 3561 | F182: 412.94 | G182: 34.41 | H182: 4008.35
B183: 000185 | C183: 5859.45 | D183: 2471.45 | E183: 3388 | F183: 513.85 | G183: 42.82 | H183: 3944.67
B184: 000186 | C184: 6042.45 | D184: 3503.33 | E184: 2539.12 | F184: 530.32 | G184: 51.69 | H184: 3121.13
B185: 000187 | C185: 7486.05 | D185: 2692.05 | E185: 4794 | F185: 568.44 | G185: 47.37 | H185: 5409.81
B186: 000188 | C186: 6315.65 | D186: 3662.53 | E186: 2653.12 | F186: 554.9 | G186: 53.74 | H186: 3261.76
B187: 000189 | C187: 16955.08 | D187: 4338.08 | E187: 12617 | F187: 1191.57 | G187: 99.3 | H187: 13907.87
B188: 000190 | C188: 5247.46 | D188: 2564.46 | E188: 2683 | F188: 458.77 | G188: 38.23 | H188: 3180
B189: 000191 | C189: 5272.47 | D189: 2394.51 | E189: 2877.96 | F189: 487.75 | G189: 40.65 | H189: 3406.36
B190: 000192 | C190: 7037.97 | D190: 2006.97 | E190: 5031 | F190: 619.91 | G190: 51.66 | H190: 5702.57
B191: 000193 | C191: 6813.37 | D191: 3091.37 | E191: 3722 | F191: 599.7 | G191: 49.97 | H191: 4371.67
B192: 000194 | C192: 4765.05 | D192: 2060.05 | E192: 2705 | F192: 415.35 | G192: 34.61 | H192: 3154.96
B193: 000195 | C193: 13048.72 | D193: 3397.72 | E193: 9651 | F193: 916.84 | G193: 76.4 | H193: 10644.24
B194: 000196 | C194: 6558.25 | D194: 3615.13 | E194: 2943.12 | F194: 576.74 | G194: 55.56 | H194: 3575.42
B195: 000197 | C195: 7147.86 | D195: 2251.86 | E195: 4896 | F195: 629.8 | G195: 52.48 | H195: 5578.28
B196: 000198 | C196: 9148.21 | D196: 2796.21 | E196: 6352 | F196: 817.94 | G196: 68.16 | H196: 7238.1
B197: 000199 | C197: 6721.41 | D197: 2226.41 | E197: 4495 | F197: 591.42 | G197: 49.29 | H197: 5135.71
B198: 000200 | C198: 20219.26 | D198: 6270.26 | E198: 13949 | F198: 1421.69 | G198: 118.47 | H198: 15489.16
B199: 000201 | C199: 7249.97 | D199: 2120.97 | E199: 5129 | F199: 638.99 | G199: 53.25 | H199: 5821.24
B200: 000202 | C200: 7888.69 | D200: 6110.69 | E200: 1778 | F200: 604.68 | G200: 50.39 | H200: 2433.07
B201: 000203 | C201: 8036.52 | D201: 3036.52 | E201: 5000 | F201: 602.69 | G201: 50.22 | H201: 5652.91
B202: 000204 | C202: 6599.35 | D202: 4912.35 | E202: 1687 | F202: 580.44 | G202: 48.37 | H202: 2315.81
... 711 more rows
